Workbook

Sheet TitlePage
A1: Title page | B1: Warning: |
C6: OustXP 2024 - Boom, Ground Broadcast Foliar :Sulfometuron Methyl 2024
E17: WorksheetMaker Version | F17: 6.02.20
A51: 2024-12-18

Sheet Disclaimer
A1: DISCLAIMER

Sheet General Notes
A1: General Notes
B2: Prepared by: | C2: ForestService
B3: Program Version: | C3: 6.02.20
B4: Database Used: | C4: FS WsMkr V06-02-01.mdb
B5: Template Workbook: | C5: FS WsMkr V06-02-01.mdb
B6: Base Workbook: | C6: FS WSMkr Blank V06-02-01.xlsm
A8: Color Codes in WorksheetMaker
A13: Color Codes used in Workbook for Front Matter, Data and Calculation Worksheets
B14: Green shading | C14: This is a default value or a user specified a value. You can change these values as you see fit but you should have a reason for doing so.
B15: Yellow shading | C15: This is a source for a link in other parts of the workbook. If you have good reason to change the value, you should note the change (with your reason) in the “Revisions” page.
B16: Blue shading | C16: This cell is linked to another cell in the workbook. Do not change this value. If you change any of these values, the workbook may not update correctly.
B17: Blue shading blue border | C17: This cell is linked to a Program parameter in Worksheet A01. Do not change this value. If you want the value to change, go to Worksheet A01 and change the value in that worksheet.
B18: Purple Shading | C18: Indicates (for information only) that the typical of order of Lower and Upper values is intentionally reversed. This is only used in the second (label) column.
B19: Italics, no shading | C19: The value in this cell is generated by a formula (the number that you see is the result of an equation). This cell is linked only to other cells in the worksheet. Do not change this value.
A25: Color Codes used in Workbook for Risk Characterization Worksheets
B26: HQ ≥ 2 | C26: For hazard quotient greater than 2, the number is in bold font with a red background and rounded to the nearest integer.
B27: HQ > 1 but < 2 | C27: For hazard quotient greater than 1 but less than two, the number is in bold font with a white background and rounded to one significant place after the decimal.
B28: HQ ≥ 0.1 but <1 | C28: For hazard quotient greater than 0.1 but less than one, the number is in regular font with a white background and rounded to one significant place after the decimal.
B29: HQ < 0.1 | C29: For hazard quotient less than 0.1, the number is in regular font with a white background. The number is expressed in scientific notation and rounded to one significant place -- e.g., 2E-02 rather than 0.02.
B55: Prepared by: | C55: ForestService
B56: Program Version: | C56: 6.02.20
B57: Database Used: | C57: FS WsMkr V06-02-01.mdb
B58: Template Workbook: | C58: FS WsMkr V06-02-01.mdb
B59: Base Workbook: | C59: FS WSMkr Blank V06-02-01.xlsm

Sheet Chemical Notes
A1: Chemical specific notes
A2: Risk Assessment:
A3: Report Date: | D3: 2024-12-01
A6: The area below is an embedded MS Word Document. Add chemical-specific notes as appropriate.

Sheet Revisions
A1: Revision Histroy
A8: The area below is an embedded MS Word Document. Add revision notes as appropriate.

Sheet Contents
A1: Table of Contents | C1: Toc
A2: Work-sheet No. | B2: Worksheet Title
A3: TitlePage | B3: Title page
A4: Disclaimer | B4: DISCLAIMER
A5: General Notes | B5: General Notes
A6: Chemical Notes | B6: Chemical specific notes
A7: Revisions | B7: Revision Histroy
A8: Contents | B8: Table of Contents
A9: A01 | B9: Program Data: Application rates, application volumns, and concentrations in field solutions
A10: A02a | B10: General reference values and exposure factors used in worksheets.
A11: A02b | B11: General reference values and exposure factors used in worksheets.
A12: A02c | B12: General reference values and exposure factors used in worksheets.
A13: A02d | B13: General reference values and exposure factors used in worksheets.
A14: A03 | B14: Food items for terrestrial animals
A15: A04 | B15: Drift from Ground Broadcast Foliar application at distances downwindfrom the application site
A16: B01 | B16: Chemical and Physical Properties for Sulfometuron Methyl 2024
A17: B02 | B17: Toxicity values for Sulfometuron Methyl 2024
A18: B03a | B18: Calculation of Zero-Order Dermal Permeability Rate (Kp) in cm/hour
A19: B03b | B19: Calculation of First-Order Dermal Absorption Rate
A20: B04Rt | B20: Estimates of Water Contamination Rates -- i.e., the concentration in ambient water per pound applied per acre
A21: B04a | B21: Expected Concentrations in Surface Water
A22: B04b | B22: Pond: Concentration of pesticide (liquid formulation) in pond water after an accidental spill
A23: B04c | B23: Concentration in pond water after direct spray or after drift from Ground Broadcast Foliar application at distances downwind in feet from the application site
A24: B04d | B24: Concentration in stream water after direct spray or after drift from Ground Broadcast Foliar application at distances downwind in feet from the application site
A25: B05a | B25: Concentration of Pesticide in Contaminated Fruit
A26: B05b | B26: Concentration of Pesticide in Contaminated Broadleaf Vegetation
A27: B05c | B27: Concentration of Pesticide in Contaminated Short Grass
A28: B05d | B28: Concentration of Pesticide in Contaminated Tall Grass
A29: C01 | B29: Exposure estimates for Ground Boom Worker based on the amount of material handled per day
A30: C02a | B30: Accidental Dermal Exposure Assessment Using Zero-Order Absorption, Worker, Surface Area, Hands, for 1 minute(s)
A31: C02b | B31: Accidental Dermal Exposure Assessment Using Zero-Order Absorption, Worker, Surface Area, Hands, for 60 minute(s)
A32: C03a | B32: Accidental Dermal Exposure Assessment Using First-Order Absorption, Worker, Surface Area, Hands, for 60 minute(s)
A33: C03b | B33: Accidental Dermal Exposure Assessment Using First-Order Absorption, Worker, Surface Area, Lower legs, for 60 minute(s)
A34: D01a | B34: Accidental Dermal Exposure Assessment Using First-Order Absorption, Child, Surface Area, Whole body, for 60 minute(s)
A35: D01b | B35: Accidental Dermal Exposure Assessment Using First-Order Absorption, Adult Female, Surface Area, Feet and lower Legs, for 60 minute(s)
A36: D02 | B36: Dermal Contact with Contaminated Vegetation, Adult Female, Surface Area, Wearing shorts and T-shirt, for 1 hour(s)
A37: D03a | B37: Consumption of Fruit by a Adult Female, Acute exposure.
A38: D03b | B38: Consumption of Vegetation by a Adult Female, Acute exposure.
A39: D04a | B39: Consumption of Fruit by a Adult Female, Chronic exposure.
A40: D04b | B40: Consumption of Vegetation by a Adult Female, Chronic exposure.
A41: D05 | B41: Consumption of contaminated water by Child, Accidental Spill
A42: D06 | B42: Consumption of contaminated water by Child, Peak Conentrations
A43: D07 | B43: Consumption of contaminated water by Adult Male, Longer-term Conentrations
A44: D08a | B44: Consumption of Contaminated Fish (Accidental Spill), Adult Male, acute exposure
A45: D08b | B45: Consumption of Contaminated Fish (Accidental Spill), Subsistence Populations, acute exposure
A46: D09a | B46: Consumption of Contaminated Fish (Longer-term), Adult Male, chronic exposure
A47: D09b | B47: Consumption of Contaminated Fish (Longer-term), Subsistence Populations, chronic exposure
A48: D09c | B48: Consumption of Contaminated Fish (Peak Exposure), Adult Male, acute exposure
A49: D09d | B49: Consumption of Contaminated Fish (Peak Exposure), Subsistence Populations, acute exposure
A50: D10 | B50: Swimming Exposure Assessment Using Zero-Order Absorption, Adult Female, Surface Area, Whole body, for 60 minute(s)
A51: E01 | B51: Summary of Worker Exposure Assessments
A52: E02 | B52: Summary of Worker Hazard Quotients (Toxicity)
A53: E03 | B53: Summary of Exposure Assessments for the General Public
A54: E04 | B54: Summary of Hazard Quotients (Toxicity) for the General Public
A55: F01a | B55: Direct spray of Mammal, small assuming first-order absorption kinetics with spray of 0.5 of the body surface
A56: F01b | B56: Direct spray of Mammal, small assuming 100% absorption
A57: F02a | B57: Consumption of contaminated water by Mammal, small, Accidental Spill
A58: F02b | B58: Consumption of contaminated water by Mammal, 400 g, Accidental Spill
A59: F02c | B59: Consumption of contaminated water by Mammal, carnivorous, Accidental Spill
A60: F02d | B60: Consumption of contaminated water by Mammal, large, Accidental Spill
A61: F02e | B61: Consumption of contaminated water by Bird, small, Accidental Spill
A62: F02f | B62: Consumption of contaminated water by Bird, large, Accidental Spill
A63: F03a | B63: Acute scenario for the consumption of Contaminated Fish (Accidental Spill) by Mammal, large carnivorous
A64: F03b | B64: Acute scenario for the consumption of Contaminated Fish (Accidental Spill) by Mammal, carnivorous
A65: F03c | B65: Acute scenario for the consumption of Contaminated Fish (Accidental Spill) by Bird, piscivorous
A66: F04a | B66: Consumption of Fruit by a Mammal, small after Acute exposure.
A67: F04b | B67: Consumption of Fruit by a Mammal, 400 g after Acute exposure.
A68: F04c | B68: Consumption of Fruit by a Mammal, large after Acute exposure.
A69: F04d | B69: Consumption of Fruit by a Bird, small after Acute exposure.
A70: F04e | B70: Consumption of Fruit by a Bird, large after Acute exposure.
A71: F05a | B71: Consumption of Broadleaf Vegetation by a Mammal, small after Acute exposure.
A72: F05b | B72: Consumption of Broadleaf Vegetation by a Mammal, 400 g after Acute exposure.
A73: F05c | B73: Consumption of Broadleaf Vegetation by a Mammal, large after Acute exposure.
A74: F05d | B74: Consumption of Broadleaf Vegetation by a Bird, small after Acute exposure.
A75: F05e | B75: Consumption of Broadleaf Vegetation by a Bird, large after Acute exposure.
A76: F06a | B76: Consumption of Tall grass by a Mammal, small after Acute exposure.
A77: F06b | B77: Consumption of Tall grass by a Mammal, 400 g after Acute exposure.
A78: F06c | B78: Consumption of Tall grass by a Mammal, large after Acute exposure.
A79: F06d | B79: Consumption of Tall grass by a Bird, small after Acute exposure.
A80: F06e | B80: Consumption of Tall grass by a Bird, large after Acute exposure.
A81: F07a | B81: Consumption of Short grass by a Mammal, small after Acute exposure.
A82: F07b | B82: Consumption of Short grass by a Mammal, 400 g after Acute exposure.
A83: F07c | B83: Consumption of Short grass by a Mammal, large after Acute exposure.
A84: F07d | B84: Consumption of Short grass by a Bird, small after Acute exposure.
A85: F07e | B85: Consumption of Short grass by a Bird, large after Acute exposure.
A86: F08a | B86: Consumption of contaminated water by Mammal, small, Peak Concentrations
A87: F08b | B87: Consumption of contaminated water by Mammal, 400 g, Peak Concentrations
A88: F08c | B88: Consumption of contaminated water by Mammal, carnivorous, Peak Concentrations
A89: F08d | B89: Consumption of contaminated water by Mammal, large, Peak Concentrations
A90: F08e | B90: Consumption of contaminated water by Bird, small, Peak Concentrations
A91: F08f | B91: Consumption of contaminated water by Bird, large, Peak Concentrations
A92: F09a | B92: Consumption of Small Insects by a Mammal, small after Acute exposure.
A93: F09b | B93: Consumption of Small Insects by a Mammal, 400 g after Acute exposure.
A94: F09c | B94: Consumption of Small Insects by a Bird, small after Acute exposure.
A95: F10a | B95: Consumption of Small Mammal by Mammal, carnivorous, acute exposure scenario
A96: F10b | B96: Consumption of Small Mammal by Bird, carnivorous, acute exposure scenario
A97: F11a | B97: Acute scenario for the consumption of Contaminated Fish (Peak) by Mammal, large carnivorous
A98: F11b | B98: Acute scenario for the consumption of Contaminated Fish (Peak) by Mammal, carnivorous
A99: F11c | B99: Acute scenario for the consumption of Contaminated Fish (Peak) by Bird, piscivorous
A100: F12a | B100: Consumption of Fruit by a Mammal, small after Chronic exposure.
A101: F12b | B101: Consumption of Fruit by a Mammal, 400 g after Chronic exposure.
A102: F12c | B102: Consumption of Fruit by a Mammal, large after Chronic exposure.
A103: F12d | B103: Consumption of Fruit by a Bird, small after Chronic exposure.
A104: F12e | B104: Consumption of Fruit by a Bird, large after Chronic exposure.
A105: F13a | B105: Consumption of Broadleaf Vegetation by a Mammal, small after Chronic exposure.
A106: F13b | B106: Consumption of Broadleaf Vegetation by a Mammal, 400 g after Chronic exposure.
A107: F13c | B107: Consumption of Broadleaf Vegetation by a Mammal, large after Chronic exposure.
A108: F13d | B108: Consumption of Broadleaf Vegetation by a Bird, small after Chronic exposure.
A109: F13e | B109: Consumption of Broadleaf Vegetation by a Bird, large after Chronic exposure.
A110: F14a | B110: Consumption of Tall grass by a Mammal, small after Chronic exposure.
A111: F14b | B111: Consumption of Tall grass by a Mammal, 400 g after Chronic exposure.
A112: F14c | B112: Consumption of Tall grass by a Mammal, large after Chronic exposure.
A113: F14d | B113: Consumption of Tall grass by a Bird, small after Chronic exposure.
A114: F14e | B114: Consumption of Tall grass by a Bird, large after Chronic exposure.
A115: F15a | B115: Consumption of Short grass by a Mammal, small after Chronic exposure.
A116: F15b | B116: Consumption of Short grass by a Mammal, 400 g after Chronic exposure.
A117: F15c | B117: Consumption of Short grass by a Mammal, large after Chronic exposure.
A118: F15d | B118: Consumption of Short grass by a Bird, small after Chronic exposure.
A119: F15e | B119: Consumption of Short grass by a Bird, large after Chronic exposure.
A120: F16a | B120: Consumption of contaminated water by Mammal, small, Longer-term Concentrations
A121: F16b | B121: Consumption of contaminated water by Mammal, 400 g, Longer-term Concentrations
A122: F16c | B122: Consumption of contaminated water by Mammal, carnivorous, Longer-term Concentrations
A123: F16d | B123: Consumption of contaminated water by Mammal, large, Longer-term Concentrations
A124: F16e | B124: Consumption of contaminated water by Bird, small, Longer-term Concentrations
A125: F16f | B125: Consumption of contaminated water by Bird, large, Longer-term Concentrations
A126: F17a | B126: Chronic scenario for the consumption of Contaminated Fish (Longer-term) by Mammal, large carnivorous
A127: F17b | B127: Chronic scenario for the consumption of Contaminated Fish (Longer-term) by Mammal, carnivorous
A128: F17c | B128: Chronic scenario for the consumption of Contaminated Fish (Longer-term) by Bird, piscivorous
A129: G01a | B129: Summary of Exposure Assessments for the Mammals
A130: G01b | B130: Summary of Exposure Assessments for the Birds
A131: G02a | B131: Summary of Hazard Quotients (Toxicity) for the Mammals
A132: G02b | B132: Summary of Hazard Quotients (Toxicity) for the Birds
A133: G03 | B133: Worksheet G03: Summary of Hazard Quotients for Aquatic Species
A134: G04 | B134: Summary of Exposure Assessment and Risk Characterization for Terrestrial Plants from Runoff
A135: G05 | B135: Summary of Exposure Assessment and Risk Characterization for Sensitive and Tolerant Terrestrial Plants from Drift After Ground Broadcast Foliar Application.
A136: G06a | B136: Potential exposure of non-target plants through the use of contaminated irrigation water based on estimates concentrations in ambient water.
A137: G06b | B137: Summary of Exposure Assessment and Risk Characterization for Sensitive and Tolerant Terrestrial Plants from Wind Erosion at the Specified Application Rate.
A138: G07a | B138: Consumption of Fruit by a Herbivorous Insect, Acute exposure.
A139: G07b | B139: Consumption of Broadleaf/Small Insects by a Herbivorous Insect, Acute exposure.
A140: G07c | B140: Consumption of Short grass by a Herbivorous Insect, Acute exposure.
A141: G07d | B141: Consumption of Tall Grass by a Herbivorous Insect, Acute exposure.
A142: G08a | B142: Summary of Exposure Assessments for the Herbivorous or Predatory Insects
A143: G08b | B143: Summary of Hazard Quotients (Toxicity) for the Herbivorous or Predatory Insects
A144: G09 | B144: Summary of Exposure Assessment and Risk Characterization for Honeybee from Drift After Ground Broadcast Foliar Application.
A145: References | B145: References cited in workbook

Sheet A01
A1: Program Data: Application rates, application volumns, and concentrations in field solutions
A2: Parameter/Assumption | B2: Code / Range | C2: Equation/ Value | D2: Units | E2: Reference/ Equation
A3: Application Rate | B3: ApRt | C3: 0.38 | D3: lb/acre | E3: Program Input
A4: Application Volume | B4: ApVol
B5: Central | C5: 15 | D5: gal/acre | E5: Program Input
B6: Upper | C6: 40 | E6: Program Input
B7: Lower | C7: 5 | E7: Program Input
A8: Concentration in field solution (lb/gal) | B8: Concppg | C8: ApRt (lb/acre) / ApVol (gal/acre) | E8: Note 1
B9: Central | C9: =IF(C5>0, C$3/C5, "N/A") -> 0.02533333333 | D9: lb/gal | E9: Eq
B10: Lower | C10: =IF(C6>0, C$3/C6, "N/A") -> 0.0095 | E10: Eq
B11: Upper | C11: =IF(C7>0, C$3/C7, "N/A") -> 0.076 | E11: Eq
A12: Conversion Factor for lbs/gal to mg/mL | B12: CnvF | C12: 119.8 | D12: mg/mL per lb/gal
A13: Concentration in field solution (mg/mL) | B13: FldConc | C13: Concppg * CnvF | E13: Note 2
B14: Central | C14: =IF(C5>0, DigitRound( C9*C$12, C$17), "NA") -> 3 | D14: mg/mL | E14: Eq
B15: Lower | C15: =IF(C6>0, DigitRound( C10*C$12, C$17), "NA") -> 1.1 | E15: Eq
B16: Upper | C16: =IF(C7>0, DigitRound( C11*C$12, C$17), "NA") -> 9.1 | E16: Eq
A17: Number of significant figures used for FldConc. | B17: NSig | C17: 2
A20: Number of Applications | B20: nApps | C20: 1 | D20: Unitless | E20: Program Input
A21: Application Interval | B21: ApIntv | C21: 1 | D21: Days | E21: Program Input
A22: Standard Values/Options for Scenarios
A23: Surface area of pond for spill | B23: PondSA_M | C23: 1000 | D23: Sq. Meters | E23: Risk assessment.
A24: Pond depth | B24: PondDepthM | C24: 1 | D24: Meters | E24: Risk assessment.
A25: Stream flow rate for drift scenario | B25: StreamFlowLD | C25: 710000 | D25: Liters/day | E25: Risk assessment.
A26: Stream length for drift scenario | B26: StreamLengthFt | C26: 1038 | D26: Feet | E26: Risk assessment.
A27: Stream width for drift scenario | B27: StreamWidthFt | C27: 6 | D27: Feet | E27: Risk assessment.
A28: Duration for longer-term exposures | B28: SubChDays | C28: 90 | D28: Days | E28: Risk assessment.
A29: Duration for swimming scenarios | B29: SwimMin | C29: 60 | D29: Minutes | E29: Risk assessment.
A30: Protection factor for workers based on PPE. | B30: WrkProtectFact
B31: Central | C31: 0 | E31: Risk assessment.
B32: Lower | C32: 0
B33: Upper | C33: 0
A34: Toxic Equivalency Factor for formulation | B34: TEF
B35: Central | C35: 1 | E35: Risk assessment.
B36: Lower | C36: 1
B37: Upper | C37: 1
A38: Drift used in food commody worksheets | B38: DriftToFood
B39: Central | C39: 1 | E39: Risk assessment.
B40: Lower | C40: 1
B41: Upper | C41: 1
A42: Amount spilled into ponds | B42: PondSpillVolGal
B43: Central | C43: 100 | D43: Gal | E43: Risk assessment.
B44: Lower | C44: 20
B45: Upper | C45: 200
A46: Dislodgeable residue, as a proportion of the application rate. | B46: DislogRes
B47: Central | C47: 0.1 | E47: Risk assessment.
B48: Lower | C48: 0.1
B49: Upper | C49: 0.1
A50: Residue rates for short grass | B50: VegRRSGT
B51: Central | C51: 85 | D51: ppm per lb/ac | E51: Risk assessment.
B52: Lower | C52: 30
B53: Upper | C53: 240
A54: Residue rates for long grass | B54: VegRRTGT
B55: Central | C55: 36 | D55: ppm per lb/ac | E55: Risk assessment.
B56: Lower | C56: 12
B57: Upper | C57: 110
A58: Residue rates for broadleaf/forage plants and small insects | B58: VegRRBLT
B59: Central | C59: 45 | D59: ppm per lb/ac | E59: Risk assessment.
B60: Lower | C60: 15
B61: Upper | C61: 135
A62: Residue rates for fruit | B62: VegRRFRT
B63: Central | C63: 7 | D63: ppm per lb/ac | E63: Risk assessment.
B64: Lower | C64: 3.2
B65: Upper | C65: 15
A66: Worker Exposure Rate | B66: WrkExpRate
B67: Central | C67: 0.0002 | D67: Mg/kg bw per lb | E67: Risk assessment.
B68: Lower | C68: 1e-05
B69: Upper | C69: 0.0009
A70: Number of acres that the worker will treat per hour. | B70: WrkAcPerHr
B71: Central | C71: 16 | D71: Acres/hr | E71: Risk assessment.
B72: Lower | C72: 11
B73: Upper | C73: 21
A74: Number of hours of worker exposure per day. | B74: WrkHsPerDy
B75: Central | C75: 7 | D75: Hrs/day | E75: Risk assessment.
B76: Lower | C76: 6
B77: Upper | C77: 8

Sheet A02a
A1: General reference values and exposure factors used in worksheets.
A3: Receptor | B3: Factor | C3: Value | D3: Units | E3: Reference | F3: Reference Note
A4: Adult Female | B4: Body weight | C4: 69 | D4: kg | E4: U.S. EPA/OPP 2012 | F4: p. 2-1, Table 2-1, mean female adults
A5: Adult Female | B5: Surface Area, Feet and lower Legs | C5: 3550 | D5: cm2 | E5: U.S. EPA/ORD 2011 | F5: p. 7-45, Table 7-13, mean surface area, feet and lower legs = 0.355 m2
A6: Adult Female | B6: Surface Area, Wearing shorts and T-shirt | C6: 6810 | D6: cm2 | E6: U.S. EPA/ORD 2011 | F6: p. 7-45, Table 7-13, total for arms, hands, plus lower legs, and feet
A7: Adult Female | B7: Surface Area, Whole body | C7: 17700 | D7: cm2 | E7: U.S. EPA/OPP 2012 | F7: p. 2-3, Table 2-3, mean female adults
A8: Adult Male | B8: Body weight | C8: 86 | D8: kg | E8: U.S. EPA/OPP 2012 | F8: p. 2-1, Table 2-1, mean male adults
A9: Subsistence Populations | B9: Body weight | C9: 80 | D9: kg | E9: U.S. EPA/OPP 2012 | F9: p. 2-1, Table 2-1, mean combined adults
A10: Worker, Aerial Spray | B10: Absorbed dose rate, central estimate | C10: 2e-05 | D10: (mg/kg bw)/(lbs handled per day) | E10: SERA 2014 | F10: p. 131, Table 6, all aerial broadcast based on 2,4-D as reference chemical. Central estimate. 490 acres treated per day.
A11: Worker, Aerial Spray | B11: Absorbed dose rate, lower range | C11: 5e-07 | D11: (mg/kg bw)/(lbs handled per day) | E11: SERA 2014 | F11: p. 131, Table 6, all aerial broadcast based on 2,4-D as reference chemical. Lower prediction interval. 240 acres treated per day.
A12: Worker, Aerial Spray | B12: Absorbed dose rate, upper range | C12: 0.0008 | D12: (mg/kg bw)/(lbs handled per day) | E12: SERA 2014 | F12: p. 131, Table 6, all aerial broadcast based on 2,4-D as reference chemical. Upper prediction interval. 800 acres treated per day.
A13: Worker, Aerial Spray | B13: Hours of application per day, central estimate | C13: 7 | D13: Hours per day | E13: USDA 1989a | F13: N/A
A14: Worker, Aerial Spray | B14: Hours of application per day, lower range | C14: 6 | D14: Hours per day | E14: USDA 1989a | F14: N/A
A15: Worker, Aerial Spray | B15: Hours of application per day, upper range | C15: 8 | D15: Hours per day | E15: USDA 1989a | F15: N/A
A16: Worker, Aerial Spray | B16: Acres treated per hour, central estimate | C16: 70 | D16: acres/hour | E16: USDA 1989a | F16: Acres treated per hour
A17: Worker, Aerial Spray | B17: Acres treated per hour, lower range | C17: 40 | D17: acres/hour | E17: USDA 1989a | F17: Acres treated per hour
A18: Worker, Aerial Spray | B18: Acres treated per hour, upper range | C18: 100 | D18: acres/hour | E18: USDA 1989a | F18: Acres treated per hour
A19: Worker, Backpack | B19: Absorbed dose rate, central estimate | C19: 0.005 | D19: (mg/kg bw)/(lbs handled per day) | E19: SERA 2014 | F19: p. 131, Table 6, backpack directed foliar based on 2,4-D as reference chemical. Central estimate. 4.4 acres treated per day.
A20: Worker, Backpack | B20: Absorbed dose rate, lower range | C20: 0.001 | D20: (mg/kg bw)/(lbs handled per day) | E20: SERA 2014 | F20: p. 131, Table 6, backpack directed foliar based on 2,4-D as reference chemical. Lower prediction interval. 1.5 acres treated per day.
A21: Worker, Backpack | B21: Absorbed dose rate, upper range | C21: 0.02 | D21: (mg/kg bw)/(lbs handled per day) | E21: SERA 2014 | F21: p. 131, Table 6, backpack directed foliar based on 2,4-D as reference chemical. Upper prediction interval. 8.0 acres treated per day.
A22: Worker, Backpack | B22: Hours of application per day, central estimate | C22: 7 | D22: Hours per day | E22: USDA 1989a | F22: N/A
A23: Worker, Backpack | B23: Hours of application per day, lower range | C23: 6 | D23: Hours per day | E23: USDA 1989a | F23: N/A
A24: Worker, Backpack | B24: Hours of application per day, upper range | C24: 8 | D24: Hours per day | E24: USDA 1989a | F24: N/A
A25: Worker, Backpack | B25: Acres treated per hour, central estimate | C25: 0.625 | D25: acres/hour | E25: USDA 1989a | F25: Acres treated per hour
A26: Worker, Backpack | B26: Acres treated per hour, lower range | C26: 0.25 | D26: acres/hour | E26: USDA 1989a | F26: Acres treated per hour
A27: Worker, Backpack | B27: Acres treated per hour, upper range | C27: 1 | D27: acres/hour | E27: USDA 1989a | F27: Acres treated per hour
A28: Child | B28: Body weight | C28: 11 | D28: kg | E28: U.S. EPA/OPP 2012 | F28: p. 3-9, Table 3-3, children 1 < 2 years old
A29: Child | B29: Surface Area, Whole body | C29: 6030 | D29: cm2 | E29: U.S. EPA/ORD 1996 | F29: p. 6-15, Table 6-6, 50th percentile.
A30: Worker, Ground Spray | B30: Absorbed dose rate, central estimate | C30: 0.0001 | D30: (mg/kg bw)/(lbs handled per day) | E30: SERA 2014 | F30: p. 131, Table 6, broadcast ground foliar based on 2,4-D as reference chemical. Central estimate. 112 acres treated per day.
A31: Worker, Ground Spray | B31: Absorbed dose rate, lower range | C31: 2e-06 | D31: (mg/kg bw)/(lbs handled per day) | E31: SERA 2014 | F31: p. 131, Table 6, broadcast ground foliar based on 2,4-D as reference chemical. Lower prediction. 66 acres treated per day.
A32: Worker, Ground Spray | B32: Absorbed dose rate, upper range | C32: 0.005 | D32: (mg/kg bw)/(lbs handled per day) | E32: SERA 2014 | F32: p. 131, Table 6, broadcast ground foliar based on 2,4-D as reference chemical. Upper prediction.168 acres treated per day.
A33: Worker, Ground Spray | B33: Hours of application per day, central estimate | C33: 7 | D33: Hours per day | E33: USDA 1989a | F33: N/A
A34: Worker, Ground Spray | B34: Hours of application per day, lower range | C34: 6 | D34: Hours per day | E34: USDA 1989a | F34: N/A
A35: Worker, Ground Spray | B35: Hours of application per day, upper range | C35: 8 | D35: Hours per day | E35: USDA 1989a | F35: N/A
A36: Worker, Ground Spray | B36: Acres treated per hour, central estimate | C36: 16 | D36: acres/hour | E36: USDA 1989a | F36: Acres treated per hour
A37: Worker, Ground Spray | B37: Acres treated per hour, lower range | C37: 11 | D37: acres/hour | E37: USDA 1989a | F37: Acres treated per hour
A38: Worker, Ground Spray | B38: Acres treated per hour, upper range | C38: 21 | D38: acres/hour | E38: USDA 1989a | F38: Acres treated per hour
A39: Worker | B39: Body weight | C39: 86 | D39: kg | E39: U.S. EPA/OPP 2012 | F39: p. 2-1, Table 2-1, mean male adults
A40: Worker | B40: Surface Area, Hands | C40: 1070 | D40: cm2 | E40: U.S. EPA/ORD 2011 | F40: p. 7-44, Table 7-12, mean of surface area for hands
A41: Worker | B41: Surface Area, Lower legs | C41: 2680 | D41: cm2 | E41: U.S. EPA/ORD 2011 | F41: p. 7-44, Table 7-12, mean of surface area for lower legs

Sheet A02b
A1: General reference values and exposure factors used in worksheets.
A3: Receptor | B3: Factor | C3: Value | D3: Units | E3: Reference | F3: Reference Note
A4: Amphibian | B4: Kilocalories, alpha parameter for allometric equation | C4: 0.054 | D4: BW(g),Kcal (kcal/day) | E4: U.S. EPA/ORD 1993 | F4: p. 3-7, equation 3-14
A5: Amphibian | B5: Kilocalories, beta parameter for allometric equation | C5: 0.799 | D5: BW(g),Kcal (kcal/day) | E5: U.S. EPA/ORD 1993 | F5: p. 3-7, equation 3-14
A6: Amphibian, bull frog | B6: Food consumption, alpha parameter for allometric equation | C6: 1.09 | D6: BW(g),FC(g) | E6: SERA 2010 | F6: Figure 15
A7: Amphibian, bull frog | B7: Food consumption, beta parameter for allometric equation | C7: 0.1723 | D7: BW(g),FC(g) | E7: SERA 2010 | F7: Figure 15
A8: Bird, NOS | B8: Food consumption, alpha parameter for allometric equation | C8: 0.648 | D8: BW(g),FC(g) | E8: U.S. EPA/ORD 1993 | F8: Eq. 3-3, p. 3-4, all birds
A9: Bird, NOS | B9: Food consumption, beta parameter for allometric equation | C9: 0.651 | D9: BW(g),FC(g) | E9: U.S. EPA/ORD 1993 | F9: Eq. 3-3, p. 3-4, all birds
A10: Bird, carnivorous | B10: Body weight | C10: 0.64 | D10: kg | E10: Dunning 1993 | F10: p. 97. Female Spotted Owl (Strix occidentalis). Range of 548 to 760 g.
A11: Bird, carnivorous | B11: Kilocalories, alpha parameter for allometric equation | C11: 1.146 | D11: BW(g),KCal(kcal/day) | E11: U.S. EPA/ORD 1993 | F11: Eq. 3-37, nonpasserines
A12: Bird, carnivorous | B12: Kilocalories, beta parameter for allometric equation | C12: 0.749 | D12: BW(g),KCal(kcal/day) | E12: U.S. EPA/ORD 1993 | F12: Eq. 3-37, nonpasserines
A13: Bird, carnivorous | B13: Water consumption, alpha parameter for allometric equation | C13: 0.059 | D13: BW(kg), WC(L) | E13: U.S. EPA/ORD 1993 | F13: Eq. 3-15, p. 3-8
A14: Bird, carnivorous | B14: Water consumption, beta parameter for allometric equation | C14: 0.67 | D14: BW(kg), WC(L) | E14: U.S. EPA/ORD 1993 | F14: Eq. 3-15, p. 3-8
A15: Bird, large | B15: Body weight | C15: 4 | D15: kg | E15: Default | F15: Canada goose
A16: Bird, large | B16: Kilocalories, alpha parameter for allometric equation | C16: 1.146 | D16: BW(g),KCal(kcal/day) | E16: U.S. EPA/ORD 1993 | F16: Eq. 3-37, non-passerines
A17: Bird, large | B17: Kilocalories, beta parameter for allometric equation | C17: 0.749 | D17: BW(g),KCal(kcal/day) | E17: U.S. EPA/ORD 1993 | F17: Eq. 3-37, non-passerines
A18: Bird, large | B18: Water consumption, alpha parameter for allometric equation | C18: 0.059 | D18: BW(kg), WC(L) | E18: U.S. EPA/ORD 1993 | F18: Eq. 3-15, p. 3-8
A19: Bird, large | B19: Water consumption, beta parameter for allometric equation | C19: 0.67 | D19: BW(kg), WC(L) | E19: U.S. EPA/ORD 1993 | F19: Eq. 3-15, p. 3-8
A20: Bird, non-Passerine | B20: Food consumption, alpha parameter for allometric equation | C20: 0.301 | D20: BW(g),FC(g) | E20: U.S. EPA/ORD 1993 | F20: Eq. 3-5, p. 3-5, non-passerines
A21: Bird, non-Passerine | B21: Food consumption, beta parameter for allometric equation | C21: 0.751 | D21: BW(g),FC(g) | E21: U.S. EPA/ORD 1993 | F21: Eq. 3-5, p. 3-5, non-passerines
A22: Bird, Passerine | B22: Food consumption, alpha parameter for allometric equation | C22: 0.398 | D22: BW(g),FC(g) | E22: U.S. EPA/ORD 1993 | F22: Eq. 3-4, p. 3-4, passerines
A23: Bird, Passerine | B23: Food consumption, beta parameter for allometric equation | C23: 0.85 | D23: BW(g),FC(g) | E23: U.S. EPA/ORD 1993 | F23: Eq. 3-4, p. 3-4, passerines
A24: Bird, piscivorous | B24: Body weight | C24: 2.4 | D24: kg | E24: Sibley 2000 | F24: p. 60. Great Blue Heron
A25: Bird, piscivorous | B25: Food consumption, alpha parameter for allometric equation | C25: 0.495 | D25: BW(g), FC(g) | E25: U.S. EPA/ORD 1993 | F25: Eq. 3-6, p. 3-5, seabird
A26: Bird, piscivorous | B26: Food consumption, beta parameter for allometric equation | C26: 0.704 | D26: BW(g), FC(g) | E26: U.S. EPA/ORD 1993 | F26: Eq. 3-6, p. 3-5, seabird
A27: Bird, piscivorous | B27: Kilocalories, alpha parameter for allometric equation | C27: 1.916 | D27: BW(g),KCal(kcal/day) | E27: U.S. EPA/ORD 1993 | F27: Eq. 3-38, p. 3-23, seabird
A28: Bird, piscivorous | B28: Kilocalories, beta parameter for allometric equation | C28: 0.704 | D28: BW(g),KCal(kcal/day) | E28: U.S. EPA/ORD 1993 | F28: Eq. 3-38, p. 3-23, seabird
A29: Bird, piscivorous | B29: Water consumption, alpha parameter for allometric equation | C29: 0.059 | D29: BW(kg), WC(L) | E29: U.S. EPA/ORD 1993 | F29: Eq. 3-15, p. 3-8
A30: Bird, piscivorous | B30: Water consumption, beta parameter for allometric equation | C30: 0.67 | D30: BW(kg), WC(L) | E30: U.S. EPA/ORD 1993 | F30: Eq. 3-15, p. 3-8
A31: Bird, small | B31: Body weight | C31: 0.01 | D31: kg | E31: Default | F31: N/A
A32: Bird, small | B32: Kilocalories, alpha parameter for allometric equation | C32: 3.12 | D32: BW(g),KCal(kcal/day) | E32: U.S. EPA/ORD 1993 | F32: Equation 3-36, passerines
A33: Bird, small | B33: Kilocalories, beta parameter for allometric equation | C33: 0.605 | D33: BW(g),KCal(kcal/day) | E33: U.S. EPA/ORD 1993 | F33: Equation 3-36, passerines
A34: Bird, small | B34: Water consumption, alpha parameter for allometric equation | C34: 0.059 | D34: BW(kg), WC(L) | E34: U.S. EPA/ORD 1993 | F34: Eq. 3-15, p. 3-8
A35: Bird, small | B35: Water consumption, beta parameter for allometric equation | C35: 0.67 | D35: BW(kg), WC(L) | E35: U.S. EPA/ORD 1993 | F35: Eq. 3-15, p. 3-8
A36: Honeybee | B36: Body weight | C36: 0.000116 | D36: kg | E36: Winston 1987 | F36: p. 54. Arithmetic average of range: 81 to 151 mg/bee.
A37: Honeybee | B37: Surface Area, Whole body | C37: 1.42 | D37: cm2 | E37: Humphery and Dykes 2008 | F37: Based on a bee with a body length of 1.44 cm.
A38: Mammal, Nos | B38: Food consumption, alpha parameter for allometric equation | C38: 0.235 | D38: BW(g),FC(g) | E38: U.S. EPA/ORD 1993 | F38: Eq. 3-7 ,p. 3-6, all mammals
A39: Mammal, Nos | B39: Food consumption, beta parameter for allometric equation | C39: 0.822 | D39: BW(g),FC(g) | E39: U.S. EPA/ORD 1993 | F39: Eq. 3-7 ,p. 3-6, all mammals
A40: Mammal, 400 g | B40: Body weight | C40: 0.4 | D40: kg | E40: Default | F40: N/A
A41: Mammal, 400 g | B41: Food consumption, alpha parameter for allometric equation | C41: 0.621 | D41: BW(g),FC(g) | E41: U.S. EPA/ORD 1993 | F41: Eq. 3-8, p. 3-6, equation for rodents
A42: Mammal, 400 g | B42: Food consumption, beta parameter for allometric equation | C42: 0.564 | D42: BW(g),FC(g) | E42: U.S. EPA/ORD 1993 | F42: Eq. 3-8, p. 3-6, equation for rodents
A43: Mammal, 400 g | B43: Kilocalories, alpha parameter for allometric equation | C43: 2.514 | D43: BW(g),KCal(kcal/day) | E43: U.S. EPA/ORD 1993 | F43: Equation 3-48, rodent
A44: Mammal, 400 g | B44: Kilocalories, beta parameter for allometric equation | C44: 0.507 | D44: BW(g),KCal(kcal/day) | E44: U.S. EPA/ORD 1993 | F44: Equation 3-48, rodent
A45: Mammal, 400 g | B45: Water consumption, alpha parameter for allometric equation | C45: 0.099 | D45: BW(kg),WC(L) | E45: U.S. EPA/ORD 1993 | F45: Eq. 3-17, p. 3-10, all mammals
A46: Mammal, 400 g | B46: Water consumption, beta parameter for allometric equation | C46: 0.9 | D46: BW(kg),WC(L) | E46: U.S. EPA/ORD 1993 | F46: Eq. 3-17, p. 3-10, all mammals
A47: Mammal, carnivorous | B47: Body weight | C47: 5 | D47: kg | E47: U.S. EPA/ORD 1993 | F47: p. 2-221. Central value for red fox with a range of 3 to 7 kg.
A48: Mammal, carnivorous | B48: Kilocalories, alpha parameter for allometric equation | C48: 0.6167 | D48: BW(g),KCal(kcal/day) | E48: U.S. EPA/ORD 1993 | F48: Equation 3-47, non-herbivore
A49: Mammal, carnivorous | B49: Kilocalories, beta parameter for allometric equation | C49: 0.862 | D49: BW(g),KCal(kcal/day) | E49: U.S. EPA/ORD 1993 | F49: Equation 3-47, non-herbivore
A50: Mammal, carnivorous | B50: Water consumption, alpha parameter for allometric equation | C50: 0.099 | D50: BW(kg),WC(L) | E50: U.S. EPA/ORD 1993 | F50: Eq. 3-17, p. 3-10, all mammals
A51: Mammal, carnivorous | B51: Water consumption, beta parameter for allometric equation | C51: 0.9 | D51: BW(kg), WC(L) | E51: U.S. EPA/ORD 1993 | F51: Eq. 3-17, p. 3-10, all mammals
A52: Mammal, large carnivorous | B52: Body weight | C52: 70 | D52: kg | E52: Reid 2006 | F52: pp. 451-453. Black bear or small grizzly.
A53: Mammal, large carnivorous | B53: Kilocalories, alpha parameter for allometric equation | C53: 0.6167 | D53: BW(g),KCal(kcal/day) | E53: U.S. EPA/ORD 1993 | F53: Equation 3-47, non-herbivore
A54: Mammal, large carnivorous | B54: Kilocalories, beta parameter for allometric equation | C54: 0.862 | D54: BW(g),KCal(kcal/day) | E54: U.S. EPA/ORD 1993 | F54: Equation 3-47, non-herbivore
A55: Mammal, large carnivorous | B55: Water consumption, alpha parameter for allometric equation | C55: 0.099 | D55: BW(kg),WC(L) | E55: U.S. EPA/ORD 1993 | F55: Eq. 3-17, p. 3-10, all mammals
A56: Mammal, large carnivorous | B56: Water consumption, beta parameter for allometric equation | C56: 0.9 | D56: BW(kg), WC(L) | E56: U.S. EPA/ORD 1993 | F56: Eq. 3-17, p. 3-10, all mammals
A57: Mammal, herbivorous | B57: Food consumption, alpha parameter for allometric equation | C57: 0.577 | D57: BW(g),FC(g) | E57: U.S. EPA/ORD 1993 | F57: Eq. 3-9, p. 3-6, equation for herbivores
A58: Mammal, herbivorous | B58: Food consumption, beta parameter for allometric equation | C58: 0.727 | D58: BW(g),FC(g) | E58: U.S. EPA/ORD 1993 | F58: Eq. 3-9, p. 3-6, equation for herbivores
A59: Mammal, herbivorous | B59: Kilocalories, alpha parameter for allometric equation | C59: 1.518 | D59: BW(g),KCal(kcal/day) | E59: U.S. EPA/ORD 1993 | F59: Equation 3-46, herbivores
A60: Mammal, herbivorous | B60: Kilocalories, beta parameter for allometric equation | C60: 0.73 | D60: BW(g),KCal(kcal/day) | E60: U.S. EPA/ORD 1993 | F60: Equation 3-46, herbivores
A61: Mammal, large | B61: Body weight | C61: 70 | D61: kg | E61: Default | F61: N/A
A62: Mammal, large | B62: Kilocalories, alpha parameter for allometric equation | C62: 1.518 | D62: BW(g),KCal(kcal/day) | E62: U.S. EPA/ORD 1993 | F62: p. 3-6, Eq. 3-10, herbivores
A63: Mammal, large | B63: Kilocalories, beta parameter for allometric equation | C63: 0.73 | D63: BW(g),KCal(kcal/day) | E63: U.S. EPA/ORD 1993 | F63: p. 3-6, Eq. 3-10, herbivores
A64: Mammal, large | B64: Water consumption, alpha parameter for allometric equation | C64: 0.099 | D64: BW(kg),WC(L) | E64: U.S. EPA/ORD 1993 | F64: Eq. 3-17, p. 3-10, all mammals
A65: Mammal, large | B65: Water consumption, beta parameter for allometric equation | C65: 0.9 | D65: BW(kg), WC(L) | E65: U.S. EPA/ORD 1993 | F65: Eq. 3-17, p. 3-10, all mammals
A66: Mammal, rabbit | B66: Body weight | C66: 1.3 | D66: kg | E66: Default | F66: N/A
A67: Mammal, rabbit | B67: Surface Area, alpha parameter for allometric equation | C67: 0.11 | D67: BW(kg),SA(m2) | E67: U.S. EPA/ORD 1993 | F67: p. 3-14, Eq. 3-22, for all mammals
A68: Mammal, rabbit | B68: Surface Area, beta parameter for allometric equation | C68: 0.65 | D68: BW(kg),SA(m2) | E68: U.S. EPA/ORD 1993 | F68: p. 3-14, Eq. 3-22, for all mammals
A69: Mammal, rodent | B69: Food consumption, alpha parameter for allometric equation | C69: 0.621 | D69: BW(g),FC(g) | E69: U.S. EPA/ORD 1993 | F69: Eq. 3-8, p. 3-6, equation for rodents
A70: Mammal, rodent | B70: Food consumption, beta parameter for allometric equation | C70: 0.584 | D70: BW(g),FC(g) | E70: U.S. EPA/ORD 1993 | F70: Eq. 3-8,p. 3-6, equation for rodents
A71: Mammal, small | B71: Body weight | C71: 0.02 | D71: kg | E71: Default | F71: N/A
A72: Mammal, small | B72: Caloric content (wet weight) | C72: 1.7 | D72: kcal/g (wet weight) | E72: U.S. EPA/ORD 1993 | F72: Table 4-1, p. 4-13. Value for small mammals. Wet weight.
A73: Mammal, small | B73: Food consumption, alpha parameter for allometric equation | C73: 0.621 | D73: BW(g),FC(g) | E73: U.S. EPA/ORD 1993 | F73: Eq. 3-8, p. 3-6, equation for rodents
A74: Mammal, small | B74: Food consumption, beta parameter for allometric equation | C74: 0.564 | D74: BW(g),FC(g) | E74: U.S. EPA/ORD 1993 | F74: Eq. 3-8, p. 3-6, equation for rodents
A75: Mammal, small | B75: Kilocalories, alpha parameter for allometric equation | C75: 2.514 | D75: BW(g),KCal(kcal/day) | E75: U.S. EPA/ORD 1993 | F75: Equation 3-48, rodent
A76: Mammal, small | B76: Kilocalories, beta parameter for allometric equation | C76: 0.507 | D76: BW(g),KCal(kcal/day) | E76: U.S. EPA/ORD 1993 | F76: Equation 3-48, rodent
A77: Mammal, small | B77: Surface Area, alpha parameter for allometric equation | C77: 0.11 | D77: BW(kg),SA(m2) | E77: U.S. EPA/ORD 1993 | F77: p. 3-14, Eq. 3-22, for all mammals
A78: Mammal, small | B78: Surface Area, beta parameter for allometric equation | C78: 0.65 | D78: BW(kg),SA(m2) | E78: U.S. EPA/ORD 1993 | F78: p. 3-14, Eq. 3-22, for all mammals
A79: Mammal, small | B79: Water consumption, alpha parameter for allometric equation | C79: 0.099 | D79: BW(kg),WC(L) | E79: U.S. EPA/ORD 1993 | F79: Eq. 3-17, p. 3-10, all mammals
A80: Mammal, small | B80: Water consumption, beta parameter for allometric equation | C80: 0.9 | D80: BW(kg),WC(L) | E80: U.S. EPA/ORD 1993 | F80: Eq. 3-17, p. 3-10, all mammals

Sheet A02c
A1: General reference values and exposure factors used in worksheets.
A3: Receptor | B3: Factor | C3: Value | D3: Units | E3: Reference | F3: Reference Note
A4: Small Insects | B4: Caloric content (wet weight) | C4: 1.5 | D4: kcal/g (wet weight) | E4: U.S. EPA/ORD 1993 | F4: Table 4-1, p. 4-13. Value for beetles. Wet weight
A5: Fish | B5: Caloric content (wet weight) | C5: 1.2 | D5: kcal/g (wet weight) | E5: U.S. EPA/ORD 1993 | F5: Table 4-1, p. 4-13. Value for bony fish. Wet weight
A6: Vegetation | B6: Caloric content (dry weight) | C6: 2.26 | D6: kcal/g | E6: U.S. EPA/ORD 1993 | F6: p. 3-5, Table 3-1
A7: Vegetation | B7: Water content (proportion) | C7: 0.85 | D7: unitless | E7: U.S. EPA/ORD 1993 | F7: p. 4-14
A8: VegRR | B8: Broadleaf/forage plants and small insects, central estimate | C8: 45 | D8: mg chem/kg veg | E8: Fletcher et al. 1994 | F8: Broadleaf/forage plants and small insects
A9: VegRR | B9: Broadleaf/forage plants and small insects, upper range | C9: 135 | D9: mg chem/kg veg | E9: Fletcher et al. 1994 | F9: Broadleaf/forage plants and small insects
A10: VegRR | B10: Fruits, pods, seeds, and large insects, central estimate | C10: 7 | D10: mg chem/kg veg | E10: Fletcher et al. 1994 | F10: Fruits, pods, seeds, and large insects
A11: VegRR | B11: Fruits, pods, seeds, and large insects, upper range | C11: 15 | D11: mg chem/kg veg | E11: Fletcher et al. 1994 | F11: Fruits, pods, seeds, and large insects
A12: VegRR | B12: Broadleaf plants and small insects, granular applications, central estimate | C12: 1.8 | D12: mg chem/kg veg | E12: SERA 2005 | F12: Broadleaf forage plants and contaminated insects after granular application
A13: VegRR | B13: Broadleaf plants and small insects, granular applications, upper range | C13: 5.4 | D13: mg chem/kg veg | E13: SERA 2005 | F13: Broadleaf forage plants and contaminated insects after granular application
A14: VegRR | B14: Fruits, granular applications, central estimate | C14: 0.28 | D14: mg chem/kg veg | E14: SERA 2005 | F14: Fruit after granular application
A15: VegRR | B15: Fruits, granular applications, upper range | C15: 0.6 | D15: mg chem/kg veg | E15: SERA 2005 | F15: Fruit after granular application
A16: VegRR | B16: Short grass, granular applications, lower range | C16: 1.2 | D16: mg chem/kg veg | E16: SERA 2005 | F16: Short grass after granular application
A17: VegRR | B17: Short grass, granular applications, upper range | C17: 9.6 | D17: mg chem/kg veg | E17: SERA 2005 | F17: Short grass after granular application
A18: VegRR | B18: Tall grass, granular applications, central estimate | C18: 1.44 | D18: mg chem/kg veg | E18: SERA 2005 | F18: Tall grass after granular application
A19: VegRR | B19: Tall grass, granular applications, upper range | C19: 4.4 | D19: mg chem/kg veg | E19: SERA 2005 | F19: Tall grass after granular application
A20: VegRR | B20: Short grass, central estimate | C20: 85 | D20: mg chem/kg veg | E20: Fletcher et al. 1994 | F20: Short grass
A21: VegRR | B21: Short grass, lower range | C21: 30 | D21: mg chem/kg veg | E21: SERA 2007 | F21: Short grass
A22: VegRR | B22: Short grass, upper range | C22: 240 | D22: mg chem/kg veg | E22: Fletcher et al. 1994 | F22: Short grass
A23: VegRR | B23: Tall grass, central estimate | C23: 36 | D23: mg chem/kg veg | E23: Fletcher et al. 1994 | F23: Tall grass
A24: VegRR | B24: Tall grass, upper range | C24: 110 | D24: mg chem/kg veg | E24: Fletcher et al. 1994 | F24: Tall grass

Sheet A02d
A1: General reference values and exposure factors used in worksheets.
A3: Receptor | B3: Factor | C3: Value | D3: Units | E3: Reference | F3: Reference Note
A4: Conversion Factors | B4: acrefoot2gal | C4: 325900 | D4: gal/acre-foot | E4: Budavari 1989 | F4: N/A
A5: Conversion Factors | B5: liters per gal | C5: 3.785 | D5: L/gal | E5: Budavari 1989 | F5: N/A
A6: Conversion Factors | B6: pound per milligram | C6: 453600 | D6: mg/lb | E6: Budavari 1989 | F6: N/A
A7: Conversion Factors | B7: lbac2mgcm2 | C7: 0.01121 | D7: mg/cm2 per lb/acre | E7: Budavari 1989 | F7: N/A
A8: Conversion Factors | B8: lbac2ugcm2 | C8: 11.21 | D8: ug/cm2 per lb/acre | E8: Budavari 1989 | F8: N/A
A9: Conversion Factors | B9: conversion for milligrams to pounds | C9: 2.204e-06 | D9: lb/mg | E9: Budavari 1989 | F9: N/A
A10: Conversion Factors | B10: conversion for milliliters to gallons | C10: 3785 | D10: ml/gal | E10: Budavari 1989 | F10: N/A
A11: Misc | B11: Liquid adhering to skin | C11: 0.008 | D11: mL/cm2 | E11: Mason and Johnson 1987 | F11: Weight of liquid adhering to surface of skin after a spill
A12: Misc | B12: Dislodgeable residue as proportion | C12: 0.1 | D12: none | E12: Harris and Solomon 1992 | F12: Estimate of dislodgeable residue as a proportion of application rate shortly after application based on 2,4-D.
A13: Standard Pond | B13: Depth | C13: 1 | D13: m | E13: Default | F13: Depth of pond
A14: Standard Pond | B14: Surface Area | C14: 1000 | D14: m^2 | E14: Default | F14: Surface Area
A15: Standard Pond | B15: Volume of Spill | C15: 200 | D15: gallons | E15: Default | F15: Volume of spill
A16: VegRR | B16: Broadleaf/forage plants and small insects, lower range | C16: 15 | D16: mg chem/kg veg | E16: SERA 2007 | F16: Broadleaf/forage plants and small insects
A17: VegRR | B17: Fruits, pods, seeds, and large insects, lower range | C17: 3.2 | D17: mg chem/kg veg | E17: SERA 2007 | F17: Fruits, pods, seeds, and large insects
A18: VegRR | B18: Broadleaf plants and small insects, granular applications, lower range | C18: 0.6 | D18: mg chem/kg veg | E18: SERA 2007 | F18: Broadleaf/forage plants after granular application
A19: VegRR | B19: Fruits, granular applications, lower range | C19: 0.13 | D19: mg chem/kg veg | E19: SERA 2007 | F19: Fruit after granular application
A20: VegRR | B20: Short grass, granular applications, central estimate | C20: 3.4 | D20: mg chem/kg veg | E20: SERA 2005 | F20: Short grass after granular application
A21: VegRR | B21: Short grass, granular applications, lower range | C21: 1.2 | D21: mg chem/kg veg | E21: SERA 2007 | F21: Short grass after granular application
A22: VegRR | B22: Tall grass, granular applications, lower range | C22: 0.48 | D22: mg chem/kg veg | E22: SERA 2007 | F22: Tall grass after granular application
A23: VegRR | B23: Short grass, lower range | C23: 30 | D23: mg chem/kg veg | E23: Fletcher et al. 1994 | F23: Short grass
A24: VegRR | B24: Tall grass, lower range | C24: 12 | D24: mg chem/kg veg | E24: SERA 2007 | F24: Tall grass

Sheet A03
A1: Food items for terrestrial animals
A3: Receptor | B3: Consumer | C3: Qualifier | D3: Modifier | E3: Value | F3: Units | G3: Reference | H3: Reference Note
A4: Adult Female | B4: Fish | C4: Amount | D4: central estimate | E4: 0.01 | F4: kg/day | G4: U.S. EPA/ORD 1996 | H4: p. 10-51, average of means from four studies rounded to one significant place.
A5: Adult Female | B5: Fish | C5: Amount | D5: upper range | E5: 0.158 | F5: kg/day | G5: Ruffle et al. 1994 | H5: N/A
A6: Adult Female | B6: Fruit | C6: Proportion of body weight | D6: central estimate | E6: 0.00168 | F6: kg fruit/kg bw/day | G6: U.S. EPA/ORD 1996 | H6: Table 9-3, p. 9-11, mean value.
A7: Adult Female | B7: Fruit | C7: Proportion of body weight | D7: lower range | E7: 0.00168 | F7: kg fruit/kg bw/day | G7: U.S. EPA/ORD 1996 | H7: Table 9-3, p. 9-11. The 5th percentile is given as zero. For these worksheets, the central estimate is used for the lower bound.
A8: Adult Female | B8: Fruit | C8: Proportion of body weight | D8: upper range | E8: 0.01244 | F8: kg fruit/kg bw/day | G8: U.S. EPA/ORD 1996 | H8: Table 9-3, p. 9-11, 95th percentile value.
A9: Adult Female | B9: Vegetation, home grown | C9: Proportion of body weight | D9: central estimate | E9: 0.00076 | F9: kg veg/kg bw/day | G9: U.S. EPA/ORD 1996 | H9: Table 12-15, p. 9-14, mean for individuals between 20 and 39 years old.
A10: Adult Female | B10: Vegetation, home grown | C10: Proportion of body weight | D10: lower range | E10: 8e-05 | F10: kg veg/kg bw/day | G10: U.S. EPA/ORD 1996 | H10: Table 12-15, p. 9-14, 5th percentile for individuals between 20 and 39 years old.
A11: Adult Female | B11: Vegetation, home grown | C11: Proportion of body weight | D11: upper range | E11: 0.00492 | F11: kg veg/kg bw/day | G11: U.S. EPA/ORD 1996 | H11: Table 12-15, p. 9-14, 95th percentile for individuals between 20 and 39 years old.
A12: Adult Female | B12: Vegetation | C12: Amount | D12: Extreme | E12: 0.454 | F12: kg food | G12: U.S. EPA/ORD 1996 | H12: 1 lb. The approximate mid range of the above typical and upper limits based on the 64 kg body weight.
A13: Adult Female | B13: Vegetation | C13: Proportion of body weight | D13: central estimate | E13: 0.0036 | F13: kg veg/kg bw/day | G13: U.S. EPA/ORD 1996 | H13: Table 9-12, p. 9-12, mean.
A14: Adult Female | B14: Vegetation | C14: Proportion of body weight | D14: lower range | E14: 0.00075 | F14: kg veg/kg bw/day | G14: U.S. EPA/ORD 1996 | H14: Table 9-12, p. 9-12, 5th percentile.
A15: Adult Female | B15: Vegetation | C15: Proportion of body weight | D15: upper range | E15: 0.01 | F15: kg veg/kg bw/day | G15: U.S. EPA/ORD 1996 | H15: Table 9-12, p. 9-12, 95th percentile.
A16: Adult Female | B16: Water | C16: Amount | D16: central estimate | E16: 2 | F16: L/day | G16: U.S. EPA/ORD 1996 | H16: p. 3-28, Table 3-30, midpoint of mean (1.4 L/day) and 90th percentile (2.4 L/day) rounded to one significant place.
A17: Adult Female | B17: Water | C17: Amount | D17: lower range | E17: 1.4 | F17: L/day | G17: U.S. EPA/ORD 1996 | H17: p. 3-28, Table 3-30, mean
A18: Adult Female | B18: Water | C18: Amount | D18: upper range | E18: 2.4 | F18: L/day | G18: U.S. EPA/ORD 1996 | H18: p. 3-28, Table 3-30, 90th percentile
A19: Adult Male | B19: Fish | C19: Amount | D19: central estimate | E19: 0.01 | F19: kg/day | G19: U.S. EPA/ORD 1996 | H19: p. 10-51, average of means from four studies rounded to one significant place.
A20: Adult Male | B20: Fish | C20: Amount | D20: upper range | E20: 0.158 | F20: kg/day | G20: Ruffle et al. 1994 | H20: N/A
A21: Adult Male | B21: Fruit | C21: Proportion of body weight | D21: central estimate | E21: 0.00168 | F21: unitless | G21: U.S. EPA/ORD 1996 | H21: Table 9-3, p. 9-11, mean value.
A22: Adult Male | B22: Fruit | C22: Proportion of body weight | D22: lower range | E22: 0.00168 | F22: unitless | G22: U.S. EPA/ORD 1996 | H22: Table 9-3, p. 9-11. The 5th percentile is given as zero. For these worksheets, the central estimate is used for the lower bound.
A23: Adult Male | B23: Fruit | C23: Proportion of body weight | D23: upper range | E23: 0.01244 | F23: unitless | G23: U.S. EPA/ORD 1996 | H23: Table 9-3, p. 9-11, 95th percentile value.
A24: Adult Male | B24: Vegetation, home grown | C24: Proportion of body weight | D24: central estimate | E24: 0.00076 | F24: unitless | G24: U.S. EPA/ORD 1996 | H24: Table 12-15, p. 9-14, mean for individuals between 20 and 39 years old.
A25: Adult Male | B25: Vegetation, home grown | C25: Proportion of body weight | D25: lower range | E25: 8e-05 | F25: unitless | G25: U.S. EPA/ORD 1996 | H25: Table 12-15, p. 9-14, 5th percentile for individuals between 20 and 39 years old.
A26: Adult Male | B26: Vegetation, home grown | C26: Proportion of body weight | D26: upper range | E26: 0.00492 | F26: unitless | G26: U.S. EPA/ORD 1996 | H26: Table 12-15, p. 9-14, 95th percentile for individuals between 20 and 39 years old.
A27: Adult Male | B27: Vegetation | C27: Amount | D27: Extreme | E27: 0.454 | F27: kg/day | G27: U.S. EPA/ORD 1996 | H27: 1 lb. The approximate mid range of the above typical and upper limits based on the 64 kg body weight.
A28: Adult Male | B28: Vegetation | C28: Proportion of body weight | D28: central estimate | E28: 0.0036 | F28: unitless | G28: U.S. EPA/ORD 1996 | H28: Table 9-12, p. 9-12, mean.
A29: Adult Male | B29: Vegetation | C29: Proportion of body weight | D29: lower range | E29: 0.00075 | F29: unitless | G29: U.S. EPA/ORD 1996 | H29: Table 9-12, p. 9-12, 5th percentile.
A30: Adult Male | B30: Vegetation | C30: Proportion of body weight | D30: upper range | E30: 0.01 | F30: unitless | G30: U.S. EPA/ORD 1996 | H30: Table 9-12, p. 9-12, 95th percentile.
A31: Adult Male | B31: Water | C31: Amount | D31: central estimate | E31: 2 | F31: L/day | G31: U.S. EPA/ORD 1996 | H31: p. 3-28, Table 3-30, midpoint of mean (1.4 L/day) and 90th percentile (2.4 L/day) rounded to one significant place.
A32: Adult Male | B32: Water | C32: Amount | D32: lower range | E32: 1.4 | F32: L/day | G32: U.S. EPA/ORD 1996 | H32: p. 3-28, Table 3-30, mean
A33: Adult Male | B33: Water | C33: Amount | D33: upper range | E33: 2.4 | F33: L/day | G33: U.S. EPA/ORD 1996 | H33: p. 3-28, Table 3-30, 90th percentile
A34: Subsistence Populations | B34: Fish | C34: Amount | D34: central estimate | E34: 0.081 | F34: kg/day | G34: U.S. EPA/ORD 1996 | H34: p. 10-51, median value of 94 individuals
A35: Subsistence Populations | B35: Fish | C35: Amount | D35: upper range | E35: 0.77 | F35: kg/day | G35: U.S. EPA/ORD 1993 | H35: p. 10-51, highest value of 94 individuals
A36: Bird, NOS | B36: Fish | C36: Kilocalories | D36: FoodVal | E36: 3.87 | F36: Kcal/gram (dw) | G36: U.S. EPA/ORD 1993 | H36: Table 3-1, p. 3-5
A37: Bird, NOS | B37: Fish | C37: Wat | D37: FoodVal | E37: 0.7 | F37: Unitless | G37: Ali et al. 2005 | H37: N/A
A38: Bird, NOS | B38: Fruit | C38: Kilocalories | D38: FoodVal | E38: 1.1 | F38: Kcal/gram (dw) | G38: U.S. EPA/ORD 1993 | H38: Gross caloric value of 2.2 kcal/g dw (U.S. EPA/ORD 1993, Table 4-2) with assim fact of 0.51
A39: Bird, NOS | B39: Fruit | C39: Wat | D39: FoodVal | E39: 0.77 | F39: Unitless | G39: U.S. EPA/ORD 1993 | H39: Table 4-2, p. 4-14
A40: Bird, NOS | B40: Insect | C40: Kilocalories | D40: FoodVal | E40: 4.3 | F40: Kcal/gram (dw) | G40: U.S. EPA/ORD 1993 | H40: Table 4-2, p. 4-14
A41: Bird, NOS | B41: Insect | C41: Wat | D41: FoodVal | E41: 0.7 | F41: Unitless | G41: Chapman 1998 | H41: Typrical range 60-80%
A42: Bird, NOS | B42: Vegetation | C42: Kilocalories | D42: FoodVal | E42: 2 | F42: Kcal/gram (dw) | G42: U.S. EPA/ORD 1993 | H42: gross caloric value of 4.2 kcal/g dw for dicot leaves (U.S. EPA/ORD 1993, Table 4-2) with assim fact of 0.47
A43: Bird, NOS | B43: Vegetation | C43: Wat | D43: FoodVal | E43: 0.85 | F43: Unitless | G43: U.S. EPA/ORD 1993 | H43: Table 4-2, p. 4-14
A44: Child | B44: Water | C44: Amount | D44: central estimate | E44: 1 | F44: L/day | G44: U.S. EPA/ORD 1996 | H44: p. 3-28, Table 3-30, midpoint of mean (0.61L/day) and 90th percentile (1.5 L/day) rounded to one significant place.
A45: Child | B45: Water | C45: Amount | D45: lower range | E45: 0.61 | F45: L/day | G45: U.S. EPA/ORD 1996 | H45: p. 3-28, Table 3-30, mean
A46: Child | B46: Water | C46: Amount | D46: upper range | E46: 1.5 | F46: L/day | G46: U.S. EPA/ORD 1996 | H46: p. 3-28, Table 3-30, 90th percentile
A47: Herbivorous Insect | B47: Broadleaf/Small Insects | C47: Proportion of body weight | D47: central estimate | E47: 1.3 | F47: kg food/kg bw/day | G47: Waldbauer 1968 | H47: N/A
A48: Herbivorous Insect | B48: Broadleaf/Small Insects | C48: Proportion of body weight | D48: lower range | E48: 0.6 | F48: kg food/kg bw/day | G48: Reichle et al. 1973 | H48: N/A
A49: Herbivorous Insect | B49: Broadleaf/Small Insects | C49: Proportion of body weight | D49: upper range | E49: 2.2 | F49: kg food/kg bw/day | G49: Waldbauer 1968 | H49: N/A
A50: Herbivorous Insect | B50: Fruit | C50: Proportion of body weight | D50: central estimate | E50: 1.3 | F50: kg food/kg bw/day | G50: Waldbauer 1968 | H50: N/A
A51: Herbivorous Insect | B51: Fruit | C51: Proportion of body weight | D51: lower range | E51: 0.6 | F51: kg food/kg bw/day | G51: Reichle et al. 1973 | H51: N/A
A52: Herbivorous Insect | B52: Fruit | C52: Proportion of body weight | D52: upper range | E52: 2.2 | F52: kg food/kg bw/day | G52: Waldbauer 1968 | H52: N/A
A53: Herbivorous Insect | B53: Short grass | C53: Proportion of body weight | D53: central estimate | E53: 1.3 | F53: kg food/kg bw/day | G53: Waldbauer 1968 | H53: N/A
A54: Herbivorous Insect | B54: Short grass | C54: Proportion of body weight | D54: lower range | E54: 0.6 | F54: kg food/kg bw/day | G54: Reichle et al. 1973 | H54: N/A
A55: Herbivorous Insect | B55: Short grass | C55: Proportion of body weight | D55: upper range | E55: 2.2 | F55: kg food/kg bw/day | G55: Waldbauer 1968 | H55: N/A
A56: Herbivorous Insect | B56: Tall Grass | C56: Proportion of body weight | D56: central estimate | E56: 1.3 | F56: kg food/kg bw/day | G56: Waldbauer 1968 | H56: N/A
A57: Herbivorous Insect | B57: Tall Grass | C57: Proportion of body weight | D57: lower range | E57: 0.6 | F57: kg food/kg bw/day | G57: Reichle et al. 1973 | H57: N/A
A58: Herbivorous Insect | B58: Tall Grass | C58: Proportion of body weight | D58: upper range | E58: 2.2 | F58: kg food/kg bw/day | G58: Waldbauer 1968 | H58: N/A
A59: Mammal, Nos | B59: Fish | C59: Kilocalories | D59: FoodVal | E59: 4.47 | F59: Kcal/gram (dw) | G59: U.S. EPA/ORD 1993 | H59: Table 3-1, p. 3-5
A60: Mammal, Nos | B60: Fish | C60: Wat | D60: FoodVal | E60: 0.7 | F60: Unitless | G60: Ali et al. 2005 | H60: N/A
A61: Mammal, Nos | B61: Fruit | C61: Kilocalories | D61: FoodVal | E61: 1.1 | F61: Kcal/gram (dw) | G61: U.S. EPA/ORD 1993 | H61: Gross caloric value of 2.2 kcal/g dw (U.S. EPA/ORD 1993, Table 4-2) with assim fact of 0.51
A62: Mammal, Nos | B62: Fruit | C62: Wat | D62: FoodVal | E62: 0.77 | F62: Unitless | G62: U.S. EPA/ORD 1993 | H62: Table 4-2, p. 4-14
A63: Mammal, Nos | B63: Insect | C63: Kilocalories | D63: FoodVal | E63: 4.47 | F63: Kcal/gram (dw) | G63: U.S. EPA/ORD 1993 | H63: Table 4-2, p. 4-14
A64: Mammal, Nos | B64: Insect | C64: Wat | D64: FoodVal | E64: 0.7 | F64: Unitless | G64: Chapman 1998 | H64: Typrical range 60-80%
A65: Mammal, Nos | B65: Vegetation | C65: Kilocalories | D65: FoodVal | E65: 2.26 | F65: Kcal/gram (dw) | G65: U.S. EPA/ORD 1993 | H65: Table 3-1, p. 3-5
A66: Mammal, Nos | B66: Vegetation | C66: Wat | D66: FoodVal | E66: 0.85 | F66: Unitless | G66: U.S. EPA/ORD 1993 | H66: Table 4-2, p. 4-14

Sheet A04
A1: Drift from Ground Broadcast Foliar application at distances downwindfrom the application site
A2: Short Title | B2: Drift | E2: DriftArea
A3: Receptor | B3: Downwind receptors
A4: Duration | B4: Acute
A5: Parameter/Assumption | B5: Code / Range | C5: Equation/ Value | D5: Units | E5: Reference/Designation
A6: Proportion of Drift at distances downwind in feet | B6: Prop | E6: Program Speciified
A7: Direct Spray | B7: feet | C7: 1 | D7: unitless
A8: 25 | B8: feet | C8: 0.035
A9: 50 | B9: feet | C9: 0.0177
A10: 100 | B10: feet | C10: 0.00948
A11: 300 | B11: feet | C11: 0.0035
A12: 500 | B12: feet | C12: 0.00209
A13: 900 | B13: feet | C13: 0.00109

Sheet B01
A1: Chemical and Physical Properties for Sulfometuron Methyl 2024
A3: Property | B3: Receptor | C3: Value | D3: Units | E3: Document Reference
A4: Bioconcentration Factor (BCF), edible, acute | B4: N/A | C4: 3 | D4: L/kg fish | E4: Harvey (1981, 1990)
A5: Bioconcentration Factor (BCF), edible, chronic | B5: N/A | C5: 7 | D5: L/kg fish | E5: Harvey (1981, 1990)
A6: Bioconcentration Factor (BCF), whole fish, acute | B6: N/A | C6: 3.5 | D6: L/kg fish | E6: Harvey (1981, 1990)
A7: Bioconcentration Factor (BCF), whole fish, chronic | B7: N/A | C7: 6 | D7: L/kg fish | E7: Harvey (1981, 1990)
A8: Kow (Octanol-water partition coefficient) | B8: N/A | C8: 0.347 | D8: unitless | E8: Stevenson (1988)
A9: Molecular weight | B9: N/A | C9: 364.38 | D9: grams/mole | E9: Budavari (1989)
A10: Water Solubility | B10: N/A | C10: 300 | D10: mg/L | E10: Budavari (1989)
A11: First order dermal absorption rate (ka), central estimate | B11: N/A | C11: 0.00022 | D11: per hour | E11: Prev worksheet B01
A12: First order dermal absorption rate (ka), lower range | B12: N/A | C12: 4.8e-05 | D12: per hour | E12: Prev worksheet B01
A13: First order dermal absorption rate (ka), upper range | B13: N/A | C13: 0.00098 | D13: per hour | E13: Prev worksheet B01
A14: Dermal permeability (Kp), central estimate | B14: N/A | C14: 5.1e-06 | D14: cm/hour | E14: Prev worksheet B01
A15: Dermal permeability (Kp), lower range | B15: N/A | C15: 2e-06 | D15: cm/hour | E15: Prev worksheet B01
A16: Dermal permeability (Kp), upper range | B16: N/A | C16: 1.3e-05 | D16: cm/hour | E16: Prev worksheet B01
A17: Halftime, central estimate | B17: Fruit | C17: 10 | D17: days | E17: Knisel and Davis (2000)
A18: Halftime, lower range | B18: Fruit | C18: 10 | D18: days | E18: Knisel and Davis (2000)
A19: Halftime, upper range | B19: Fruit | C19: 10 | D19: days | E19: Knisel and Davis (2000)
A20: Halftime, central estimate | B20: Vegetation | C20: 10 | D20: days | E20: Knisel and Davis (2000)
A21: Halftime, lower range | B21: Vegetation | C21: 10 | D21: days | E21: Knisel and Davis (2000)
A22: Halftime, upper range | B22: Vegetation | C22: 10 | D22: days | E22: Knisel and Davis (2000)

Sheet B02
A1: Toxicity values for Sulfometuron Methyl 2024
A3: Receptor | B3: Receptor | C3: Qualifier | D3: Endpoint | E3: Value | F3: Units | G3: Document Reference
A4: Human | B4: acute | C4: N/A | D4: Reference Dose (RfD) | E4: 0.87 | F4: mg/kg bw | G4: N/A
A5: Human | B5: chronic | C5: N/A | D5: Reference Dose (RfD) | E5: 0.02 | F5: mg/kg bw/day | G5: N/A
A6: Adult Female | B6: acute | C6: N/A | D6: Reference Dose (RfD) | E6: 0.87 | F6: mg/kg bw/day | G6: N/A
A7: Adult Female | B7: chronic | C7: N/A | D7: Reference Dose (RfD) | E7: 0.02 | F7: mg/kg bw | G7: N/A
A8: Worker | B8: chronic | C8: N/A | D8: Reference Dose (RfD) | E8: 0.02 | F8: mg/kg bw/day | G8: N/A
A9: Mammal, Nos | B9: acute | C9: N/A | D9: NOAEL | E9: 87 | F9: mg/kg bw | G9: N/A
A10: Mammal, Nos | B10: chronic | C10: N/A | D10: NOAEL | E10: 2 | F10: mg/kg bw/day | G10: N/A
A11: Mammal, carnivorous | B11: acute | C11: N/A | D11: NOAEL | E11: 87 | F11: mg/kg bw | G11: N/A
A12: Mammal, carnivorous | B12: chronic | C12: N/A | D12: NOAEL | E12: 2 | F12: mg/kg bw/day | G12: N/A
A13: Bird, NOS | B13: acute | C13: N/A | D13: NOAEL | E13: 312 | F13: mg/kg bw | G13: N/A
A14: Bird, NOS | B14: chronic | C14: N/A | D14: NOAEL | E14: 2 | F14: mg/kg bw/day | G14: N/A
A15: Honeybee | B15: acute | C15: N/A | D15: NOAEL | E15: 1075 | F15: mg/kg bw | G15: N/A
A16: Honeybee | B16: acute | C16: N/A | D16: NOAEL | E16: 1075 | F16: mg/kg bw | G16: N/A
A17: Herbivorous Insect | B17: acute | C17: N/A | D17: NOAEL | E17: 1075 | F17: mg/kg bw | G17: N/A
A18: Terrestrial plant | B18: Vegetative vigor | C18: sensitive species | D18: NOAEL | E18: 2.4e-05 | F18: lb/acre | G18: N/A
A19: Terrestrial plant | B19: Vegetative vigor | C19: tolerant species | D19: NOAEL | E19: 0.00078 | F19: lb/acre | G19: N/A
A20: Terrestrial plant | B20: Seedling Emergence | C20: sensitive species | D20: NOAEL | E20: 8.6e-06 | F20: lb/acre | G20: N/A
A21: Terrestrial plant | B21: Seedling Emergence | C21: tolerant species | D21: NOAEL | E21: 0.00025 | F21: lb/acre | G21: N/A
A22: Aquatic invertebrate | B22: acute | C22: sensitive species | D22: NOAEC | E22: 75 | F22: mg/L | G22: N/A
A23: Aquatic invertebrate | B23: acute | C23: tolerant species | D23: NOAEC | E23: 1800 | F23: mg/L | G23: N/A
A24: Aquatic invertebrate | B24: chronic | C24: sensitive species | D24: NOAEC | E24: 0.19 | F24: mg/L | G24: N/A
A25: Aquatic invertebrate | B25: chronic | C25: tolerant species | D25: NOAEC | E25: 6.1 | F25: mg/L | G25: N/A
A26: Amphibian | B26: acute | C26: sensitive species | D26: NOAEC | E26: 0.38 | F26: mg/L | G26: N/A
A27: Amphibian | B27: acute | C27: tolerant species | D27: NOAEC | E27: 0.38 | F27: mg/L | G27: N/A
A28: Amphibian | B28: chronic | C28: sensitive species | D28: NOAEC | E28: 0.00075 | F28: mg/L | G28: N/A
A29: Amphibian | B29: chronic | C29: tolerant species | D29: NOAEC | E29: 0.00075 | F29: mg/L | G29: N/A
A30: Fish | B30: acute | C30: sensitive species | D30: NOAEC | E30: 7.3 | F30: mg/L | G30: N/A
A31: Fish | B31: acute | C31: tolerant species | D31: NOAEC | E31: 150 | F31: mg/L | G31: N/A
A32: Fish | B32: chronic | C32: sensitive species | D32: NOAEC | E32: 1.17 | F32: mg/L | G32: N/A
A33: Fish | B33: chronic | C33: tolerant species | D33: NOAEC | E33: 1.17 | F33: mg/L | G33: N/A
A34: Algae | B34: N/A | C34: sensitive species | D34: NOAEC | E34: 0.0025 | F34: mg/L | G34: N/A
A35: Algae | B35: N/A | C35: tolerant species | D35: NOAEC | E35: 0.37 | F35: mg/L | G35: N/A
A36: Macrophyte, aquatic | B36: N/A | C36: sensitive species | D36: NOAEC | E36: 0.00021 | F36: mg/L | G36: N/A
A37: Macrophyte, aquatic | B37: N/A | C37: tolerant species | D37: NOAEC | E37: 0.00021 | F37: mg/L | G37: N/A

Sheet B03a
A1: Calculation of Zero-Order Dermal Permeability Rate (Kp) in cm/hour
A2: Short Title | B2: Calculation of Kp | E2: ChemDrmKp
A3: Parameter/Assumption | B3: Code / Range | C3: Equation/ Value | D3: Units | E3: Reference/Designation
A4: Molecular weight | B4: MW | C4: ='B01'!$C$9 -> 364.38 | D4: g/mole | E4: Budavari (1989)
A5: Ko/w | B5: Kow | C5: ='B01'!$C$8 -> 0.347 | D5: unitless | E5: Stevenson (1988)
A6: Vector a[] | B6: a[1] | C6: 1
B7: a[2] | C7: =C4 -> 364.38
B8: a[3] | C8: =LOG10(C5) -> -0.4596705252
A9: Transpose of a[] (a') | B9: =$C$6 -> 1 | C9: =$C$7 -> 364.38 | D9: =$C$8 -> -0.4596705252
A10: X'X Cross Product Matrix | B10: X'X
B11: 0.055931 | C11: -9.41546e-05 | D11: -0.0103443
B12: -9.41546e-05 | C12: 5.978e-07 | D12: -2.22508e-05
B13: -0.0103443 | C13: -2.22508e-05 | D13: 0.00740677
A14: a'X'X a | B14: a'X'X a | C14: =MMULT(B9:D9,MMULT(B11:D13, C6:C8)) -> 0.08521521625
A15: Coefficients for model
A16: Intercept | B16: K0 | C16: -2.72576
A17: Coeff for MW | B17: K1 | C17: -0.006151
A18: Coeff for Log10(Kow) | B18: K2 | C18: 0.706648
A19: Standard deviation of model | B19: s | C19: 0.727129
A20: Critical value at 0.025 with 87 d.f. | B20: t0.025 | C20: 1.96
A21: Log10 of Estimated dermal permeability rate (Kp) | B21: Log(Kp) = | C21: K0 + K1 MW + K2 Log10(Kow)
B22: Central | C22: =$C$16 + ($C$17*$C$4) + ($C$18*LOG10($C$5)) -> -5.291886637 | E22: Eq
B23: Lower 95% CI | C23: =$C$22 - ($C$20 * $C$19 * ($C$14^0.5)) -> -5.707918039 | E23: Eq
B24: Upper 95% CI | C24: =$C$22 + ($C$20 * $C$19 * ($C$14^0.5)) -> -4.875855235 | E24: Eq
A25: Estimated dermal permeability rate (Kp) | B25: Kp = | C25: 10Log(Kp)
B26: Central | C26: =10^C22 -> 5.106382731e-06 | D26: cm/hour | E26: Eq
B27: Lower 95% CI | C27: =10^C23 -> 1.959214384e-06 | E27: Eq
B28: Upper 95% CI | C28: =10^C24 -> 1.330897977e-05 | E28: Eq

Sheet B03b
A1: Calculation of First-Order Dermal Absorption Rate
A2: Short Title | B2: Calculation of ka | E2: ChemDrmKa
A3: Parameter/Assumption | B3: Code / Range | C3: Equation/ Value | D3: Units | E3: Reference/Designation
A4: Molecular weight | B4: MW | C4: ='B01'!$C$9 -> 364.38 | D4: g/mole | E4: Budavari (1989)
A5: Ko/w | B5: Kow | C5: ='B01'!$C$8 -> 0.347 | D5: unitless | E5: Stevenson (1988)
A6: Vector a[] | B6: a[1] | C6: 1
B7: a[2] | C7: =C4 -> 364.38
B8: a[3] | C8: =LOG10(C5) -> -0.4596705252
A9: Transpose of a[] (a') | B9: =$C$6 -> 1 | C9: =$C$7 -> 364.38 | D9: =$C$8 -> -0.4596705252
A10: X'X Cross Product Matrix | B10: X'X
B11: 0.307537 | C11: -0.00103089 | D11: 0.00822769
B12: -0.00103089 | C12: 4.377e-06 | D12: -9.44359e-05
B13: 0.00822769 | C13: -9.44359e-05 | D13: 0.0085286
A14: a'X'X a | B14: a'X'X a | C14: =MMULT(B9:D9,MMULT(B11:D13, C6:C8)) -> 0.1632851294
A15: Coefficients for model
A16: Intercept | B16: K0 | C16: -1.49615
A17: Coeff for MW | B17: K1 | C17: -0.005657
A18: Coeff for Log10(Kow) | B18: K2 | C18: 0.233255
A19: Standard deviation of model | B19: s | C19: 0.787218
A20: Critical value at 0.025 with 26 d.f. | B20: t0.025 | C20: 2.056
A21: Log10 of Estimated first-order absorption rate | B21: Log(ka) = | C21: K0 + K1 MW + K2 Log10(Kow)
B22: Central | C22: =$C$16 + ($C$17*$C$4) + ($C$18*LOG10($C$5)) -> -3.664668108 | E22: Eq
B23: Lower 95% CI | C23: =$C$22 - ($C$20 * $C$19 * ($C$14^0.5)) -> -4.318688732 | E23: Eq
B24: Upper 95% CI | C24: =$C$22 + ($C$20 * $C$19 * ($C$14^0.5)) -> -3.010647484 | E24: Eq
A25: Estimated first-order absorption rate | B25: ka = | C25: 10Log(ka)
B26: Central | C26: =10^C22 -> 0.0002164371924 | D26: hour-1 | E26: Eq
B27: Lower 95% CI | C27: =10^C23 -> 4.800774067e-05 | E27: Eq
B28: Upper 95% CI | C28: =10^C24 -> 0.0009757813551 | E28: Eq

Sheet B04Rt
A1: Estimates of Water Contamination Rates -- i.e., the concentration in ambient water per pound applied per acre
A2: Parameter/Assumption | B2: Code / Range | C2: Equation/ Value | D2: Units | E2: WCRV6
A3: Short-term peak concentrations | B3: Peak | E3: WCRV6
B4: Central | C4: 0.0105 | D4: mg/L | E4: GLEAMS Driver
B5: Lower | C5: 0.00197 | E5: GLEAMS Driver
B6: Upper | C6: 0.0556 | E6: GLEAMS Driver
A7: Longer-term average concentrations | B7: Average
B8: Central | C8: 0.00642 | D8: mg/L | E8: GLEAMS Driver
B9: Lower | C9: 0.00136 | E9: GLEAMS Driver
B10: Upper | C10: 0.0282 | E10: GLEAMS Driver
A11: User Specified Gleams-Driver File: | B11: None

Sheet B04a
A1: Expected Concentrations in Surface Water | E1: EECRtV6
A2: Parameter/Assumption | B2: Code / Range | C2: Equation/ Value | D2: Units | E2: EECRtV6
A3: Application Rate | B3: ApRt | C3: ='A01'!ApRt_C -> 0.38 | D3: lb/acre | E3: Worksheet A01
A4: Water Contamination Rates
A5: Short-term peak water contamination rates (WCR) | B5: Peak
B6: Central | C6: =B04Rt!$C$4 -> 0.0105 | D6: mg/L | E6: GLEAMS Driver
B7: Lower | C7: =B04Rt!$C$5 -> 0.00197 | E7: GLEAMS Driver
B8: Upper | C8: =B04Rt!$C$6 -> 0.0556 | E8: GLEAMS Driver
A9: Longer-term average water contamination rates (WCR) | B9: Average
B10: Central | C10: =B04Rt!$C$8 -> 0.00642 | D10: mg/L | E10: GLEAMS Driver
B11: Lower | C11: =B04Rt!$C$9 -> 0.00136 | E11: GLEAMS Driver
B12: Upper | C12: =B04Rt!$C$10 -> 0.0282 | E12: GLEAMS Driver
A13: EECs in Surface Water
A14: Short-term peak concentrations | B14: Peak
B15: Central | C15: =$C$3*C6 -> 0.00399 | D15: mg/L | E15: Eq
B16: Lower | C16: =$C$3*C7 -> 0.0007486 | E16: Eq
B17: Upper | C17: 0.021128 | E17: Eq
A18: Longer-term average concentrations | B18: Average
B19: Central | C19: =$C$3*C10 -> 0.0024396 | D19: mg/L | E19: Eq
B20: Lower | C20: =$C$3*C11 -> 0.0005168 | E20: Eq
B21: Upper | C21: 0.010716 | E21: Eq

Sheet B04b
A1: Pond: Concentration of pesticide (liquid formulation) in pond water after an accidental spill
A2: Short Title | B2: Pond Spill | E2: PondSpillLiqV6
A3: Receptor | B3: Pond
A4: Duration | B4: Acute
A5: Parameter/Assumption | B5: Code / Range | C5: Equation/ Value | D5: Units | E5: Reference/Designation
A6: Surface Area of Pond | B6: SA | C6: ='A01'!C$23 -> 1000 | D6: m2 | E6: Worksheet A01
A7: Depth of Pond | B7: Depth | C7: ='A01'!C$24 -> 1 | D7: meter | E7: Worksheet A01
A8: Volume of Pond | B8: VPM | C8: =C6*C7 -> 1000 | D8: m3 | E8: Eq
B9: VPL | C9: =1000*C8 -> 1000000 | D9: liters | E9: Eq
A10: Concentration in solution | B10: Conc
B11: Central | C11: ='A01'!FldConc_C -> 3 | D11: mg/mL | E11: Worksheet A01
B12: Lower | C12: ='A01'!FldConc_L -> 1.1 | E12: Worksheet A01
B13: Upper | C13: ='A01'!FldConc_U -> 9.1 | E13: Worksheet A01
A14: Volume of Spill (gallons) | B14: VSGal
B15: Central | C15: ='A01'!C$43 -> 100 | D15: gallons | E15: Worksheet A01
B16: Lower | C16: ='A01'!C$44 -> 20 | E16: Worksheet A01
B17: Upper | C17: ='A01'!C$45 -> 200 | E17: Worksheet A01
A18: Conversion factor for gallons to liters | B18: Conv | C18: 3.785 | D18: liters/gal
A19: Volume of Spill (liters) | B19: VSLit | C19: VSGal x Conv
B20: Central | C20: =C15*C$18 -> 378.5 | D20: liters | E20: Eq
B21: Lower | C21: =C16*C$18 -> 75.7 | D21: liters | E21: Eq
B22: Upper | C22: =C17*C$18 -> 757 | D22: liters | E22: Eq
A23: Concentration in pond water at various times after as spill | B23: ConcWat | C23: Conc × 1000 mL/L × VSL ÷ VPL
A24: Time | B24: Central | C24: Lower | D24: Upper
A25: 0 | B25: =C11*1000*C20/C$9 -> 1.1355 | C25: =C12*1000*C21/C$9 -> 0.08327 | D25: =C13*1000*C22/C$9 -> 6.8887 | E25: mg/L

Sheet B04c
A1: Concentration in pond water after direct spray or after drift from Ground Broadcast Foliar application at distances downwind in feet from the application site
A2: Short Title | B2: Pond, Drift | E2: PondDrift
A3: Receptor | B3: Pond
A4: Duration | B4: Acute
A5: Parameter/Assumption | B5: Code / Range | C5: Equation/ Value | D5: Units | E5: Reference/Designation
A6: Application rate | B6: ApRt | C6: ='A01'!ApRt_C -> 0.38 | D6: lb/acre | E6: Worksheet A01
A7: Surface Area of Water Column | B7: SA | C7: 1 | D7: m2
A8: Depth of Pond | B8: Depth | C8: ='A01'!C$24 -> 1 | D8: meter | E8: Worksheet A01
A9: Volume of Water Column | B9: V | C9: = SA × Depth
B10: VPM | C10: =C7*C8 -> 1 | D10: m3 | E10: Eq
B11: VPL | C11: =1000*C10 -> 1000 | D11: liters | E11: Eq
A12: Proportion of Drift at distances downwind in feet | B12: Prop
A13: ='A04'!$A$7 -> Direct Spray | B13: ='A04'!$B$7 -> feet | C13: ='A04'!$C$7 -> 1 | D13: unitless | E13: Worksheet A04
A14: ='A04'!$A$8 -> 25 | B14: ='A04'!$B$8 -> feet | C14: ='A04'!$C$8 -> 0.035
A15: ='A04'!$A$9 -> 50 | B15: ='A04'!$B$9 -> feet | C15: ='A04'!$C$9 -> 0.0177
A16: ='A04'!$A$10 -> 100 | B16: ='A04'!$B$10 -> feet | C16: ='A04'!$C$10 -> 0.00948
A17: ='A04'!$A$11 -> 300 | B17: ='A04'!$B$11 -> feet | C17: ='A04'!$C$11 -> 0.0035
A18: ='A04'!$A$12 -> 500 | B18: ='A04'!$B$12 -> feet | C18: ='A04'!$C$12 -> 0.00209
A19: ='A04'!$A$13 -> 900 | B19: ='A04'!$B$13 -> feet | C19: ='A04'!$C$13 -> 0.00109
A20: Converstion Factor | B20: Conv | C20: 112.1 | D20: mg/m2 per lb/acre
A21: Concentration in water at distances downwind in feet | B21: Conc | C21: SA × Prop × ApR × Conv / VPL
A22: =A13 -> Direct Spray | C22: =C$7*C13*C$6*C$20/C$11 -> 0.042598 | D22: mg/L
A23: 25 | C23: 0.00149093
A24: 50 | C24: 0.0007539846
A25: 100 | C25: 0.00040382904
A26: 300 | C26: 0.000149093
A27: 500 | C27: 8.902982e-05
A28: 900 | C28: 4.643182e-05

Sheet B04d
A1: Concentration in stream water after direct spray or after drift from Ground Broadcast Foliar application at distances downwind in feet from the application site
A2: Short Title | B2: Stream, Drift | E2: StreamDrift
A3: Receptor | B3: Stream
A4: Duration | B4: Acute
A5: Parameter/Assumption | B5: Code / Range | C5: Equation/ Value | D5: Units | E5: Reference/Designation
A6: Application rate, lbs/acre | B6: ApRt | C6: ='A01'!ApRt_C -> 0.38 | D6: lb/acre | E6: Worksheet A01
A7: Flow rate of stream | B7: Flow | C7: ='A01'!C$25 -> 710000 | D7: L/day | E7: Worksheet A01
A8: Converstion Factor, lb/acre to mg/m2 | B8: Conv1 | C8: 112.1 | D8: mg/m2 per lb/acre
A9: Deposition rate, nominal | C9: Dep = ApR × Conv1
B10: Dep | C10: =C6*C8 -> 42.598 | D10: mg/m2 | E10: Eq
A11: Length of steam segment | B11: L | C11: ='A01'!C$26 -> 1038 | D11: feet | E11: Worksheet A01
A12: Width of steam segment | B12: W | C12: ='A01'!C$27 -> 6 | D12: feet | E12: Worksheet A01
A13: Surface Area of Stream Sprayed, square feet | B13: SA_ft | C13: =C11*C12 -> 6228 | D13: ft2 | E13: Eq
A14: Converstion Factor, square feet to square meters | B14: Conv2 | C14: 0.0929 | D14: m2/ft2
A15: Surface Area of Stream Sprayed, square meters | B15: SA_msq | C15: =C13*C14 -> 578.5812 | E15: Eq
A16: Amount deposited on stream surface on spray day | B16: Amnt | C16: =C10*C15 -> 24646.40196 | D16: mg/day | E16: Eq
A17: Proportion of Drift at distances downwind in feet [0 feet = direct spray] | B17: Prop
A18: ='A04'!$A$7 -> Direct Spray | B18: ='A04'!$B$7 -> feet | C18: ='A04'!$C$7 -> 1 | D18: unitless | E18: Worksheet A04
A19: ='A04'!$A$8 -> 25 | B19: ='A04'!$B$8 -> feet | C19: ='A04'!$C$8 -> 0.035
A20: ='A04'!$A$9 -> 50 | B20: ='A04'!$B$9 -> feet | C20: ='A04'!$C$9 -> 0.0177
A21: ='A04'!$A$10 -> 100 | B21: ='A04'!$B$10 -> feet | C21: ='A04'!$C$10 -> 0.00948
A22: ='A04'!$A$11 -> 300 | B22: ='A04'!$B$11 -> feet | C22: ='A04'!$C$11 -> 0.0035
A23: ='A04'!$A$12 -> 500 | B23: ='A04'!$B$12 -> feet | C23: ='A04'!$C$12 -> 0.00209
A24: ='A04'!$A$13 -> 900 | B24: ='A04'!$B$13 -> feet | C24: ='A04'!$C$13 -> 0.00109
A25: Concentration in water at distances downwind in feet | B25: Conc | C25: Amnt × Prop / Flow
A26: =A18 -> Direct Spray | C26: =C$16 * C18 /C$7 -> 0.03471324219 | D26: mg/L
A27: 25 | C27: 0.001214963477
A28: 50 | C28: 0.0006144243868
A29: 100 | C29: 0.000329081536
A30: 300 | C30: 0.0001214963477
A31: 500 | C31: 7.255067619e-05
A32: 900 | C32: 3.783743399e-05

Sheet B05a
A1: Concentration of Pesticide in Contaminated Fruit
A2: Short Title | B2: Concentration in food item | E2: FoodConcV6
A3: Material consumed | C3: Fruit | E3: Scenario parameter
A4: Parameter/Assumption | B4: Code / Range | C4: Equation/ Value | D4: Units | E4: Reference/Designation
A5: Application Information
A6: Application Rate (lbs/acre) | B6: ApRt | C6: ='A01'!ApRt_C -> 0.38 | D6: lb/acre | E6: Worksheet A01
A7: Number of applications | B7: n | C7: ='A01'!C$20 -> 1 | D7: unitless | E7: Worksheet A01
A8: Interval between applications | B8: intv | C8: ='A01'!C$21 -> 1 | D8: days | E8: Worksheet A01
A9: Special Adjustments (See Note 1)
A10: Metabolite Adjustment Factor : (See risk assessment if this has a value other than 1.) | B10: MetFact
B11: Central | C11: 1 | D11: unitless | E11: Default
B12: Lower | C12: 1 | E12: Default
B13: Upper | C13: 1 | E13: Default
A14: Toxic Equivalency Factor for formulation: (See risk assessment if this has a value other than 1.) | B14: TEF
B15: Central | C15: ='A01'!C$35 -> 1 | D15: Unitless | E15: Worksheet A01
B16: Lower | C16: ='A01'!C$36 -> 1 | E16: Worksheet A01
B17: Upper | C17: ='A01'!C$37 -> 1 | E17: Worksheet A01
A18: Acute Concentrations
A19: Residue Rates | B19: rr
B20: Central | C20: ='A01'!C$63 -> 7 | D20: mg/kg food per lb/acre | E20: Worksheet A01
B21: Lower | C21: ='A01'!C$64 -> 3.2 | E21: Worksheet A01
B22: Upper | C22: ='A01'!C$65 -> 15 | E22: Worksheet A01
A23: Drift | B23: Drift
B24: Central | C24: ='A01'!C$39 -> 1 | D24: proportion | E24: Worksheet A01
B25: Lower | C25: ='A01'!C$40 -> 1 | E25: Worksheet A01
B26: Upper | C26: ='A01'!C$41 -> 1 | E26: Worksheet A01
A27: Concentration on commodity immediately after first application. | B27: C0 | C27: ApR × rr × Drift × MetFact × TEF
B28: Central | C28: =C$6*C20*$C$24*C11*C15 -> 2.66 | E28: Eq
B29: Lower | C29: =C$6*C21*$C$24*C12*C16 -> 1.216 | E29: Eq
B30: Upper | C30: =C$6*C22*$C$24*C13*C17 -> 5.7 | E30: Eq
A31: Half-life on commodity | B31: Halflife
B32: Central | C32: ='B01'!$C$17 -> 10 | D32: Days | E32: Knisel and Davis (2000)
B33: Lower | C33: ='B01'!$C$18 -> 10 | E33: Knisel and Davis (2000)
B34: Upper | C34: ='B01'!$C$19 -> 10 | E34: Knisel and Davis (2000)
A35: Decay Coefficient | B35: k | C35: Ln(2)/Halflife
B36: Central | C36: =LN(2)/C32 -> 0.06931471806 | D36: Days-1 | E36: Eq
B37: Upper | C37: =LN(2)/C33 -> 0.06931471806 | D37: Note 2 | E37: Eq
B38: Lower | C38: =LN(2)/C34 -> 0.06931471806 | D38: Note 2 | E38: Eq
A39: Proportion remaining at end of each application interval | B39: p | C39: exp( -k × intv)
B40: Central | C40: =EXP(-C36*C$8) -> 0.9330329915 | D40: proportion | E40: Eq
B41: Lower | C41: =EXP(-C37*C$8) -> 0.9330329915 | E41: Eq
B42: Upper | C42: =EXP(-C38*C$8) -> 0.9330329915 | E42: Eq
A43: Concentration on commodity immediately after last application. | B43: Cn | C43: Cn = C0 × (1- pn) ÷ (1- p)
B44: Central | C44: =C28 * (1-C40^C$7)/(1-C40) -> 2.66 | D44: mg/kg food item | E44: Eq
B45: Lower | C45: =C29 * (1-C41^C$7)/(1-C41) -> 1.216 | E45: Eq
B46: Upper | C46: =C30 * (1-C42^C$7)/(1-C42) -> 5.7 | E46: Eq
A47: Longer-term Concentrations
A48: Duration for time-weighted average exposure | B48: T | C48: ='A01'!C$28 -> 90 | D48: Days | E48: Worksheet A01
A49: Time-weighted average concentration on commodity over time, T, after the last application. | B49: ConcTWA | C49: Cn × (1-e-kT) ÷ (k T)
B50: Central | C50: =C44*(1-EXP(-C36*$C$48))/(C36*$C$48) -> 0.4255637286 | D50: mg/kg food item | E50: Eq
B51: Lower | C51: =C45*(1-EXP(-C37*$C$48))/(C37*$C$48) -> 0.1945434188 | E51: Eq
B52: Upper | C52: 0.9119222755 | E52: Eq
A53: Maximum Time-weighted average concentration on commodity over time, T. | B53: ConcTWA | C53: See Documentation
B54: Central | C54: =IF($C$7=1, C50, MaxTWAWsFn(C28, $C$7, $C$8, $C$48, C36)) -> 0.4255637286 | D54: mg/kg food item | E54: Eq
B55: Lower | C55: =IF($C$7=1, C51, MaxTWAWsFn(C29, $C$7, $C$8, $C$48, C37)) -> 0.1945434188 | E55: Eq
B56: Upper | C56: =IF($C$7=1, C52, MaxTWAWsFn(C30, $C$7, $C$8, $C$48, C38)) -> 0.9119222755 | E56: Eq

Sheet B05b
A1: Concentration of Pesticide in Contaminated Broadleaf Vegetation
A2: Short Title | B2: Concentration in food item | E2: FoodConcV6
A3: Material consumed | C3: Broadleaf Vegetation | E3: Scenario parameter
A4: Parameter/Assumption | B4: Code / Range | C4: Equation/ Value | D4: Units | E4: Reference/Designation
A5: Application Information
A6: Application Rate (lbs/acre) | B6: ApRt | C6: ='A01'!ApRt_C -> 0.38 | D6: lb/acre | E6: Worksheet A01
A7: Number of applications | B7: n | C7: ='A01'!C$20 -> 1 | D7: unitless | E7: Worksheet A01
A8: Interval between applications | B8: intv | C8: ='A01'!C$21 -> 1 | D8: days | E8: Worksheet A01
A9: Special Adjustments (See Note 1)
A10: Metabolite Adjustment Factor : (See risk assessment if this has a value other than 1.) | B10: MetFact
B11: Central | C11: 1 | D11: unitless | E11: Default
B12: Lower | C12: 1 | E12: Default
B13: Upper | C13: 1 | E13: Default
A14: Toxic Equivalency Factor for formulation: (See risk assessment if this has a value other than 1.) | B14: TEF
B15: Central | C15: ='A01'!C$35 -> 1 | D15: Unitless | E15: Worksheet A01
B16: Lower | C16: ='A01'!C$36 -> 1 | E16: Worksheet A01
B17: Upper | C17: ='A01'!C$37 -> 1 | E17: Worksheet A01
A18: Acute Concentrations
A19: Residue Rates | B19: rr
B20: Central | C20: ='A01'!C$59 -> 45 | D20: mg/kg food per lb/acre | E20: Worksheet A01
B21: Lower | C21: ='A01'!C$60 -> 15 | E21: Worksheet A01
B22: Upper | C22: ='A01'!C$61 -> 135 | E22: Worksheet A01
A23: Drift | B23: Drift
B24: Central | C24: ='A01'!C$39 -> 1 | D24: proportion | E24: Worksheet A01
B25: Lower | C25: ='A01'!C$40 -> 1 | E25: Worksheet A01
B26: Upper | C26: ='A01'!C$41 -> 1 | E26: Worksheet A01
A27: Concentration on commodity immediately after first application. | B27: C0 | C27: ApR × rr × Drift × MetFact × TEF
B28: Central | C28: =C$6*C20*$C$24*C11*C15 -> 17.1 | E28: Eq
B29: Lower | C29: =C$6*C21*$C$24*C12*C16 -> 5.7 | E29: Eq
B30: Upper | C30: =C$6*C22*$C$24*C13*C17 -> 51.3 | E30: Eq
A31: Half-life on commodity | B31: Halflife
B32: Central | C32: ='B01'!$C$20 -> 10 | D32: Days | E32: Knisel and Davis (2000)
B33: Lower | C33: ='B01'!$C$21 -> 10 | E33: Knisel and Davis (2000)
B34: Upper | C34: ='B01'!$C$22 -> 10 | E34: Knisel and Davis (2000)
A35: Decay Coefficient | B35: k | C35: Ln(2)/Halflife
B36: Central | C36: =LN(2)/C32 -> 0.06931471806 | D36: Days-1 | E36: Eq
B37: Upper | C37: =LN(2)/C33 -> 0.06931471806 | D37: Note 2 | E37: Eq
B38: Lower | C38: =LN(2)/C34 -> 0.06931471806 | D38: Note 2 | E38: Eq
A39: Proportion remaining at end of each application interval | B39: p | C39: exp( -k × intv)
B40: Central | C40: =EXP(-C36*C$8) -> 0.9330329915 | D40: proportion | E40: Eq
B41: Lower | C41: =EXP(-C37*C$8) -> 0.9330329915 | E41: Eq
B42: Upper | C42: =EXP(-C38*C$8) -> 0.9330329915 | E42: Eq
A43: Concentration on commodity immediately after last application. | B43: Cn | C43: Cn = C0 × (1- pn) ÷ (1- p)
B44: Central | C44: =C28 * (1-C40^C$7)/(1-C40) -> 17.1 | D44: mg/kg food item | E44: Eq
B45: Lower | C45: =C29 * (1-C41^C$7)/(1-C41) -> 5.7 | E45: Eq
B46: Upper | C46: =C30 * (1-C42^C$7)/(1-C42) -> 51.3 | E46: Eq
A47: Longer-term Concentrations
A48: Duration for time-weighted average exposure | B48: T | C48: ='A01'!C$28 -> 90 | D48: Days | E48: Worksheet A01
A49: Time-weighted average concentration on commodity over time, T, after the last application. | B49: ConcTWA | C49: Cn × (1-e-kT) ÷ (k T)
B50: Central | C50: =C44*(1-EXP(-C36*$C$48))/(C36*$C$48) -> 2.735766827 | D50: mg/kg food item | E50: Eq
B51: Lower | C51: =C45*(1-EXP(-C37*$C$48))/(C37*$C$48) -> 0.9119222755 | E51: Eq
B52: Upper | C52: 8.20730048 | E52: Eq
A53: Maximum Time-weighted average concentration on commodity over time, T. | B53: ConcTWA | C53: See Documentation
B54: Central | C54: =IF($C$7=1, C50, MaxTWAWsFn(C28, $C$7, $C$8, $C$48, C36)) -> 2.735766827 | D54: mg/kg food item | E54: Eq
B55: Lower | C55: =IF($C$7=1, C51, MaxTWAWsFn(C29, $C$7, $C$8, $C$48, C37)) -> 0.9119222755 | E55: Eq
B56: Upper | C56: =IF($C$7=1, C52, MaxTWAWsFn(C30, $C$7, $C$8, $C$48, C38)) -> 8.20730048 | E56: Eq

Sheet B05c
A1: Concentration of Pesticide in Contaminated Short Grass
A2: Short Title | B2: Concentration in food item | E2: FoodConcV6
A3: Material consumed | C3: Short Grass | E3: Scenario parameter
A4: Parameter/Assumption | B4: Code / Range | C4: Equation/ Value | D4: Units | E4: Reference/Designation
A5: Application Information
A6: Application Rate (lbs/acre) | B6: ApRt | C6: ='A01'!ApRt_C -> 0.38 | D6: lb/acre | E6: Worksheet A01
A7: Number of applications | B7: n | C7: ='A01'!C$20 -> 1 | D7: unitless | E7: Worksheet A01
A8: Interval between applications | B8: intv | C8: ='A01'!C$21 -> 1 | D8: days | E8: Worksheet A01
A9: Special Adjustments (See Note 1)
A10: Metabolite Adjustment Factor : (See risk assessment if this has a value other than 1.) | B10: MetFact
B11: Central | C11: 1 | D11: unitless | E11: Default
B12: Lower | C12: 1 | E12: Default
B13: Upper | C13: 1 | E13: Default
A14: Toxic Equivalency Factor for formulation: (See risk assessment if this has a value other than 1.) | B14: TEF
B15: Central | C15: ='A01'!C$35 -> 1 | D15: Unitless | E15: Worksheet A01
B16: Lower | C16: ='A01'!C$36 -> 1 | E16: Worksheet A01
B17: Upper | C17: ='A01'!C$37 -> 1 | E17: Worksheet A01
A18: Acute Concentrations
A19: Residue Rates | B19: rr
B20: Central | C20: ='A01'!C$51 -> 85 | D20: mg/kg food per lb/acre | E20: Worksheet A01
B21: Lower | C21: ='A01'!C$52 -> 30 | E21: Worksheet A01
B22: Upper | C22: ='A01'!C$53 -> 240 | E22: Worksheet A01
A23: Drift | B23: Drift
B24: Central | C24: ='A01'!C$39 -> 1 | D24: proportion | E24: Worksheet A01
B25: Lower | C25: ='A01'!C$40 -> 1 | E25: Worksheet A01
B26: Upper | C26: ='A01'!C$41 -> 1 | E26: Worksheet A01
A27: Concentration on commodity immediately after first application. | B27: C0 | C27: ApR × rr × Drift × MetFact × TEF
B28: Central | C28: =C$6*C20*$C$24*C11*C15 -> 32.3 | E28: Eq
B29: Lower | C29: =C$6*C21*$C$24*C12*C16 -> 11.4 | E29: Eq
B30: Upper | C30: =C$6*C22*$C$24*C13*C17 -> 91.2 | E30: Eq
A31: Half-life on commodity | B31: Halflife
B32: Central | C32: ='B01'!$C$20 -> 10 | D32: Days | E32: Knisel and Davis (2000)
B33: Lower | C33: ='B01'!$C$21 -> 10 | E33: Knisel and Davis (2000)
B34: Upper | C34: ='B01'!$C$22 -> 10 | E34: Knisel and Davis (2000)
A35: Decay Coefficient | B35: k | C35: Ln(2)/Halflife
B36: Central | C36: =LN(2)/C32 -> 0.06931471806 | D36: Days-1 | E36: Eq
B37: Upper | C37: =LN(2)/C33 -> 0.06931471806 | D37: Note 2 | E37: Eq
B38: Lower | C38: =LN(2)/C34 -> 0.06931471806 | D38: Note 2 | E38: Eq
A39: Proportion remaining at end of each application interval | B39: p | C39: exp( -k × intv)
B40: Central | C40: =EXP(-C36*C$8) -> 0.9330329915 | D40: proportion | E40: Eq
B41: Lower | C41: =EXP(-C37*C$8) -> 0.9330329915 | E41: Eq
B42: Upper | C42: =EXP(-C38*C$8) -> 0.9330329915 | E42: Eq
A43: Concentration on commodity immediately after last application. | B43: Cn | C43: Cn = C0 × (1- pn) ÷ (1- p)
B44: Central | C44: =C28 * (1-C40^C$7)/(1-C40) -> 32.3 | D44: mg/kg food item | E44: Eq
B45: Lower | C45: =C29 * (1-C41^C$7)/(1-C41) -> 11.4 | E45: Eq
B46: Upper | C46: =C30 * (1-C42^C$7)/(1-C42) -> 91.2 | E46: Eq
A47: Longer-term Concentrations
A48: Duration for time-weighted average exposure | B48: T | C48: ='A01'!C$28 -> 90 | D48: Days | E48: Worksheet A01
A49: Time-weighted average concentration on commodity over time, T, after the last application. | B49: ConcTWA | C49: Cn × (1-e-kT) ÷ (k T)
B50: Central | C50: =C44*(1-EXP(-C36*$C$48))/(C36*$C$48) -> 5.167559561 | D50: mg/kg food item | E50: Eq
B51: Lower | C51: =C45*(1-EXP(-C37*$C$48))/(C37*$C$48) -> 1.823844551 | E51: Eq
B52: Upper | C52: 14.59075641 | E52: Eq
A53: Maximum Time-weighted average concentration on commodity over time, T. | B53: ConcTWA | C53: See Documentation
B54: Central | C54: =IF($C$7=1, C50, MaxTWAWsFn(C28, $C$7, $C$8, $C$48, C36)) -> 5.167559561 | D54: mg/kg food item | E54: Eq
B55: Lower | C55: =IF($C$7=1, C51, MaxTWAWsFn(C29, $C$7, $C$8, $C$48, C37)) -> 1.823844551 | E55: Eq
B56: Upper | C56: =IF($C$7=1, C52, MaxTWAWsFn(C30, $C$7, $C$8, $C$48, C38)) -> 14.59075641 | E56: Eq

Sheet B05d
A1: Concentration of Pesticide in Contaminated Tall Grass
A2: Short Title | B2: Concentration in food item | E2: FoodConcV6
A3: Material consumed | C3: Tall Grass | E3: Scenario parameter
A4: Parameter/Assumption | B4: Code / Range | C4: Equation/ Value | D4: Units | E4: Reference/Designation
A5: Application Information
A6: Application Rate (lbs/acre) | B6: ApRt | C6: ='A01'!ApRt_C -> 0.38 | D6: lb/acre | E6: Worksheet A01
A7: Number of applications | B7: n | C7: ='A01'!C$20 -> 1 | D7: unitless | E7: Worksheet A01
A8: Interval between applications | B8: intv | C8: ='A01'!C$21 -> 1 | D8: days | E8: Worksheet A01
A9: Special Adjustments (See Note 1)
A10: Metabolite Adjustment Factor : (See risk assessment if this has a value other than 1.) | B10: MetFact
B11: Central | C11: 1 | D11: unitless | E11: Default
B12: Lower | C12: 1 | E12: Default
B13: Upper | C13: 1 | E13: Default
A14: Toxic Equivalency Factor for formulation: (See risk assessment if this has a value other than 1.) | B14: TEF
B15: Central | C15: ='A01'!C$35 -> 1 | D15: Unitless | E15: Worksheet A01
B16: Lower | C16: ='A01'!C$36 -> 1 | E16: Worksheet A01
B17: Upper | C17: ='A01'!C$37 -> 1 | E17: Worksheet A01
A18: Acute Concentrations
A19: Residue Rates | B19: rr
B20: Central | C20: ='A01'!C$55 -> 36 | D20: mg/kg food per lb/acre | E20: Worksheet A01
B21: Lower | C21: ='A01'!C$56 -> 12 | E21: Worksheet A01
B22: Upper | C22: ='A01'!C$57 -> 110 | E22: Worksheet A01
A23: Drift | B23: Drift
B24: Central | C24: ='A01'!C$39 -> 1 | D24: proportion | E24: Worksheet A01
B25: Lower | C25: ='A01'!C$40 -> 1 | E25: Worksheet A01
B26: Upper | C26: ='A01'!C$41 -> 1 | E26: Worksheet A01
A27: Concentration on commodity immediately after first application. | B27: C0 | C27: ApR × rr × Drift × MetFact × TEF
B28: Central | C28: =C$6*C20*$C$24*C11*C15 -> 13.68 | E28: Eq
B29: Lower | C29: =C$6*C21*$C$24*C12*C16 -> 4.56 | E29: Eq
B30: Upper | C30: =C$6*C22*$C$24*C13*C17 -> 41.8 | E30: Eq
A31: Half-life on commodity | B31: Halflife
B32: Central | C32: ='B01'!$C$20 -> 10 | D32: Days | E32: Knisel and Davis (2000)
B33: Lower | C33: ='B01'!$C$21 -> 10 | E33: Knisel and Davis (2000)
B34: Upper | C34: ='B01'!$C$22 -> 10 | E34: Knisel and Davis (2000)
A35: Decay Coefficient | B35: k | C35: Ln(2)/Halflife
B36: Central | C36: =LN(2)/C32 -> 0.06931471806 | D36: Days-1 | E36: Eq
B37: Upper | C37: =LN(2)/C33 -> 0.06931471806 | D37: Note 2 | E37: Eq
B38: Lower | C38: =LN(2)/C34 -> 0.06931471806 | D38: Note 2 | E38: Eq
A39: Proportion remaining at end of each application interval | B39: p | C39: exp( -k × intv)
B40: Central | C40: =EXP(-C36*C$8) -> 0.9330329915 | D40: proportion | E40: Eq
B41: Lower | C41: =EXP(-C37*C$8) -> 0.9330329915 | E41: Eq
B42: Upper | C42: =EXP(-C38*C$8) -> 0.9330329915 | E42: Eq
A43: Concentration on commodity immediately after last application. | B43: Cn | C43: Cn = C0 × (1- pn) ÷ (1- p)
B44: Central | C44: =C28 * (1-C40^C$7)/(1-C40) -> 13.68 | D44: mg/kg food item | E44: Eq
B45: Lower | C45: =C29 * (1-C41^C$7)/(1-C41) -> 4.56 | E45: Eq
B46: Upper | C46: =C30 * (1-C42^C$7)/(1-C42) -> 41.8 | E46: Eq
A47: Longer-term Concentrations
A48: Duration for time-weighted average exposure | B48: T | C48: ='A01'!C$28 -> 90 | D48: Days | E48: Worksheet A01
A49: Time-weighted average concentration on commodity over time, T, after the last application. | B49: ConcTWA | C49: Cn × (1-e-kT) ÷ (k T)
B50: Central | C50: =C44*(1-EXP(-C36*$C$48))/(C36*$C$48) -> 2.188613461 | D50: mg/kg food item | E50: Eq
B51: Lower | C51: =C45*(1-EXP(-C37*$C$48))/(C37*$C$48) -> 0.7295378204 | E51: Eq
B52: Upper | C52: 6.68743002 | E52: Eq
A53: Maximum Time-weighted average concentration on commodity over time, T. | B53: ConcTWA | C53: See Documentation
B54: Central | C54: =IF($C$7=1, C50, MaxTWAWsFn(C28, $C$7, $C$8, $C$48, C36)) -> 2.188613461 | D54: mg/kg food item | E54: Eq
B55: Lower | C55: =IF($C$7=1, C51, MaxTWAWsFn(C29, $C$7, $C$8, $C$48, C37)) -> 0.7295378204 | E55: Eq
B56: Upper | C56: =IF($C$7=1, C52, MaxTWAWsFn(C30, $C$7, $C$8, $C$48, C38)) -> 6.68743002 | E56: Eq

Sheet C01
A1: Exposure estimates for Ground Boom Worker based on the amount of material handled per day
A2: Short Title | B2: General exposure | E2: WkGenExp
A3: Receptor | B3: Ground Boom Worker | E3: Worksheet A01
A4: Duration | B4: Chronic
A5: Parameter/Assumption | B5: Code / Range | C5: Equation/ Value | D5: Units | E5: Reference/Equation
A6: Application rates | B6: ApRt | C6: ='A01'!ApRt_C -> 0.38 | D6: lb/acre | E6: Worksheet A01
A7: Hours of application per day | B7: Hrs
B8: Central | C8: ='A01'!C$75 -> 7 | D8: hours | E8: Worksheet A01
B9: Lower | C9: ='A01'!C$76 -> 6 | E9: Worksheet A01
B10: Upper | C10: ='A01'!C$77 -> 8 | E10: Worksheet A01
A11: Acres treated per hour | B11: APH
B12: Central | C12: ='A01'!C$71 -> 16 | D12: acres/hour | E12: Worksheet A01
B13: Lower | C13: ='A01'!C$72 -> 11 | E13: Worksheet A01
B14: Upper | C14: ='A01'!C$73 -> 21 | E14: Worksheet A01
A15: Acres treated per day: | B15: ATD | C15: Hrs × APH
B16: Central | C16: =C8*C12 -> 112 | D16: acres/day | E16: Eq
B17: Lower | C17: =C9*C13 -> 66 | E17: Eq
B18: Upper | C18: =C10*C14 -> 168 | E18: Eq
A19: Toxic Equivalency Factor for formulation: (See risk assessment if this has a value other than 1.) | B19: TEF
B20: Central | C20: ='A01'!C$35 -> 1 | D20: unitless | E20: Worksheet A01
B21: Lower | C21: ='A01'!C$36 -> 1 | E21: Worksheet A01
B22: Upper | C22: ='A01'!C$37 -> 1 | E22: Worksheet A01
A23: Amount handled per day: | B23: Amnt | C23: ApRt × ATD × TEF
B24: Central | C24: =C$6*C16 *C20 -> 42.56 | D24: lb/day | E24: Eq
B25: Lower | C25: =C$6*C17 *C21 -> 25.08 | E25: Eq
B26: Upper | C26: =C$6*C18 *C22 -> 63.84 | E26: Eq
A27: Absorbed dose rate: | B27: ADR
B28: Central | C28: ='A01'!C$67 -> 0.0002 | D28: (mg agent/kg bw) ÷ (lbs agent handled per day) | E28: Worksheet A01
B29: Lower | C29: ='A01'!C$68 -> 1e-05 | E29: Worksheet A01
B30: Upper | C30: ='A01'!C$69 -> 0.0009 | E30: Worksheet A01
A31: Clothing Protection Factor | B31: Prot
B32: Central | C32: ='A01'!C$31 -> 0 | D32: Unitless (value between 0 [no protection] and 1 [complete protection]) | E32: Worksheet A01
B33: Upper | C33: ='A01'!C$33 -> 0 | E33: Worksheet A01
B34: Lower | C34: ='A01'!C$32 -> 0 | E34: Worksheet A01
A35: Absorbed dose | B35: Dose | C35: Amnt × ADR × (1-Prot)
B36: Central | C36: =C24*C28*(1-C32) -> 0.008512 | D36: mg/kg bw/day | E36: Eq
B37: Lower | C37: =C25*C29*(1-C33) -> 0.0002508 | E37: Eq
B38: Upper | C38: =C26*C30*(1-C34) -> 0.057456 | E38: Eq

Sheet C02a
A1: Accidental Dermal Exposure Assessment Using Zero-Order Absorption, Worker, Surface Area, Hands, for 1 minute(s)
A2: Short Title | B2: Contaminated Gloves, 1 minute | E2: DrmZr
A3: Receptor | B3: Worker
A4: Duration | B4: Acute
A5: Surface Contaminated | B5: Surface Area, Hands
A6: Parameter/Assumption | B6: Code / Range | C6: Equation/ Value | D6: Units | E6: Reference/Designation
A7: Surface Area | B7: SA | C7: =A02a!$C$40 -> 1070 | D7: cm2 | E7: U.S. EPA/ORD 2011
A8: Duration of Exposure | B8: T_min | C8: 1 | D8: minutes | E8: Scenario parameter
B9: T_hr | C9: =C8/60 -> 0.01666666667 | D9: hours | E9: Eq
A10: Body weight | B10: BW | C10: =A02a!$C$39 -> 86 | D10: kg | E10: U.S. EPA/OPP 2012
A11: Concentration in solution (mg/mL) | B11: Conc
B12: Central | C12: ='A01'!FldConc_C -> 3 | D12: mg/mL | E12: Worksheet A01
B13: Lower | C13: ='A01'!FldConc_L -> 1.1 | E13: Worksheet A01
B14: Upper | C14: ='A01'!FldConc_U -> 9.1 | E14: Worksheet A01
A15: Toxic Equivalency Factor for formulation: (See risk assessment if this has a value other than 1.) | B15: TEF
B16: Central | C16: ='A01'!C$35 -> 1 | D16: Unitless | E16: Worksheet A01
B17: Lower | C17: ='A01'!C$36 -> 1 | E17: Worksheet A01
B18: Upper | C18: ='A01'!C$37 -> 1 | E18: Worksheet A01
A19: Dermal permeability | B19: Kp
B20: Central | C20: ='B01'!$C$14 -> 5.1e-06 | D20: cm/hour | E20: Prev worksheet B01
B21: Lower | C21: ='B01'!$C$15 -> 2e-06 | E21: Prev worksheet B01
B22: Upper | C22: ='B01'!$C$16 -> 1.3e-05 | E22: Prev worksheet B01
A23: Absorbed Dose | B23: Dose | C23: Kp × Conc × T_hr × SA x TEF ÷ BW
B24: Central | C24: =C20*C12*C$9*C$7*C16/C$10 -> 3.172674419e-06 | D24: mg/kg | E24: Eq
B25: Lower | C25: =C21*C13*C$9*C$7*C17/C$10 -> 4.562015504e-07 | D25: mg/kg | E25: Eq
B26: Upper | C26: =C22*C14*C$9*C$7*C18/C$10 -> 2.453120155e-05 | D26: mg/kg | E26: Eq

Sheet C02b
A1: Accidental Dermal Exposure Assessment Using Zero-Order Absorption, Worker, Surface Area, Hands, for 60 minute(s)
A2: Short Title | B2: Contaminated Gloves, 1 Hour | E2: DrmZr
A3: Receptor | B3: Worker
A4: Duration | B4: Acute
A5: Surface Contaminated | B5: Surface Area, Hands
A6: Parameter/Assumption | B6: Code / Range | C6: Equation/ Value | D6: Units | E6: Reference/Designation
A7: Surface Area | B7: SA | C7: =A02a!$C$40 -> 1070 | D7: cm2 | E7: U.S. EPA/ORD 2011
A8: Duration of Exposure | B8: T_min | C8: 60 | D8: minutes | E8: Scenario parameter
B9: T_hr | C9: =C8/60 -> 1 | D9: hours | E9: Eq
A10: Body weight | B10: BW | C10: =A02a!$C$39 -> 86 | D10: kg | E10: U.S. EPA/OPP 2012
A11: Concentration in solution (mg/mL) | B11: Conc
B12: Central | C12: ='A01'!FldConc_C -> 3 | D12: mg/mL | E12: Worksheet A01
B13: Lower | C13: ='A01'!FldConc_L -> 1.1 | E13: Worksheet A01
B14: Upper | C14: ='A01'!FldConc_U -> 9.1 | E14: Worksheet A01
A15: Toxic Equivalency Factor for formulation: (See risk assessment if this has a value other than 1.) | B15: TEF
B16: Central | C16: ='A01'!C$35 -> 1 | D16: Unitless | E16: Worksheet A01
B17: Lower | C17: ='A01'!C$36 -> 1 | E17: Worksheet A01
B18: Upper | C18: ='A01'!C$37 -> 1 | E18: Worksheet A01
A19: Dermal permeability | B19: Kp
B20: Central | C20: ='B01'!$C$14 -> 5.1e-06 | D20: cm/hour | E20: Prev worksheet B01
B21: Lower | C21: ='B01'!$C$15 -> 2e-06 | E21: Prev worksheet B01
B22: Upper | C22: ='B01'!$C$16 -> 1.3e-05 | E22: Prev worksheet B01
A23: Absorbed Dose | B23: Dose | C23: Kp × Conc × T_hr × SA x TEF ÷ BW
B24: Central | C24: =C20*C12*C$9*C$7*C16/C$10 -> 0.0001903604651 | D24: mg/kg | E24: Eq
B25: Lower | C25: =C21*C13*C$9*C$7*C17/C$10 -> 2.737209302e-05 | D25: mg/kg | E25: Eq
B26: Upper | C26: =C22*C14*C$9*C$7*C18/C$10 -> 0.001471872093 | D26: mg/kg | E26: Eq

Sheet C03a
A1: Accidental Dermal Exposure Assessment Using First-Order Absorption, Worker, Surface Area, Hands, for 60 minute(s)
A2: Short Title | B2: Spill on hands, 1 hour | E2: DrmFOA
A3: Receptor | B3: Worker
A4: Duration | B4: Acute
A5: Surface Contaminated | B5: Surface Area, Hands
A6: Parameter/Assumption | B6: Code / Range | C6: Equation/ Value | D6: Units | E6: Reference/Designation
A7: Surface Area | B7: SA | C7: =A02a!$C$40 -> 1070 | D7: cm2 | E7: U.S. EPA/ORD 2011
A8: Duration of Exposure | C8: 60 | D8: minutes | E8: Scenario parameter
B9: T | C9: =C8/60 -> 1 | D9: hours | E9: Eq
A10: Body weight | B10: BW | C10: =A02a!$C$39 -> 86 | D10: kg | E10: U.S. EPA/OPP 2012
A11: Liquid adhering to skin | B11: L | C11: =A02d!$C$11 -> 0.008 | D11: mL/cm2 | E11: Mason and Johnson 1987
A12: Concentration in solution | B12: Conc
B13: Central | C13: ='A01'!FldConc_C -> 3 | D13: mg/mL | E13: Worksheet A01
B14: Lower | C14: ='A01'!FldConc_L -> 1.1 | E14: Worksheet A01
B15: Upper | C15: ='A01'!FldConc_U -> 9.1 | E15: Worksheet A01
A16: First-order dermal absorption rates | B16: ka
B17: Central | C17: ='B01'!$C$11 -> 0.00022 | D17: hour-1 | E17: Prev worksheet B01
B18: Lower | C18: ='B01'!$C$12 -> 4.8e-05 | E18: Prev worksheet B01
B19: Upper | C19: ='B01'!$C$13 -> 0.00098 | E19: Prev worksheet B01
A20: Toxic Equivalency Factor for formulation: (See risk assessment if this has a value other than 1.) | B20: TEF
B21: Central | C21: ='A01'!C$35 -> 1 | D21: Unitless | E21: Worksheet A01
B22: Lower | C22: ='A01'!C$36 -> 1 | E22: Worksheet A01
B23: Upper | C23: ='A01'!C$37 -> 1 | E23: Worksheet A01
A24: Amount Deposited on Skin | B24: Amnt | C24: L × SA × Conc x TEF
B25: Central | C25: =$C$11*$C$7*C13*C21 -> 25.68 | D25: mg | E25: Eq
B26: Lower | C26: =$C$11*$C$7*C14*C22 -> 9.416 | E26: Eq
B27: Upper | C27: =$C$11*$C$7*C15*C23 -> 77.896 | E27: Eq
A28: Skin Loading | B28: Loading
B29: Central | C29: =C25/C$7 -> 0.024 | D29: mg/cm2 | E29: Eq
B30: Lower | C30: =C26/C$7 -> 0.0088 | E30: Eq
B31: Upper | C31: =C27/C$7 -> 0.0728 | E31: Eq
A32: Proportion absorbed over period T | B32: Prop | C32: 1-exp(-ka T)
B33: Central | C33: =1-EXP(-C17 *$C$9) -> 0.0002199758018 | D33: hour-1 | E33: Eq
B34: Lower | C34: =1-EXP(-C18 *$C$9) -> 4.799884802e-05 | E34: Eq
B35: Upper | C35: =1-EXP(-C19 *$C$9) -> 0.0009795199568 | E35: Eq
A36: Absorbed Dose | B36: Dose | C36: Amnt × Prop ÷ BW
B37: Central | C37: =C25*C33/$C$10 -> 6.568579755e-05 | D37: mg/kg bw | E37: Eq
B38: Lower | C38: =C26*C34/$C$10 -> 5.255315732e-06 | E38: Eq
B39: Upper | C39: =C27*C35/$C$10 -> 0.0008872172855 | E39: Eq

Sheet C03b
A1: Accidental Dermal Exposure Assessment Using First-Order Absorption, Worker, Surface Area, Lower legs, for 60 minute(s)
A2: Short Title | B2: Spill on lower legs, 1 hour | E2: DrmFOA
A3: Receptor | B3: Worker
A4: Duration | B4: Acute
A5: Surface Contaminated | B5: Surface Area, Lower legs
A6: Parameter/Assumption | B6: Code / Range | C6: Equation/ Value | D6: Units | E6: Reference/Designation
A7: Surface Area | B7: SA | C7: =A02a!$C$41 -> 2680 | D7: cm2 | E7: U.S. EPA/ORD 2011
A8: Duration of Exposure | C8: 60 | D8: minutes | E8: Scenario parameter
B9: T | C9: =C8/60 -> 1 | D9: hours | E9: Eq
A10: Body weight | B10: BW | C10: =A02a!$C$39 -> 86 | D10: kg | E10: U.S. EPA/OPP 2012
A11: Liquid adhering to skin | B11: L | C11: =A02d!$C$11 -> 0.008 | D11: mL/cm2 | E11: Mason and Johnson 1987
A12: Concentration in solution | B12: Conc
B13: Central | C13: ='A01'!FldConc_C -> 3 | D13: mg/mL | E13: Worksheet A01
B14: Lower | C14: ='A01'!FldConc_L -> 1.1 | E14: Worksheet A01
B15: Upper | C15: ='A01'!FldConc_U -> 9.1 | E15: Worksheet A01
A16: First-order dermal absorption rates | B16: ka
B17: Central | C17: ='B01'!$C$11 -> 0.00022 | D17: hour-1 | E17: Prev worksheet B01
B18: Lower | C18: ='B01'!$C$12 -> 4.8e-05 | E18: Prev worksheet B01
B19: Upper | C19: ='B01'!$C$13 -> 0.00098 | E19: Prev worksheet B01
A20: Toxic Equivalency Factor for formulation: (See risk assessment if this has a value other than 1.) | B20: TEF
B21: Central | C21: ='A01'!C$35 -> 1 | D21: Unitless | E21: Worksheet A01
B22: Lower | C22: ='A01'!C$36 -> 1 | E22: Worksheet A01
B23: Upper | C23: ='A01'!C$37 -> 1 | E23: Worksheet A01
A24: Amount Deposited on Skin | B24: Amnt | C24: L × SA × Conc x TEF
B25: Central | C25: =$C$11*$C$7*C13*C21 -> 64.32 | D25: mg | E25: Eq
B26: Lower | C26: =$C$11*$C$7*C14*C22 -> 23.584 | E26: Eq
B27: Upper | C27: =$C$11*$C$7*C15*C23 -> 195.104 | E27: Eq
A28: Skin Loading | B28: Loading
B29: Central | C29: =C25/C$7 -> 0.024 | D29: mg/cm2 | E29: Eq
B30: Lower | C30: =C26/C$7 -> 0.0088 | E30: Eq
B31: Upper | C31: =C27/C$7 -> 0.0728 | E31: Eq
A32: Proportion absorbed over period T | B32: Prop | C32: 1-exp(-ka T)
B33: Central | C33: =1-EXP(-C17 *$C$9) -> 0.0002199758018 | D33: hour-1 | E33: Eq
B34: Lower | C34: =1-EXP(-C18 *$C$9) -> 4.799884802e-05 | E34: Eq
B35: Upper | C35: =1-EXP(-C19 *$C$9) -> 0.0009795199568 | E35: Eq
A36: Absorbed Dose | B36: Dose | C36: Amnt × Prop ÷ BW
B37: Central | C37: =C25*C33/$C$10 -> 0.0001645214369 | D37: mg/kg bw | E37: Eq
B38: Lower | C38: =C26*C34/$C$10 -> 1.316284688e-05 | E38: Eq
B39: Upper | C39: =C27*C35/$C$10 -> 0.002222189089 | E39: Eq

Sheet D01a
A1: Accidental Dermal Exposure Assessment Using First-Order Absorption, Child, Surface Area, Whole body, for 60 minute(s)
A2: Short Title | B2: Child direct spray, 1 hour | E2: DrmFOA
A3: Receptor | B3: Child
A4: Duration | B4: Acute
A5: Surface Contaminated | B5: Surface Area, Whole body
A6: Parameter/Assumption | B6: Code / Range | C6: Equation/ Value | D6: Units | E6: Reference/Designation
A7: Surface Area | B7: SA | C7: =A02a!$C$29 -> 6030 | D7: cm2 | E7: U.S. EPA/ORD 1996
A8: Duration of Exposure | C8: 60 | D8: minutes | E8: Scenario parameter
B9: T | C9: =C8/60 -> 1 | D9: hours | E9: Eq
A10: Body weight | B10: BW | C10: =A02a!$C$28 -> 11 | D10: kg | E10: U.S. EPA/OPP 2012
A11: Liquid adhering to skin | B11: L | C11: =A02d!$C$11 -> 0.008 | D11: mL/cm2 | E11: Mason and Johnson 1987
A12: Concentration in solution | B12: Conc
B13: Central | C13: ='A01'!FldConc_C -> 3 | D13: mg/mL | E13: Worksheet A01
B14: Lower | C14: ='A01'!FldConc_L -> 1.1 | E14: Worksheet A01
B15: Upper | C15: ='A01'!FldConc_U -> 9.1 | E15: Worksheet A01
A16: First-order dermal absorption rates | B16: ka
B17: Central | C17: ='B01'!$C$11 -> 0.00022 | D17: hour-1 | E17: Prev worksheet B01
B18: Lower | C18: ='B01'!$C$12 -> 4.8e-05 | E18: Prev worksheet B01
B19: Upper | C19: ='B01'!$C$13 -> 0.00098 | E19: Prev worksheet B01
A20: Toxic Equivalency Factor for formulation: (See risk assessment if this has a value other than 1.) | B20: TEF
B21: Central | C21: ='A01'!C$35 -> 1 | D21: Unitless | E21: Worksheet A01
B22: Lower | C22: ='A01'!C$36 -> 1 | E22: Worksheet A01
B23: Upper | C23: ='A01'!C$37 -> 1 | E23: Worksheet A01
A24: Amount Deposited on Skin | B24: Amnt | C24: L × SA × Conc x TEF
B25: Central | C25: =$C$11*$C$7*C13*C21 -> 144.72 | D25: mg | E25: Eq
B26: Lower | C26: =$C$11*$C$7*C14*C22 -> 53.064 | E26: Eq
B27: Upper | C27: =$C$11*$C$7*C15*C23 -> 438.984 | E27: Eq
A28: Skin Loading | B28: Loading
B29: Central | C29: =C25/C$7 -> 0.024 | D29: mg/cm2 | E29: Eq
B30: Lower | C30: =C26/C$7 -> 0.0088 | E30: Eq
B31: Upper | C31: =C27/C$7 -> 0.0728 | E31: Eq
A32: Proportion absorbed over period T | B32: Prop | C32: 1-exp(-ka T)
B33: Central | C33: =1-EXP(-C17 *$C$9) -> 0.0002199758018 | D33: hour-1 | E33: Eq
B34: Lower | C34: =1-EXP(-C18 *$C$9) -> 4.799884802e-05 | E34: Eq
B35: Upper | C35: =1-EXP(-C19 *$C$9) -> 0.0009795199568 | E35: Eq
A36: Absorbed Dose | B36: Dose | C36: Amnt × Prop ÷ BW
B37: Central | C37: =C25*C33/$C$10 -> 0.002894081639 | D37: mg/kg bw | E37: Eq
B38: Lower | C38: =C26*C34/$C$10 -> 0.0002315464428 | E38: Eq
B39: Upper | C39: =C27*C35/$C$10 -> 0.03909032625 | E39: Eq

Sheet D01b
A1: Accidental Dermal Exposure Assessment Using First-Order Absorption, Adult Female, Surface Area, Feet and lower Legs, for 60 minute(s)
A2: Short Title | B2: Adult female, lower legs, 1 hour | E2: DrmFOA
A3: Receptor | B3: Adult Female
A4: Duration | B4: Acute
A5: Surface Contaminated | B5: Surface Area, Feet and lower Legs
A6: Parameter/Assumption | B6: Code / Range | C6: Equation/ Value | D6: Units | E6: Reference/Designation
A7: Surface Area | B7: SA | C7: =A02a!$C$5 -> 3550 | D7: cm2 | E7: U.S. EPA/ORD 2011
A8: Duration of Exposure | C8: 60 | D8: minutes | E8: Scenario parameter
B9: T | C9: =C8/60 -> 1 | D9: hours | E9: Eq
A10: Body weight | B10: BW | C10: =A02a!$C$4 -> 69 | D10: kg | E10: U.S. EPA/OPP 2012
A11: Liquid adhering to skin | B11: L | C11: =A02d!$C$11 -> 0.008 | D11: mL/cm2 | E11: Mason and Johnson 1987
A12: Concentration in solution | B12: Conc
B13: Central | C13: ='A01'!FldConc_C -> 3 | D13: mg/mL | E13: Worksheet A01
B14: Lower | C14: ='A01'!FldConc_L -> 1.1 | E14: Worksheet A01
B15: Upper | C15: ='A01'!FldConc_U -> 9.1 | E15: Worksheet A01
A16: First-order dermal absorption rates | B16: ka
B17: Central | C17: ='B01'!$C$11 -> 0.00022 | D17: hour-1 | E17: Prev worksheet B01
B18: Lower | C18: ='B01'!$C$12 -> 4.8e-05 | E18: Prev worksheet B01
B19: Upper | C19: ='B01'!$C$13 -> 0.00098 | E19: Prev worksheet B01
A20: Toxic Equivalency Factor for formulation: (See risk assessment if this has a value other than 1.) | B20: TEF
B21: Central | C21: ='A01'!C$35 -> 1 | D21: Unitless | E21: Worksheet A01
B22: Lower | C22: ='A01'!C$36 -> 1 | E22: Worksheet A01
B23: Upper | C23: ='A01'!C$37 -> 1 | E23: Worksheet A01
A24: Amount Deposited on Skin | B24: Amnt | C24: L × SA × Conc x TEF
B25: Central | C25: =$C$11*$C$7*C13*C21 -> 85.2 | D25: mg | E25: Eq
B26: Lower | C26: =$C$11*$C$7*C14*C22 -> 31.24 | E26: Eq
B27: Upper | C27: =$C$11*$C$7*C15*C23 -> 258.44 | E27: Eq
A28: Skin Loading | B28: Loading
B29: Central | C29: =C25/C$7 -> 0.024 | D29: mg/cm2 | E29: Eq
B30: Lower | C30: =C26/C$7 -> 0.0088 | E30: Eq
B31: Upper | C31: =C27/C$7 -> 0.0728 | E31: Eq
A32: Proportion absorbed over period T | B32: Prop | C32: 1-exp(-ka T)
B33: Central | C33: =1-EXP(-C17 *$C$9) -> 0.0002199758018 | D33: hour-1 | E33: Eq
B34: Lower | C34: =1-EXP(-C18 *$C$9) -> 4.799884802e-05 | E34: Eq
B35: Upper | C35: =1-EXP(-C19 *$C$9) -> 0.0009795199568 | E35: Eq
A36: Absorbed Dose | B36: Dose | C36: Amnt × Prop ÷ BW
B37: Central | C37: =C25*C33/$C$10 -> 0.0002716222944 | D37: mg/kg bw | E37: Eq
B38: Lower | C38: =C26*C34/$C$10 -> 2.173165235e-05 | E38: Eq
B39: Upper | C39: =C27*C35/$C$10 -> 0.003668799096 | E39: Eq

Sheet D02
A1: Dermal Contact with Contaminated Vegetation, Adult Female, Surface Area, Wearing shorts and T-shirt, for 1 hour(s)
A2: Short Title | B2: Vegetation Contact, shorts and T-shirt | E2: DrmVegC
A3: Receptor | B3: Adult Female
A4: Surface Contaminated | B4: Surface Area, Wearing shorts and T-shirt
A5: Duration | B5: Acute
A6: Parameter/Assumption | B6: Code / Range | C6: Equation/ Value | D6: Units | E6: Reference/Designation
A7: Application Rate (lbs/acre) | B7: ApRt | C7: ='A01'!ApRt_C -> 0.38 | D7: lb/acre | E7: Worksheet A01
A8: Conversion Factor | B8: CnvF | C8: 11.21 | D8: ug/cm2/lb/acre
A9: Metric Application Rate (ug/cm2) | B9: ApR_m | C9: ApR × CnvF
C10: =C7*C$8 -> 4.2598 | D10: ug/cm2 | E10: Eq
A11: Surface Area | B11: SA | C11: =A02a!$C$6 -> 6810 | D11: cm2 | E11: U.S. EPA/ORD 2011
A12: Contact Time | B12: Tc | C12: 1 | D12: hours | E12: Scenario parameter
A13: Exposure Time | B13: Te | C13: 24 | D13: hours | E13: Scenario parameter
A14: Body weight (W) | B14: BW | C14: =A02a!$C$4 -> 69 | D14: kg | E14: U.S. EPA/OPP 2012
A15: Proportion Dislodgeable | B15: PropDr
B16: Central | C16: ='A01'!C$47 -> 0.1 | D16: proportion | E16: Worksheet A01
B17: Lower | C17: ='A01'!C$48 -> 0.1 | E17: Worksheet A01
B18: Upper | C18: ='A01'!C$49 -> 0.1 | E18: Worksheet A01
A19: Dislodgeable Residue | B19: Dr | C19: ApR_m × PropDr
B20: Central | C20: =C$10*C16 -> 0.42598 | D20: ug/cm2 | E20: Eq
B21: Lower | C21: =C$10*C17 -> 0.42598 | E21: Eq
B22: Upper | C22: =C$10*C18 -> 0.42598 | E22: Eq
A23: Transfer Rate | B23: Tr | C23: 10 (1.09×Log10(Dr)+0.05) / 1000 µg/mg)
B24: Central | C24: =(10^( (1.09 * LOG(C20)) + 0.05)) / 1000 -> 0.0004426232656 | D24: mg/(cm2 hr) | E24: Eq
B25: Lower | C25: =(10^( (1.09 * LOG(C21)) + 0.05)) / 1000 -> 0.0004426232656 | E25: Eq
B26: Upper | C26: =(10^( (1.09 * LOG(C22)) + 0.05)) / 1000 -> 0.0004426232656 | E26: Eq
A27: Toxic Equivalency Factor for formulation: (See risk assessment if this has a value other than 1.) | B27: TEF
B28: Central | C28: ='A01'!C$35 -> 1 | D28: Unitless | E28: Worksheet A01
B29: Lower | C29: ='A01'!C$36 -> 1 | E29: Worksheet A01
B30: Upper | C30: ='A01'!C$37 -> 1 | E30: Worksheet A01
A31: Amount Transferred to Skin Surface | B31: Amnt | C31: SA × Tr × Tc x TEF
B32: Central | C32: =C$11 * C$12 * C24 * C28 -> 3.014264439 | D32: mg | E32: Eq
B33: Lower | C33: =C$11 * C$12 * C25 * C29 -> 3.014264439 | E33: Eq
B34: Upper | C34: =C$11 * C$12 * C26 * C30 -> 3.014264439 | E34: Eq
A35: First-order dermal absorption rates | B35: ka
B36: Central | C36: ='B01'!$C$11 -> 0.00022 | D36: hour-1 | E36: Prev worksheet B01
B37: Lower | C37: ='B01'!$C$12 -> 4.8e-05 | E37: Prev worksheet B01
B38: Upper | C38: ='B01'!$C$13 -> 0.00098 | E38: Prev worksheet B01
A39: Skin Loading | B39: Loading
B40: Central | C40: =C36/C$11 -> 3.230543319e-08 | D40: mg/cm2 | E40: Eq
B41: Lower | C41: =C37/C$11 -> 7.04845815e-09 | E41: Eq
B42: Upper | C42: =C38/C$11 -> 1.439060206e-07 | E42: Eq
A43: Proportion absorbed over exposure period, Te | B43: Prop | C43: 1-exp(-ka Te)
B44: Central | C44: =1-EXP(-C36 *$C$13) -> 0.005266085301 | D44: hour-1 | E44: Eq
B45: Lower | C45: =1-EXP(-C37 *$C$13) -> 0.001151336703 | E45: Eq
B46: Upper | C46: =1-EXP(-C38 *$C$13) -> 0.02324556062 | E46: Eq
A47: Absorbed Dose | B47: Dose | C47: Amnt × Prop ÷ BW
B48: Central | C48: =C32*C44/$C$14 -> 0.0002300488935 | D48: mg/kg bw | E48: Eq
B49: Lower | C49: =C33*C45/$C$14 -> 5.02961345e-05 | E49: Eq
B50: Upper | C50: =C34*C46/$C$14 -> 0.001015482126 | E50: Eq
A52: Note 1: The method of Durkin et al. (1995, p. 68, equation 4) is used to calculate the transfer rate (Tr) in units of µg/(cm2 hr) based on the dislodgeable residue (Dr) in units of μg/cm2. This is converted to units of mg/(cm2 hr)) by dividing by 1000 µg/mg.

Sheet D03a
A1: Consumption of Fruit by a Adult Female, Acute exposure.
A2: Short Title | B2: Contaminated Fruit | E2: FdPropBwV6
A3: Receptor | B3: Adult Female
A4: Duration | B4: Acute | E4: Scenario parameter
A5: Material consumed | B5: Fruit
A6: Parameter/Assumption | B6: Code / Range | C6: Equation/ Value | D6: Units | E6: Reference/Designation
A7: Commodity
A8: Concentration on vegetation | B8: Conc
B9: Central | C9: =B05a!Acute_C -> 2.66 | D9: mg/kg food | E9: ='B05a'!Acute_C
B10: Lower | C10: =B05a!Acute_L -> 1.216 | E10: ='B05a'!Acute_L
B11: Upper | C11: =B05a!Acute_U -> 5.7 | E11: ='B05a'!Acute_U
A12: Receptor
A13: Amount consumed per day per unit body weight | B13: Amnt
B14: Central | C14: ='A03'!$E$6 -> 0.00168 | D14: kg food/kg BW per day | E14: U.S. EPA/ORD 1996
B15: Lower | C15: ='A03'!$E$7 -> 0.00168 | E15: U.S. EPA/ORD 1996
B16: Upper | C16: ='A03'!$E$8 -> 0.01244 | E16: U.S. EPA/ORD 1996
A17: Estimate
A18: Dose | B18: Dose | C18: Conc × Amnt
B19: Central | C19: =C14*C9 -> 0.0044688 | D19: mg/kg bw | E19: Eq
B20: Lower | C20: =C15*C10 -> 0.00204288 | E20: Eq
B21: Upper | C21: =C16*C11 -> 0.070908 | E21: Eq

Sheet D03b
A1: Consumption of Vegetation by a Adult Female, Acute exposure.
A2: Short Title | B2: Contaminated Vegetation | E2: FdPropBwV6
A3: Receptor | B3: Adult Female
A4: Duration | B4: Acute | E4: Scenario parameter
A5: Material consumed | B5: Vegetation
A6: Parameter/Assumption | B6: Code / Range | C6: Equation/ Value | D6: Units | E6: Reference/Designation
A7: Commodity
A8: Concentration on vegetation | B8: Conc
B9: Central | C9: =B05b!Acute_C -> 17.1 | D9: mg/kg food | E9: ='B05b'!Acute_C
B10: Lower | C10: =B05b!Acute_L -> 5.7 | E10: ='B05b'!Acute_L
B11: Upper | C11: =B05b!Acute_U -> 51.3 | E11: ='B05b'!Acute_U
A12: Receptor
A13: Amount consumed per day per unit body weight | B13: Amnt
B14: Central | C14: ='A03'!$E$13 -> 0.0036 | D14: kg food/kg BW per day | E14: U.S. EPA/ORD 1996
B15: Lower | C15: ='A03'!$E$14 -> 0.00075 | E15: U.S. EPA/ORD 1996
B16: Upper | C16: ='A03'!$E$15 -> 0.01 | E16: U.S. EPA/ORD 1996
A17: Estimate
A18: Dose | B18: Dose | C18: Conc × Amnt
B19: Central | C19: =C14*C9 -> 0.06156 | D19: mg/kg bw | E19: Eq
B20: Lower | C20: =C15*C10 -> 0.004275 | E20: Eq
B21: Upper | C21: =C16*C11 -> 0.513 | E21: Eq

Sheet D04a
A1: Consumption of Fruit by a Adult Female, Chronic exposure.
A2: Short Title | B2: Contaminated Fruit | E2: FdPropBwV6
A3: Receptor | B3: Adult Female
A4: Duration | B4: Chronic | E4: Scenario parameter
A5: Material consumed | B5: Fruit
A6: Parameter/Assumption | B6: Code / Range | C6: Equation/ Value | D6: Units | E6: Reference/Designation
A7: Commodity
A8: Concentration on vegetation | B8: Conc
B9: Central | C9: =B05a!Chronic_C -> 0.4255637286 | D9: mg/kg food | E9: ='B05a'!Chronic_C
B10: Lower | C10: =B05a!Chronic_L -> 0.1945434188 | E10: ='B05a'!Chronic_L
B11: Upper | C11: =B05a!Chronic_U -> 0.9119222755 | E11: ='B05a'!Chronic_U
A12: Receptor
A13: Amount consumed per day per unit body weight | B13: Amnt
B14: Central | C14: ='A03'!$E$6 -> 0.00168 | D14: kg food/kg BW per day | E14: U.S. EPA/ORD 1996
B15: Lower | C15: ='A03'!$E$7 -> 0.00168 | E15: U.S. EPA/ORD 1996
B16: Upper | C16: ='A03'!$E$8 -> 0.01244 | E16: U.S. EPA/ORD 1996
A17: Estimate
A18: Dose | B18: Dose | C18: Conc × Amnt
B19: Central | C19: =C14*C9 -> 0.000714947064 | D19: mg/kg bw | E19: Eq
B20: Lower | C20: =C15*C10 -> 0.0003268329435 | E20: Eq
B21: Upper | C21: =C16*C11 -> 0.01134431311 | E21: Eq

Sheet D04b
A1: Consumption of Vegetation by a Adult Female, Chronic exposure.
A2: Short Title | B2: Contaminated Vegetation | E2: FdPropBwV6
A3: Receptor | B3: Adult Female
A4: Duration | B4: Chronic | E4: Scenario parameter
A5: Material consumed | B5: Vegetation
A6: Parameter/Assumption | B6: Code / Range | C6: Equation/ Value | D6: Units | E6: Reference/Designation
A7: Commodity
A8: Concentration on vegetation | B8: Conc
B9: Central | C9: =B05b!Chronic_C -> 2.735766827 | D9: mg/kg food | E9: ='B05b'!Chronic_C
B10: Lower | C10: =B05b!Chronic_L -> 0.9119222755 | E10: ='B05b'!Chronic_L
B11: Upper | C11: =B05b!Chronic_U -> 8.20730048 | E11: ='B05b'!Chronic_U
A12: Receptor
A13: Amount consumed per day per unit body weight | B13: Amnt
B14: Central | C14: ='A03'!$E$13 -> 0.0036 | D14: kg food/kg BW per day | E14: U.S. EPA/ORD 1996
B15: Lower | C15: ='A03'!$E$14 -> 0.00075 | E15: U.S. EPA/ORD 1996
B16: Upper | C16: ='A03'!$E$15 -> 0.01 | E16: U.S. EPA/ORD 1996
A17: Estimate
A18: Dose | B18: Dose | C18: Conc × Amnt
B19: Central | C19: =C14*C9 -> 0.009848760576 | D19: mg/kg bw | E19: Eq
B20: Lower | C20: =C15*C10 -> 0.0006839417066 | E20: Eq
B21: Upper | C21: =C16*C11 -> 0.0820730048 | E21: Eq

Sheet D05
A1: Consumption of contaminated water by Child, Accidental Spill
A2: Short Title | B2: Accidental Spill | E2: WatAmntV6
A3: Receptor | B3: Child
A4: Duration | B4: Acute | E4: Scenario parameter
A5: Parameter/Assumption | B5: Code / Range | C5: Equation/ Value | D5: Units | E5: Reference/Designation
A6: Concentration in water | B6: ConcWat
B7: Central | C7: =B04b!Acute_C -> 1.1355 | D7: mg/L | E7: ='B04b'!Acute_C
B8: Lower | C8: =B04b!Acute_L -> 0.08327 | E8: ='B04b'!Acute_L
B9: Upper | C9: =B04b!Acute_U -> 6.8887 | E9: ='B04b'!Acute_U
A10: Receptor
A11: Amount of water consumed in one day | B11: Amnt
B12: Central | C12: ='A03'!$E$44 -> 1 | D12: liters/day | E12: U.S. EPA/ORD 1996
B13: Lower | C13: ='A03'!$E$45 -> 0.61 | E13: U.S. EPA/ORD 1996
B14: Upper | C14: ='A03'!$E$46 -> 1.5 | E14: U.S. EPA/ORD 1996
A15: Body weight | B15: BW | C15: =A02a!$C$28 -> 11 | D15: kg | E15: U.S. EPA/OPP 2012
A16: Dose | B16: Dose | C16: ConcWat × Amnt ÷ BW
B17: Central | C17: =C7*C12/C$15 -> 0.1032272727 | D17: mg/kg | E17: Eq
B18: Lower | C18: =C8*C13/C$15 -> 0.0046177 | D18: mg/kg | E18: Eq
B19: Upper | C19: =C9*C14/C$15 -> 0.9393681818 | D19: mg/kg | E19: Eq

Sheet D06
A1: Consumption of contaminated water by Child, Peak Conentrations
A2: Short Title | B2: Peak Conentrations | E2: WatAmntV6
A3: Receptor | B3: Child
A4: Duration | B4: Acute | E4: Scenario parameter
A5: Parameter/Assumption | B5: Code / Range | C5: Equation/ Value | D5: Units | E5: Reference/Designation
A6: Concentration in water | B6: ConcWat
B7: Central | C7: =B04a!Acute_C -> 0.00399 | D7: mg/L | E7: ='B04a'!Acute_C
B8: Lower | C8: =B04a!Acute_L -> 0.0007486 | E8: ='B04a'!Acute_L
B9: Upper | C9: =B04a!Acute_U -> 0.021128 | E9: ='B04a'!Acute_U
A10: Receptor
A11: Amount of water consumed in one day | B11: Amnt
B12: Central | C12: ='A03'!$E$44 -> 1 | D12: liters/day | E12: U.S. EPA/ORD 1996
B13: Lower | C13: ='A03'!$E$45 -> 0.61 | E13: U.S. EPA/ORD 1996
B14: Upper | C14: ='A03'!$E$46 -> 1.5 | E14: U.S. EPA/ORD 1996
A15: Body weight | B15: BW | C15: =A02a!$C$28 -> 11 | D15: kg | E15: U.S. EPA/OPP 2012
A16: Dose | B16: Dose | C16: ConcWat × Amnt ÷ BW
B17: Central | C17: =C7*C12/C$15 -> 0.0003627272727 | D17: mg/kg | E17: Eq
B18: Lower | C18: =C8*C13/C$15 -> 4.151327273e-05 | D18: mg/kg | E18: Eq
B19: Upper | C19: =C9*C14/C$15 -> 0.002881090909 | D19: mg/kg | E19: Eq

Sheet D07
A1: Consumption of contaminated water by Adult Male, Longer-term Conentrations
A2: Short Title | B2: Longer-term Conentrations | E2: WatAmntV6
A3: Receptor | B3: Adult Male
A4: Duration | B4: Chronic | E4: Scenario parameter
A5: Parameter/Assumption | B5: Code / Range | C5: Equation/ Value | D5: Units | E5: Reference/Designation
A6: Concentration in water | B6: ConcWat
B7: Central | C7: =B04a!Chronic_C -> 0.0024396 | D7: mg/L | E7: ='B04a'!Chronic_C
B8: Lower | C8: =B04a!Chronic_L -> 0.0005168 | E8: ='B04a'!Chronic_L
B9: Upper | C9: =B04a!Chronic_U -> 0.010716 | E9: ='B04a'!Chronic_U
A10: Receptor
A11: Amount of water consumed in one day | B11: Amnt
B12: Central | C12: ='A03'!$E$31 -> 2 | D12: liters/day | E12: U.S. EPA/ORD 1996
B13: Lower | C13: ='A03'!$E$32 -> 1.4 | E13: U.S. EPA/ORD 1996
B14: Upper | C14: ='A03'!$E$33 -> 2.4 | E14: U.S. EPA/ORD 1996
A15: Body weight | B15: BW | C15: =A02a!$C$8 -> 86 | D15: kg | E15: U.S. EPA/OPP 2012
A16: Dose | B16: Dose | C16: ConcWat × Amnt ÷ BW
B17: Central | C17: =C7*C12/C$15 -> 5.673488372e-05 | D17: mg/kg | E17: Eq
B18: Lower | C18: =C8*C13/C$15 -> 8.413023256e-06 | D18: mg/kg | E18: Eq
B19: Upper | C19: =C9*C14/C$15 -> 0.0002990511628 | D19: mg/kg | E19: Eq

Sheet D08a
A1: Consumption of Contaminated Fish (Accidental Spill), Adult Male, acute exposure
A2: Short Title | B2: Fish consumption | E2: FishAmntV6
A3: Receptor | B3: Adult Male
A4: Duration | B4: acute
A5: Parameter/Assumption | B5: Code / Range | C5: Equation/ Value | D5: Units | E5: Reference/Designation
A6: Water
A7: Concentration in water | B7: ConcWat | C7: ApR × WCR
B8: Central | C8: =B04b!Acute_C -> 1.1355 | D8: mg/L | E8: ='B04b'!Acute_C
B9: Lower | C9: =B04b!Acute_L -> 0.08327 | E9: ='B04b'!Acute_L
B10: Upper | C10: =B04b!Acute_U -> 6.8887 | E10: ='B04b'!Acute_U
A11: Fish
A12: Bioconcentration factor | B12: BCF
B13: Central | C13: ='B01'!$C$4 -> 3 | D13: L/kg | E13: Harvey (1981, 1990)
B14: Lower | C14: ='B01'!$C$4 -> 3 | E14: Harvey (1981, 1990)
B15: Upper | C15: ='B01'!$C$4 -> 3 | E15: Harvey (1981, 1990)
A16: Concentration in fish | B16: ConcFish | C16: ConcWat × BCF
B17: Central | C17: =C8*C13 -> 3.4065 | D17: mg/kg | E17: Eq
B18: Lower | C18: =C9*C14 -> 0.24981 | E18: Eq
B19: Upper | C19: =C10*C15 -> 20.6661 | E19: Eq
A20: Receptor
A21: Amount of fish consumed | B21: Amnt
B22: Central | C22: ='A03'!$E$20 -> 0.158 | D22: kg/day | E22: Ruffle et al. 1994
B23: Lower | C23: ='A03'!$E$20 -> 0.158 | E23: Ruffle et al. 1994
B24: Upper | C24: ='A03'!$E$20 -> 0.158 | E24: Ruffle et al. 1994
A25: Toxic Equivalency Factor for formulation: (See risk assessment if this has a value other than 1.) | B25: TEF
B26: Central | C26: ='A01'!C$35 -> 1 | D26: Unitless | E26: Worksheet A01
B27: Lower | C27: ='A01'!C$36 -> 1 | E27: Worksheet A01
B28: Upper | C28: ='A01'!C$37 -> 1 | E28: Worksheet A01
A29: Body weight | B29: BW | C29: =A02a!$C$8 -> 86 | D29: kg | E29: U.S. EPA/OPP 2012
A30: Dose | B30: Dose | C30: ConcFish× Amnt x TEF ÷ BW
B31: Central | C31: =C17*C22*C26/C$29 -> 0.006258453488 | D31: mg/kg | E31: Eq
B32: Lower | C32: =C18*C23*C27/C$29 -> 0.0004589532558 | D32: mg/kg | E32: Eq
B33: Upper | C33: =C19*C24*C28/C$29 -> 0.03796795116 | D33: mg/kg | E33: Eq
E34: FishAmntV6

Sheet D08b
A1: Consumption of Contaminated Fish (Accidental Spill), Subsistence Populations, acute exposure
A2: Short Title | B2: Fish consumption | E2: FishAmntV6
A3: Receptor | B3: Subsistence Populations
A4: Duration | B4: acute
A5: Parameter/Assumption | B5: Code / Range | C5: Equation/ Value | D5: Units | E5: Reference/Designation
A6: Water
A7: Concentration in water | B7: ConcWat | C7: ApR × WCR
B8: Central | C8: =B04b!Acute_C -> 1.1355 | D8: mg/L | E8: ='B04b'!Acute_C
B9: Lower | C9: =B04b!Acute_L -> 0.08327 | E9: ='B04b'!Acute_L
B10: Upper | C10: =B04b!Acute_U -> 6.8887 | E10: ='B04b'!Acute_U
A11: Fish
A12: Bioconcentration factor | B12: BCF
B13: Central | C13: ='B01'!$C$4 -> 3 | D13: L/kg | E13: Harvey (1981, 1990)
B14: Lower | C14: ='B01'!$C$4 -> 3 | E14: Harvey (1981, 1990)
B15: Upper | C15: ='B01'!$C$4 -> 3 | E15: Harvey (1981, 1990)
A16: Concentration in fish | B16: ConcFish | C16: ConcWat × BCF
B17: Central | C17: =C8*C13 -> 3.4065 | D17: mg/kg | E17: Eq
B18: Lower | C18: =C9*C14 -> 0.24981 | E18: Eq
B19: Upper | C19: =C10*C15 -> 20.6661 | E19: Eq
A20: Receptor
A21: Amount of fish consumed | B21: Amnt
B22: Central | C22: ='A03'!$E$35 -> 0.77 | D22: kg/day | E22: U.S. EPA/ORD 1993
B23: Lower | C23: ='A03'!$E$35 -> 0.77 | E23: U.S. EPA/ORD 1993
B24: Upper | C24: ='A03'!$E$35 -> 0.77 | E24: U.S. EPA/ORD 1993
A25: Toxic Equivalency Factor for formulation: (See risk assessment if this has a value other than 1.) | B25: TEF
B26: Central | C26: ='A01'!C$35 -> 1 | D26: Unitless | E26: Worksheet A01
B27: Lower | C27: ='A01'!C$36 -> 1 | E27: Worksheet A01
B28: Upper | C28: ='A01'!C$37 -> 1 | E28: Worksheet A01
A29: Body weight | B29: BW | C29: =A02a!$C$9 -> 80 | D29: kg | E29: U.S. EPA/OPP 2012
A30: Dose | B30: Dose | C30: ConcFish× Amnt x TEF ÷ BW
B31: Central | C31: =C17*C22*C26/C$29 -> 0.0327875625 | D31: mg/kg | E31: Eq
B32: Lower | C32: =C18*C23*C27/C$29 -> 0.00240442125 | D32: mg/kg | E32: Eq
B33: Upper | C33: =C19*C24*C28/C$29 -> 0.1989112125 | D33: mg/kg | E33: Eq
E34: FishAmntV6

Sheet D09a
A1: Consumption of Contaminated Fish (Longer-term), Adult Male, chronic exposure
A2: Short Title | B2: Fish consumption | E2: FishAmntV6
A3: Receptor | B3: Adult Male
A4: Duration | B4: chronic
A5: Parameter/Assumption | B5: Code / Range | C5: Equation/ Value | D5: Units | E5: Reference/Designation
A6: Water
A7: Concentration in water | B7: ConcWat | C7: ApR × WCR
B8: Central | C8: =B04a!Chronic_C -> 0.0024396 | D8: mg/L | E8: ='B04a'!Chronic_C
B9: Lower | C9: =B04a!Chronic_L -> 0.0005168 | E9: ='B04a'!Chronic_L
B10: Upper | C10: =B04a!Chronic_U -> 0.010716 | E10: ='B04a'!Chronic_U
A11: Fish
A12: Bioconcentration factor | B12: BCF
B13: Central | C13: ='B01'!$C$5 -> 7 | D13: L/kg | E13: Harvey (1981, 1990)
B14: Lower | C14: ='B01'!$C$5 -> 7 | E14: Harvey (1981, 1990)
B15: Upper | C15: ='B01'!$C$5 -> 7 | E15: Harvey (1981, 1990)
A16: Concentration in fish | B16: ConcFish | C16: ConcWat × BCF
B17: Central | C17: =C8*C13 -> 0.0170772 | D17: mg/kg | E17: Eq
B18: Lower | C18: =C9*C14 -> 0.0036176 | E18: Eq
B19: Upper | C19: =C10*C15 -> 0.075012 | E19: Eq
A20: Receptor
A21: Amount of fish consumed | B21: Amnt
B22: Central | C22: ='A03'!$E$19 -> 0.01 | D22: kg/day | E22: U.S. EPA/ORD 1996
B23: Lower | C23: ='A03'!$E$19 -> 0.01 | E23: U.S. EPA/ORD 1996
B24: Upper | C24: ='A03'!$E$19 -> 0.01 | E24: U.S. EPA/ORD 1996
A25: Toxic Equivalency Factor for formulation: (See risk assessment if this has a value other than 1.) | B25: TEF
B26: Central | C26: ='A01'!C$35 -> 1 | D26: Unitless | E26: Worksheet A01
B27: Lower | C27: ='A01'!C$36 -> 1 | E27: Worksheet A01
B28: Upper | C28: ='A01'!C$37 -> 1 | E28: Worksheet A01
A29: Body weight | B29: BW | C29: =A02a!$C$8 -> 86 | D29: kg | E29: U.S. EPA/OPP 2012
A30: Dose | B30: Dose | C30: ConcFish× Amnt x TEF ÷ BW
B31: Central | C31: =C17*C22*C26/C$29 -> 1.98572093e-06 | D31: mg/kg | E31: Eq
B32: Lower | C32: =C18*C23*C27/C$29 -> 4.206511628e-07 | D32: mg/kg | E32: Eq
B33: Upper | C33: =C19*C24*C28/C$29 -> 8.722325581e-06 | D33: mg/kg | E33: Eq
E34: FishAmntV6

Sheet D09b
A1: Consumption of Contaminated Fish (Longer-term), Subsistence Populations, chronic exposure
A2: Short Title | B2: Fish consumption | E2: FishAmntV6
A3: Receptor | B3: Subsistence Populations
A4: Duration | B4: chronic
A5: Parameter/Assumption | B5: Code / Range | C5: Equation/ Value | D5: Units | E5: Reference/Designation
A6: Water
A7: Concentration in water | B7: ConcWat | C7: ApR × WCR
B8: Central | C8: =B04a!Chronic_C -> 0.0024396 | D8: mg/L | E8: ='B04a'!Chronic_C
B9: Lower | C9: =B04a!Chronic_L -> 0.0005168 | E9: ='B04a'!Chronic_L
B10: Upper | C10: =B04a!Chronic_U -> 0.010716 | E10: ='B04a'!Chronic_U
A11: Fish
A12: Bioconcentration factor | B12: BCF
B13: Central | C13: ='B01'!$C$5 -> 7 | D13: L/kg | E13: Harvey (1981, 1990)
B14: Lower | C14: ='B01'!$C$5 -> 7 | E14: Harvey (1981, 1990)
B15: Upper | C15: ='B01'!$C$5 -> 7 | E15: Harvey (1981, 1990)
A16: Concentration in fish | B16: ConcFish | C16: ConcWat × BCF
B17: Central | C17: =C8*C13 -> 0.0170772 | D17: mg/kg | E17: Eq
B18: Lower | C18: =C9*C14 -> 0.0036176 | E18: Eq
B19: Upper | C19: =C10*C15 -> 0.075012 | E19: Eq
A20: Receptor
A21: Amount of fish consumed | B21: Amnt
B22: Central | C22: ='A03'!$E$34 -> 0.081 | D22: kg/day | E22: U.S. EPA/ORD 1996
B23: Lower | C23: ='A03'!$E$34 -> 0.081 | E23: U.S. EPA/ORD 1996
B24: Upper | C24: ='A03'!$E$34 -> 0.081 | E24: U.S. EPA/ORD 1996
A25: Toxic Equivalency Factor for formulation: (See risk assessment if this has a value other than 1.) | B25: TEF
B26: Central | C26: ='A01'!C$35 -> 1 | D26: Unitless | E26: Worksheet A01
B27: Lower | C27: ='A01'!C$36 -> 1 | E27: Worksheet A01
B28: Upper | C28: ='A01'!C$37 -> 1 | E28: Worksheet A01
A29: Body weight | B29: BW | C29: =A02a!$C$9 -> 80 | D29: kg | E29: U.S. EPA/OPP 2012
A30: Dose | B30: Dose | C30: ConcFish× Amnt x TEF ÷ BW
B31: Central | C31: =C17*C22*C26/C$29 -> 1.7290665e-05 | D31: mg/kg | E31: Eq
B32: Lower | C32: =C18*C23*C27/C$29 -> 3.66282e-06 | D32: mg/kg | E32: Eq
B33: Upper | C33: =C19*C24*C28/C$29 -> 7.594965e-05 | D33: mg/kg | E33: Eq
E34: FishAmntV6

Sheet D09c
A1: Consumption of Contaminated Fish (Peak Exposure), Adult Male, acute exposure
A2: Short Title | B2: Fish consumption | E2: FishAmntV6
A3: Receptor | B3: Adult Male
A4: Duration | B4: acute
A5: Parameter/Assumption | B5: Code / Range | C5: Equation/ Value | D5: Units | E5: Reference/Designation
A6: Water
A7: Concentration in water | B7: ConcWat | C7: ApR × WCR
B8: Central | C8: =B04a!Acute_C -> 0.00399 | D8: mg/L | E8: ='B04a'!Acute_C
B9: Lower | C9: =B04a!Acute_L -> 0.0007486 | E9: ='B04a'!Acute_L
B10: Upper | C10: =B04a!Acute_U -> 0.021128 | E10: ='B04a'!Acute_U
A11: Fish
A12: Bioconcentration factor | B12: BCF
B13: Central | C13: ='B01'!$C$4 -> 3 | D13: L/kg | E13: Harvey (1981, 1990)
B14: Lower | C14: ='B01'!$C$4 -> 3 | E14: Harvey (1981, 1990)
B15: Upper | C15: ='B01'!$C$4 -> 3 | E15: Harvey (1981, 1990)
A16: Concentration in fish | B16: ConcFish | C16: ConcWat × BCF
B17: Central | C17: =C8*C13 -> 0.01197 | D17: mg/kg | E17: Eq
B18: Lower | C18: =C9*C14 -> 0.0022458 | E18: Eq
B19: Upper | C19: =C10*C15 -> 0.063384 | E19: Eq
A20: Receptor
A21: Amount of fish consumed | B21: Amnt
B22: Central | C22: ='A03'!$E$20 -> 0.158 | D22: kg/day | E22: Ruffle et al. 1994
B23: Lower | C23: ='A03'!$E$20 -> 0.158 | E23: Ruffle et al. 1994
B24: Upper | C24: ='A03'!$E$20 -> 0.158 | E24: Ruffle et al. 1994
A25: Toxic Equivalency Factor for formulation: (See risk assessment if this has a value other than 1.) | B25: TEF
B26: Central | C26: ='A01'!C$35 -> 1 | D26: Unitless | E26: Worksheet A01
B27: Lower | C27: ='A01'!C$36 -> 1 | E27: Worksheet A01
B28: Upper | C28: ='A01'!C$37 -> 1 | E28: Worksheet A01
A29: Body weight | B29: BW | C29: =A02a!$C$8 -> 86 | D29: kg | E29: U.S. EPA/OPP 2012
A30: Dose | B30: Dose | C30: ConcFish× Amnt x TEF ÷ BW
B31: Central | C31: =C17*C22*C26/C$29 -> 2.199139535e-05 | D31: mg/kg | E31: Eq
B32: Lower | C32: =C18*C23*C27/C$29 -> 4.126004651e-06 | D32: mg/kg | E32: Eq
B33: Upper | C33: =C19*C24*C28/C$29 -> 0.0001164496744 | D33: mg/kg | E33: Eq
E34: FishAmntV6

Sheet D09d
A1: Consumption of Contaminated Fish (Peak Exposure), Subsistence Populations, acute exposure
A2: Short Title | B2: Fish consumption | E2: FishAmntV6
A3: Receptor | B3: Subsistence Populations
A4: Duration | B4: acute
A5: Parameter/Assumption | B5: Code / Range | C5: Equation/ Value | D5: Units | E5: Reference/Designation
A6: Water
A7: Concentration in water | B7: ConcWat | C7: ApR × WCR
B8: Central | C8: =B04a!Acute_C -> 0.00399 | D8: mg/L | E8: ='B04a'!Acute_C
B9: Lower | C9: =B04a!Acute_L -> 0.0007486 | E9: ='B04a'!Acute_L
B10: Upper | C10: =B04a!Acute_U -> 0.021128 | E10: ='B04a'!Acute_U
A11: Fish
A12: Bioconcentration factor | B12: BCF
B13: Central | C13: ='B01'!$C$4 -> 3 | D13: L/kg | E13: Harvey (1981, 1990)
B14: Lower | C14: ='B01'!$C$4 -> 3 | E14: Harvey (1981, 1990)
B15: Upper | C15: ='B01'!$C$4 -> 3 | E15: Harvey (1981, 1990)
A16: Concentration in fish | B16: ConcFish | C16: ConcWat × BCF
B17: Central | C17: =C8*C13 -> 0.01197 | D17: mg/kg | E17: Eq
B18: Lower | C18: =C9*C14 -> 0.0022458 | E18: Eq
B19: Upper | C19: =C10*C15 -> 0.063384 | E19: Eq
A20: Receptor
A21: Amount of fish consumed | B21: Amnt
B22: Central | C22: ='A03'!$E$35 -> 0.77 | D22: kg/day | E22: U.S. EPA/ORD 1993
B23: Lower | C23: ='A03'!$E$35 -> 0.77 | E23: U.S. EPA/ORD 1993
B24: Upper | C24: ='A03'!$E$35 -> 0.77 | E24: U.S. EPA/ORD 1993
A25: Toxic Equivalency Factor for formulation: (See risk assessment if this has a value other than 1.) | B25: TEF
B26: Central | C26: ='A01'!C$35 -> 1 | D26: Unitless | E26: Worksheet A01
B27: Lower | C27: ='A01'!C$36 -> 1 | E27: Worksheet A01
B28: Upper | C28: ='A01'!C$37 -> 1 | E28: Worksheet A01
A29: Body weight | B29: BW | C29: =A02a!$C$9 -> 80 | D29: kg | E29: U.S. EPA/OPP 2012
A30: Dose | B30: Dose | C30: ConcFish× Amnt x TEF ÷ BW
B31: Central | C31: =C17*C22*C26/C$29 -> 0.00011521125 | D31: mg/kg | E31: Eq
B32: Lower | C32: =C18*C23*C27/C$29 -> 2.1615825e-05 | D32: mg/kg | E32: Eq
B33: Upper | C33: =C19*C24*C28/C$29 -> 0.000610071 | D33: mg/kg | E33: Eq
E34: FishAmntV6

Sheet D10
A1: Swimming Exposure Assessment Using Zero-Order Absorption, Adult Female, Surface Area, Whole body, for 60 minute(s)
A2: Short Title | B2: Swimming | E2: DrmZrSwm
A3: Receptor | B3: Adult Female
A4: Duration | B4: Acute
A5: Surface Contaminated | B5: Surface Area, Whole body
A6: Parameter/Assumption | B6: Code / Range | C6: Equation/ Value | D6: Units | E6: Reference/Designation
A7: Application Rate | B7: ApRt | C7: ='A01'!ApRt_C -> 0.38 | D7: lb/acre | E7: Worksheet A01
A8: Surface Area | B8: SA | C8: =A02a!$C$7 -> 17700 | D8: cm2 | E8: U.S. EPA/OPP 2012
A9: Duration of Exposure | B9: T_min | C9: ='A01'!C$29 -> 60 | D9: minutes | E9: Worksheet A01
B10: T_hr | C10: =C9/60 -> 1 | D10: hours | E10: Eq
A11: Body weight | B11: BW | C11: =A02a!$C$4 -> 69 | D11: kg | E11: U.S. EPA/OPP 2012
A12: Water contamination rate | B12: WCR
B13: Central | C13: =B04Rt!$C$4 -> 0.0105 | D13: mg/L per lb/acre | E13: GLEAMS Driver
B14: Lower | C14: =B04Rt!$C$5 -> 0.00197 | E14: GLEAMS Driver
B15: Upper | C15: =B04Rt!$C$6 -> 0.0556 | E15: GLEAMS Driver
A16: Concentration in water in mg/mL | B16: ConcWat | C16: ApR × WCR / 1000
B17: Central | C17: =C$7*C13/1000 -> 3.99e-06 | D17: mg/mL | E17: Eq
B18: Lower | C18: =C$7*C14/1000 -> 7.486e-07 | E18: Eq
B19: Upper | C19: =C$7*C15/1000 -> 2.1128e-05 | E19: Eq
A20: Toxic Equivalency Factor for formulation: (See risk assessment if this has a value other than 1.) | B20: TEF
B21: Central | C21: ='A01'!C$35 -> 1 | D21: Unitless | E21: Worksheet A01
B22: Lower | C22: ='A01'!C$36 -> 1 | E22: Worksheet A01
B23: Upper | C23: ='A01'!C$37 -> 1 | E23: Worksheet A01
A24: Dermal permeability | B24: Kp
B25: Central | C25: ='B01'!$C$14 -> 5.1e-06 | D25: cm/hour | E25: Prev worksheet B01
B26: Lower | C26: ='B01'!$C$15 -> 2e-06 | E26: Prev worksheet B01
B27: Upper | C27: ='B01'!$C$16 -> 1.3e-05 | E27: Prev worksheet B01
A28: Absorbed Dose | B28: Dose | C28: Kp × Conc × T_hr × SA × TEF ÷ BW
B29: Central | C29: =C25*C17*C$10*C$8*C21/C$11 -> 5.21996087e-09 | D29: mg/kg
B30: Lower | C30: =C26*C18*C$10*C$8*C22/C$11 -> 3.840643478e-10 | D30: mg/kg
B31: Upper | C31: =C27*C19*C$10*C$8*C23/C$11 -> 7.045728696e-08 | D31: mg/kg

Sheet E01
A1: Summary of Worker Exposure Assessments
A2: Application Rate: | B2: ='A01'!ApRt_C -> 0.38 | C2: lb a.i./acre | F2: E01aV5-1Wrkr
A3: Scenario | B3: Receptor | C3: mg/kg/day or mg/kg/event | F3: Detail Worksheet
C4: Central | D4: Lower | E4: Upper
A5: Accidental/Incidental Exposures
A6: Contaminated Gloves, 1 min. | B6: Worker | C6: ='C02a'!Dose_C -> 3.172674419e-06 | D6: ='C02a'!Dose_L -> 4.562015504e-07 | E6: ='C02a'!Dose_U -> 2.453120155e-05 | F6: C02a
A7: Contaminated Gloves, 1 hour | B7: Worker | C7: ='C02b'!Dose_C -> 0.0001903604651 | D7: ='C02b'!Dose_L -> 2.737209302e-05 | E7: ='C02b'!Dose_U -> 0.001471872093 | F7: C02b
A8: Spill on Hands, 1 hour | B8: Worker | C8: ='C03a'!Dose_C -> 6.568579755e-05 | D8: ='C03a'!Dose_L -> 5.255315732e-06 | E8: ='C03a'!Dose_U -> 0.0008872172855 | F8: C03a
A9: Spill on lower legs, 1 hour | B9: Worker | C9: ='C03b'!Dose_C -> 0.0001645214369 | D9: ='C03b'!Dose_L -> 1.316284688e-05 | E9: ='C03b'!Dose_U -> 0.002222189089 | F9: C03b
A10: General Exposures
B11: Worker | C11: ='C01'!Dose_C -> 0.008512 | D11: ='C01'!Dose_L -> 0.0002508 | E11: ='C01'!Dose_U -> 0.057456 | F11: C01

Sheet E02
A1: Summary of Worker Hazard Quotients (Toxicity)
A2: Application Rate: | B2: ='A01'!ApRt_C -> 0.38 | C2: lb a.i./acre | F2: E01aV5-1Wrkr
A3: Scenario | B3: Receptor | C3: Hazard Quotients | F3: Toxicity Value
C4: Central | D4: Lower | E4: Upper
A5: Accidental/Incidental Exposures
A6: Contaminated Gloves, 1 min. | B6: Worker | C6: ='C02a'!$C$24/$F$6 -> 3.646752205e-06 | D6: ='C02a'!$C$25/$F$6 -> 5.243695981e-07 | E6: ='C02a'!$C$26/$F$6 -> 2.819678339e-05 | F6: ='B02'!$E$4 -> 0.87
A7: Contaminated Gloves, 1 hour | B7: Worker | C7: ='C02b'!$C$24/$F$7 -> 0.0002188051323 | D7: ='C02b'!$C$25/$F$7 -> 3.146217589e-05 | E7: ='C02b'!$C$26/$F$7 -> 0.001691807003 | F7: ='B02'!$E$4 -> 0.87
A8: Spill on Hands, 1 hour | B8: Worker | C8: ='C03a'!$C$37/$F$8 -> 7.550091673e-05 | D8: ='C03a'!$C$38/$F$8 -> 6.040592795e-06 | E8: ='C03a'!$C$39/$F$8 -> 0.001019789983 | F8: ='B02'!$E$4 -> 0.87
A9: Spill on lower legs, 1 hour | B9: Worker | C9: ='C03b'!$C$37/$F$9 -> 0.0001891050998 | D9: ='C03b'!$C$38/$F$9 -> 1.512970906e-05 | E9: ='C03b'!$C$39/$F$9 -> 0.002554240332 | F9: ='B02'!$E$4 -> 0.87
A10: General Exposures
B11: Worker | C11: ='C01'!$C$36/$F$11 -> 0.4256 | D11: ='C01'!$C$37/$F$11 -> 0.01254 | E11: ='C01'!$C$38/$F$11 -> 2.8728 | F11: ='B02'!$E$8 -> 0.02

Sheet E03
A1: Summary of Exposure Assessments for the General Public
A2: Application Rate: | B2: ='A01'!ApRt_C -> 0.38 | C2: lb a.i./acre | F2: E03aV6
A3: Scenario | B3: Receptor | C3: mg/kg/day or mg/kg/event | F3: Detail Worksheet
C4: Central | D4: Lower | E4: Upper | K4: Lower | L4: Central | M4: Upper | N4: Check
A5: Accidental Acute Exposures (dose in mg/kg/event)
A6: Direct Spray of Child, whole body | B6: Child | C6: =D01a!Dose_C -> 0.002894081639 | D6: =D01a!Dose_L -> 0.0002315464428 | E6: =D01a!Dose_U -> 0.03909032625 | F6: D01a | J6: Spray: Child | K6: =IF(D6>0, D6, "") -> 0.0002315464428 | L6: =IF(ISERROR(C6-K6), "", C6-K6) -> 0.002662535197 | M6: =IF(ISERROR(E6-C6), "", E6-C6) -> 0.03619624461 | N6: =E6-SUM(K6:M6) -> 0
A7: Direct Spray of Woman, feet and lower legs | B7: Adult Female | C7: =D01b!Dose_C -> 0.0002716222944 | D7: =D01b!Dose_L -> 2.173165235e-05 | E7: =D01b!Dose_U -> 0.003668799096 | F7: D01b | J7: Spray: Woman | K7: =IF(D7>0, D7, "") -> 2.173165235e-05 | L7: =IF(ISERROR(C7-K7), "", C7-K7) -> 0.000249890642 | M7: =IF(ISERROR(E7-C7), "", E7-C7) -> 0.003397176802 | N7: =E7-SUM(K7:M7) -> 0
A8: Water consumption (spill) | B8: Child | C8: ='D05'!Dose_C -> 0.1032272727 | D8: ='D05'!Dose_L -> 0.0046177 | E8: ='D05'!Dose_U -> 0.9393681818 | F8: D05 | J8: Water: Child | K8: 0.0046177 | L8: 0.09860957273 | M8: 0.8361409091 | N8: 0
A9: Fish consumption (spill) | B9: Adult Male | C9: =D08a!Dose_C -> 0.006258453488 | D9: =D08a!Dose_L -> 0.0004589532558 | E9: =D08a!Dose_U -> 0.03796795116 | F9: D08a | J9: Fish: General | K9: 0.0004589532558 | L9: 0.005799500233 | M9: 0.03170949767 | N9: 0
A10: Fish consumption (spill) | B10: Subsistence Populations | C10: =D08b!Dose_C -> 0.0327875625 | D10: =D08b!Dose_L -> 0.00240442125 | E10: =D08b!Dose_U -> 0.1989112125 | F10: D08b | J10: Fish: Subsist | K10: 0.00240442125 | L10: 0.03038314125 | M10: 0.16612365 | N10: 0
A11: Non-Accidental Acute Exposures (dose in mg/kg/event)
A12: Vegetation Contact, shorts and T-shirt | B12: Adult Female | C12: ='D02'!Dose_C -> 0.0002300488935 | D12: ='D02'!Dose_L -> 5.02961345e-05 | E12: ='D02'!Dose_U -> 0.001015482126 | F12: D02 | J12: Contact: Female | K12: =IF(D12>0, D12, "") -> 5.02961345e-05 | L12: =IF(ISERROR(C12-K12), "", C12-K12) -> 0.000179752759 | M12: =IF(ISERROR(E12-C12), "", E12-C12) -> 0.0007854332329 | N12: =E12-SUM(K12:M12) -> 0
A13: Contaminated Fruit | B13: Adult Female | C13: =D03a!Dose_C -> 0.0044688 | D13: =D03a!Dose_L -> 0.00204288 | E13: =D03a!Dose_U -> 0.070908 | F13: D03a | J13: Fruit: Female | K13: 0.00204288 | L13: 0.00242592 | M13: 0.0664392 | N13: 0
A14: Contaminated Vegetation | B14: Adult Female | C14: =D03b!Dose_C -> 0.06156 | D14: =D03b!Dose_L -> 0.004275 | E14: =D03b!Dose_U -> 0.513 | F14: D03b | J14: Veg: Female | K14: 0.004275 | L14: 0.057285 | M14: 0.45144 | N14: 0
A15: Swimming, one hour | B15: Adult Female | C15: ='D10'!Dose_C -> 5.21996087e-09 | D15: ='D10'!Dose_L -> 3.840643478e-10 | E15: ='D10'!Dose_U -> 7.045728696e-08 | F15: D10 | J15: Swim: Female | K15: 3.840643478e-10 | L15: 4.835896522e-09 | M15: 6.523732609e-08 | N15: 0
A16: Water consumption | B16: Child | C16: ='D06'!Dose_C -> 0.0003627272727 | D16: ='D06'!Dose_L -> 4.151327273e-05 | E16: ='D06'!Dose_U -> 0.002881090909 | F16: D06 | J16: Water: Child | K16: 4.151327273e-05 | L16: 0.000321214 | M16: 0.002518363636 | N16: 0
A17: Fish consumption | B17: Adult Male | C17: =D09c!Dose_C -> 2.199139535e-05 | D17: =D09c!Dose_L -> 4.126004651e-06 | E17: =D09c!Dose_U -> 0.0001164496744 | F17: D09c | J17: Fish: Male | K17: 4.126004651e-06 | L17: 1.78653907e-05 | M17: 9.445827907e-05 | N17: 0
A18: Fish consumption | B18: Subsistence Populations | C18: =D09d!Dose_C -> 0.00011521125 | D18: =D09d!Dose_L -> 2.1615825e-05 | E18: =D09d!Dose_U -> 0.000610071 | F18: D09d | J18: Fish: Subsist | K18: 2.1615825e-05 | L18: 9.3595425e-05 | M18: 0.00049485975 | N18: 0
A19: Chronic/Longer Term Exposures (dose in mg/kg/day)
A20: Contaminated Fruit | B20: Adult Female | C20: =D04a!Dose_C -> 0.000714947064 | D20: =D04a!Dose_L -> 0.0003268329435 | E20: =D04a!Dose_U -> 0.01134431311 | F20: D04a | J20: Fruit: Female | K20: =IF(D20>0, D20, "") -> 0.0003268329435 | L20: =IF(ISERROR(C20-K20), "", C20-K20) -> 0.0003881141205 | M20: =IF(ISERROR(E20-C20), "", E20-C20) -> 0.01062936604 | N20: =E20-SUM(K20:M20) -> 0
A21: Contaminated Vegetation | B21: Adult Female | C21: =D04b!Dose_C -> 0.009848760576 | D21: =D04b!Dose_L -> 0.0006839417066 | E21: =D04b!Dose_U -> 0.0820730048 | F21: D04b | J21: Veg: Female | K21: 0.0006839417066 | L21: 0.009164818869 | M21: 0.07222424422 | N21: 0
A22: Water consumption | B22: Adult Male | C22: ='D07'!Dose_C -> 5.673488372e-05 | D22: ='D07'!Dose_L -> 8.413023256e-06 | E22: ='D07'!Dose_U -> 0.0002990511628 | F22: D07 | J22: Water: Male | K22: 8.413023256e-06 | L22: 4.832186047e-05 | M22: 0.0002423162791 | N22: 0
A23: Fish consumption | B23: Adult Male | C23: =D09a!Dose_C -> 1.98572093e-06 | D23: =D09a!Dose_L -> 4.206511628e-07 | E23: =D09a!Dose_U -> 8.722325581e-06 | F23: D09a | J23: Fish: Male | K23: 4.206511628e-07 | L23: 1.565069767e-06 | M23: 6.736604651e-06 | N23: 0
A24: Fish consumption | B24: Subsistence Populations | C24: =D09b!Dose_C -> 1.7290665e-05 | D24: =D09b!Dose_L -> 3.66282e-06 | E24: =D09b!Dose_U -> 7.594965e-05 | F24: D09b | J24: Fish: Subsist | K24: 3.66282e-06 | L24: 1.3627845e-05 | M24: 5.8658985e-05 | N24: 0

Sheet E04
A1: Summary of Hazard Quotients (Toxicity) for the General Public
A2: Application Rate: | B2: ='A01'!ApRt_C -> 0.38 | C2: lb a.i./acre | F2: E03aV6
A3: Scenario | B3: Receptor | C3: Hazard Quotients | F3: Toxicity Value
C4: Central | D4: Lower | E4: Upper | K4: Lower | L4: Central | M4: Upper | N4: Check
A5: Accidental Acute Exposures (dose in mg/kg/event)
A6: Direct Spray of Child, whole body | B6: Child | C6: =D01a!$C$37/$F$6 -> 0.00332653062 | D6: =D01a!$C$38/$F$6 -> 0.0002661453366 | E6: =D01a!$C$39/$F$6 -> 0.04493140948 | F6: ='B02'!$E$4 -> 0.87 | J6: Spray: Child | K6: =IF(D6>0, D6, "") -> 0.0002661453366 | L6: =IF(ISERROR(C6-K6), "", C6-K6) -> 0.003060385283 | M6: =IF(ISERROR(E6-C6), "", E6-C6) -> 0.04160487886 | N6: =E6-SUM(K6:M6) -> 0
A7: Direct Spray of Woman, feet and lower legs | B7: Adult Female | C7: =D01b!$C$37/$F$7 -> 0.0003122095338 | D7: =D01b!$C$38/$F$7 -> 2.497891075e-05 | E7: =D01b!$C$39/$F$7 -> 0.004217010455 | F7: ='B02'!$E$6 -> 0.87 | J7: Spray: Woman | K7: =IF(D7>0, D7, "") -> 2.497891075e-05 | L7: =IF(ISERROR(C7-K7), "", C7-K7) -> 0.000287230623 | M7: =IF(ISERROR(E7-C7), "", E7-C7) -> 0.003904800922 | N7: =E7-SUM(K7:M7) -> 0
A8: Water consumption (spill) | B8: Child | C8: ='D05'!$C$17/$F$8 -> 0.1186520376 | D8: ='D05'!$C$18/$F$8 -> 0.005307701149 | E8: ='D05'!$C$19/$F$8 -> 1.079733542 | F8: ='B02'!$E$4 -> 0.87 | J8: Water: Child | K8: 0.005307701149 | L8: 0.1133443365 | M8: 0.9610815047 | N8: 0
A9: Fish consumption (spill) | B9: Adult Male | C9: =D08a!$C$31/$F$9 -> 0.007193624699 | D9: =D08a!$C$32/$F$9 -> 0.0005275324779 | E9: =D08a!$C$33/$F$9 -> 0.04364132318 | F9: ='B02'!$E$4 -> 0.87 | J9: Fish: General | K9: 0.0005275324779 | L9: 0.006666092221 | M9: 0.03644769848 | N9: 0
A10: Fish consumption (spill) | B10: Subsistence Populations | C10: =D08b!$C$31/$F$10 -> 0.03768685345 | D10: =D08b!$C$32/$F$10 -> 0.002763702586 | E10: =D08b!$C$33/$F$10 -> 0.2286335776 | F10: ='B02'!$E$4 -> 0.87 | J10: Fish: Subsist | K10: 0.002763702586 | L10: 0.03492315086 | M10: 0.1909467241 | N10: 0
A11: Non-Accidental Acute Exposures (dose in mg/kg/event)
A12: Vegetation Contact, shorts and T-shirt | B12: Adult Female | C12: ='D02'!$C$48/$F$12 -> 0.0002644240156 | D12: ='D02'!$C$49/$F$12 -> 5.781164885e-05 | E12: ='D02'!$C$50/$F$12 -> 0.001167220835 | F12: ='B02'!$E$6 -> 0.87 | J12: Contact: Female | K12: =IF(D12>0, D12, "") -> 5.781164885e-05 | L12: =IF(ISERROR(C12-K12), "", C12-K12) -> 0.0002066123667 | M12: =IF(ISERROR(E12-C12), "", E12-C12) -> 0.0009027968195 | N12: =E12-SUM(K12:M12) -> 0
A13: Contaminated Fruit | B13: Adult Female | C13: =D03a!$C$19/$F$13 -> 0.005136551724 | D13: =D03a!$C$20/$F$13 -> 0.002348137931 | E13: =D03a!$C$21/$F$13 -> 0.08150344828 | F13: ='B02'!$E$6 -> 0.87 | J13: Fruit: Female | K13: 0.002348137931 | L13: 0.002788413793 | M13: 0.07636689655 | N13: 0
A14: Contaminated Vegetation | B14: Adult Female | C14: =D03b!$C$19/$F$14 -> 0.07075862069 | D14: =D03b!$C$20/$F$14 -> 0.004913793103 | E14: =D03b!$C$21/$F$14 -> 0.5896551724 | F14: ='B02'!$E$6 -> 0.87 | J14: Veg: Female | K14: 0.004913793103 | L14: 0.06584482759 | M14: 0.5188965517 | N14: 0
A15: Swimming, one hour | B15: Adult Female | C15: ='D10'!$C$29/$F$15 -> 5.999955022e-09 | D15: ='D10'!$C$30/$F$15 -> 4.414532734e-10 | E15: ='D10'!$C$31/$F$15 -> 8.098538731e-08 | F15: ='B02'!$E$6 -> 0.87 | J15: Swim: Female | K15: 4.414532734e-10 | L15: 5.558501749e-09 | M15: 7.498543228e-08 | N15: 0
A16: Water consumption | B16: Child | C16: ='D06'!$C$17/$F$16 -> 0.0004169278997 | D16: ='D06'!$C$18/$F$16 -> 4.771640543e-05 | E16: ='D06'!$C$19/$F$16 -> 0.003311598746 | F16: ='B02'!$E$4 -> 0.87 | J16: Water: Child | K16: 4.771640543e-05 | L16: 0.0003692114943 | M16: 0.002894670846 | N16: 0
A17: Fish consumption | B17: Adult Male | C17: =D09c!$C$31/$F$17 -> 2.527746592e-05 | D17: =D09c!$C$32/$F$17 -> 4.742534082e-06 | E17: =D09c!$C$33/$F$17 -> 0.0001338502005 | F17: ='B02'!$E$4 -> 0.87 | J17: Fish: Male | K17: 4.742534082e-06 | L17: 2.053493184e-05 | M17: 0.0001085727346 | N17: 0
A18: Fish consumption | B18: Subsistence Populations | C18: =D09d!$C$31/$F$18 -> 0.0001324267241 | D18: =D09d!$C$32/$F$18 -> 2.484577586e-05 | E18: =D09d!$C$33/$F$18 -> 0.0007012310345 | F18: ='B02'!$E$4 -> 0.87 | J18: Fish: Subsist | K18: 2.484577586e-05 | L18: 0.0001075809483 | M18: 0.0005688043103 | N18: 0
A19: Chronic/Longer Term Exposures (dose in mg/kg/day)
A20: Contaminated Fruit | B20: Adult Female | C20: =D04a!$C$19/$F$20 -> 0.0357473532 | D20: =D04a!$C$20/$F$20 -> 0.01634164718 | E20: =D04a!$C$21/$F$20 -> 0.5672156554 | F20: ='B02'!$E$7 -> 0.02 | J20: Fruit: Female | K20: =IF(D20>0, D20, "") -> 0.01634164718 | L20: =IF(ISERROR(C20-K20), "", C20-K20) -> 0.01940570602 | M20: =IF(ISERROR(E20-C20), "", E20-C20) -> 0.5314683022 | N20: =E20-SUM(K20:M20) -> 0
A21: Contaminated Vegetation | B21: Adult Female | C21: =D04b!$C$19/$F$21 -> 0.4924380288 | D21: =D04b!$C$20/$F$21 -> 0.03419708533 | E21: =D04b!$C$21/$F$21 -> 4.10365024 | F21: ='B02'!$E$7 -> 0.02 | J21: Veg: Female | K21: 0.03419708533 | L21: 0.4582409434 | M21: 3.611212211 | N21: 0
A22: Water consumption | B22: Adult Male | C22: ='D07'!$C$17/$F$22 -> 0.002836744186 | D22: ='D07'!$C$18/$F$22 -> 0.0004206511628 | E22: ='D07'!$C$19/$F$22 -> 0.01495255814 | F22: ='B02'!$E$5 -> 0.02 | J22: Water: Male | K22: 0.0004206511628 | L22: 0.002416093023 | M22: 0.01211581395 | N22: 0
A23: Fish consumption | B23: Adult Male | C23: =D09a!$C$31/$F$23 -> 9.928604651e-05 | D23: =D09a!$C$32/$F$23 -> 2.103255814e-05 | E23: =D09a!$C$33/$F$23 -> 0.0004361162791 | F23: ='B02'!$E$5 -> 0.02 | J23: Fish: Male | K23: 2.103255814e-05 | L23: 7.825348837e-05 | M23: 0.0003368302326 | N23: 0
A24: Fish consumption | B24: Subsistence Populations | C24: =D09b!$C$31/$F$24 -> 0.00086453325 | D24: =D09b!$C$32/$F$24 -> 0.000183141 | E24: =D09b!$C$33/$F$24 -> 0.0037974825 | F24: ='B02'!$E$5 -> 0.02 | J24: Fish: Subsist | K24: 0.000183141 | L24: 0.00068139225 | M24: 0.00293294925 | N24: 0

Sheet F01a
A1: Direct spray of Mammal, small assuming first-order absorption kinetics with spray of 0.5 of the body surface
A2: Short Title | B2: Direct spray, first-order absorption | E2: DrmFOA_Allo
A3: Receptor | B3: Mammal, small
A4: Duration | B4: Acute
A5: Parameter/Assumption | B5: Code / Range | C5: Equation/ Value | D5: Units | E5: Reference/Designation
A6: Application rate, lb/acre | B6: ApRt | C6: ='A01'!ApRt_C -> 0.38 | D6: lb/acre | E6: Worksheet A01
A7: Duration of Exposure | B7: T | C7: 24 | D7: hours | E7: Scenario parameter
A8: Body weight | B8: BW | C8: =A02b!$C$71 -> 0.02 | D8: kg | E8: Default
A9: Allometric coefficients for surface area
B10: alpha | C10: =A02b!$C$77 -> 0.11 | E10: U.S. EPA/ORD 1993
B11: beta | C11: =A02b!$C$78 -> 0.65 | E11: U.S. EPA/ORD 1993
A12: Surface Area | C12: =C10 * C8^C11 -> 0.008650917739 | D12: meters
B13: SA | C13: =C12*10000 -> 86.50917739 | D13: cm2 | E13: 10,000 cm2/m2
A14: Conversion Factor for lbs/acre to mg/cm2 | B14: CnvF | C14: 0.01121 | D14: mg/cm2/lb/acre
A15: Application rate, mg/cm2 | B15: ApRmgcm | C15: ApRlb/a × CnvF
C16: =C6*C$14 -> 0.0042598 | D16: lb/acre | E16: Eq
A17: First-order dermal absorption rates | B17: ka
B18: Central | C18: ='B01'!$C$11 -> 0.00022 | D18: hour-1 | E18: Prev worksheet B01
B19: Lower | C19: ='B01'!$C$12 -> 4.8e-05 | E19: Prev worksheet B01
B20: Upper | C20: ='B01'!$C$13 -> 0.00098 | E20: Prev worksheet B01
A21: Proportion of body surface sprayed | B21: PrpSA | C21: 0.5 | D21: unitless | E21: Scenario parameter
A22: Toxic Equivalency Factor for formulation: (See risk assessment if this has a value other than 1.) | B22: TEF
B23: Central | C23: ='A01'!C$35 -> 1 | D23: Unitless | E23: Worksheet A01
B24: Lower | C24: ='A01'!C$36 -> 1 | E24: Worksheet A01
B25: Upper | C25: ='A01'!C$37 -> 1 | E25: Worksheet A01
A26: Amount Deposited on Skin | B26: Amnt | C26: ApRmgcm × SA × PrpSAx TEF
B27: Central | C27: =C$13*C$16*C$21*C23 -> 0.1842558969 | D27: mg | E27: Eq
B28: Lower | C28: =C$13*C$16*C$21*C24 -> 0.1842558969 | E28: Eq
B29: Upper | C29: =C$13*C$16*C$21*C25 -> 0.1842558969 | E29: Eq
A30: Skin Loading | B30: Loading
B31: Central | C31: =C27/C$13 -> 0.0021299 | D31: mg/cm2 | E31: Eq
B32: Lower | C32: =C28/C$13 -> 0.0021299 | E32: Eq
B33: Upper | C33: =C29/C$13 -> 0.0021299 | E33: Eq
A35: Proportion absorbed over period T | B35: Prop | C35: 1-exp(-ka T)
B36: Central | C36: =1-EXP(-C18 *C$7) -> 0.005266085301 | D36: hour-1 | E36: Eq
B37: Lower | C37: =1-EXP(-C19 *C$7) -> 0.001151336703 | E37: Eq
B38: Upper | C38: =1-EXP(-C20 *C$7) -> 0.02324556062 | E38: Eq
A39: Absorbed Dose | B39: Dose | C39: Amnt × Prop ÷ BW
B40: Central | C40: =C27*C36/C$8 -> 0.04851536351 | D40: mg/kg bw | E40: Eq
B41: Lower | C41: =C28*C37/C$8 -> 0.01060702884 | E41: Eq
B42: Upper | C42: =C29*C38/C$8 -> 0.214156581 | E42: Eq

Sheet F01b
A1: Direct spray of Mammal, small assuming 100% absorption
A2: Short Title | B2: Direct spray, 100% absorption | E2: Drm100_Allo
A3: Receptor | B3: Mammal, small
A4: Duration | B4: Acute
A5: Parameter/Assumption | B5: Code / Range | C5: Equation/ Value | D5: Units | E5: Reference/Designation
A6: Application rate, lb/acre | B6: ApRlb/ac | C6: ='A01'!ApRt_C -> 0.38 | D6: lb/acre | E6: Worksheet A01
A7: Conversion Factor for lbs/acre to mg/cm2 | B7: CnvF | C7: 0.01121 | D7: mg/cm2/lb/acre
A8: Application rate, mg/cm2 | B8: ApRmgcm | C8: ApRlb/a × CnvF
C9: =C6*C7 -> 0.0042598 | D9: lb/acre | E9: Eq
A10: Body weight | B10: BW | C10: =A02b!$C$71 -> 0.02 | D10: kg | E10: Default
A11: Allometric coefficients for surface area
B12: alpha | C12: =A02b!$C$77 -> 0.11 | E12: U.S. EPA/ORD 1993
B13: beta | C13: =A02b!$C$78 -> 0.65 | E13: U.S. EPA/ORD 1993
A14: Surface Area | C14: =C12 * C10^C13 -> 0.008650917739 | D14: meters
B15: SA | C15: =C14*10000 -> 86.50917739 | D15: cm2[10000 cm2/m2] | E15: Eq
A16: Proportion of body surface sprayed | B16: PrpSA
B17: Central | C17: 0.5 | D17: unitless | E17: Scenario parameter
B18: Lower | C18: 0.25 | E18: Scenario parameter
B19: Upper | C19: 1 | E19: Scenario parameter
A20: Toxic Equivalency Factor for formulation: (See risk assessment if this has a value other than 1.) | B20: TEF
B21: Central | C21: ='A01'!C$35 -> 1 | D21: Unitless | E21: Worksheet A01
B22: Lower | C22: ='A01'!C$36 -> 1 | E22: Worksheet A01
B23: Upper | C23: ='A01'!C$37 -> 1 | E23: Worksheet A01
A24: Amount Deposited on Skin | B24: Amnt | C24: ApRmgcm× SA × PrpSA× TEF
B25: Central | C25: =C$9*C$15*C17*C21 -> 0.1842558969 | D25: mg | E25: Eq
B26: Lower | C26: =C$9*C$15*C18*C22 -> 0.09212794846 | E26: Eq
B27: Upper | C27: 0.3685117938 | E27: Eq
A28: Absorbed Dose | B28: Dose | C28: Amnt ÷ BW
B29: Central | C29: =C25/C$10 -> 9.212794846 | D29: mg/kg bw | E29: Eq
B30: Lower | C30: =C26/C$10 -> 4.606397423 | E30: Eq
B31: Upper | C31: =C27/C$10 -> 18.42558969 | E31: Eq

Sheet F02a
A1: Consumption of contaminated water by Mammal, small, Accidental Spill
A2: Short Title | B2: Accidental Spill | E2: WatAlloV6
A3: Receptor | B3: Mammal, small
A4: Duration | B4: Acute | E4: Scenario parameter
A5: Parameter/Assumption | B5: Code / Range | C5: Equation/ Value | D5: Units | E5: Reference/Designation
A6: Concentration in water | B6: ConcWat
B7: Central | C7: =B04b!Acute_C -> 1.1355 | D7: mg/L | E7: ='B04b'!Acute_C
B8: Lower | C8: =B04b!Acute_L -> 0.08327 | E8: ='B04b'!Acute_L
B9: Upper | C9: =B04b!Acute_U -> 6.8887 | E9: ='B04b'!Acute_U
A10: Receptor
A11: Body weight | B11: BW | C11: =A02b!$C$71 -> 0.02 | D11: kg | E11: Default
A12: Allometric coefficients forwater consumption per day in liters and BW in kilograms
B13: alpha | C13: =A02b!$C$79 -> 0.099 | E13: U.S. EPA/ORD 1993
B14: beta | C14: =A02b!$C$80 -> 0.9 | E14: U.S. EPA/ORD 1993
A15: Amount of water consumed per day | C15: Amnt = alpha BW beta
B16: Amnt | C16: =C13*(C11^C14) -> 0.002927940121 | D16: liters | E16: Eq
A17: Absorbed Dose | B17: Dose | C17: ConcWat × Amnt ÷ BW
B18: Central | C18: =C7*C$16/C$11 -> 0.1662338003 | D18: mg/kg | E18: Eq
B19: Lower | C19: =C8*C$16/C$11 -> 0.01219047869 | D19: mg/kg | E19: Eq
B20: Upper | C20: =C9*C$16/C$11 -> 1.008485055 | D20: mg/kg | E20: Eq

Sheet F02b
A1: Consumption of contaminated water by Mammal, 400 g, Accidental Spill
A2: Short Title | B2: Accidental Spill | E2: WatAlloV6
A3: Receptor | B3: Mammal, 400 g
A4: Duration | B4: Acute | E4: Scenario parameter
A5: Parameter/Assumption | B5: Code / Range | C5: Equation/ Value | D5: Units | E5: Reference/Designation
A6: Concentration in water | B6: ConcWat
B7: Central | C7: =B04b!Acute_C -> 1.1355 | D7: mg/L | E7: ='B04b'!Acute_C
B8: Lower | C8: =B04b!Acute_L -> 0.08327 | E8: ='B04b'!Acute_L
B9: Upper | C9: =B04b!Acute_U -> 6.8887 | E9: ='B04b'!Acute_U
A10: Receptor
A11: Body weight | B11: BW | C11: =A02b!$C$40 -> 0.4 | D11: kg | E11: Default
A12: Allometric coefficients forwater consumption per day in liters and BW in kilograms
B13: alpha | C13: =A02b!$C$45 -> 0.099 | E13: U.S. EPA/ORD 1993
B14: beta | C14: =A02b!$C$46 -> 0.9 | E14: U.S. EPA/ORD 1993
A15: Amount of water consumed per day | C15: Amnt = alpha BW beta
B16: Amnt | C16: =C13*(C11^C14) -> 0.04339994576 | D16: liters | E16: Eq
A17: Absorbed Dose | B17: Dose | C17: ConcWat × Amnt ÷ BW
B18: Central | C18: =C7*C$16/C$11 -> 0.123201596 | D18: mg/kg | E18: Eq
B19: Lower | C19: =C8*C$16/C$11 -> 0.00903478371 | D19: mg/kg | E19: Eq
B20: Upper | C20: =C9*C$16/C$11 -> 0.747423016 | D20: mg/kg | E20: Eq

Sheet F02c
A1: Consumption of contaminated water by Mammal, carnivorous, Accidental Spill
A2: Short Title | B2: Accidental Spill | E2: WatAlloV6
A3: Receptor | B3: Mammal, carnivorous
A4: Duration | B4: Acute | E4: Scenario parameter
A5: Parameter/Assumption | B5: Code / Range | C5: Equation/ Value | D5: Units | E5: Reference/Designation
A6: Concentration in water | B6: ConcWat
B7: Central | C7: =B04b!Acute_C -> 1.1355 | D7: mg/L | E7: ='B04b'!Acute_C
B8: Lower | C8: =B04b!Acute_L -> 0.08327 | E8: ='B04b'!Acute_L
B9: Upper | C9: =B04b!Acute_U -> 6.8887 | E9: ='B04b'!Acute_U
A10: Receptor
A11: Body weight | B11: BW | C11: =A02b!$C$47 -> 5 | D11: kg | E11: U.S. EPA/ORD 1993
A12: Allometric coefficients forwater consumption per day in liters and BW in kilograms
B13: alpha | C13: =A02b!$C$50 -> 0.099 | E13: U.S. EPA/ORD 1993
B14: beta | C14: =A02b!$C$51 -> 0.9 | E14: U.S. EPA/ORD 1993
A15: Amount of water consumed per day | C15: Amnt = alpha BW beta
B16: Amnt | C16: =C13*(C11^C14) -> 0.4214132616 | D16: liters | E16: Eq
A17: Absorbed Dose | B17: Dose | C17: ConcWat × Amnt ÷ BW
B18: Central | C18: =C7*C$16/C$11 -> 0.09570295172 | D18: mg/kg | E18: Eq
B19: Lower | C19: =C8*C$16/C$11 -> 0.007018216459 | D19: mg/kg | E19: Eq
B20: Upper | C20: =C9*C$16/C$11 -> 0.5805979071 | D20: mg/kg | E20: Eq

Sheet F02d
A1: Consumption of contaminated water by Mammal, large, Accidental Spill
A2: Short Title | B2: Accidental Spill | E2: WatAlloV6
A3: Receptor | B3: Mammal, large
A4: Duration | B4: Acute | E4: Scenario parameter
A5: Parameter/Assumption | B5: Code / Range | C5: Equation/ Value | D5: Units | E5: Reference/Designation
A6: Concentration in water | B6: ConcWat
B7: Central | C7: =B04b!Acute_C -> 1.1355 | D7: mg/L | E7: ='B04b'!Acute_C
B8: Lower | C8: =B04b!Acute_L -> 0.08327 | E8: ='B04b'!Acute_L
B9: Upper | C9: =B04b!Acute_U -> 6.8887 | E9: ='B04b'!Acute_U
A10: Receptor
A11: Body weight | B11: BW | C11: =A02b!$C$61 -> 70 | D11: kg | E11: Default
A12: Allometric coefficients forwater consumption per day in liters and BW in kilograms
B13: alpha | C13: =A02b!$C$64 -> 0.099 | E13: U.S. EPA/ORD 1993
B14: beta | C14: =A02b!$C$65 -> 0.9 | E14: U.S. EPA/ORD 1993
A15: Amount of water consumed per day | C15: Amnt = alpha BW beta
B16: Amnt | C16: =C13*(C11^C14) -> 4.531306412 | D16: liters | E16: Eq
A17: Absorbed Dose | B17: Dose | C17: ConcWat × Amnt ÷ BW
B18: Central | C18: =C7*C$16/C$11 -> 0.07350426329 | D18: mg/kg | E18: Eq
B19: Lower | C19: =C8*C$16/C$11 -> 0.005390312641 | D19: mg/kg | E19: Eq
B20: Upper | C20: =C9*C$16/C$11 -> 0.445925864 | D20: mg/kg | E20: Eq

Sheet F02e
A1: Consumption of contaminated water by Bird, small, Accidental Spill
A2: Short Title | B2: Accidental Spill | E2: WatAlloV6
A3: Receptor | B3: Bird, small
A4: Duration | B4: Acute | E4: Scenario parameter
A5: Parameter/Assumption | B5: Code / Range | C5: Equation/ Value | D5: Units | E5: Reference/Designation
A6: Concentration in water | B6: ConcWat
B7: Central | C7: =B04b!Acute_C -> 1.1355 | D7: mg/L | E7: ='B04b'!Acute_C
B8: Lower | C8: =B04b!Acute_L -> 0.08327 | E8: ='B04b'!Acute_L
B9: Upper | C9: =B04b!Acute_U -> 6.8887 | E9: ='B04b'!Acute_U
A10: Receptor
A11: Body weight | B11: BW | C11: =A02b!$C$31 -> 0.01 | D11: kg | E11: Default
A12: Allometric coefficients forwater consumption per day in liters and BW in kilograms
B13: alpha | C13: =A02b!$C$34 -> 0.059 | E13: U.S. EPA/ORD 1993
B14: beta | C14: =A02b!$C$35 -> 0.67 | E14: U.S. EPA/ORD 1993
A15: Amount of water consumed per day | C15: Amnt = alpha BW beta
B16: Amnt | C16: =C13*(C11^C14) -> 0.002696820319 | D16: liters | E16: Eq
A17: Absorbed Dose | B17: Dose | C17: ConcWat × Amnt ÷ BW
B18: Central | C18: =C7*C$16/C$11 -> 0.3062239472 | D18: mg/kg | E18: Eq
B19: Lower | C19: =C8*C$16/C$11 -> 0.02245642279 | D19: mg/kg | E19: Eq
B20: Upper | C20: =C9*C$16/C$11 -> 1.857758613 | D20: mg/kg | E20: Eq

Sheet F02f
A1: Consumption of contaminated water by Bird, large, Accidental Spill
A2: Short Title | B2: Accidental Spill | E2: WatAlloV6
A3: Receptor | B3: Bird, large
A4: Duration | B4: Acute | E4: Scenario parameter
A5: Parameter/Assumption | B5: Code / Range | C5: Equation/ Value | D5: Units | E5: Reference/Designation
A6: Concentration in water | B6: ConcWat
B7: Central | C7: =B04b!Acute_C -> 1.1355 | D7: mg/L | E7: ='B04b'!Acute_C
B8: Lower | C8: =B04b!Acute_L -> 0.08327 | E8: ='B04b'!Acute_L
B9: Upper | C9: =B04b!Acute_U -> 6.8887 | E9: ='B04b'!Acute_U
A10: Receptor
A11: Body weight | B11: BW | C11: =A02b!$C$15 -> 4 | D11: kg | E11: Default
A12: Allometric coefficients forwater consumption per day in liters and BW in kilograms
B13: alpha | C13: =A02b!$C$18 -> 0.059 | E13: U.S. EPA/ORD 1993
B14: beta | C14: =A02b!$C$19 -> 0.67 | E14: U.S. EPA/ORD 1993
A15: Amount of water consumed per day | C15: Amnt = alpha BW beta
B16: Amnt | C16: =C13*(C11^C14) -> 0.1493592781 | D16: liters | E16: Eq
A17: Absorbed Dose | B17: Dose | C17: ConcWat × Amnt ÷ BW
B18: Central | C18: =C7*C$16/C$11 -> 0.04239936507 | D18: mg/kg | E18: Eq
B19: Lower | C19: =C8*C$16/C$11 -> 0.003109286772 | D19: mg/kg | E19: Eq
B20: Upper | C20: =C9*C$16/C$11 -> 0.2572228147 | D20: mg/kg | E20: Eq

Sheet F03a
A1: Acute scenario for the consumption of Contaminated Fish (Accidental Spill) by Mammal, large carnivorous
A2: Short Title | B2: Fish consumption, accidental spill | E2: FishKcalV6
A3: Predator | B3: Mammal, large carnivorous
A4: Food Item (Prey) | B4: Fish
A5: Duration | B5: Acute | E5: Scenario parameter
A6: Parameter/Assumption | B6: Code / Range | C6: Equation/ Value | D6: Units | E6: Reference/Designation
A7: Water
A8: Concentration in water | B8: ConcWat
B9: Central | C9: =B04b!Acute_C -> 1.1355 | D9: mg/L | E9: ='B04b'!Acute_C
B10: Lower | C10: =B04b!Acute_L -> 0.08327 | E10: ='B04b'!Acute_L
B11: Upper | C11: =B04b!Acute_U -> 6.8887 | E11: ='B04b'!Acute_U
A12: Fish
A13: Bioconcentration factor | B13: BCF
B14: Central | C14: ='B01'!$C$6 -> 3.5 | D14: L/kg | E14: Harvey (1981, 1990)
B15: Lower | C15: ='B01'!$C$6 -> 3.5 | E15: Harvey (1981, 1990)
B16: Upper | C16: ='B01'!$C$6 -> 3.5 | E16: Harvey (1981, 1990)
A17: Concentration in fish | B17: ConcFish | C17: ConcWat × BCF
B18: Central | C18: =C9*C14 -> 3.97425 | D18: mg/kg | E18: Eq
B19: Lower | C19: =C10*C15 -> 0.291445 | E19: Eq
B20: Upper | C20: =C11*C16 -> 24.11045 | E20: Eq
A21: Receptor
A22: Body weight | B22: BW | C22: =A02b!$C$52 -> 70 | D22: kg | E22: Reid 2006
A23: Allometric coefficients for caloric requirement per day in kilocalories and BW in grams
B24: alpha | C24: =A02b!$C$53 -> 0.6167 | E24: U.S. EPA/ORD 1993
B25: beta | C25: =A02b!$C$54 -> 0.862 | E25: U.S. EPA/ORD 1993
A26: Caloric requirement per day | B26: KR | C26: =C24*(C22*1000)^C25 -> 9258.666883 | D26: kcal/day | E26: Eq
A27: Caloric content of commodity (dry weight) | B27: KCD | C27: ='A03'!$E$59 -> 4.47 | D27: kcal/gdw [Note 1] | E27: U.S. EPA/ORD 1993
A28: Food consumed per day (dry weight) | B28: AmntDry | C28: = KR ÷ KCD
C29: =C26/C27 -> 2071.29013 | D29: gdry/day | E29: Eq
A30: Water content of vegetation as a proportion | B30: PropWater | C30: ='A03'!$E$60 -> 0.7 | D30: gwater/gfood | E30: Ali et al. 2005
A31: Dry weight content of vegetation as a proportion | B31: PropDry | C31: = 1-PropWater
C32: =1-C30 -> 0.3 | D32: gdry/gfood | E32: Eq
A33: Amount of fish consumed per day, wet weight | B33: AmntFish | C33: = (AmntDry ÷ PropDry) ÷ (1000g/kg)
B34: Central | C34: =(C29/C32)/1000 -> 6.904300435 | D34: kgfood/day | E34: Eq
B35: Lower | C35: =C34*0.3 -> 2.07129013 | D35: Note 1 | E35: Eq
B36: Upper | C36: =C34*1.7 -> 11.73731074 | D36: Note 1 | E36: Eq
A37: Proportion of diet that is contaminated | B37: Prop
B38: Central | C38: 0.3 | D38: Unitless | E38: Scenario parameter
B39: Lower | C39: 0.1 | E39: Scenario parameter
B40: Upper | C40: 1 | E40: Scenario parameter
A41: Dose
A42: Toxic Equivalency Factor for formulation: (See risk assessment if this has a value other than 1.) | B42: TEF
B43: Central | C43: ='A01'!C$35 -> 1 | D43: Unitless | E43: Worksheet A01
B44: Lower | C44: ='A01'!C$36 -> 1 | D44: Note 2 | E44: Worksheet A01
B45: Upper | C45: ='A01'!C$37 -> 1 | D45: Note 2 | E45: Worksheet A01
A46: Dose | B46: Dose | C46: = ConcFish × AmntFish × Prop ÷ BW
B47: Central | C47: =C18*C34*C38/C$22 -> 0.1175974972 | D47: mg/kg | E47: Eq
B48: Lower | C48: =C19*C35*C39/C$22 -> 0.0008623816458 | D48: mg/kg | E48: Eq
B49: Upper | C49: 4.042740624 | D49: mg/kg | E49: Eq
E50: FishKcalV6

Sheet F03b
A1: Acute scenario for the consumption of Contaminated Fish (Accidental Spill) by Mammal, carnivorous
A2: Short Title | B2: Fish consumption, accidental spill | E2: FishKcalV6
A3: Predator | B3: Mammal, carnivorous
A4: Food Item (Prey) | B4: Fish
A5: Duration | B5: Acute | E5: Scenario parameter
A6: Parameter/Assumption | B6: Code / Range | C6: Equation/ Value | D6: Units | E6: Reference/Designation
A7: Water
A8: Concentration in water | B8: ConcWat
B9: Central | C9: =B04b!Acute_C -> 1.1355 | D9: mg/L | E9: ='B04b'!Acute_C
B10: Lower | C10: =B04b!Acute_L -> 0.08327 | E10: ='B04b'!Acute_L
B11: Upper | C11: =B04b!Acute_U -> 6.8887 | E11: ='B04b'!Acute_U
A12: Fish
A13: Bioconcentration factor | B13: BCF
B14: Central | C14: ='B01'!$C$6 -> 3.5 | D14: L/kg | E14: Harvey (1981, 1990)
B15: Lower | C15: ='B01'!$C$6 -> 3.5 | E15: Harvey (1981, 1990)
B16: Upper | C16: ='B01'!$C$6 -> 3.5 | E16: Harvey (1981, 1990)
A17: Concentration in fish | B17: ConcFish | C17: ConcWat × BCF
B18: Central | C18: =C9*C14 -> 3.97425 | D18: mg/kg | E18: Eq
B19: Lower | C19: =C10*C15 -> 0.291445 | E19: Eq
B20: Upper | C20: =C11*C16 -> 24.11045 | E20: Eq
A21: Receptor
A22: Body weight | B22: BW | C22: =A02b!$C$47 -> 5 | D22: kg | E22: U.S. EPA/ORD 1993
A23: Allometric coefficients for caloric requirement per day in kilocalories and BW in grams
B24: alpha | C24: =A02b!$C$48 -> 0.6167 | E24: U.S. EPA/ORD 1993
B25: beta | C25: =A02b!$C$49 -> 0.862 | E25: U.S. EPA/ORD 1993
A26: Caloric requirement per day | B26: KR | C26: =C24*(C22*1000)^C25 -> 951.8885266 | D26: kcal/day | E26: Eq
A27: Caloric content of commodity (dry weight) | B27: KCD | C27: ='A03'!$E$59 -> 4.47 | D27: kcal/gdw [Note 1] | E27: U.S. EPA/ORD 1993
A28: Food consumed per day (dry weight) | B28: AmntDry | C28: = KR ÷ KCD
C29: =C26/C27 -> 212.9504534 | D29: gdry/day | E29: Eq
A30: Water content of vegetation as a proportion | B30: PropWater | C30: ='A03'!$E$60 -> 0.7 | D30: gwater/gfood | E30: Ali et al. 2005
A31: Dry weight content of vegetation as a proportion | B31: PropDry | C31: = 1-PropWater
C32: =1-C30 -> 0.3 | D32: gdry/gfood | E32: Eq
A33: Amount of fish consumed per day, wet weight | B33: AmntFish | C33: = (AmntDry ÷ PropDry) ÷ (1000g/kg)
B34: Central | C34: =(C29/C32)/1000 -> 0.7098348446 | D34: kgfood/day | E34: Eq
B35: Lower | C35: =C34*0.3 -> 0.2129504534 | D35: Note 1 | E35: Eq
B36: Upper | C36: =C34*1.7 -> 1.206719236 | D36: Note 1 | E36: Eq
A37: Proportion of diet that is contaminated | B37: Prop
B38: Central | C38: 0.3 | D38: Unitless | E38: Scenario parameter
B39: Lower | C39: 0.1 | E39: Scenario parameter
B40: Upper | C40: 1 | E40: Scenario parameter
A41: Dose
A42: Toxic Equivalency Factor for formulation: (See risk assessment if this has a value other than 1.) | B42: TEF
B43: Central | C43: ='A01'!C$35 -> 1 | D43: Unitless | E43: Worksheet A01
B44: Lower | C44: ='A01'!C$36 -> 1 | D44: Note 2 | E44: Worksheet A01
B45: Upper | C45: ='A01'!C$37 -> 1 | D45: Note 2 | E45: Worksheet A01
A46: Dose | B46: Dose | C46: = ConcFish × AmntFish × Prop ÷ BW
B47: Central | C47: =C18*C34*C38/C$22 -> 0.1692636679 | D47: mg/kg | E47: Eq
B48: Lower | C48: =C19*C35*C39/C$22 -> 0.001241266898 | D48: mg/kg | E48: Eq
B49: Upper | C49: 5.81890876 | D49: mg/kg | E49: Eq
E50: FishKcalV6

Sheet F03c
A1: Acute scenario for the consumption of Contaminated Fish (Accidental Spill) by Bird, piscivorous
A2: Short Title | B2: Fish consumption, accidental spill | E2: FishKcalV6
A3: Predator | B3: Bird, piscivorous
A4: Food Item (Prey) | B4: Fish
A5: Duration | B5: Acute | E5: Scenario parameter
A6: Parameter/Assumption | B6: Code / Range | C6: Equation/ Value | D6: Units | E6: Reference/Designation
A7: Water
A8: Concentration in water | B8: ConcWat
B9: Central | C9: =B04b!Acute_C -> 1.1355 | D9: mg/L | E9: ='B04b'!Acute_C
B10: Lower | C10: =B04b!Acute_L -> 0.08327 | E10: ='B04b'!Acute_L
B11: Upper | C11: =B04b!Acute_U -> 6.8887 | E11: ='B04b'!Acute_U
A12: Fish
A13: Bioconcentration factor | B13: BCF
B14: Central | C14: ='B01'!$C$6 -> 3.5 | D14: L/kg | E14: Harvey (1981, 1990)
B15: Lower | C15: ='B01'!$C$6 -> 3.5 | E15: Harvey (1981, 1990)
B16: Upper | C16: ='B01'!$C$6 -> 3.5 | E16: Harvey (1981, 1990)
A17: Concentration in fish | B17: ConcFish | C17: ConcWat × BCF
B18: Central | C18: =C9*C14 -> 3.97425 | D18: mg/kg | E18: Eq
B19: Lower | C19: =C10*C15 -> 0.291445 | E19: Eq
B20: Upper | C20: =C11*C16 -> 24.11045 | E20: Eq
A21: Receptor
A22: Body weight | B22: BW | C22: =A02b!$C$24 -> 2.4 | D22: kg | E22: Sibley 2000
A23: Allometric coefficients for caloric requirement per day in kilocalories and BW in grams
B24: alpha | C24: =A02b!$C$27 -> 1.916 | E24: U.S. EPA/ORD 1993
B25: beta | C25: =A02b!$C$28 -> 0.704 | E25: U.S. EPA/ORD 1993
A26: Caloric requirement per day | B26: KR | C26: =C24*(C22*1000)^C25 -> 459.2659192 | D26: kcal/day | E26: Eq
A27: Caloric content of commodity (dry weight) | B27: KCD | C27: ='A03'!$E$36 -> 3.87 | D27: kcal/gdw [Note 1] | E27: U.S. EPA/ORD 1993
A28: Food consumed per day (dry weight) | B28: AmntDry | C28: = KR ÷ KCD
C29: =C26/C27 -> 118.6733641 | D29: gdry/day | E29: Eq
A30: Water content of vegetation as a proportion | B30: PropWater | C30: ='A03'!$E$37 -> 0.7 | D30: gwater/gfood | E30: Ali et al. 2005
A31: Dry weight content of vegetation as a proportion | B31: PropDry | C31: = 1-PropWater
C32: =1-C30 -> 0.3 | D32: gdry/gfood | E32: Eq
A33: Amount of fish consumed per day, wet weight | B33: AmntFish | C33: = (AmntDry ÷ PropDry) ÷ (1000g/kg)
B34: Central | C34: =(C29/C32)/1000 -> 0.3955778805 | D34: kgfood/day | E34: Eq
B35: Lower | C35: =C34*0.3 -> 0.1186733641 | D35: Note 1 | E35: Eq
B36: Upper | C36: =C34*1.7 -> 0.6724823968 | D36: Note 1 | E36: Eq
A37: Proportion of diet that is contaminated | B37: Prop
B38: Central | C38: 0.3 | D38: Unitless | E38: Scenario parameter
B39: Lower | C39: 0.1 | E39: Scenario parameter
B40: Upper | C40: 1 | E40: Scenario parameter
A41: Dose
A42: Toxic Equivalency Factor for formulation: (See risk assessment if this has a value other than 1.) | B42: TEF
B43: Central | C43: ='A01'!C$35 -> 1 | D43: Unitless | E43: Worksheet A01
B44: Lower | C44: ='A01'!C$36 -> 1 | D44: Note 2 | E44: Worksheet A01
B45: Upper | C45: ='A01'!C$37 -> 1 | D45: Note 2 | E45: Worksheet A01
A46: Dose | B46: Dose | C46: = ConcFish × AmntFish × Prop ÷ BW
B47: Central | C47: =C18*C34*C38/C$22 -> 0.1965156739 | D47: mg/kg | E47: Eq
B48: Lower | C48: =C19*C35*C39/C$22 -> 0.001441114942 | D48: mg/kg | E48: Eq
B49: Upper | C49: 6.755772168 | D49: mg/kg | E49: Eq
E50: FishKcalV6

Sheet F04a
A1: Consumption of Fruit by a Mammal, small after Acute exposure.
A2: Short Title | B2: Fruit | E2: FdKcalV6
A3: Receptor | B3: Mammal, small
A4: Duration | B4: Acute | E4: Scenario parameter
A5: Material consumed | B5: Fruit
A6: Parameter/Assumption | B6: Code / Range | C6: Equation/ Value | D6: Units | E6: Reference/Designation
A7: Commodity
A8: Concentration on consumed commodity | B8: Conc
B9: Central | C9: =B05a!Acute_C -> 2.66 | D9: mg/kg food wet weight | E9: ='B05a'!Acute_C
B10: Lower | C10: =B05a!Acute_L -> 1.216 | E10: ='B05a'!Acute_L
B11: Upper | C11: =B05a!Acute_U -> 5.7 | E11: ='B05a'!Acute_U
A12: Receptor
A13: Body weight | B13: BW | C13: =A02b!$C$71 -> 0.02 | D13: kg | E13: Default
A14: Allometric coefficients for caloric requirement per day in kilocalories and BW in grams
B15: alpha | C15: =A02b!$C$75 -> 2.514 | E15: U.S. EPA/ORD 1993
B16: beta | C16: =A02b!$C$76 -> 0.507 | E16: U.S. EPA/ORD 1993
A17: Caloric requirement per day | B17: KR | C17: = alpha x (BW x 1kg/1000g)beta
C18: =C15*((C13*1000)^C16) -> 11.48120526 | D18: kcal/day | E18: Eq
A19: Caloric content of commodity (dry weight) | B19: KCD | C19: ='A03'!$E$61 -> 1.1 | D19: kcal/gdw [Note 1] | E19: U.S. EPA/ORD 1993
A20: Food consumed per day (dry weight) | B20: AmntDry | C20: = KR ÷ KCD
C21: =C18/C19 -> 10.43745932 | D21: gdry/day | E21: Eq
A22: Water content of food item as a proportion | B22: PropWater | C22: ='A03'!$E$62 -> 0.77 | D22: gwater/gfood | E22: U.S. EPA/ORD 1993
A23: Dry weight content of food item as a proportion | B23: PropDry | C23: = 1-PropWater
C24: =1-C22 -> 0.23 | D24: gdry/gfood | E24: Eq
A25: Variability in caloric requirements not accounted for by allometric equation | B25: Error
B26: Central | C26: 1 | D26: Note 2
B27: Lower | C27: 0.3
B28: Upper | C28: 1.7
A29: Amount of food consumed per day, wet weight | B29: AmntFood | C29: = Error x (AmntDry ÷ PropDry) ÷ (1000g/kg)
B30: Central | C30: =C26*(C$21/C$24)/1000 -> 0.04538025793 | D30: kgfood/day | E30: Eq
B31: Lower | C31: =C27*(C$21/C$24)/1000 -> 0.01361407738 | E31: Eq
B32: Upper | C32: 0.07714643848 | E32: Eq
A33: Estimate
A34: Dose | B34: Dose | C34: = AmntFood × Conc / BW
B35: Central | C35: =$C30 * C9/C$13 -> 6.035574305 | D35: mg/kg bw/day | E35: Eq
B36: Lower | C36: =$C31 * C10/C$13 -> 0.8277359046 | E36: Eq
B37: Upper | C37: =$C32 * C11/C$13 -> 21.98673497 | E37: Eq

Sheet F04b
A1: Consumption of Fruit by a Mammal, 400 g after Acute exposure.
A2: Short Title | B2: Fruit | E2: FdKcalV6
A3: Receptor | B3: Mammal, 400 g
A4: Duration | B4: Acute | E4: Scenario parameter
A5: Material consumed | B5: Fruit
A6: Parameter/Assumption | B6: Code / Range | C6: Equation/ Value | D6: Units | E6: Reference/Designation
A7: Commodity
A8: Concentration on consumed commodity | B8: Conc
B9: Central | C9: =B05a!Acute_C -> 2.66 | D9: mg/kg food wet weight | E9: ='B05a'!Acute_C
B10: Lower | C10: =B05a!Acute_L -> 1.216 | E10: ='B05a'!Acute_L
B11: Upper | C11: =B05a!Acute_U -> 5.7 | E11: ='B05a'!Acute_U
A12: Receptor
A13: Body weight | B13: BW | C13: =A02b!$C$40 -> 0.4 | D13: kg | E13: Default
A14: Allometric coefficients for caloric requirement per day in kilocalories and BW in grams
B15: alpha | C15: =A02b!$C$43 -> 2.514 | E15: U.S. EPA/ORD 1993
B16: beta | C16: =A02b!$C$44 -> 0.507 | E16: U.S. EPA/ORD 1993
A17: Caloric requirement per day | B17: KR | C17: = alpha x (BW x 1kg/1000g)beta
C18: =C15*((C13*1000)^C16) -> 52.43360149 | D18: kcal/day | E18: Eq
A19: Caloric content of commodity (dry weight) | B19: KCD | C19: ='A03'!$E$61 -> 1.1 | D19: kcal/gdw [Note 1] | E19: U.S. EPA/ORD 1993
A20: Food consumed per day (dry weight) | B20: AmntDry | C20: = KR ÷ KCD
C21: =C18/C19 -> 47.66691044 | D21: gdry/day | E21: Eq
A22: Water content of food item as a proportion | B22: PropWater | C22: ='A03'!$E$62 -> 0.77 | D22: gwater/gfood | E22: U.S. EPA/ORD 1993
A23: Dry weight content of food item as a proportion | B23: PropDry | C23: = 1-PropWater
C24: =1-C22 -> 0.23 | D24: gdry/gfood | E24: Eq
A25: Variability in caloric requirements not accounted for by allometric equation | B25: Error
B26: Central | C26: 1 | D26: Note 2
B27: Lower | C27: 0.3
B28: Upper | C28: 1.7
A29: Amount of food consumed per day, wet weight | B29: AmntFood | C29: = Error x (AmntDry ÷ PropDry) ÷ (1000g/kg)
B30: Central | C30: =C26*(C$21/C$24)/1000 -> 0.2072474367 | D30: kgfood/day | E30: Eq
B31: Lower | C31: =C27*(C$21/C$24)/1000 -> 0.06217423101 | E31: Eq
B32: Upper | C32: 0.3523206424 | E32: Eq
A33: Estimate
A34: Dose | B34: Dose | C34: = AmntFood × Conc / BW
B35: Central | C35: =$C30 * C9/C$13 -> 1.378195454 | D35: mg/kg bw/day | E35: Eq
B36: Lower | C36: =$C31 * C10/C$13 -> 0.1890096623 | E36: Eq
B37: Upper | C37: =$C32 * C11/C$13 -> 5.020569154 | E37: Eq

Sheet F04c
A1: Consumption of Fruit by a Mammal, large after Acute exposure.
A2: Short Title | B2: Fruit | E2: FdKcalV6
A3: Receptor | B3: Mammal, large
A4: Duration | B4: Acute | E4: Scenario parameter
A5: Material consumed | B5: Fruit
A6: Parameter/Assumption | B6: Code / Range | C6: Equation/ Value | D6: Units | E6: Reference/Designation
A7: Commodity
A8: Concentration on consumed commodity | B8: Conc
B9: Central | C9: =B05a!Acute_C -> 2.66 | D9: mg/kg food wet weight | E9: ='B05a'!Acute_C
B10: Lower | C10: =B05a!Acute_L -> 1.216 | E10: ='B05a'!Acute_L
B11: Upper | C11: =B05a!Acute_U -> 5.7 | E11: ='B05a'!Acute_U
A12: Receptor
A13: Body weight | B13: BW | C13: =A02b!$C$61 -> 70 | D13: kg | E13: Default
A14: Allometric coefficients for caloric requirement per day in kilocalories and BW in grams
B15: alpha | C15: =A02b!$C$62 -> 1.518 | E15: U.S. EPA/ORD 1993
B16: beta | C16: =A02b!$C$63 -> 0.73 | E16: U.S. EPA/ORD 1993
A17: Caloric requirement per day | B17: KR | C17: = alpha x (BW x 1kg/1000g)beta
C18: =C15*((C13*1000)^C16) -> 5226.28803 | D18: kcal/day | E18: Eq
A19: Caloric content of commodity (dry weight) | B19: KCD | C19: ='A03'!$E$61 -> 1.1 | D19: kcal/gdw [Note 1] | E19: U.S. EPA/ORD 1993
A20: Food consumed per day (dry weight) | B20: AmntDry | C20: = KR ÷ KCD
C21: =C18/C19 -> 4751.170936 | D21: gdry/day | E21: Eq
A22: Water content of food item as a proportion | B22: PropWater | C22: ='A03'!$E$62 -> 0.77 | D22: gwater/gfood | E22: U.S. EPA/ORD 1993
A23: Dry weight content of food item as a proportion | B23: PropDry | C23: = 1-PropWater
C24: =1-C22 -> 0.23 | D24: gdry/gfood | E24: Eq
A25: Variability in caloric requirements not accounted for by allometric equation | B25: Error
B26: Central | C26: 1 | D26: Note 2
B27: Lower | C27: 0.3
B28: Upper | C28: 1.7
A29: Amount of food consumed per day, wet weight | B29: AmntFood | C29: = Error x (AmntDry ÷ PropDry) ÷ (1000g/kg)
B30: Central | C30: =C26*(C$21/C$24)/1000 -> 20.65726494 | D30: kgfood/day | E30: Eq
B31: Lower | C31: =C27*(C$21/C$24)/1000 -> 6.197179482 | E31: Eq
B32: Upper | C32: 35.1173504 | E32: Eq
A33: Estimate
A34: Dose | B34: Dose | C34: = AmntFood × Conc / BW
B35: Central | C35: =$C30 * C9/C$13 -> 0.7849760677 | D35: mg/kg bw/day | E35: Eq
B36: Lower | C36: =$C31 * C10/C$13 -> 0.1076538607 | E36: Eq
B37: Upper | C37: =$C32 * C11/C$13 -> 2.859555675 | E37: Eq

Sheet F04d
A1: Consumption of Fruit by a Bird, small after Acute exposure.
A2: Short Title | B2: Fruit | E2: FdKcalV6
A3: Receptor | B3: Bird, small
A4: Duration | B4: Acute | E4: Scenario parameter
A5: Material consumed | B5: Fruit
A6: Parameter/Assumption | B6: Code / Range | C6: Equation/ Value | D6: Units | E6: Reference/Designation
A7: Commodity
A8: Concentration on consumed commodity | B8: Conc
B9: Central | C9: =B05a!Acute_C -> 2.66 | D9: mg/kg food wet weight | E9: ='B05a'!Acute_C
B10: Lower | C10: =B05a!Acute_L -> 1.216 | E10: ='B05a'!Acute_L
B11: Upper | C11: =B05a!Acute_U -> 5.7 | E11: ='B05a'!Acute_U
A12: Receptor
A13: Body weight | B13: BW | C13: =A02b!$C$31 -> 0.01 | D13: kg | E13: Default
A14: Allometric coefficients for caloric requirement per day in kilocalories and BW in grams
B15: alpha | C15: =A02b!$C$32 -> 3.12 | E15: U.S. EPA/ORD 1993
B16: beta | C16: =A02b!$C$33 -> 0.605 | E16: U.S. EPA/ORD 1993
A17: Caloric requirement per day | B17: KR | C17: = alpha x (BW x 1kg/1000g)beta
C18: =C15*((C13*1000)^C16) -> 12.56477147 | D18: kcal/day | E18: Eq
A19: Caloric content of commodity (dry weight) | B19: KCD | C19: ='A03'!$E$38 -> 1.1 | D19: kcal/gdw [Note 1] | E19: U.S. EPA/ORD 1993
A20: Food consumed per day (dry weight) | B20: AmntDry | C20: = KR ÷ KCD
C21: =C18/C19 -> 11.42251952 | D21: gdry/day | E21: Eq
A22: Water content of food item as a proportion | B22: PropWater | C22: ='A03'!$E$39 -> 0.77 | D22: gwater/gfood | E22: U.S. EPA/ORD 1993
A23: Dry weight content of food item as a proportion | B23: PropDry | C23: = 1-PropWater
C24: =1-C22 -> 0.23 | D24: gdry/gfood | E24: Eq
A25: Variability in caloric requirements not accounted for by allometric equation | B25: Error
B26: Central | C26: 1 | D26: Note 2
B27: Lower | C27: 0.3
B28: Upper | C28: 1.7
A29: Amount of food consumed per day, wet weight | B29: AmntFood | C29: = Error x (AmntDry ÷ PropDry) ÷ (1000g/kg)
B30: Central | C30: =C26*(C$21/C$24)/1000 -> 0.04966312834 | D30: kgfood/day | E30: Eq
B31: Lower | C31: =C27*(C$21/C$24)/1000 -> 0.0148989385 | E31: Eq
B32: Upper | C32: 0.08442731818 | E32: Eq
A33: Estimate
A34: Dose | B34: Dose | C34: = AmntFood × Conc / BW
B35: Central | C35: =$C30 * C9/C$13 -> 13.21039214 | D35: mg/kg bw/day | E35: Eq
B36: Lower | C36: =$C31 * C10/C$13 -> 1.811710922 | E36: Eq
B37: Upper | C37: =$C32 * C11/C$13 -> 48.12357137 | E37: Eq

Sheet F04e
A1: Consumption of Fruit by a Bird, large after Acute exposure.
A2: Short Title | B2: Fruit | E2: FdKcalV6
A3: Receptor | B3: Bird, large
A4: Duration | B4: Acute | E4: Scenario parameter
A5: Material consumed | B5: Fruit
A6: Parameter/Assumption | B6: Code / Range | C6: Equation/ Value | D6: Units | E6: Reference/Designation
A7: Commodity
A8: Concentration on consumed commodity | B8: Conc
B9: Central | C9: =B05a!Acute_C -> 2.66 | D9: mg/kg food wet weight | E9: ='B05a'!Acute_C
B10: Lower | C10: =B05a!Acute_L -> 1.216 | E10: ='B05a'!Acute_L
B11: Upper | C11: =B05a!Acute_U -> 5.7 | E11: ='B05a'!Acute_U
A12: Receptor
A13: Body weight | B13: BW | C13: =A02b!$C$15 -> 4 | D13: kg | E13: Default
A14: Allometric coefficients for caloric requirement per day in kilocalories and BW in grams
B15: alpha | C15: =A02b!$C$16 -> 1.146 | E15: U.S. EPA/ORD 1993
B16: beta | C16: =A02b!$C$17 -> 0.749 | E16: U.S. EPA/ORD 1993
A17: Caloric requirement per day | B17: KR | C17: = alpha x (BW x 1kg/1000g)beta
C18: =C15*((C13*1000)^C16) -> 571.6465031 | D18: kcal/day | E18: Eq
A19: Caloric content of commodity (dry weight) | B19: KCD | C19: ='A03'!$E$38 -> 1.1 | D19: kcal/gdw [Note 1] | E19: U.S. EPA/ORD 1993
A20: Food consumed per day (dry weight) | B20: AmntDry | C20: = KR ÷ KCD
C21: =C18/C19 -> 519.6786392 | D21: gdry/day | E21: Eq
A22: Water content of food item as a proportion | B22: PropWater | C22: ='A03'!$E$39 -> 0.77 | D22: gwater/gfood | E22: U.S. EPA/ORD 1993
A23: Dry weight content of food item as a proportion | B23: PropDry | C23: = 1-PropWater
C24: =1-C22 -> 0.23 | D24: gdry/gfood | E24: Eq
A25: Variability in caloric requirements not accounted for by allometric equation | B25: Error
B26: Central | C26: 1 | D26: Note 2
B27: Lower | C27: 0.3
B28: Upper | C28: 1.7
A29: Amount of food consumed per day, wet weight | B29: AmntFood | C29: = Error x (AmntDry ÷ PropDry) ÷ (1000g/kg)
B30: Central | C30: =C26*(C$21/C$24)/1000 -> 2.259472344 | D30: kgfood/day | E30: Eq
B31: Lower | C31: =C27*(C$21/C$24)/1000 -> 0.6778417033 | E31: Eq
B32: Upper | C32: 3.841102985 | E32: Eq
A33: Estimate
A34: Dose | B34: Dose | C34: = AmntFood × Conc / BW
B35: Central | C35: =$C30 * C9/C$13 -> 1.502549109 | D35: mg/kg bw/day | E35: Eq
B36: Lower | C36: =$C31 * C10/C$13 -> 0.2060638778 | E36: Eq
B37: Upper | C37: =$C32 * C11/C$13 -> 5.473571754 | E37: Eq

Sheet F05a
A1: Consumption of Broadleaf Vegetation by a Mammal, small after Acute exposure.
A2: Short Title | B2: Broadleaf | E2: FdKcalV6
A3: Receptor | B3: Mammal, small
A4: Duration | B4: Acute | E4: Scenario parameter
A5: Material consumed | B5: Broadleaf Vegetation
A6: Parameter/Assumption | B6: Code / Range | C6: Equation/ Value | D6: Units | E6: Reference/Designation
A7: Commodity
A8: Concentration on consumed commodity | B8: Conc
B9: Central | C9: =B05b!Acute_C -> 17.1 | D9: mg/kg food wet weight | E9: ='B05b'!Acute_C
B10: Lower | C10: =B05b!Acute_L -> 5.7 | E10: ='B05b'!Acute_L
B11: Upper | C11: =B05b!Acute_U -> 51.3 | E11: ='B05b'!Acute_U
A12: Receptor
A13: Body weight | B13: BW | C13: =A02b!$C$71 -> 0.02 | D13: kg | E13: Default
A14: Allometric coefficients for caloric requirement per day in kilocalories and BW in grams
B15: alpha | C15: =A02b!$C$75 -> 2.514 | E15: U.S. EPA/ORD 1993
B16: beta | C16: =A02b!$C$76 -> 0.507 | E16: U.S. EPA/ORD 1993
A17: Caloric requirement per day | B17: KR | C17: = alpha x (BW x 1kg/1000g)beta
C18: =C15*((C13*1000)^C16) -> 11.48120526 | D18: kcal/day | E18: Eq
A19: Caloric content of commodity (dry weight) | B19: KCD | C19: ='A03'!$E$65 -> 2.26 | D19: kcal/gdw [Note 1] | E19: U.S. EPA/ORD 1993
A20: Food consumed per day (dry weight) | B20: AmntDry | C20: = KR ÷ KCD
C21: =C18/C19 -> 5.080179317 | D21: gdry/day | E21: Eq
A22: Water content of food item as a proportion | B22: PropWater | C22: ='A03'!$E$66 -> 0.85 | D22: gwater/gfood | E22: U.S. EPA/ORD 1993
A23: Dry weight content of food item as a proportion | B23: PropDry | C23: = 1-PropWater
C24: =1-C22 -> 0.15 | D24: gdry/gfood | E24: Eq
A25: Variability in caloric requirements not accounted for by allometric equation | B25: Error
B26: Central | C26: 1 | D26: Note 2
B27: Lower | C27: 0.3
B28: Upper | C28: 1.7
A29: Amount of food consumed per day, wet weight | B29: AmntFood | C29: = Error x (AmntDry ÷ PropDry) ÷ (1000g/kg)
B30: Central | C30: =C26*(C$21/C$24)/1000 -> 0.03386786211 | D30: kgfood/day | E30: Eq
B31: Lower | C31: =C27*(C$21/C$24)/1000 -> 0.01016035863 | E31: Eq
B32: Upper | C32: 0.05757536559 | E32: Eq
A33: Estimate
A34: Dose | B34: Dose | C34: = AmntFood × Conc / BW
B35: Central | C35: =$C30 * C9/C$13 -> 28.95702211 | D35: mg/kg bw/day | E35: Eq
B36: Lower | C36: =$C31 * C10/C$13 -> 2.895702211 | E36: Eq
B37: Upper | C37: =$C32 * C11/C$13 -> 147.6808127 | E37: Eq

Sheet F05b
A1: Consumption of Broadleaf Vegetation by a Mammal, 400 g after Acute exposure.
A2: Short Title | B2: Broadleaf | E2: FdKcalV6
A3: Receptor | B3: Mammal, 400 g
A4: Duration | B4: Acute | E4: Scenario parameter
A5: Material consumed | B5: Broadleaf Vegetation
A6: Parameter/Assumption | B6: Code / Range | C6: Equation/ Value | D6: Units | E6: Reference/Designation
A7: Commodity
A8: Concentration on consumed commodity | B8: Conc
B9: Central | C9: =B05b!Acute_C -> 17.1 | D9: mg/kg food wet weight | E9: ='B05b'!Acute_C
B10: Lower | C10: =B05b!Acute_L -> 5.7 | E10: ='B05b'!Acute_L
B11: Upper | C11: =B05b!Acute_U -> 51.3 | E11: ='B05b'!Acute_U
A12: Receptor
A13: Body weight | B13: BW | C13: =A02b!$C$40 -> 0.4 | D13: kg | E13: Default
A14: Allometric coefficients for caloric requirement per day in kilocalories and BW in grams
B15: alpha | C15: =A02b!$C$43 -> 2.514 | E15: U.S. EPA/ORD 1993
B16: beta | C16: =A02b!$C$44 -> 0.507 | E16: U.S. EPA/ORD 1993
A17: Caloric requirement per day | B17: KR | C17: = alpha x (BW x 1kg/1000g)beta
C18: =C15*((C13*1000)^C16) -> 52.43360149 | D18: kcal/day | E18: Eq
A19: Caloric content of commodity (dry weight) | B19: KCD | C19: ='A03'!$E$65 -> 2.26 | D19: kcal/gdw [Note 1] | E19: U.S. EPA/ORD 1993
A20: Food consumed per day (dry weight) | B20: AmntDry | C20: = KR ÷ KCD
C21: =C18/C19 -> 23.20070862 | D21: gdry/day | E21: Eq
A22: Water content of food item as a proportion | B22: PropWater | C22: ='A03'!$E$66 -> 0.85 | D22: gwater/gfood | E22: U.S. EPA/ORD 1993
A23: Dry weight content of food item as a proportion | B23: PropDry | C23: = 1-PropWater
C24: =1-C22 -> 0.15 | D24: gdry/gfood | E24: Eq
A25: Variability in caloric requirements not accounted for by allometric equation | B25: Error
B26: Central | C26: 1 | D26: Note 2
B27: Lower | C27: 0.3
B28: Upper | C28: 1.7
A29: Amount of food consumed per day, wet weight | B29: AmntFood | C29: = Error x (AmntDry ÷ PropDry) ÷ (1000g/kg)
B30: Central | C30: =C26*(C$21/C$24)/1000 -> 0.1546713908 | D30: kgfood/day | E30: Eq
B31: Lower | C31: =C27*(C$21/C$24)/1000 -> 0.04640141724 | E31: Eq
B32: Upper | C32: 0.2629413644 | E32: Eq
A33: Estimate
A34: Dose | B34: Dose | C34: = AmntFood × Conc / BW
B35: Central | C35: =$C30 * C9/C$13 -> 6.612201957 | D35: mg/kg bw/day | E35: Eq
B36: Lower | C36: =$C31 * C10/C$13 -> 0.6612201957 | E36: Eq
B37: Upper | C37: =$C32 * C11/C$13 -> 33.72222998 | E37: Eq

Sheet F05c
A1: Consumption of Broadleaf Vegetation by a Mammal, large after Acute exposure.
A2: Short Title | B2: Broadleaf | E2: FdKcalV6
A3: Receptor | B3: Mammal, large
A4: Duration | B4: Acute | E4: Scenario parameter
A5: Material consumed | B5: Broadleaf Vegetation
A6: Parameter/Assumption | B6: Code / Range | C6: Equation/ Value | D6: Units | E6: Reference/Designation
A7: Commodity
A8: Concentration on consumed commodity | B8: Conc
B9: Central | C9: =B05b!Acute_C -> 17.1 | D9: mg/kg food wet weight | E9: ='B05b'!Acute_C
B10: Lower | C10: =B05b!Acute_L -> 5.7 | E10: ='B05b'!Acute_L
B11: Upper | C11: =B05b!Acute_U -> 51.3 | E11: ='B05b'!Acute_U
A12: Receptor
A13: Body weight | B13: BW | C13: =A02b!$C$61 -> 70 | D13: kg | E13: Default
A14: Allometric coefficients for caloric requirement per day in kilocalories and BW in grams
B15: alpha | C15: =A02b!$C$62 -> 1.518 | E15: U.S. EPA/ORD 1993
B16: beta | C16: =A02b!$C$63 -> 0.73 | E16: U.S. EPA/ORD 1993
A17: Caloric requirement per day | B17: KR | C17: = alpha x (BW x 1kg/1000g)beta
C18: =C15*((C13*1000)^C16) -> 5226.28803 | D18: kcal/day | E18: Eq
A19: Caloric content of commodity (dry weight) | B19: KCD | C19: ='A03'!$E$65 -> 2.26 | D19: kcal/gdw [Note 1] | E19: U.S. EPA/ORD 1993
A20: Food consumed per day (dry weight) | B20: AmntDry | C20: = KR ÷ KCD
C21: =C18/C19 -> 2312.516827 | D21: gdry/day | E21: Eq
A22: Water content of food item as a proportion | B22: PropWater | C22: ='A03'!$E$66 -> 0.85 | D22: gwater/gfood | E22: U.S. EPA/ORD 1993
A23: Dry weight content of food item as a proportion | B23: PropDry | C23: = 1-PropWater
C24: =1-C22 -> 0.15 | D24: gdry/gfood | E24: Eq
A25: Variability in caloric requirements not accounted for by allometric equation | B25: Error
B26: Central | C26: 1 | D26: Note 2
B27: Lower | C27: 0.3
B28: Upper | C28: 1.7
A29: Amount of food consumed per day, wet weight | B29: AmntFood | C29: = Error x (AmntDry ÷ PropDry) ÷ (1000g/kg)
B30: Central | C30: =C26*(C$21/C$24)/1000 -> 15.41677885 | D30: kgfood/day | E30: Eq
B31: Lower | C31: =C27*(C$21/C$24)/1000 -> 4.625033655 | E31: Eq
B32: Upper | C32: 26.20852404 | E32: Eq
A33: Estimate
A34: Dose | B34: Dose | C34: = AmntFood × Conc / BW
B35: Central | C35: =$C30 * C9/C$13 -> 3.766098833 | D35: mg/kg bw/day | E35: Eq
B36: Lower | C36: =$C31 * C10/C$13 -> 0.3766098833 | E36: Eq
B37: Upper | C37: =$C32 * C11/C$13 -> 19.20710405 | E37: Eq

Sheet F05d
A1: Consumption of Broadleaf Vegetation by a Bird, small after Acute exposure.
A2: Short Title | B2: Broadleaf | E2: FdKcalV6
A3: Receptor | B3: Bird, small
A4: Duration | B4: Acute | E4: Scenario parameter
A5: Material consumed | B5: Broadleaf Vegetation
A6: Parameter/Assumption | B6: Code / Range | C6: Equation/ Value | D6: Units | E6: Reference/Designation
A7: Commodity
A8: Concentration on consumed commodity | B8: Conc
B9: Central | C9: =B05b!Acute_C -> 17.1 | D9: mg/kg food wet weight | E9: ='B05b'!Acute_C
B10: Lower | C10: =B05b!Acute_L -> 5.7 | E10: ='B05b'!Acute_L
B11: Upper | C11: =B05b!Acute_U -> 51.3 | E11: ='B05b'!Acute_U
A12: Receptor
A13: Body weight | B13: BW | C13: =A02b!$C$31 -> 0.01 | D13: kg | E13: Default
A14: Allometric coefficients for caloric requirement per day in kilocalories and BW in grams
B15: alpha | C15: =A02b!$C$32 -> 3.12 | E15: U.S. EPA/ORD 1993
B16: beta | C16: =A02b!$C$33 -> 0.605 | E16: U.S. EPA/ORD 1993
A17: Caloric requirement per day | B17: KR | C17: = alpha x (BW x 1kg/1000g)beta
C18: =C15*((C13*1000)^C16) -> 12.56477147 | D18: kcal/day | E18: Eq
A19: Caloric content of commodity (dry weight) | B19: KCD | C19: ='A03'!$E$42 -> 2 | D19: kcal/gdw [Note 1] | E19: U.S. EPA/ORD 1993
A20: Food consumed per day (dry weight) | B20: AmntDry | C20: = KR ÷ KCD
C21: =C18/C19 -> 6.282385735 | D21: gdry/day | E21: Eq
A22: Water content of food item as a proportion | B22: PropWater | C22: ='A03'!$E$43 -> 0.85 | D22: gwater/gfood | E22: U.S. EPA/ORD 1993
A23: Dry weight content of food item as a proportion | B23: PropDry | C23: = 1-PropWater
C24: =1-C22 -> 0.15 | D24: gdry/gfood | E24: Eq
A25: Variability in caloric requirements not accounted for by allometric equation | B25: Error
B26: Central | C26: 1 | D26: Note 2
B27: Lower | C27: 0.3
B28: Upper | C28: 1.7
A29: Amount of food consumed per day, wet weight | B29: AmntFood | C29: = Error x (AmntDry ÷ PropDry) ÷ (1000g/kg)
B30: Central | C30: =C26*(C$21/C$24)/1000 -> 0.04188257157 | D30: kgfood/day | E30: Eq
B31: Lower | C31: =C27*(C$21/C$24)/1000 -> 0.01256477147 | E31: Eq
B32: Upper | C32: 0.07120037167 | E32: Eq
A33: Estimate
A34: Dose | B34: Dose | C34: = AmntFood × Conc / BW
B35: Central | C35: =$C30 * C9/C$13 -> 71.61919738 | D35: mg/kg bw/day | E35: Eq
B36: Lower | C36: =$C31 * C10/C$13 -> 7.161919738 | E36: Eq
B37: Upper | C37: =$C32 * C11/C$13 -> 365.2579067 | E37: Eq

Sheet F05e
A1: Consumption of Broadleaf Vegetation by a Bird, large after Acute exposure.
A2: Short Title | B2: Broadleaf | E2: FdKcalV6
A3: Receptor | B3: Bird, large
A4: Duration | B4: Acute | E4: Scenario parameter
A5: Material consumed | B5: Broadleaf Vegetation
A6: Parameter/Assumption | B6: Code / Range | C6: Equation/ Value | D6: Units | E6: Reference/Designation
A7: Commodity
A8: Concentration on consumed commodity | B8: Conc
B9: Central | C9: =B05b!Acute_C -> 17.1 | D9: mg/kg food wet weight | E9: ='B05b'!Acute_C
B10: Lower | C10: =B05b!Acute_L -> 5.7 | E10: ='B05b'!Acute_L
B11: Upper | C11: =B05b!Acute_U -> 51.3 | E11: ='B05b'!Acute_U
A12: Receptor
A13: Body weight | B13: BW | C13: =A02b!$C$15 -> 4 | D13: kg | E13: Default
A14: Allometric coefficients for caloric requirement per day in kilocalories and BW in grams
B15: alpha | C15: =A02b!$C$16 -> 1.146 | E15: U.S. EPA/ORD 1993
B16: beta | C16: =A02b!$C$17 -> 0.749 | E16: U.S. EPA/ORD 1993
A17: Caloric requirement per day | B17: KR | C17: = alpha x (BW x 1kg/1000g)beta
C18: =C15*((C13*1000)^C16) -> 571.6465031 | D18: kcal/day | E18: Eq
A19: Caloric content of commodity (dry weight) | B19: KCD | C19: ='A03'!$E$42 -> 2 | D19: kcal/gdw [Note 1] | E19: U.S. EPA/ORD 1993
A20: Food consumed per day (dry weight) | B20: AmntDry | C20: = KR ÷ KCD
C21: =C18/C19 -> 285.8232515 | D21: gdry/day | E21: Eq
A22: Water content of food item as a proportion | B22: PropWater | C22: ='A03'!$E$43 -> 0.85 | D22: gwater/gfood | E22: U.S. EPA/ORD 1993
A23: Dry weight content of food item as a proportion | B23: PropDry | C23: = 1-PropWater
C24: =1-C22 -> 0.15 | D24: gdry/gfood | E24: Eq
A25: Variability in caloric requirements not accounted for by allometric equation | B25: Error
B26: Central | C26: 1 | D26: Note 2
B27: Lower | C27: 0.3
B28: Upper | C28: 1.7
A29: Amount of food consumed per day, wet weight | B29: AmntFood | C29: = Error x (AmntDry ÷ PropDry) ÷ (1000g/kg)
B30: Central | C30: =C26*(C$21/C$24)/1000 -> 1.905488344 | D30: kgfood/day | E30: Eq
B31: Lower | C31: =C27*(C$21/C$24)/1000 -> 0.5716465031 | E31: Eq
B32: Upper | C32: 3.239330184 | E32: Eq
A33: Estimate
A34: Dose | B34: Dose | C34: = AmntFood × Conc / BW
B35: Central | C35: =$C30 * C9/C$13 -> 8.145962669 | D35: mg/kg bw/day | E35: Eq
B36: Lower | C36: =$C31 * C10/C$13 -> 0.8145962669 | E36: Eq
B37: Upper | C37: =$C32 * C11/C$13 -> 41.54440961 | E37: Eq

Sheet F06a
A1: Consumption of Tall grass by a Mammal, small after Acute exposure.
A2: Short Title | B2: Tall Grass | E2: FdKcalV6
A3: Receptor | B3: Mammal, small
A4: Duration | B4: Acute | E4: Scenario parameter
A5: Material consumed | B5: Tall grass
A6: Parameter/Assumption | B6: Code / Range | C6: Equation/ Value | D6: Units | E6: Reference/Designation
A7: Commodity
A8: Concentration on consumed commodity | B8: Conc
B9: Central | C9: =B05d!Acute_C -> 13.68 | D9: mg/kg food wet weight | E9: ='B05d'!Acute_C
B10: Lower | C10: =B05d!Acute_L -> 4.56 | E10: ='B05d'!Acute_L
B11: Upper | C11: =B05d!Acute_U -> 41.8 | E11: ='B05d'!Acute_U
A12: Receptor
A13: Body weight | B13: BW | C13: =A02b!$C$71 -> 0.02 | D13: kg | E13: Default
A14: Allometric coefficients for caloric requirement per day in kilocalories and BW in grams
B15: alpha | C15: =A02b!$C$75 -> 2.514 | E15: U.S. EPA/ORD 1993
B16: beta | C16: =A02b!$C$76 -> 0.507 | E16: U.S. EPA/ORD 1993
A17: Caloric requirement per day | B17: KR | C17: = alpha x (BW x 1kg/1000g)beta
C18: =C15*((C13*1000)^C16) -> 11.48120526 | D18: kcal/day | E18: Eq
A19: Caloric content of commodity (dry weight) | B19: KCD | C19: ='A03'!$E$65 -> 2.26 | D19: kcal/gdw [Note 1] | E19: U.S. EPA/ORD 1993
A20: Food consumed per day (dry weight) | B20: AmntDry | C20: = KR ÷ KCD
C21: =C18/C19 -> 5.080179317 | D21: gdry/day | E21: Eq
A22: Water content of food item as a proportion | B22: PropWater | C22: ='A03'!$E$66 -> 0.85 | D22: gwater/gfood | E22: U.S. EPA/ORD 1993
A23: Dry weight content of food item as a proportion | B23: PropDry | C23: = 1-PropWater
C24: =1-C22 -> 0.15 | D24: gdry/gfood | E24: Eq
A25: Variability in caloric requirements not accounted for by allometric equation | B25: Error
B26: Central | C26: 1 | D26: Note 2
B27: Lower | C27: 0.3
B28: Upper | C28: 1.7
A29: Amount of food consumed per day, wet weight | B29: AmntFood | C29: = Error x (AmntDry ÷ PropDry) ÷ (1000g/kg)
B30: Central | C30: =C26*(C$21/C$24)/1000 -> 0.03386786211 | D30: kgfood/day | E30: Eq
B31: Lower | C31: =C27*(C$21/C$24)/1000 -> 0.01016035863 | E31: Eq
B32: Upper | C32: 0.05757536559 | E32: Eq
A33: Estimate
A34: Dose | B34: Dose | C34: = AmntFood × Conc / BW
B35: Central | C35: =$C30 * C9/C$13 -> 23.16561769 | D35: mg/kg bw/day | E35: Eq
B36: Lower | C36: =$C31 * C10/C$13 -> 2.316561769 | E36: Eq
B37: Upper | C37: =$C32 * C11/C$13 -> 120.3325141 | E37: Eq

Sheet F06b
A1: Consumption of Tall grass by a Mammal, 400 g after Acute exposure.
A2: Short Title | B2: Tall Grass | E2: FdKcalV6
A3: Receptor | B3: Mammal, 400 g
A4: Duration | B4: Acute | E4: Scenario parameter
A5: Material consumed | B5: Tall grass
A6: Parameter/Assumption | B6: Code / Range | C6: Equation/ Value | D6: Units | E6: Reference/Designation
A7: Commodity
A8: Concentration on consumed commodity | B8: Conc
B9: Central | C9: =B05d!Acute_C -> 13.68 | D9: mg/kg food wet weight | E9: ='B05d'!Acute_C
B10: Lower | C10: =B05d!Acute_L -> 4.56 | E10: ='B05d'!Acute_L
B11: Upper | C11: =B05d!Acute_U -> 41.8 | E11: ='B05d'!Acute_U
A12: Receptor
A13: Body weight | B13: BW | C13: =A02b!$C$40 -> 0.4 | D13: kg | E13: Default
A14: Allometric coefficients for caloric requirement per day in kilocalories and BW in grams
B15: alpha | C15: =A02b!$C$43 -> 2.514 | E15: U.S. EPA/ORD 1993
B16: beta | C16: =A02b!$C$44 -> 0.507 | E16: U.S. EPA/ORD 1993
A17: Caloric requirement per day | B17: KR | C17: = alpha x (BW x 1kg/1000g)beta
C18: =C15*((C13*1000)^C16) -> 52.43360149 | D18: kcal/day | E18: Eq
A19: Caloric content of commodity (dry weight) | B19: KCD | C19: ='A03'!$E$65 -> 2.26 | D19: kcal/gdw [Note 1] | E19: U.S. EPA/ORD 1993
A20: Food consumed per day (dry weight) | B20: AmntDry | C20: = KR ÷ KCD
C21: =C18/C19 -> 23.20070862 | D21: gdry/day | E21: Eq
A22: Water content of food item as a proportion | B22: PropWater | C22: ='A03'!$E$66 -> 0.85 | D22: gwater/gfood | E22: U.S. EPA/ORD 1993
A23: Dry weight content of food item as a proportion | B23: PropDry | C23: = 1-PropWater
C24: =1-C22 -> 0.15 | D24: gdry/gfood | E24: Eq
A25: Variability in caloric requirements not accounted for by allometric equation | B25: Error
B26: Central | C26: 1 | D26: Note 2
B27: Lower | C27: 0.3
B28: Upper | C28: 1.7
A29: Amount of food consumed per day, wet weight | B29: AmntFood | C29: = Error x (AmntDry ÷ PropDry) ÷ (1000g/kg)
B30: Central | C30: =C26*(C$21/C$24)/1000 -> 0.1546713908 | D30: kgfood/day | E30: Eq
B31: Lower | C31: =C27*(C$21/C$24)/1000 -> 0.04640141724 | E31: Eq
B32: Upper | C32: 0.2629413644 | E32: Eq
A33: Estimate
A34: Dose | B34: Dose | C34: = AmntFood × Conc / BW
B35: Central | C35: =$C30 * C9/C$13 -> 5.289761566 | D35: mg/kg bw/day | E35: Eq
B36: Lower | C36: =$C31 * C10/C$13 -> 0.5289761566 | E36: Eq
B37: Upper | C37: =$C32 * C11/C$13 -> 27.47737258 | E37: Eq

Sheet F06c
A1: Consumption of Tall grass by a Mammal, large after Acute exposure.
A2: Short Title | B2: Tall Grass | E2: FdKcalV6
A3: Receptor | B3: Mammal, large
A4: Duration | B4: Acute | E4: Scenario parameter
A5: Material consumed | B5: Tall grass
A6: Parameter/Assumption | B6: Code / Range | C6: Equation/ Value | D6: Units | E6: Reference/Designation
A7: Commodity
A8: Concentration on consumed commodity | B8: Conc
B9: Central | C9: =B05d!Acute_C -> 13.68 | D9: mg/kg food wet weight | E9: ='B05d'!Acute_C
B10: Lower | C10: =B05d!Acute_L -> 4.56 | E10: ='B05d'!Acute_L
B11: Upper | C11: =B05d!Acute_U -> 41.8 | E11: ='B05d'!Acute_U
A12: Receptor
A13: Body weight | B13: BW | C13: =A02b!$C$61 -> 70 | D13: kg | E13: Default
A14: Allometric coefficients for caloric requirement per day in kilocalories and BW in grams
B15: alpha | C15: =A02b!$C$62 -> 1.518 | E15: U.S. EPA/ORD 1993
B16: beta | C16: =A02b!$C$63 -> 0.73 | E16: U.S. EPA/ORD 1993
A17: Caloric requirement per day | B17: KR | C17: = alpha x (BW x 1kg/1000g)beta
C18: =C15*((C13*1000)^C16) -> 5226.28803 | D18: kcal/day | E18: Eq
A19: Caloric content of commodity (dry weight) | B19: KCD | C19: ='A03'!$E$65 -> 2.26 | D19: kcal/gdw [Note 1] | E19: U.S. EPA/ORD 1993
A20: Food consumed per day (dry weight) | B20: AmntDry | C20: = KR ÷ KCD
C21: =C18/C19 -> 2312.516827 | D21: gdry/day | E21: Eq
A22: Water content of food item as a proportion | B22: PropWater | C22: ='A03'!$E$66 -> 0.85 | D22: gwater/gfood | E22: U.S. EPA/ORD 1993
A23: Dry weight content of food item as a proportion | B23: PropDry | C23: = 1-PropWater
C24: =1-C22 -> 0.15 | D24: gdry/gfood | E24: Eq
A25: Variability in caloric requirements not accounted for by allometric equation | B25: Error
B26: Central | C26: 1 | D26: Note 2
B27: Lower | C27: 0.3
B28: Upper | C28: 1.7
A29: Amount of food consumed per day, wet weight | B29: AmntFood | C29: = Error x (AmntDry ÷ PropDry) ÷ (1000g/kg)
B30: Central | C30: =C26*(C$21/C$24)/1000 -> 15.41677885 | D30: kgfood/day | E30: Eq
B31: Lower | C31: =C27*(C$21/C$24)/1000 -> 4.625033655 | E31: Eq
B32: Upper | C32: 26.20852404 | E32: Eq
A33: Estimate
A34: Dose | B34: Dose | C34: = AmntFood × Conc / BW
B35: Central | C35: =$C30 * C9/C$13 -> 3.012879066 | D35: mg/kg bw/day | E35: Eq
B36: Lower | C36: =$C31 * C10/C$13 -> 0.3012879066 | E36: Eq
B37: Upper | C37: =$C32 * C11/C$13 -> 15.65023293 | E37: Eq

Sheet F06d
A1: Consumption of Tall grass by a Bird, small after Acute exposure.
A2: Short Title | B2: Tall Grass | E2: FdKcalV6
A3: Receptor | B3: Bird, small
A4: Duration | B4: Acute | E4: Scenario parameter
A5: Material consumed | B5: Tall grass
A6: Parameter/Assumption | B6: Code / Range | C6: Equation/ Value | D6: Units | E6: Reference/Designation
A7: Commodity
A8: Concentration on consumed commodity | B8: Conc
B9: Central | C9: =B05d!Acute_C -> 13.68 | D9: mg/kg food wet weight | E9: ='B05d'!Acute_C
B10: Lower | C10: =B05d!Acute_L -> 4.56 | E10: ='B05d'!Acute_L
B11: Upper | C11: =B05d!Acute_U -> 41.8 | E11: ='B05d'!Acute_U
A12: Receptor
A13: Body weight | B13: BW | C13: =A02b!$C$31 -> 0.01 | D13: kg | E13: Default
A14: Allometric coefficients for caloric requirement per day in kilocalories and BW in grams
B15: alpha | C15: =A02b!$C$32 -> 3.12 | E15: U.S. EPA/ORD 1993
B16: beta | C16: =A02b!$C$33 -> 0.605 | E16: U.S. EPA/ORD 1993
A17: Caloric requirement per day | B17: KR | C17: = alpha x (BW x 1kg/1000g)beta
C18: =C15*((C13*1000)^C16) -> 12.56477147 | D18: kcal/day | E18: Eq
A19: Caloric content of commodity (dry weight) | B19: KCD | C19: ='A03'!$E$42 -> 2 | D19: kcal/gdw [Note 1] | E19: U.S. EPA/ORD 1993
A20: Food consumed per day (dry weight) | B20: AmntDry | C20: = KR ÷ KCD
C21: =C18/C19 -> 6.282385735 | D21: gdry/day | E21: Eq
A22: Water content of food item as a proportion | B22: PropWater | C22: ='A03'!$E$43 -> 0.85 | D22: gwater/gfood | E22: U.S. EPA/ORD 1993
A23: Dry weight content of food item as a proportion | B23: PropDry | C23: = 1-PropWater
C24: =1-C22 -> 0.15 | D24: gdry/gfood | E24: Eq
A25: Variability in caloric requirements not accounted for by allometric equation | B25: Error
B26: Central | C26: 1 | D26: Note 2
B27: Lower | C27: 0.3
B28: Upper | C28: 1.7
A29: Amount of food consumed per day, wet weight | B29: AmntFood | C29: = Error x (AmntDry ÷ PropDry) ÷ (1000g/kg)
B30: Central | C30: =C26*(C$21/C$24)/1000 -> 0.04188257157 | D30: kgfood/day | E30: Eq
B31: Lower | C31: =C27*(C$21/C$24)/1000 -> 0.01256477147 | E31: Eq
B32: Upper | C32: 0.07120037167 | E32: Eq
A33: Estimate
A34: Dose | B34: Dose | C34: = AmntFood × Conc / BW
B35: Central | C35: =$C30 * C9/C$13 -> 57.29535791 | D35: mg/kg bw/day | E35: Eq
B36: Lower | C36: =$C31 * C10/C$13 -> 5.729535791 | E36: Eq
B37: Upper | C37: =$C32 * C11/C$13 -> 297.6175536 | E37: Eq

Sheet F06e
A1: Consumption of Tall grass by a Bird, large after Acute exposure.
A2: Short Title | B2: Tall Grass | E2: FdKcalV6
A3: Receptor | B3: Bird, large
A4: Duration | B4: Acute | E4: Scenario parameter
A5: Material consumed | B5: Tall grass
A6: Parameter/Assumption | B6: Code / Range | C6: Equation/ Value | D6: Units | E6: Reference/Designation
A7: Commodity
A8: Concentration on consumed commodity | B8: Conc
B9: Central | C9: =B05d!Acute_C -> 13.68 | D9: mg/kg food wet weight | E9: ='B05d'!Acute_C
B10: Lower | C10: =B05d!Acute_L -> 4.56 | E10: ='B05d'!Acute_L
B11: Upper | C11: =B05d!Acute_U -> 41.8 | E11: ='B05d'!Acute_U
A12: Receptor
A13: Body weight | B13: BW | C13: =A02b!$C$15 -> 4 | D13: kg | E13: Default
A14: Allometric coefficients for caloric requirement per day in kilocalories and BW in grams
B15: alpha | C15: =A02b!$C$16 -> 1.146 | E15: U.S. EPA/ORD 1993
B16: beta | C16: =A02b!$C$17 -> 0.749 | E16: U.S. EPA/ORD 1993
A17: Caloric requirement per day | B17: KR | C17: = alpha x (BW x 1kg/1000g)beta
C18: =C15*((C13*1000)^C16) -> 571.6465031 | D18: kcal/day | E18: Eq
A19: Caloric content of commodity (dry weight) | B19: KCD | C19: ='A03'!$E$42 -> 2 | D19: kcal/gdw [Note 1] | E19: U.S. EPA/ORD 1993
A20: Food consumed per day (dry weight) | B20: AmntDry | C20: = KR ÷ KCD
C21: =C18/C19 -> 285.8232515 | D21: gdry/day | E21: Eq
A22: Water content of food item as a proportion | B22: PropWater | C22: ='A03'!$E$43 -> 0.85 | D22: gwater/gfood | E22: U.S. EPA/ORD 1993
A23: Dry weight content of food item as a proportion | B23: PropDry | C23: = 1-PropWater
C24: =1-C22 -> 0.15 | D24: gdry/gfood | E24: Eq
A25: Variability in caloric requirements not accounted for by allometric equation | B25: Error
B26: Central | C26: 1 | D26: Note 2
B27: Lower | C27: 0.3
B28: Upper | C28: 1.7
A29: Amount of food consumed per day, wet weight | B29: AmntFood | C29: = Error x (AmntDry ÷ PropDry) ÷ (1000g/kg)
B30: Central | C30: =C26*(C$21/C$24)/1000 -> 1.905488344 | D30: kgfood/day | E30: Eq
B31: Lower | C31: =C27*(C$21/C$24)/1000 -> 0.5716465031 | E31: Eq
B32: Upper | C32: 3.239330184 | E32: Eq
A33: Estimate
A34: Dose | B34: Dose | C34: = AmntFood × Conc / BW
B35: Central | C35: =$C30 * C9/C$13 -> 6.516770135 | D35: mg/kg bw/day | E35: Eq
B36: Lower | C36: =$C31 * C10/C$13 -> 0.6516770135 | E36: Eq
B37: Upper | C37: =$C32 * C11/C$13 -> 33.85100042 | E37: Eq

Sheet F07a
A1: Consumption of Short grass by a Mammal, small after Acute exposure.
A2: Short Title | B2: Short grass | E2: FdKcalV6
A3: Receptor | B3: Mammal, small
A4: Duration | B4: Acute | E4: Scenario parameter
A5: Material consumed | B5: Short grass
A6: Parameter/Assumption | B6: Code / Range | C6: Equation/ Value | D6: Units | E6: Reference/Designation
A7: Commodity
A8: Concentration on consumed commodity | B8: Conc
B9: Central | C9: =B05c!Acute_C -> 32.3 | D9: mg/kg food wet weight | E9: ='B05c'!Acute_C
B10: Lower | C10: =B05c!Acute_L -> 11.4 | E10: ='B05c'!Acute_L
B11: Upper | C11: =B05c!Acute_U -> 91.2 | E11: ='B05c'!Acute_U
A12: Receptor
A13: Body weight | B13: BW | C13: =A02b!$C$71 -> 0.02 | D13: kg | E13: Default
A14: Allometric coefficients for caloric requirement per day in kilocalories and BW in grams
B15: alpha | C15: =A02b!$C$75 -> 2.514 | E15: U.S. EPA/ORD 1993
B16: beta | C16: =A02b!$C$76 -> 0.507 | E16: U.S. EPA/ORD 1993
A17: Caloric requirement per day | B17: KR | C17: = alpha x (BW x 1kg/1000g)beta
C18: =C15*((C13*1000)^C16) -> 11.48120526 | D18: kcal/day | E18: Eq
A19: Caloric content of commodity (dry weight) | B19: KCD | C19: ='A03'!$E$65 -> 2.26 | D19: kcal/gdw [Note 1] | E19: U.S. EPA/ORD 1993
A20: Food consumed per day (dry weight) | B20: AmntDry | C20: = KR ÷ KCD
C21: =C18/C19 -> 5.080179317 | D21: gdry/day | E21: Eq
A22: Water content of food item as a proportion | B22: PropWater | C22: ='A03'!$E$66 -> 0.85 | D22: gwater/gfood | E22: U.S. EPA/ORD 1993
A23: Dry weight content of food item as a proportion | B23: PropDry | C23: = 1-PropWater
C24: =1-C22 -> 0.15 | D24: gdry/gfood | E24: Eq
A25: Variability in caloric requirements not accounted for by allometric equation | B25: Error
B26: Central | C26: 1 | D26: Note 2
B27: Lower | C27: 0.3
B28: Upper | C28: 1.7
A29: Amount of food consumed per day, wet weight | B29: AmntFood | C29: = Error x (AmntDry ÷ PropDry) ÷ (1000g/kg)
B30: Central | C30: =C26*(C$21/C$24)/1000 -> 0.03386786211 | D30: kgfood/day | E30: Eq
B31: Lower | C31: =C27*(C$21/C$24)/1000 -> 0.01016035863 | E31: Eq
B32: Upper | C32: 0.05757536559 | E32: Eq
A33: Estimate
A34: Dose | B34: Dose | C34: = AmntFood × Conc / BW
B35: Central | C35: =$C30 * C9/C$13 -> 54.69659731 | D35: mg/kg bw/day | E35: Eq
B36: Lower | C36: =$C31 * C10/C$13 -> 5.791404421 | E36: Eq
B37: Upper | C37: =$C32 * C11/C$13 -> 262.5436671 | E37: Eq

Sheet F07b
A1: Consumption of Short grass by a Mammal, 400 g after Acute exposure.
A2: Short Title | B2: Short grass | E2: FdKcalV6
A3: Receptor | B3: Mammal, 400 g
A4: Duration | B4: Acute | E4: Scenario parameter
A5: Material consumed | B5: Short grass
A6: Parameter/Assumption | B6: Code / Range | C6: Equation/ Value | D6: Units | E6: Reference/Designation
A7: Commodity
A8: Concentration on consumed commodity | B8: Conc
B9: Central | C9: =B05c!Acute_C -> 32.3 | D9: mg/kg food wet weight | E9: ='B05c'!Acute_C
B10: Lower | C10: =B05c!Acute_L -> 11.4 | E10: ='B05c'!Acute_L
B11: Upper | C11: =B05c!Acute_U -> 91.2 | E11: ='B05c'!Acute_U
A12: Receptor
A13: Body weight | B13: BW | C13: =A02b!$C$40 -> 0.4 | D13: kg | E13: Default
A14: Allometric coefficients for caloric requirement per day in kilocalories and BW in grams
B15: alpha | C15: =A02b!$C$43 -> 2.514 | E15: U.S. EPA/ORD 1993
B16: beta | C16: =A02b!$C$44 -> 0.507 | E16: U.S. EPA/ORD 1993
A17: Caloric requirement per day | B17: KR | C17: = alpha x (BW x 1kg/1000g)beta
C18: =C15*((C13*1000)^C16) -> 52.43360149 | D18: kcal/day | E18: Eq
A19: Caloric content of commodity (dry weight) | B19: KCD | C19: ='A03'!$E$65 -> 2.26 | D19: kcal/gdw [Note 1] | E19: U.S. EPA/ORD 1993
A20: Food consumed per day (dry weight) | B20: AmntDry | C20: = KR ÷ KCD
C21: =C18/C19 -> 23.20070862 | D21: gdry/day | E21: Eq
A22: Water content of food item as a proportion | B22: PropWater | C22: ='A03'!$E$66 -> 0.85 | D22: gwater/gfood | E22: U.S. EPA/ORD 1993
A23: Dry weight content of food item as a proportion | B23: PropDry | C23: = 1-PropWater
C24: =1-C22 -> 0.15 | D24: gdry/gfood | E24: Eq
A25: Variability in caloric requirements not accounted for by allometric equation | B25: Error
B26: Central | C26: 1 | D26: Note 2
B27: Lower | C27: 0.3
B28: Upper | C28: 1.7
A29: Amount of food consumed per day, wet weight | B29: AmntFood | C29: = Error x (AmntDry ÷ PropDry) ÷ (1000g/kg)
B30: Central | C30: =C26*(C$21/C$24)/1000 -> 0.1546713908 | D30: kgfood/day | E30: Eq
B31: Lower | C31: =C27*(C$21/C$24)/1000 -> 0.04640141724 | E31: Eq
B32: Upper | C32: 0.2629413644 | E32: Eq
A33: Estimate
A34: Dose | B34: Dose | C34: = AmntFood × Conc / BW
B35: Central | C35: =$C30 * C9/C$13 -> 12.48971481 | D35: mg/kg bw/day | E35: Eq
B36: Lower | C36: =$C31 * C10/C$13 -> 1.322440391 | E36: Eq
B37: Upper | C37: =$C32 * C11/C$13 -> 59.95063108 | E37: Eq

Sheet F07c
A1: Consumption of Short grass by a Mammal, large after Acute exposure.
A2: Short Title | B2: Short grass | E2: FdKcalV6
A3: Receptor | B3: Mammal, large
A4: Duration | B4: Acute | E4: Scenario parameter
A5: Material consumed | B5: Short grass
A6: Parameter/Assumption | B6: Code / Range | C6: Equation/ Value | D6: Units | E6: Reference/Designation
A7: Commodity
A8: Concentration on consumed commodity | B8: Conc
B9: Central | C9: =B05c!Acute_C -> 32.3 | D9: mg/kg food wet weight | E9: ='B05c'!Acute_C
B10: Lower | C10: =B05c!Acute_L -> 11.4 | E10: ='B05c'!Acute_L
B11: Upper | C11: =B05c!Acute_U -> 91.2 | E11: ='B05c'!Acute_U
A12: Receptor
A13: Body weight | B13: BW | C13: =A02b!$C$61 -> 70 | D13: kg | E13: Default
A14: Allometric coefficients for caloric requirement per day in kilocalories and BW in grams
B15: alpha | C15: =A02b!$C$62 -> 1.518 | E15: U.S. EPA/ORD 1993
B16: beta | C16: =A02b!$C$63 -> 0.73 | E16: U.S. EPA/ORD 1993
A17: Caloric requirement per day | B17: KR | C17: = alpha x (BW x 1kg/1000g)beta
C18: =C15*((C13*1000)^C16) -> 5226.28803 | D18: kcal/day | E18: Eq
A19: Caloric content of commodity (dry weight) | B19: KCD | C19: ='A03'!$E$65 -> 2.26 | D19: kcal/gdw [Note 1] | E19: U.S. EPA/ORD 1993
A20: Food consumed per day (dry weight) | B20: AmntDry | C20: = KR ÷ KCD
C21: =C18/C19 -> 2312.516827 | D21: gdry/day | E21: Eq
A22: Water content of food item as a proportion | B22: PropWater | C22: ='A03'!$E$66 -> 0.85 | D22: gwater/gfood | E22: U.S. EPA/ORD 1993
A23: Dry weight content of food item as a proportion | B23: PropDry | C23: = 1-PropWater
C24: =1-C22 -> 0.15 | D24: gdry/gfood | E24: Eq
A25: Variability in caloric requirements not accounted for by allometric equation | B25: Error
B26: Central | C26: 1 | D26: Note 2
B27: Lower | C27: 0.3
B28: Upper | C28: 1.7
A29: Amount of food consumed per day, wet weight | B29: AmntFood | C29: = Error x (AmntDry ÷ PropDry) ÷ (1000g/kg)
B30: Central | C30: =C26*(C$21/C$24)/1000 -> 15.41677885 | D30: kgfood/day | E30: Eq
B31: Lower | C31: =C27*(C$21/C$24)/1000 -> 4.625033655 | E31: Eq
B32: Upper | C32: 26.20852404 | E32: Eq
A33: Estimate
A34: Dose | B34: Dose | C34: = AmntFood × Conc / BW
B35: Central | C35: =$C30 * C9/C$13 -> 7.11374224 | D35: mg/kg bw/day | E35: Eq
B36: Lower | C36: =$C31 * C10/C$13 -> 0.7532197666 | E36: Eq
B37: Upper | C37: =$C32 * C11/C$13 -> 34.14596275 | E37: Eq

Sheet F07d
A1: Consumption of Short grass by a Bird, small after Acute exposure.
A2: Short Title | B2: Short grass | E2: FdKcalV6
A3: Receptor | B3: Bird, small
A4: Duration | B4: Acute | E4: Scenario parameter
A5: Material consumed | B5: Short grass
A6: Parameter/Assumption | B6: Code / Range | C6: Equation/ Value | D6: Units | E6: Reference/Designation
A7: Commodity
A8: Concentration on consumed commodity | B8: Conc
B9: Central | C9: =B05c!Acute_C -> 32.3 | D9: mg/kg food wet weight | E9: ='B05c'!Acute_C
B10: Lower | C10: =B05c!Acute_L -> 11.4 | E10: ='B05c'!Acute_L
B11: Upper | C11: =B05c!Acute_U -> 91.2 | E11: ='B05c'!Acute_U
A12: Receptor
A13: Body weight | B13: BW | C13: =A02b!$C$31 -> 0.01 | D13: kg | E13: Default
A14: Allometric coefficients for caloric requirement per day in kilocalories and BW in grams
B15: alpha | C15: =A02b!$C$32 -> 3.12 | E15: U.S. EPA/ORD 1993
B16: beta | C16: =A02b!$C$33 -> 0.605 | E16: U.S. EPA/ORD 1993
A17: Caloric requirement per day | B17: KR | C17: = alpha x (BW x 1kg/1000g)beta
C18: =C15*((C13*1000)^C16) -> 12.56477147 | D18: kcal/day | E18: Eq
A19: Caloric content of commodity (dry weight) | B19: KCD | C19: ='A03'!$E$42 -> 2 | D19: kcal/gdw [Note 1] | E19: U.S. EPA/ORD 1993
A20: Food consumed per day (dry weight) | B20: AmntDry | C20: = KR ÷ KCD
C21: =C18/C19 -> 6.282385735 | D21: gdry/day | E21: Eq
A22: Water content of food item as a proportion | B22: PropWater | C22: ='A03'!$E$43 -> 0.85 | D22: gwater/gfood | E22: U.S. EPA/ORD 1993
A23: Dry weight content of food item as a proportion | B23: PropDry | C23: = 1-PropWater
C24: =1-C22 -> 0.15 | D24: gdry/gfood | E24: Eq
A25: Variability in caloric requirements not accounted for by allometric equation | B25: Error
B26: Central | C26: 1 | D26: Note 2
B27: Lower | C27: 0.3
B28: Upper | C28: 1.7
A29: Amount of food consumed per day, wet weight | B29: AmntFood | C29: = Error x (AmntDry ÷ PropDry) ÷ (1000g/kg)
B30: Central | C30: =C26*(C$21/C$24)/1000 -> 0.04188257157 | D30: kgfood/day | E30: Eq
B31: Lower | C31: =C27*(C$21/C$24)/1000 -> 0.01256477147 | E31: Eq
B32: Upper | C32: 0.07120037167 | E32: Eq
A33: Estimate
A34: Dose | B34: Dose | C34: = AmntFood × Conc / BW
B35: Central | C35: =$C30 * C9/C$13 -> 135.2807062 | D35: mg/kg bw/day | E35: Eq
B36: Lower | C36: =$C31 * C10/C$13 -> 14.32383948 | E36: Eq
B37: Upper | C37: =$C32 * C11/C$13 -> 649.3473896 | E37: Eq

Sheet F07e
A1: Consumption of Short grass by a Bird, large after Acute exposure.
A2: Short Title | B2: Short grass | E2: FdKcalV6
A3: Receptor | B3: Bird, large
A4: Duration | B4: Acute | E4: Scenario parameter
A5: Material consumed | B5: Short grass
A6: Parameter/Assumption | B6: Code / Range | C6: Equation/ Value | D6: Units | E6: Reference/Designation
A7: Commodity
A8: Concentration on consumed commodity | B8: Conc
B9: Central | C9: =B05c!Acute_C -> 32.3 | D9: mg/kg food wet weight | E9: ='B05c'!Acute_C
B10: Lower | C10: =B05c!Acute_L -> 11.4 | E10: ='B05c'!Acute_L
B11: Upper | C11: =B05c!Acute_U -> 91.2 | E11: ='B05c'!Acute_U
A12: Receptor
A13: Body weight | B13: BW | C13: =A02b!$C$15 -> 4 | D13: kg | E13: Default
A14: Allometric coefficients for caloric requirement per day in kilocalories and BW in grams
B15: alpha | C15: =A02b!$C$16 -> 1.146 | E15: U.S. EPA/ORD 1993
B16: beta | C16: =A02b!$C$17 -> 0.749 | E16: U.S. EPA/ORD 1993
A17: Caloric requirement per day | B17: KR | C17: = alpha x (BW x 1kg/1000g)beta
C18: =C15*((C13*1000)^C16) -> 571.6465031 | D18: kcal/day | E18: Eq
A19: Caloric content of commodity (dry weight) | B19: KCD | C19: ='A03'!$E$42 -> 2 | D19: kcal/gdw [Note 1] | E19: U.S. EPA/ORD 1993
A20: Food consumed per day (dry weight) | B20: AmntDry | C20: = KR ÷ KCD
C21: =C18/C19 -> 285.8232515 | D21: gdry/day | E21: Eq
A22: Water content of food item as a proportion | B22: PropWater | C22: ='A03'!$E$43 -> 0.85 | D22: gwater/gfood | E22: U.S. EPA/ORD 1993
A23: Dry weight content of food item as a proportion | B23: PropDry | C23: = 1-PropWater
C24: =1-C22 -> 0.15 | D24: gdry/gfood | E24: Eq
A25: Variability in caloric requirements not accounted for by allometric equation | B25: Error
B26: Central | C26: 1 | D26: Note 2
B27: Lower | C27: 0.3
B28: Upper | C28: 1.7
A29: Amount of food consumed per day, wet weight | B29: AmntFood | C29: = Error x (AmntDry ÷ PropDry) ÷ (1000g/kg)
B30: Central | C30: =C26*(C$21/C$24)/1000 -> 1.905488344 | D30: kgfood/day | E30: Eq
B31: Lower | C31: =C27*(C$21/C$24)/1000 -> 0.5716465031 | E31: Eq
B32: Upper | C32: 3.239330184 | E32: Eq
A33: Estimate
A34: Dose | B34: Dose | C34: = AmntFood × Conc / BW
B35: Central | C35: =$C30 * C9/C$13 -> 15.38681837 | D35: mg/kg bw/day | E35: Eq
B36: Lower | C36: =$C31 * C10/C$13 -> 1.629192534 | E36: Eq
B37: Upper | C37: =$C32 * C11/C$13 -> 73.8567282 | E37: Eq

Sheet F08a
A1: Consumption of contaminated water by Mammal, small, Peak Concentrations
A2: Short Title | B2: Peak Concentrations | E2: WatAlloV6
A3: Receptor | B3: Mammal, small
A4: Duration | B4: Acute | E4: Scenario parameter
A5: Parameter/Assumption | B5: Code / Range | C5: Equation/ Value | D5: Units | E5: Reference/Designation
A6: Concentration in water | B6: ConcWat
B7: Central | C7: =B04a!Acute_C -> 0.00399 | D7: mg/L | E7: ='B04a'!Acute_C
B8: Lower | C8: =B04a!Acute_L -> 0.0007486 | E8: ='B04a'!Acute_L
B9: Upper | C9: =B04a!Acute_U -> 0.021128 | E9: ='B04a'!Acute_U
A10: Receptor
A11: Body weight | B11: BW | C11: =A02b!$C$71 -> 0.02 | D11: kg | E11: Default
A12: Allometric coefficients forwater consumption per day in liters and BW in kilograms
B13: alpha | C13: =A02b!$C$79 -> 0.099 | E13: U.S. EPA/ORD 1993
B14: beta | C14: =A02b!$C$80 -> 0.9 | E14: U.S. EPA/ORD 1993
A15: Amount of water consumed per day | C15: Amnt = alpha BW beta
B16: Amnt | C16: =C13*(C11^C14) -> 0.002927940121 | D16: liters | E16: Eq
A17: Absorbed Dose | B17: Dose | C17: ConcWat × Amnt ÷ BW
B18: Central | C18: =C7*C$16/C$11 -> 0.000584124054 | D18: mg/kg | E18: Eq
B19: Lower | C19: =C8*C$16/C$11 -> 0.0001095927987 | D19: mg/kg | E19: Eq
B20: Upper | C20: =C9*C$16/C$11 -> 0.003093075943 | D20: mg/kg | E20: Eq

Sheet F08b
A1: Consumption of contaminated water by Mammal, 400 g, Peak Concentrations
A2: Short Title | B2: Peak Concentrations | E2: WatAlloV6
A3: Receptor | B3: Mammal, 400 g
A4: Duration | B4: Acute | E4: Scenario parameter
A5: Parameter/Assumption | B5: Code / Range | C5: Equation/ Value | D5: Units | E5: Reference/Designation
A6: Concentration in water | B6: ConcWat
B7: Central | C7: =B04a!Acute_C -> 0.00399 | D7: mg/L | E7: ='B04a'!Acute_C
B8: Lower | C8: =B04a!Acute_L -> 0.0007486 | E8: ='B04a'!Acute_L
B9: Upper | C9: =B04a!Acute_U -> 0.021128 | E9: ='B04a'!Acute_U
A10: Receptor
A11: Body weight | B11: BW | C11: =A02b!$C$40 -> 0.4 | D11: kg | E11: Default
A12: Allometric coefficients forwater consumption per day in liters and BW in kilograms
B13: alpha | C13: =A02b!$C$45 -> 0.099 | E13: U.S. EPA/ORD 1993
B14: beta | C14: =A02b!$C$46 -> 0.9 | E14: U.S. EPA/ORD 1993
A15: Amount of water consumed per day | C15: Amnt = alpha BW beta
B16: Amnt | C16: =C13*(C11^C14) -> 0.04339994576 | D16: liters | E16: Eq
A17: Absorbed Dose | B17: Dose | C17: ConcWat × Amnt ÷ BW
B18: Central | C18: =C7*C$16/C$11 -> 0.000432914459 | D18: mg/kg | E18: Eq
B19: Lower | C19: =C8*C$16/C$11 -> 8.12229985e-05 | D19: mg/kg | E19: Eq
B20: Upper | C20: =C9*C$16/C$11 -> 0.002292385135 | D20: mg/kg | E20: Eq

Sheet F08c
A1: Consumption of contaminated water by Mammal, carnivorous, Peak Concentrations
A2: Short Title | B2: Peak Concentrations | E2: WatAlloV6
A3: Receptor | B3: Mammal, carnivorous
A4: Duration | B4: Acute | E4: Scenario parameter
A5: Parameter/Assumption | B5: Code / Range | C5: Equation/ Value | D5: Units | E5: Reference/Designation
A6: Concentration in water | B6: ConcWat
B7: Central | C7: =B04a!Acute_C -> 0.00399 | D7: mg/L | E7: ='B04a'!Acute_C
B8: Lower | C8: =B04a!Acute_L -> 0.0007486 | E8: ='B04a'!Acute_L
B9: Upper | C9: =B04a!Acute_U -> 0.021128 | E9: ='B04a'!Acute_U
A10: Receptor
A11: Body weight | B11: BW | C11: =A02b!$C$47 -> 5 | D11: kg | E11: U.S. EPA/ORD 1993
A12: Allometric coefficients forwater consumption per day in liters and BW in kilograms
B13: alpha | C13: =A02b!$C$50 -> 0.099 | E13: U.S. EPA/ORD 1993
B14: beta | C14: =A02b!$C$51 -> 0.9 | E14: U.S. EPA/ORD 1993
A15: Amount of water consumed per day | C15: Amnt = alpha BW beta
B16: Amnt | C16: =C13*(C11^C14) -> 0.4214132616 | D16: liters | E16: Eq
A17: Absorbed Dose | B17: Dose | C17: ConcWat × Amnt ÷ BW
B18: Central | C18: =C7*C$16/C$11 -> 0.0003362877828 | D18: mg/kg | E18: Eq
B19: Lower | C19: =C8*C$16/C$11 -> 6.309399353e-05 | D19: mg/kg | E19: Eq
B20: Upper | C20: =C9*C$16/C$11 -> 0.001780723878 | D20: mg/kg | E20: Eq

Sheet F08d
A1: Consumption of contaminated water by Mammal, large, Peak Concentrations
A2: Short Title | B2: Peak Concentrations | E2: WatAlloV6
A3: Receptor | B3: Mammal, large
A4: Duration | B4: Acute | E4: Scenario parameter
A5: Parameter/Assumption | B5: Code / Range | C5: Equation/ Value | D5: Units | E5: Reference/Designation
A6: Concentration in water | B6: ConcWat
B7: Central | C7: =B04a!Acute_C -> 0.00399 | D7: mg/L | E7: ='B04a'!Acute_C
B8: Lower | C8: =B04a!Acute_L -> 0.0007486 | E8: ='B04a'!Acute_L
B9: Upper | C9: =B04a!Acute_U -> 0.021128 | E9: ='B04a'!Acute_U
A10: Receptor
A11: Body weight | B11: BW | C11: =A02b!$C$61 -> 70 | D11: kg | E11: Default
A12: Allometric coefficients forwater consumption per day in liters and BW in kilograms
B13: alpha | C13: =A02b!$C$64 -> 0.099 | E13: U.S. EPA/ORD 1993
B14: beta | C14: =A02b!$C$65 -> 0.9 | E14: U.S. EPA/ORD 1993
A15: Amount of water consumed per day | C15: Amnt = alpha BW beta
B16: Amnt | C16: =C13*(C11^C14) -> 4.531306412 | D16: liters | E16: Eq
A17: Absorbed Dose | B17: Dose | C17: ConcWat × Amnt ÷ BW
B18: Central | C18: =C7*C$16/C$11 -> 0.0002582844655 | D18: mg/kg | E18: Eq
B19: Lower | C19: =C8*C$16/C$11 -> 4.845908542e-05 | D19: mg/kg | E19: Eq
B20: Upper | C20: =C9*C$16/C$11 -> 0.001367677741 | D20: mg/kg | E20: Eq

Sheet F08e
A1: Consumption of contaminated water by Bird, small, Peak Concentrations
A2: Short Title | B2: Peak Concentrations | E2: WatAlloV6
A3: Receptor | B3: Bird, small
A4: Duration | B4: Acute | E4: Scenario parameter
A5: Parameter/Assumption | B5: Code / Range | C5: Equation/ Value | D5: Units | E5: Reference/Designation
A6: Concentration in water | B6: ConcWat
B7: Central | C7: =B04a!Acute_C -> 0.00399 | D7: mg/L | E7: ='B04a'!Acute_C
B8: Lower | C8: =B04a!Acute_L -> 0.0007486 | E8: ='B04a'!Acute_L
B9: Upper | C9: =B04a!Acute_U -> 0.021128 | E9: ='B04a'!Acute_U
A10: Receptor
A11: Body weight | B11: BW | C11: =A02b!$C$31 -> 0.01 | D11: kg | E11: Default
A12: Allometric coefficients forwater consumption per day in liters and BW in kilograms
B13: alpha | C13: =A02b!$C$34 -> 0.059 | E13: U.S. EPA/ORD 1993
B14: beta | C14: =A02b!$C$35 -> 0.67 | E14: U.S. EPA/ORD 1993
A15: Amount of water consumed per day | C15: Amnt = alpha BW beta
B16: Amnt | C16: =C13*(C11^C14) -> 0.002696820319 | D16: liters | E16: Eq
A17: Absorbed Dose | B17: Dose | C17: ConcWat × Amnt ÷ BW
B18: Central | C18: =C7*C$16/C$11 -> 0.001076031307 | D18: mg/kg | E18: Eq
B19: Lower | C19: =C8*C$16/C$11 -> 0.0002018839691 | D19: mg/kg | E19: Eq
B20: Upper | C20: =C9*C$16/C$11 -> 0.005697841969 | D20: mg/kg | E20: Eq

Sheet F08f
A1: Consumption of contaminated water by Bird, large, Peak Concentrations
A2: Short Title | B2: Peak Concentrations | E2: WatAlloV6
A3: Receptor | B3: Bird, large
A4: Duration | B4: Acute | E4: Scenario parameter
A5: Parameter/Assumption | B5: Code / Range | C5: Equation/ Value | D5: Units | E5: Reference/Designation
A6: Concentration in water | B6: ConcWat
B7: Central | C7: =B04a!Acute_C -> 0.00399 | D7: mg/L | E7: ='B04a'!Acute_C
B8: Lower | C8: =B04a!Acute_L -> 0.0007486 | E8: ='B04a'!Acute_L
B9: Upper | C9: =B04a!Acute_U -> 0.021128 | E9: ='B04a'!Acute_U
A10: Receptor
A11: Body weight | B11: BW | C11: =A02b!$C$15 -> 4 | D11: kg | E11: Default
A12: Allometric coefficients forwater consumption per day in liters and BW in kilograms
B13: alpha | C13: =A02b!$C$18 -> 0.059 | E13: U.S. EPA/ORD 1993
B14: beta | C14: =A02b!$C$19 -> 0.67 | E14: U.S. EPA/ORD 1993
A15: Amount of water consumed per day | C15: Amnt = alpha BW beta
B16: Amnt | C16: =C13*(C11^C14) -> 0.1493592781 | D16: liters | E16: Eq
A17: Absorbed Dose | B17: Dose | C17: ConcWat × Amnt ÷ BW
B18: Central | C18: =C7*C$16/C$11 -> 0.0001489858799 | D18: mg/kg | E18: Eq
B19: Lower | C19: =C8*C$16/C$11 -> 2.795258889e-05 | D19: mg/kg | E19: Eq
B20: Upper | C20: =C9*C$16/C$11 -> 0.0007889157069 | D20: mg/kg | E20: Eq

Sheet F09a
A1: Consumption of Small Insects by a Mammal, small after Acute exposure.
A2: Short Title | B2: Small Insects | E2: FdKcalV6
A3: Receptor | B3: Mammal, small
A4: Duration | B4: Acute | E4: Scenario parameter
A5: Material consumed | B5: Small Insects
A6: Parameter/Assumption | B6: Code / Range | C6: Equation/ Value | D6: Units | E6: Reference/Designation
A7: Commodity
A8: Concentration on consumed commodity | B8: Conc
B9: Central | C9: =B05b!Acute_C -> 17.1 | D9: mg/kg food wet weight | E9: ='B05b'!Acute_C
B10: Lower | C10: =B05b!Acute_L -> 5.7 | E10: ='B05b'!Acute_L
B11: Upper | C11: =B05b!Acute_U -> 51.3 | E11: ='B05b'!Acute_U
A12: Receptor
A13: Body weight | B13: BW | C13: =A02b!$C$71 -> 0.02 | D13: kg | E13: Default
A14: Allometric coefficients for caloric requirement per day in kilocalories and BW in grams
B15: alpha | C15: =A02b!$C$75 -> 2.514 | E15: U.S. EPA/ORD 1993
B16: beta | C16: =A02b!$C$76 -> 0.507 | E16: U.S. EPA/ORD 1993
A17: Caloric requirement per day | B17: KR | C17: = alpha x (BW x 1kg/1000g)beta
C18: =C15*((C13*1000)^C16) -> 11.48120526 | D18: kcal/day | E18: Eq
A19: Caloric content of commodity (dry weight) | B19: KCD | C19: ='A03'!$E$63 -> 4.47 | D19: kcal/gdw [Note 1] | E19: U.S. EPA/ORD 1993
A20: Food consumed per day (dry weight) | B20: AmntDry | C20: = KR ÷ KCD
C21: =C18/C19 -> 2.568502294 | D21: gdry/day | E21: Eq
A22: Water content of food item as a proportion | B22: PropWater | C22: ='A03'!$E$64 -> 0.7 | D22: gwater/gfood | E22: Chapman 1998
A23: Dry weight content of food item as a proportion | B23: PropDry | C23: = 1-PropWater
C24: =1-C22 -> 0.3 | D24: gdry/gfood | E24: Eq
A25: Variability in caloric requirements not accounted for by allometric equation | B25: Error
B26: Central | C26: 1 | D26: Note 2
B27: Lower | C27: 0.3
B28: Upper | C28: 1.7
A29: Amount of food consumed per day, wet weight | B29: AmntFood | C29: = Error x (AmntDry ÷ PropDry) ÷ (1000g/kg)
B30: Central | C30: =C26*(C$21/C$24)/1000 -> 0.008561674315 | D30: kgfood/day | E30: Eq
B31: Lower | C31: =C27*(C$21/C$24)/1000 -> 0.002568502294 | E31: Eq
B32: Upper | C32: 0.01455484634 | E32: Eq
A33: Estimate
A34: Dose | B34: Dose | C34: = AmntFood × Conc / BW
B35: Central | C35: =$C30 * C9/C$13 -> 7.320231539 | D35: mg/kg bw/day | E35: Eq
B36: Lower | C36: =$C31 * C10/C$13 -> 0.7320231539 | E36: Eq
B37: Upper | C37: =$C32 * C11/C$13 -> 37.33318085 | E37: Eq

Sheet F09b
A1: Consumption of Small Insects by a Mammal, 400 g after Acute exposure.
A2: Short Title | B2: Small Insects | E2: FdKcalV6
A3: Receptor | B3: Mammal, 400 g
A4: Duration | B4: Acute | E4: Scenario parameter
A5: Material consumed | B5: Small Insects
A6: Parameter/Assumption | B6: Code / Range | C6: Equation/ Value | D6: Units | E6: Reference/Designation
A7: Commodity
A8: Concentration on consumed commodity | B8: Conc
B9: Central | C9: =B05b!Acute_C -> 17.1 | D9: mg/kg food wet weight | E9: ='B05b'!Acute_C
B10: Lower | C10: =B05b!Acute_L -> 5.7 | E10: ='B05b'!Acute_L
B11: Upper | C11: =B05b!Acute_U -> 51.3 | E11: ='B05b'!Acute_U
A12: Receptor
A13: Body weight | B13: BW | C13: =A02b!$C$40 -> 0.4 | D13: kg | E13: Default
A14: Allometric coefficients for caloric requirement per day in kilocalories and BW in grams
B15: alpha | C15: =A02b!$C$43 -> 2.514 | E15: U.S. EPA/ORD 1993
B16: beta | C16: =A02b!$C$44 -> 0.507 | E16: U.S. EPA/ORD 1993
A17: Caloric requirement per day | B17: KR | C17: = alpha x (BW x 1kg/1000g)beta
C18: =C15*((C13*1000)^C16) -> 52.43360149 | D18: kcal/day | E18: Eq
A19: Caloric content of commodity (dry weight) | B19: KCD | C19: ='A03'!$E$63 -> 4.47 | D19: kcal/gdw [Note 1] | E19: U.S. EPA/ORD 1993
A20: Food consumed per day (dry weight) | B20: AmntDry | C20: = KR ÷ KCD
C21: =C18/C19 -> 11.73011219 | D21: gdry/day | E21: Eq
A22: Water content of food item as a proportion | B22: PropWater | C22: ='A03'!$E$64 -> 0.7 | D22: gwater/gfood | E22: Chapman 1998
A23: Dry weight content of food item as a proportion | B23: PropDry | C23: = 1-PropWater
C24: =1-C22 -> 0.3 | D24: gdry/gfood | E24: Eq
A25: Variability in caloric requirements not accounted for by allometric equation | B25: Error
B26: Central | C26: 1 | D26: Note 2
B27: Lower | C27: 0.3
B28: Upper | C28: 1.7
A29: Amount of food consumed per day, wet weight | B29: AmntFood | C29: = Error x (AmntDry ÷ PropDry) ÷ (1000g/kg)
B30: Central | C30: =C26*(C$21/C$24)/1000 -> 0.03910037396 | D30: kgfood/day | E30: Eq
B31: Lower | C31: =C27*(C$21/C$24)/1000 -> 0.01173011219 | E31: Eq
B32: Upper | C32: 0.06647063574 | E32: Eq
A33: Estimate
A34: Dose | B34: Dose | C34: = AmntFood × Conc / BW
B35: Central | C35: =$C30 * C9/C$13 -> 1.671540987 | D35: mg/kg bw/day | E35: Eq
B36: Lower | C36: =$C31 * C10/C$13 -> 0.1671540987 | E36: Eq
B37: Upper | C37: =$C32 * C11/C$13 -> 8.524859034 | E37: Eq

Sheet F09c
A1: Consumption of Small Insects by a Bird, small after Acute exposure.
A2: Short Title | B2: Small Insects | E2: FdKcalV6
A3: Receptor | B3: Bird, small
A4: Duration | B4: Acute | E4: Scenario parameter
A5: Material consumed | B5: Small Insects
A6: Parameter/Assumption | B6: Code / Range | C6: Equation/ Value | D6: Units | E6: Reference/Designation
A7: Commodity
A8: Concentration on consumed commodity | B8: Conc
B9: Central | C9: =B05b!Acute_C -> 17.1 | D9: mg/kg food wet weight | E9: ='B05b'!Acute_C
B10: Lower | C10: =B05b!Acute_L -> 5.7 | E10: ='B05b'!Acute_L
B11: Upper | C11: =B05b!Acute_U -> 51.3 | E11: ='B05b'!Acute_U
A12: Receptor
A13: Body weight | B13: BW | C13: =A02b!$C$31 -> 0.01 | D13: kg | E13: Default
A14: Allometric coefficients for caloric requirement per day in kilocalories and BW in grams
B15: alpha | C15: =A02b!$C$32 -> 3.12 | E15: U.S. EPA/ORD 1993
B16: beta | C16: =A02b!$C$33 -> 0.605 | E16: U.S. EPA/ORD 1993
A17: Caloric requirement per day | B17: KR | C17: = alpha x (BW x 1kg/1000g)beta
C18: =C15*((C13*1000)^C16) -> 12.56477147 | D18: kcal/day | E18: Eq
A19: Caloric content of commodity (dry weight) | B19: KCD | C19: ='A03'!$E$40 -> 4.3 | D19: kcal/gdw [Note 1] | E19: U.S. EPA/ORD 1993
A20: Food consumed per day (dry weight) | B20: AmntDry | C20: = KR ÷ KCD
C21: =C18/C19 -> 2.922039877 | D21: gdry/day | E21: Eq
A22: Water content of food item as a proportion | B22: PropWater | C22: ='A03'!$E$41 -> 0.7 | D22: gwater/gfood | E22: Chapman 1998
A23: Dry weight content of food item as a proportion | B23: PropDry | C23: = 1-PropWater
C24: =1-C22 -> 0.3 | D24: gdry/gfood | E24: Eq
A25: Variability in caloric requirements not accounted for by allometric equation | B25: Error
B26: Central | C26: 1 | D26: Note 2
B27: Lower | C27: 0.3
B28: Upper | C28: 1.7
A29: Amount of food consumed per day, wet weight | B29: AmntFood | C29: = Error x (AmntDry ÷ PropDry) ÷ (1000g/kg)
B30: Central | C30: =C26*(C$21/C$24)/1000 -> 0.009740132923 | D30: kgfood/day | E30: Eq
B31: Lower | C31: =C27*(C$21/C$24)/1000 -> 0.002922039877 | E31: Eq
B32: Upper | C32: 0.01655822597 | E32: Eq
A33: Estimate
A34: Dose | B34: Dose | C34: = AmntFood × Conc / BW
B35: Central | C35: =$C30 * C9/C$13 -> 16.6556273 | D35: mg/kg bw/day | E35: Eq
B36: Lower | C36: =$C31 * C10/C$13 -> 1.66556273 | E36: Eq
B37: Upper | C37: =$C32 * C11/C$13 -> 84.94369922 | E37: Eq

Sheet F10a
A1: Consumption of Small Mammal by Mammal, carnivorous, acute exposure scenario
A2: Short Title | B2: Consumption of Abrev(Prey) | E2: SmMKcalInd_Ac
A3: Predator | B3: Mammal, carnivorous
A4: Duration | B4: Acute
A5: Prey | B5: Mammal, small
A6: Parameter/Assumption | B6: Code / Range | C6: Equation/ Value | D6: Units | E6: Reference/Designation
A7: Application rate, lb/acre | B7: ApRlb/ac | C7: ='A01'!ApRt_C -> 0.38 | D7: lb/acre | E7: Worksheet A01
A8: Conversion Factor for lbs/acre to mg/cm2 | B8: CnvF | C8: 0.01121 | D8: mg/cm2/lb/acre
A9: Application rate, mg/cm2 | B9: ApRmgcm | C9: ApRlb/a × CnvF
C10: =C7*C$8 -> 0.0042598 | D10: lb/acre | E10: Eq
A11: Prey
A12: Body weight | B12: BWPrey | C12: =A02b!$C$71 -> 0.02 | D12: kg | E12: Default
A13: Allometric coefficients for surface area
B14: alpha | C14: =A02b!$C$77 -> 0.11 | E14: U.S. EPA/ORD 1993
B15: beta | C15: =A02b!$C$78 -> 0.65 | E15: U.S. EPA/ORD 1993
A16: Surface Area of Prey Species (m2) | B16: SAPreyM | C16: alpha x Bwbeta
C17: =C14 * C12^C15 -> 0.008650917739 | D17: meters
A18: Surface Area of Prey Species (cm2) | B18: SAPrey | C18: SAPreyM x 10,000 cm/m2
C19: =C17*10000 -> 86.50917739 | D19: cm2 | E19: Eq
A20: Proportion of body surface sprayed | B20: PrpSA | C20: 0.5 | D20: unitless | E20: Scenario parameter
A21: Amount Deposited on Skin | B21: AmntPrey | C21: ApRmgcm × SA × PrpSA
B22: Central | C22: =C$10*C$19*C$20 -> 0.1842558969 | D22: mg | E22: Eq
A23: Toxic Equivalency Factor for formulation: (See risk assessment if this has a value other than 1.) | B23: TEF
B24: Central | C24: ='A01'!C$35 -> 1 | D24: unitless | E24: Worksheet A01
B25: Lower | C25: ='A01'!C$36 -> 1 | E25: Worksheet A01
B26: Upper | C26: ='A01'!C$37 -> 1 | E26: Worksheet A01
A27: Concentration on prey item after direct spray | B27: DosePrey | C27: NPrey x Amnt x TEF ÷ BW
B28: Central | C28: =C$22*C24/C$12 -> 9.212794846 | D28: mg/kg bw | E28: Eq
B29: Lower | C29: =C$22*C25/C$12 -> 9.212794846 | E29: Eq
B30: Upper | C30: =C$22*C26/C$12 -> 9.212794846 | E30: Eq
A31: Predator
A32: Body weight | B32: BW | C32: =A02b!$C$47 -> 5 | D32: kg | E32: U.S. EPA/ORD 1993
A33: Allometric coefficients for caloric requirement per day in kilocalories and BW in grams
B34: alpha | C34: =A02b!$C$48 -> 0.6167 | E34: U.S. EPA/ORD 1993
B35: beta | C35: =A02b!$C$49 -> 0.862 | E35: U.S. EPA/ORD 1993
A36: Caloric requirement per day | B36: KR | C36: =C34*((C32*1000)^C35) -> 951.8885266 | D36: kcal/day | E36: Eq
A37: Caloric content of prey (wet weight) | B37: KCW | C37: =A02b!$C$72 -> 1.7 | D37: kcal/g | E37: U.S. EPA/ORD 1993
A38: Variability in caloric requirements not accounted for by allometric equation | B38: Error
B39: Central | C39: 1 | D39: Note 1
B40: Lower | C40: 0.3
B41: Upper | C41: 1.7
A42: Amount of food consumed per day, wet weight | B42: Amnt | C42: (KR ÷ KCW)/1000 g/kg
C43: =(C36/C37)/1000 -> 0.5599344274 | D43: kg | E43: Eq
A44: Dose | B44: Dose | C44: Error × Amnt × DosePrey / BW
B45: Central | C45: =C39* C$43 * C28/C$32 -> 1.031712201 | D45: mg/kg bw | E45: Eq
B46: Lower | C46: =C40* C$43 * C29/C$32 -> 0.3095136604 | E46: Eq
B47: Upper | C47: 1.753910742 | E47: Eq

Sheet F10b
A1: Consumption of Small Mammal by Bird, carnivorous, acute exposure scenario
A2: Short Title | B2: Consumption of Abrev(Prey) | E2: SmMKcalInd_Ac
A3: Predator | B3: Bird, carnivorous
A4: Duration | B4: Acute
A5: Prey | B5: Mammal, small
A6: Parameter/Assumption | B6: Code / Range | C6: Equation/ Value | D6: Units | E6: Reference/Designation
A7: Application rate, lb/acre | B7: ApRlb/ac | C7: ='A01'!ApRt_C -> 0.38 | D7: lb/acre | E7: Worksheet A01
A8: Conversion Factor for lbs/acre to mg/cm2 | B8: CnvF | C8: 0.01121 | D8: mg/cm2/lb/acre
A9: Application rate, mg/cm2 | B9: ApRmgcm | C9: ApRlb/a × CnvF
C10: =C7*C$8 -> 0.0042598 | D10: lb/acre | E10: Eq
A11: Prey
A12: Body weight | B12: BWPrey | C12: =A02b!$C$71 -> 0.02 | D12: kg | E12: Default
A13: Allometric coefficients for surface area
B14: alpha | C14: =A02b!$C$77 -> 0.11 | E14: U.S. EPA/ORD 1993
B15: beta | C15: =A02b!$C$78 -> 0.65 | E15: U.S. EPA/ORD 1993
A16: Surface Area of Prey Species (m2) | B16: SAPreyM | C16: alpha x Bwbeta
C17: =C14 * C12^C15 -> 0.008650917739 | D17: meters
A18: Surface Area of Prey Species (cm2) | B18: SAPrey | C18: SAPreyM x 10,000 cm/m2
C19: =C17*10000 -> 86.50917739 | D19: cm2 | E19: Eq
A20: Proportion of body surface sprayed | B20: PrpSA | C20: 0.5 | D20: unitless | E20: Scenario parameter
A21: Amount Deposited on Skin | B21: AmntPrey | C21: ApRmgcm × SA × PrpSA
B22: Central | C22: =C$10*C$19*C$20 -> 0.1842558969 | D22: mg | E22: Eq
A23: Toxic Equivalency Factor for formulation: (See risk assessment if this has a value other than 1.) | B23: TEF
B24: Central | C24: ='A01'!C$35 -> 1 | D24: unitless | E24: Worksheet A01
B25: Lower | C25: ='A01'!C$36 -> 1 | E25: Worksheet A01
B26: Upper | C26: ='A01'!C$37 -> 1 | E26: Worksheet A01
A27: Concentration on prey item after direct spray | B27: DosePrey | C27: NPrey x Amnt x TEF ÷ BW
B28: Central | C28: =C$22*C24/C$12 -> 9.212794846 | D28: mg/kg bw | E28: Eq
B29: Lower | C29: =C$22*C25/C$12 -> 9.212794846 | E29: Eq
B30: Upper | C30: =C$22*C26/C$12 -> 9.212794846 | E30: Eq
A31: Predator
A32: Body weight | B32: BW | C32: =A02b!$C$10 -> 0.64 | D32: kg | E32: Dunning 1993
A33: Allometric coefficients for caloric requirement per day in kilocalories and BW in grams
B34: alpha | C34: =A02b!$C$11 -> 1.146 | E34: U.S. EPA/ORD 1993
B35: beta | C35: =A02b!$C$12 -> 0.749 | E35: U.S. EPA/ORD 1993
A36: Caloric requirement per day | B36: KR | C36: =C34*((C32*1000)^C35) -> 144.8816616 | D36: kcal/day | E36: Eq
A37: Caloric content of prey (wet weight) | B37: KCW | C37: =A02b!$C$72 -> 1.7 | D37: kcal/g | E37: U.S. EPA/ORD 1993
A38: Variability in caloric requirements not accounted for by allometric equation | B38: Error
B39: Central | C39: 1 | D39: Note 1
B40: Lower | C40: 0.3
B41: Upper | C41: 1.7
A42: Amount of food consumed per day, wet weight | B42: Amnt | C42: (KR ÷ KCW)/1000 g/kg
C43: =(C36/C37)/1000 -> 0.08522450683 | D43: kg | E43: Eq
A44: Dose | B44: Dose | C44: Error × Amnt × DosePrey / BW
B45: Central | C45: =C39* C$43 * C28/C$32 -> 1.226806089 | D45: mg/kg bw | E45: Eq
B46: Lower | C46: =C40* C$43 * C29/C$32 -> 0.3680418268 | E46: Eq
B47: Upper | C47: 2.085570352 | E47: Eq

Sheet F11a
A1: Acute scenario for the consumption of Contaminated Fish (Peak) by Mammal, large carnivorous
A2: Short Title | B2: Fish consumption, accidental spill | E2: FishKcalV6
A3: Predator | B3: Mammal, large carnivorous
A4: Food Item (Prey) | B4: Fish
A5: Duration | B5: Acute | E5: Scenario parameter
A6: Parameter/Assumption | B6: Code / Range | C6: Equation/ Value | D6: Units | E6: Reference/Designation
A7: Water
A8: Concentration in water | B8: ConcWat
B9: Central | C9: =B04a!Acute_C -> 0.00399 | D9: mg/L | E9: ='B04a'!Acute_C
B10: Lower | C10: =B04a!Acute_L -> 0.0007486 | E10: ='B04a'!Acute_L
B11: Upper | C11: =B04a!Acute_U -> 0.021128 | E11: ='B04a'!Acute_U
A12: Fish
A13: Bioconcentration factor | B13: BCF
B14: Central | C14: ='B01'!$C$6 -> 3.5 | D14: L/kg | E14: Harvey (1981, 1990)
B15: Lower | C15: ='B01'!$C$6 -> 3.5 | E15: Harvey (1981, 1990)
B16: Upper | C16: ='B01'!$C$6 -> 3.5 | E16: Harvey (1981, 1990)
A17: Concentration in fish | B17: ConcFish | C17: ConcWat × BCF
B18: Central | C18: =C9*C14 -> 0.013965 | D18: mg/kg | E18: Eq
B19: Lower | C19: =C10*C15 -> 0.0026201 | E19: Eq
B20: Upper | C20: =C11*C16 -> 0.073948 | E20: Eq
A21: Receptor
A22: Body weight | B22: BW | C22: =A02b!$C$52 -> 70 | D22: kg | E22: Reid 2006
A23: Allometric coefficients for caloric requirement per day in kilocalories and BW in grams
B24: alpha | C24: =A02b!$C$53 -> 0.6167 | E24: U.S. EPA/ORD 1993
B25: beta | C25: =A02b!$C$54 -> 0.862 | E25: U.S. EPA/ORD 1993
A26: Caloric requirement per day | B26: KR | C26: =C24*(C22*1000)^C25 -> 9258.666883 | D26: kcal/day | E26: Eq
A27: Caloric content of commodity (dry weight) | B27: KCD | C27: ='A03'!$E$59 -> 4.47 | D27: kcal/gdw [Note 1] | E27: U.S. EPA/ORD 1993
A28: Food consumed per day (dry weight) | B28: AmntDry | C28: = KR ÷ KCD
C29: =C26/C27 -> 2071.29013 | D29: gdry/day | E29: Eq
A30: Water content of vegetation as a proportion | B30: PropWater | C30: ='A03'!$E$60 -> 0.7 | D30: gwater/gfood | E30: Ali et al. 2005
A31: Dry weight content of vegetation as a proportion | B31: PropDry | C31: = 1-PropWater
C32: =1-C30 -> 0.3 | D32: gdry/gfood | E32: Eq
A33: Amount of fish consumed per day, wet weight | B33: AmntFish | C33: = (AmntDry ÷ PropDry) ÷ (1000g/kg)
B34: Central | C34: =(C29/C32)/1000 -> 6.904300435 | D34: kgfood/day | E34: Eq
B35: Lower | C35: =C34*0.3 -> 2.07129013 | D35: Note 1 | E35: Eq
B36: Upper | C36: =C34*1.7 -> 11.73731074 | D36: Note 1 | E36: Eq
A37: Proportion of diet that is contaminated | B37: Prop
B38: Central | C38: 0.3 | D38: Unitless | E38: Scenario parameter
B39: Lower | C39: 0.1 | E39: Scenario parameter
B40: Upper | C40: 1 | E40: Scenario parameter
A41: Dose
A42: Toxic Equivalency Factor for formulation: (See risk assessment if this has a value other than 1.) | B42: TEF
B43: Central | C43: ='A01'!C$35 -> 1 | D43: Unitless | E43: Worksheet A01
B44: Lower | C44: ='A01'!C$36 -> 1 | D44: Note 2 | E44: Worksheet A01
B45: Upper | C45: ='A01'!C$37 -> 1 | D45: Note 2 | E45: Worksheet A01
A46: Dose | B46: Dose | C46: = ConcFish × AmntFish × Prop ÷ BW
B47: Central | C47: =C18*C34*C38/C$22 -> 0.000413222381 | D47: mg/kg | E47: Eq
B48: Lower | C48: =C19*C35*C39/C$22 -> 7.752838958e-06 | D48: mg/kg | E48: Eq
B49: Upper | C49: 0.01239929506 | D49: mg/kg | E49: Eq
E50: FishKcalV6

Sheet F11b
A1: Acute scenario for the consumption of Contaminated Fish (Peak) by Mammal, carnivorous
A2: Short Title | B2: Fish consumption, accidental spill | E2: FishKcalV6
A3: Predator | B3: Mammal, carnivorous
A4: Food Item (Prey) | B4: Fish
A5: Duration | B5: Acute | E5: Scenario parameter
A6: Parameter/Assumption | B6: Code / Range | C6: Equation/ Value | D6: Units | E6: Reference/Designation
A7: Water
A8: Concentration in water | B8: ConcWat
B9: Central | C9: =B04a!Acute_C -> 0.00399 | D9: mg/L | E9: ='B04a'!Acute_C
B10: Lower | C10: =B04a!Acute_L -> 0.0007486 | E10: ='B04a'!Acute_L
B11: Upper | C11: =B04a!Acute_U -> 0.021128 | E11: ='B04a'!Acute_U
A12: Fish
A13: Bioconcentration factor | B13: BCF
B14: Central | C14: ='B01'!$C$6 -> 3.5 | D14: L/kg | E14: Harvey (1981, 1990)
B15: Lower | C15: ='B01'!$C$6 -> 3.5 | E15: Harvey (1981, 1990)
B16: Upper | C16: ='B01'!$C$6 -> 3.5 | E16: Harvey (1981, 1990)
A17: Concentration in fish | B17: ConcFish | C17: ConcWat × BCF
B18: Central | C18: =C9*C14 -> 0.013965 | D18: mg/kg | E18: Eq
B19: Lower | C19: =C10*C15 -> 0.0026201 | E19: Eq
B20: Upper | C20: =C11*C16 -> 0.073948 | E20: Eq
A21: Receptor
A22: Body weight | B22: BW | C22: =A02b!$C$47 -> 5 | D22: kg | E22: U.S. EPA/ORD 1993
A23: Allometric coefficients for caloric requirement per day in kilocalories and BW in grams
B24: alpha | C24: =A02b!$C$48 -> 0.6167 | E24: U.S. EPA/ORD 1993
B25: beta | C25: =A02b!$C$49 -> 0.862 | E25: U.S. EPA/ORD 1993
A26: Caloric requirement per day | B26: KR | C26: =C24*(C22*1000)^C25 -> 951.8885266 | D26: kcal/day | E26: Eq
A27: Caloric content of commodity (dry weight) | B27: KCD | C27: ='A03'!$E$59 -> 4.47 | D27: kcal/gdw [Note 1] | E27: U.S. EPA/ORD 1993
A28: Food consumed per day (dry weight) | B28: AmntDry | C28: = KR ÷ KCD
C29: =C26/C27 -> 212.9504534 | D29: gdry/day | E29: Eq
A30: Water content of vegetation as a proportion | B30: PropWater | C30: ='A03'!$E$60 -> 0.7 | D30: gwater/gfood | E30: Ali et al. 2005
A31: Dry weight content of vegetation as a proportion | B31: PropDry | C31: = 1-PropWater
C32: =1-C30 -> 0.3 | D32: gdry/gfood | E32: Eq
A33: Amount of fish consumed per day, wet weight | B33: AmntFish | C33: = (AmntDry ÷ PropDry) ÷ (1000g/kg)
B34: Central | C34: =(C29/C32)/1000 -> 0.7098348446 | D34: kgfood/day | E34: Eq
B35: Lower | C35: =C34*0.3 -> 0.2129504534 | D35: Note 1 | E35: Eq
B36: Upper | C36: =C34*1.7 -> 1.206719236 | D36: Note 1 | E36: Eq
A37: Proportion of diet that is contaminated | B37: Prop
B38: Central | C38: 0.3 | D38: Unitless | E38: Scenario parameter
B39: Lower | C39: 0.1 | E39: Scenario parameter
B40: Upper | C40: 1 | E40: Scenario parameter
A41: Dose
A42: Toxic Equivalency Factor for formulation: (See risk assessment if this has a value other than 1.) | B42: TEF
B43: Central | C43: ='A01'!C$35 -> 1 | D43: Unitless | E43: Worksheet A01
B44: Lower | C44: ='A01'!C$36 -> 1 | D44: Note 2 | E44: Worksheet A01
B45: Upper | C45: ='A01'!C$37 -> 1 | D45: Note 2 | E45: Worksheet A01
A46: Dose | B46: Dose | C46: = ConcFish × AmntFish × Prop ÷ BW
B47: Central | C47: =C18*C34*C38/C$22 -> 0.0005947706163 | D47: mg/kg | E47: Eq
B48: Lower | C48: =C19*C35*C39/C$22 -> 1.115902966e-05 | D48: mg/kg | E48: Eq
B49: Upper | C49: 0.01784689481 | D49: mg/kg | E49: Eq
E50: FishKcalV6

Sheet F11c
A1: Acute scenario for the consumption of Contaminated Fish (Peak) by Bird, piscivorous
A2: Short Title | B2: Fish consumption, accidental spill | E2: FishKcalV6
A3: Predator | B3: Bird, piscivorous
A4: Food Item (Prey) | B4: Fish
A5: Duration | B5: Acute | E5: Scenario parameter
A6: Parameter/Assumption | B6: Code / Range | C6: Equation/ Value | D6: Units | E6: Reference/Designation
A7: Water
A8: Concentration in water | B8: ConcWat
B9: Central | C9: =B04a!Acute_C -> 0.00399 | D9: mg/L | E9: ='B04a'!Acute_C
B10: Lower | C10: =B04a!Acute_L -> 0.0007486 | E10: ='B04a'!Acute_L
B11: Upper | C11: =B04a!Acute_U -> 0.021128 | E11: ='B04a'!Acute_U
A12: Fish
A13: Bioconcentration factor | B13: BCF
B14: Central | C14: ='B01'!$C$6 -> 3.5 | D14: L/kg | E14: Harvey (1981, 1990)
B15: Lower | C15: ='B01'!$C$6 -> 3.5 | E15: Harvey (1981, 1990)
B16: Upper | C16: ='B01'!$C$6 -> 3.5 | E16: Harvey (1981, 1990)
A17: Concentration in fish | B17: ConcFish | C17: ConcWat × BCF
B18: Central | C18: =C9*C14 -> 0.013965 | D18: mg/kg | E18: Eq
B19: Lower | C19: =C10*C15 -> 0.0026201 | E19: Eq
B20: Upper | C20: =C11*C16 -> 0.073948 | E20: Eq
A21: Receptor
A22: Body weight | B22: BW | C22: =A02b!$C$24 -> 2.4 | D22: kg | E22: Sibley 2000
A23: Allometric coefficients for caloric requirement per day in kilocalories and BW in grams
B24: alpha | C24: =A02b!$C$27 -> 1.916 | E24: U.S. EPA/ORD 1993
B25: beta | C25: =A02b!$C$28 -> 0.704 | E25: U.S. EPA/ORD 1993
A26: Caloric requirement per day | B26: KR | C26: =C24*(C22*1000)^C25 -> 459.2659192 | D26: kcal/day | E26: Eq
A27: Caloric content of commodity (dry weight) | B27: KCD | C27: ='A03'!$E$36 -> 3.87 | D27: kcal/gdw [Note 1] | E27: U.S. EPA/ORD 1993
A28: Food consumed per day (dry weight) | B28: AmntDry | C28: = KR ÷ KCD
C29: =C26/C27 -> 118.6733641 | D29: gdry/day | E29: Eq
A30: Water content of vegetation as a proportion | B30: PropWater | C30: ='A03'!$E$37 -> 0.7 | D30: gwater/gfood | E30: Ali et al. 2005
A31: Dry weight content of vegetation as a proportion | B31: PropDry | C31: = 1-PropWater
C32: =1-C30 -> 0.3 | D32: gdry/gfood | E32: Eq
A33: Amount of fish consumed per day, wet weight | B33: AmntFish | C33: = (AmntDry ÷ PropDry) ÷ (1000g/kg)
B34: Central | C34: =(C29/C32)/1000 -> 0.3955778805 | D34: kgfood/day | E34: Eq
B35: Lower | C35: =C34*0.3 -> 0.1186733641 | D35: Note 1 | E35: Eq
B36: Upper | C36: =C34*1.7 -> 0.6724823968 | D36: Note 1 | E36: Eq
A37: Proportion of diet that is contaminated | B37: Prop
B38: Central | C38: 0.3 | D38: Unitless | E38: Scenario parameter
B39: Lower | C39: 0.1 | E39: Scenario parameter
B40: Upper | C40: 1 | E40: Scenario parameter
A41: Dose
A42: Toxic Equivalency Factor for formulation: (See risk assessment if this has a value other than 1.) | B42: TEF
B43: Central | C43: ='A01'!C$35 -> 1 | D43: Unitless | E43: Worksheet A01
B44: Lower | C44: ='A01'!C$36 -> 1 | D44: Note 2 | E44: Worksheet A01
B45: Upper | C45: ='A01'!C$37 -> 1 | D45: Note 2 | E45: Worksheet A01
A46: Dose | B46: Dose | C46: = ConcFish × AmntFish × Prop ÷ BW
B47: Central | C47: =C18*C34*C38/C$22 -> 0.0006905306376 | D47: mg/kg | E47: Eq
B48: Lower | C48: =C19*C35*C39/C$22 -> 1.295567006e-05 | D48: mg/kg | E48: Eq
B49: Upper | C49: 0.02072030345 | D49: mg/kg | E49: Eq
E50: FishKcalV6

Sheet F12a
A1: Consumption of Fruit by a Mammal, small after Chronic exposure.
A2: Short Title | B2: Fruit | E2: FdKcalV6
A3: Receptor | B3: Mammal, small
A4: Duration | B4: Chronic | E4: Scenario parameter
A5: Material consumed | B5: Fruit
A6: Parameter/Assumption | B6: Code / Range | C6: Equation/ Value | D6: Units | E6: Reference/Designation
A7: Commodity
A8: Concentration on consumed commodity | B8: Conc
B9: Central | C9: =B05a!Chronic_C -> 0.4255637286 | D9: mg/kg food wet weight | E9: ='B05a'!Chronic_C
B10: Lower | C10: =B05a!Chronic_L -> 0.1945434188 | E10: ='B05a'!Chronic_L
B11: Upper | C11: =B05a!Chronic_U -> 0.9119222755 | E11: ='B05a'!Chronic_U
A12: Receptor
A13: Body weight | B13: BW | C13: =A02b!$C$71 -> 0.02 | D13: kg | E13: Default
A14: Allometric coefficients for caloric requirement per day in kilocalories and BW in grams
B15: alpha | C15: =A02b!$C$75 -> 2.514 | E15: U.S. EPA/ORD 1993
B16: beta | C16: =A02b!$C$76 -> 0.507 | E16: U.S. EPA/ORD 1993
A17: Caloric requirement per day | B17: KR | C17: = alpha x (BW x 1kg/1000g)beta
C18: =C15*((C13*1000)^C16) -> 11.48120526 | D18: kcal/day | E18: Eq
A19: Caloric content of commodity (dry weight) | B19: KCD | C19: ='A03'!$E$61 -> 1.1 | D19: kcal/gdw [Note 1] | E19: U.S. EPA/ORD 1993
A20: Food consumed per day (dry weight) | B20: AmntDry | C20: = KR ÷ KCD
C21: =C18/C19 -> 10.43745932 | D21: gdry/day | E21: Eq
A22: Water content of food item as a proportion | B22: PropWater | C22: ='A03'!$E$62 -> 0.77 | D22: gwater/gfood | E22: U.S. EPA/ORD 1993
A23: Dry weight content of food item as a proportion | B23: PropDry | C23: = 1-PropWater
C24: =1-C22 -> 0.23 | D24: gdry/gfood | E24: Eq
A25: Variability in caloric requirements not accounted for by allometric equation | B25: Error
B26: Central | C26: 1 | D26: Note 2
B27: Lower | C27: 0.3
B28: Upper | C28: 1.7
A29: Amount of food consumed per day, wet weight | B29: AmntFood | C29: = Error x (AmntDry ÷ PropDry) ÷ (1000g/kg)
B30: Central | C30: =C26*(C$21/C$24)/1000 -> 0.04538025793 | D30: kgfood/day | E30: Eq
B31: Lower | C31: =C27*(C$21/C$24)/1000 -> 0.01361407738 | E31: Eq
B32: Upper | C32: 0.07714643848 | E32: Eq
A33: Estimate
A34: Dose | B34: Dose | C34: = AmntFood × Conc / BW
B35: Central | C35: =$C30 * C9/C$13 -> 0.9656095884 | D35: mg/kg bw/day | E35: Eq
B36: Lower | C36: =$C31 * C10/C$13 -> 0.1324264578 | E36: Eq
B37: Upper | C37: =$C32 * C11/C$13 -> 3.517577786 | E37: Eq

Sheet F12b
A1: Consumption of Fruit by a Mammal, 400 g after Chronic exposure.
A2: Short Title | B2: Fruit | E2: FdKcalV6
A3: Receptor | B3: Mammal, 400 g
A4: Duration | B4: Chronic | E4: Scenario parameter
A5: Material consumed | B5: Fruit
A6: Parameter/Assumption | B6: Code / Range | C6: Equation/ Value | D6: Units | E6: Reference/Designation
A7: Commodity
A8: Concentration on consumed commodity | B8: Conc
B9: Central | C9: =B05a!Chronic_C -> 0.4255637286 | D9: mg/kg food wet weight | E9: ='B05a'!Chronic_C
B10: Lower | C10: =B05a!Chronic_L -> 0.1945434188 | E10: ='B05a'!Chronic_L
B11: Upper | C11: =B05a!Chronic_U -> 0.9119222755 | E11: ='B05a'!Chronic_U
A12: Receptor
A13: Body weight | B13: BW | C13: =A02b!$C$40 -> 0.4 | D13: kg | E13: Default
A14: Allometric coefficients for caloric requirement per day in kilocalories and BW in grams
B15: alpha | C15: =A02b!$C$43 -> 2.514 | E15: U.S. EPA/ORD 1993
B16: beta | C16: =A02b!$C$44 -> 0.507 | E16: U.S. EPA/ORD 1993
A17: Caloric requirement per day | B17: KR | C17: = alpha x (BW x 1kg/1000g)beta
C18: =C15*((C13*1000)^C16) -> 52.43360149 | D18: kcal/day | E18: Eq
A19: Caloric content of commodity (dry weight) | B19: KCD | C19: ='A03'!$E$61 -> 1.1 | D19: kcal/gdw [Note 1] | E19: U.S. EPA/ORD 1993
A20: Food consumed per day (dry weight) | B20: AmntDry | C20: = KR ÷ KCD
C21: =C18/C19 -> 47.66691044 | D21: gdry/day | E21: Eq
A22: Water content of food item as a proportion | B22: PropWater | C22: ='A03'!$E$62 -> 0.77 | D22: gwater/gfood | E22: U.S. EPA/ORD 1993
A23: Dry weight content of food item as a proportion | B23: PropDry | C23: = 1-PropWater
C24: =1-C22 -> 0.23 | D24: gdry/gfood | E24: Eq
A25: Variability in caloric requirements not accounted for by allometric equation | B25: Error
B26: Central | C26: 1 | D26: Note 2
B27: Lower | C27: 0.3
B28: Upper | C28: 1.7
A29: Amount of food consumed per day, wet weight | B29: AmntFood | C29: = Error x (AmntDry ÷ PropDry) ÷ (1000g/kg)
B30: Central | C30: =C26*(C$21/C$24)/1000 -> 0.2072474367 | D30: kgfood/day | E30: Eq
B31: Lower | C31: =C27*(C$21/C$24)/1000 -> 0.06217423101 | E31: Eq
B32: Upper | C32: 0.3523206424 | E32: Eq
A33: Estimate
A34: Dose | B34: Dose | C34: = AmntFood × Conc / BW
B35: Central | C35: =$C30 * C9/C$13 -> 0.2204924798 | D35: mg/kg bw/day | E35: Eq
B36: Lower | C36: =$C31 * C10/C$13 -> 0.03023896865 | E36: Eq
B37: Upper | C37: =$C32 * C11/C$13 -> 0.8032226048 | E37: Eq

Sheet F12c
A1: Consumption of Fruit by a Mammal, large after Chronic exposure.
A2: Short Title | B2: Fruit | E2: FdKcalV6
A3: Receptor | B3: Mammal, large
A4: Duration | B4: Chronic | E4: Scenario parameter
A5: Material consumed | B5: Fruit
A6: Parameter/Assumption | B6: Code / Range | C6: Equation/ Value | D6: Units | E6: Reference/Designation
A7: Commodity
A8: Concentration on consumed commodity | B8: Conc
B9: Central | C9: =B05a!Chronic_C -> 0.4255637286 | D9: mg/kg food wet weight | E9: ='B05a'!Chronic_C
B10: Lower | C10: =B05a!Chronic_L -> 0.1945434188 | E10: ='B05a'!Chronic_L
B11: Upper | C11: =B05a!Chronic_U -> 0.9119222755 | E11: ='B05a'!Chronic_U
A12: Receptor
A13: Body weight | B13: BW | C13: =A02b!$C$61 -> 70 | D13: kg | E13: Default
A14: Allometric coefficients for caloric requirement per day in kilocalories and BW in grams
B15: alpha | C15: =A02b!$C$62 -> 1.518 | E15: U.S. EPA/ORD 1993
B16: beta | C16: =A02b!$C$63 -> 0.73 | E16: U.S. EPA/ORD 1993
A17: Caloric requirement per day | B17: KR | C17: = alpha x (BW x 1kg/1000g)beta
C18: =C15*((C13*1000)^C16) -> 5226.28803 | D18: kcal/day | E18: Eq
A19: Caloric content of commodity (dry weight) | B19: KCD | C19: ='A03'!$E$61 -> 1.1 | D19: kcal/gdw [Note 1] | E19: U.S. EPA/ORD 1993
A20: Food consumed per day (dry weight) | B20: AmntDry | C20: = KR ÷ KCD
C21: =C18/C19 -> 4751.170936 | D21: gdry/day | E21: Eq
A22: Water content of food item as a proportion | B22: PropWater | C22: ='A03'!$E$62 -> 0.77 | D22: gwater/gfood | E22: U.S. EPA/ORD 1993
A23: Dry weight content of food item as a proportion | B23: PropDry | C23: = 1-PropWater
C24: =1-C22 -> 0.23 | D24: gdry/gfood | E24: Eq
A25: Variability in caloric requirements not accounted for by allometric equation | B25: Error
B26: Central | C26: 1 | D26: Note 2
B27: Lower | C27: 0.3
B28: Upper | C28: 1.7
A29: Amount of food consumed per day, wet weight | B29: AmntFood | C29: = Error x (AmntDry ÷ PropDry) ÷ (1000g/kg)
B30: Central | C30: =C26*(C$21/C$24)/1000 -> 20.65726494 | D30: kgfood/day | E30: Eq
B31: Lower | C31: =C27*(C$21/C$24)/1000 -> 6.197179482 | E31: Eq
B32: Upper | C32: 35.1173504 | E32: Eq
A33: Estimate
A34: Dose | B34: Dose | C34: = AmntFood × Conc / BW
B35: Central | C35: =$C30 * C9/C$13 -> 0.125585467 | D35: mg/kg bw/day | E35: Eq
B36: Lower | C36: =$C31 * C10/C$13 -> 0.01722314976 | E36: Eq
B37: Upper | C37: =$C32 * C11/C$13 -> 0.4574899155 | E37: Eq

Sheet F12d
A1: Consumption of Fruit by a Bird, small after Chronic exposure.
A2: Short Title | B2: Fruit | E2: FdKcalV6
A3: Receptor | B3: Bird, small
A4: Duration | B4: Chronic | E4: Scenario parameter
A5: Material consumed | B5: Fruit
A6: Parameter/Assumption | B6: Code / Range | C6: Equation/ Value | D6: Units | E6: Reference/Designation
A7: Commodity
A8: Concentration on consumed commodity | B8: Conc
B9: Central | C9: =B05a!Chronic_C -> 0.4255637286 | D9: mg/kg food wet weight | E9: ='B05a'!Chronic_C
B10: Lower | C10: =B05a!Chronic_L -> 0.1945434188 | E10: ='B05a'!Chronic_L
B11: Upper | C11: =B05a!Chronic_U -> 0.9119222755 | E11: ='B05a'!Chronic_U
A12: Receptor
A13: Body weight | B13: BW | C13: =A02b!$C$31 -> 0.01 | D13: kg | E13: Default
A14: Allometric coefficients for caloric requirement per day in kilocalories and BW in grams
B15: alpha | C15: =A02b!$C$32 -> 3.12 | E15: U.S. EPA/ORD 1993
B16: beta | C16: =A02b!$C$33 -> 0.605 | E16: U.S. EPA/ORD 1993
A17: Caloric requirement per day | B17: KR | C17: = alpha x (BW x 1kg/1000g)beta
C18: =C15*((C13*1000)^C16) -> 12.56477147 | D18: kcal/day | E18: Eq
A19: Caloric content of commodity (dry weight) | B19: KCD | C19: ='A03'!$E$38 -> 1.1 | D19: kcal/gdw [Note 1] | E19: U.S. EPA/ORD 1993
A20: Food consumed per day (dry weight) | B20: AmntDry | C20: = KR ÷ KCD
C21: =C18/C19 -> 11.42251952 | D21: gdry/day | E21: Eq
A22: Water content of food item as a proportion | B22: PropWater | C22: ='A03'!$E$39 -> 0.77 | D22: gwater/gfood | E22: U.S. EPA/ORD 1993
A23: Dry weight content of food item as a proportion | B23: PropDry | C23: = 1-PropWater
C24: =1-C22 -> 0.23 | D24: gdry/gfood | E24: Eq
A25: Variability in caloric requirements not accounted for by allometric equation | B25: Error
B26: Central | C26: 1 | D26: Note 2
B27: Lower | C27: 0.3
B28: Upper | C28: 1.7
A29: Amount of food consumed per day, wet weight | B29: AmntFood | C29: = Error x (AmntDry ÷ PropDry) ÷ (1000g/kg)
B30: Central | C30: =C26*(C$21/C$24)/1000 -> 0.04966312834 | D30: kgfood/day | E30: Eq
B31: Lower | C31: =C27*(C$21/C$24)/1000 -> 0.0148989385 | E31: Eq
B32: Upper | C32: 0.08442731818 | E32: Eq
A33: Estimate
A34: Dose | B34: Dose | C34: = AmntFood × Conc / BW
B35: Central | C35: =$C30 * C9/C$13 -> 2.113482607 | D35: mg/kg bw/day | E35: Eq
B36: Lower | C36: =$C31 * C10/C$13 -> 0.2898490433 | E36: Eq
B37: Upper | C37: =$C32 * C11/C$13 -> 7.699115211 | E37: Eq

Sheet F12e
A1: Consumption of Fruit by a Bird, large after Chronic exposure.
A2: Short Title | B2: Fruit | E2: FdKcalV6
A3: Receptor | B3: Bird, large
A4: Duration | B4: Chronic | E4: Scenario parameter
A5: Material consumed | B5: Fruit
A6: Parameter/Assumption | B6: Code / Range | C6: Equation/ Value | D6: Units | E6: Reference/Designation
A7: Commodity
A8: Concentration on consumed commodity | B8: Conc
B9: Central | C9: =B05a!Chronic_C -> 0.4255637286 | D9: mg/kg food wet weight | E9: ='B05a'!Chronic_C
B10: Lower | C10: =B05a!Chronic_L -> 0.1945434188 | E10: ='B05a'!Chronic_L
B11: Upper | C11: =B05a!Chronic_U -> 0.9119222755 | E11: ='B05a'!Chronic_U
A12: Receptor
A13: Body weight | B13: BW | C13: =A02b!$C$15 -> 4 | D13: kg | E13: Default
A14: Allometric coefficients for caloric requirement per day in kilocalories and BW in grams
B15: alpha | C15: =A02b!$C$16 -> 1.146 | E15: U.S. EPA/ORD 1993
B16: beta | C16: =A02b!$C$17 -> 0.749 | E16: U.S. EPA/ORD 1993
A17: Caloric requirement per day | B17: KR | C17: = alpha x (BW x 1kg/1000g)beta
C18: =C15*((C13*1000)^C16) -> 571.6465031 | D18: kcal/day | E18: Eq
A19: Caloric content of commodity (dry weight) | B19: KCD | C19: ='A03'!$E$38 -> 1.1 | D19: kcal/gdw [Note 1] | E19: U.S. EPA/ORD 1993
A20: Food consumed per day (dry weight) | B20: AmntDry | C20: = KR ÷ KCD
C21: =C18/C19 -> 519.6786392 | D21: gdry/day | E21: Eq
A22: Water content of food item as a proportion | B22: PropWater | C22: ='A03'!$E$39 -> 0.77 | D22: gwater/gfood | E22: U.S. EPA/ORD 1993
A23: Dry weight content of food item as a proportion | B23: PropDry | C23: = 1-PropWater
C24: =1-C22 -> 0.23 | D24: gdry/gfood | E24: Eq
A25: Variability in caloric requirements not accounted for by allometric equation | B25: Error
B26: Central | C26: 1 | D26: Note 2
B27: Lower | C27: 0.3
B28: Upper | C28: 1.7
A29: Amount of food consumed per day, wet weight | B29: AmntFood | C29: = Error x (AmntDry ÷ PropDry) ÷ (1000g/kg)
B30: Central | C30: =C26*(C$21/C$24)/1000 -> 2.259472344 | D30: kgfood/day | E30: Eq
B31: Lower | C31: =C27*(C$21/C$24)/1000 -> 0.6778417033 | E31: Eq
B32: Upper | C32: 3.841102985 | E32: Eq
A33: Estimate
A34: Dose | B34: Dose | C34: = AmntFood × Conc / BW
B35: Central | C35: =$C30 * C9/C$13 -> 0.2403873689 | D35: mg/kg bw/day | E35: Eq
B36: Lower | C36: =$C31 * C10/C$13 -> 0.03296741059 | E36: Eq
B37: Upper | C37: =$C32 * C11/C$13 -> 0.8756968437 | E37: Eq

Sheet F13a
A1: Consumption of Broadleaf Vegetation by a Mammal, small after Chronic exposure.
A2: Short Title | B2: Broadleaf | E2: FdKcalV6
A3: Receptor | B3: Mammal, small
A4: Duration | B4: Chronic | E4: Scenario parameter
A5: Material consumed | B5: Broadleaf Vegetation
A6: Parameter/Assumption | B6: Code / Range | C6: Equation/ Value | D6: Units | E6: Reference/Designation
A7: Commodity
A8: Concentration on consumed commodity | B8: Conc
B9: Central | C9: =B05b!Chronic_C -> 2.735766827 | D9: mg/kg food wet weight | E9: ='B05b'!Chronic_C
B10: Lower | C10: =B05b!Chronic_L -> 0.9119222755 | E10: ='B05b'!Chronic_L
B11: Upper | C11: =B05b!Chronic_U -> 8.20730048 | E11: ='B05b'!Chronic_U
A12: Receptor
A13: Body weight | B13: BW | C13: =A02b!$C$71 -> 0.02 | D13: kg | E13: Default
A14: Allometric coefficients for caloric requirement per day in kilocalories and BW in grams
B15: alpha | C15: =A02b!$C$75 -> 2.514 | E15: U.S. EPA/ORD 1993
B16: beta | C16: =A02b!$C$76 -> 0.507 | E16: U.S. EPA/ORD 1993
A17: Caloric requirement per day | B17: KR | C17: = alpha x (BW x 1kg/1000g)beta
C18: =C15*((C13*1000)^C16) -> 11.48120526 | D18: kcal/day | E18: Eq
A19: Caloric content of commodity (dry weight) | B19: KCD | C19: ='A03'!$E$65 -> 2.26 | D19: kcal/gdw [Note 1] | E19: U.S. EPA/ORD 1993
A20: Food consumed per day (dry weight) | B20: AmntDry | C20: = KR ÷ KCD
C21: =C18/C19 -> 5.080179317 | D21: gdry/day | E21: Eq
A22: Water content of food item as a proportion | B22: PropWater | C22: ='A03'!$E$66 -> 0.85 | D22: gwater/gfood | E22: U.S. EPA/ORD 1993
A23: Dry weight content of food item as a proportion | B23: PropDry | C23: = 1-PropWater
C24: =1-C22 -> 0.15 | D24: gdry/gfood | E24: Eq
A25: Variability in caloric requirements not accounted for by allometric equation | B25: Error
B26: Central | C26: 1 | D26: Note 2
B27: Lower | C27: 0.3
B28: Upper | C28: 1.7
A29: Amount of food consumed per day, wet weight | B29: AmntFood | C29: = Error x (AmntDry ÷ PropDry) ÷ (1000g/kg)
B30: Central | C30: =C26*(C$21/C$24)/1000 -> 0.03386786211 | D30: kgfood/day | E30: Eq
B31: Lower | C31: =C27*(C$21/C$24)/1000 -> 0.01016035863 | E31: Eq
B32: Upper | C32: 0.05757536559 | E32: Eq
A33: Estimate
A34: Dose | B34: Dose | C34: = AmntFood × Conc / BW
B35: Central | C35: =$C30 * C9/C$13 -> 4.632728683 | D35: mg/kg bw/day | E35: Eq
B36: Lower | C36: =$C31 * C10/C$13 -> 0.4632728683 | E36: Eq
B37: Upper | C37: =$C32 * C11/C$13 -> 23.62691628 | E37: Eq

Sheet F13b
A1: Consumption of Broadleaf Vegetation by a Mammal, 400 g after Chronic exposure.
A2: Short Title | B2: Broadleaf | E2: FdKcalV6
A3: Receptor | B3: Mammal, 400 g
A4: Duration | B4: Chronic | E4: Scenario parameter
A5: Material consumed | B5: Broadleaf Vegetation
A6: Parameter/Assumption | B6: Code / Range | C6: Equation/ Value | D6: Units | E6: Reference/Designation
A7: Commodity
A8: Concentration on consumed commodity | B8: Conc
B9: Central | C9: =B05b!Chronic_C -> 2.735766827 | D9: mg/kg food wet weight | E9: ='B05b'!Chronic_C
B10: Lower | C10: =B05b!Chronic_L -> 0.9119222755 | E10: ='B05b'!Chronic_L
B11: Upper | C11: =B05b!Chronic_U -> 8.20730048 | E11: ='B05b'!Chronic_U
A12: Receptor
A13: Body weight | B13: BW | C13: =A02b!$C$40 -> 0.4 | D13: kg | E13: Default
A14: Allometric coefficients for caloric requirement per day in kilocalories and BW in grams
B15: alpha | C15: =A02b!$C$43 -> 2.514 | E15: U.S. EPA/ORD 1993
B16: beta | C16: =A02b!$C$44 -> 0.507 | E16: U.S. EPA/ORD 1993
A17: Caloric requirement per day | B17: KR | C17: = alpha x (BW x 1kg/1000g)beta
C18: =C15*((C13*1000)^C16) -> 52.43360149 | D18: kcal/day | E18: Eq
A19: Caloric content of commodity (dry weight) | B19: KCD | C19: ='A03'!$E$65 -> 2.26 | D19: kcal/gdw [Note 1] | E19: U.S. EPA/ORD 1993
A20: Food consumed per day (dry weight) | B20: AmntDry | C20: = KR ÷ KCD
C21: =C18/C19 -> 23.20070862 | D21: gdry/day | E21: Eq
A22: Water content of food item as a proportion | B22: PropWater | C22: ='A03'!$E$66 -> 0.85 | D22: gwater/gfood | E22: U.S. EPA/ORD 1993
A23: Dry weight content of food item as a proportion | B23: PropDry | C23: = 1-PropWater
C24: =1-C22 -> 0.15 | D24: gdry/gfood | E24: Eq
A25: Variability in caloric requirements not accounted for by allometric equation | B25: Error
B26: Central | C26: 1 | D26: Note 2
B27: Lower | C27: 0.3
B28: Upper | C28: 1.7
A29: Amount of food consumed per day, wet weight | B29: AmntFood | C29: = Error x (AmntDry ÷ PropDry) ÷ (1000g/kg)
B30: Central | C30: =C26*(C$21/C$24)/1000 -> 0.1546713908 | D30: kgfood/day | E30: Eq
B31: Lower | C31: =C27*(C$21/C$24)/1000 -> 0.04640141724 | E31: Eq
B32: Upper | C32: 0.2629413644 | E32: Eq
A33: Estimate
A34: Dose | B34: Dose | C34: = AmntFood × Conc / BW
B35: Central | C35: =$C30 * C9/C$13 -> 1.05786215 | D35: mg/kg bw/day | E35: Eq
B36: Lower | C36: =$C31 * C10/C$13 -> 0.105786215 | E36: Eq
B37: Upper | C37: =$C32 * C11/C$13 -> 5.395096965 | E37: Eq

Sheet F13c
A1: Consumption of Broadleaf Vegetation by a Mammal, large after Chronic exposure.
A2: Short Title | B2: Broadleaf | E2: FdKcalV6
A3: Receptor | B3: Mammal, large
A4: Duration | B4: Chronic | E4: Scenario parameter
A5: Material consumed | B5: Broadleaf Vegetation
A6: Parameter/Assumption | B6: Code / Range | C6: Equation/ Value | D6: Units | E6: Reference/Designation
A7: Commodity
A8: Concentration on consumed commodity | B8: Conc
B9: Central | C9: =B05b!Chronic_C -> 2.735766827 | D9: mg/kg food wet weight | E9: ='B05b'!Chronic_C
B10: Lower | C10: =B05b!Chronic_L -> 0.9119222755 | E10: ='B05b'!Chronic_L
B11: Upper | C11: =B05b!Chronic_U -> 8.20730048 | E11: ='B05b'!Chronic_U
A12: Receptor
A13: Body weight | B13: BW | C13: =A02b!$C$61 -> 70 | D13: kg | E13: Default
A14: Allometric coefficients for caloric requirement per day in kilocalories and BW in grams
B15: alpha | C15: =A02b!$C$62 -> 1.518 | E15: U.S. EPA/ORD 1993
B16: beta | C16: =A02b!$C$63 -> 0.73 | E16: U.S. EPA/ORD 1993
A17: Caloric requirement per day | B17: KR | C17: = alpha x (BW x 1kg/1000g)beta
C18: =C15*((C13*1000)^C16) -> 5226.28803 | D18: kcal/day | E18: Eq
A19: Caloric content of commodity (dry weight) | B19: KCD | C19: ='A03'!$E$65 -> 2.26 | D19: kcal/gdw [Note 1] | E19: U.S. EPA/ORD 1993
A20: Food consumed per day (dry weight) | B20: AmntDry | C20: = KR ÷ KCD
C21: =C18/C19 -> 2312.516827 | D21: gdry/day | E21: Eq
A22: Water content of food item as a proportion | B22: PropWater | C22: ='A03'!$E$66 -> 0.85 | D22: gwater/gfood | E22: U.S. EPA/ORD 1993
A23: Dry weight content of food item as a proportion | B23: PropDry | C23: = 1-PropWater
C24: =1-C22 -> 0.15 | D24: gdry/gfood | E24: Eq
A25: Variability in caloric requirements not accounted for by allometric equation | B25: Error
B26: Central | C26: 1 | D26: Note 2
B27: Lower | C27: 0.3
B28: Upper | C28: 1.7
A29: Amount of food consumed per day, wet weight | B29: AmntFood | C29: = Error x (AmntDry ÷ PropDry) ÷ (1000g/kg)
B30: Central | C30: =C26*(C$21/C$24)/1000 -> 15.41677885 | D30: kgfood/day | E30: Eq
B31: Lower | C31: =C27*(C$21/C$24)/1000 -> 4.625033655 | E31: Eq
B32: Upper | C32: 26.20852404 | E32: Eq
A33: Estimate
A34: Dose | B34: Dose | C34: = AmntFood × Conc / BW
B35: Central | C35: =$C30 * C9/C$13 -> 0.6025244592 | D35: mg/kg bw/day | E35: Eq
B36: Lower | C36: =$C31 * C10/C$13 -> 0.06025244592 | E36: Eq
B37: Upper | C37: =$C32 * C11/C$13 -> 3.072874742 | E37: Eq

Sheet F13d
A1: Consumption of Broadleaf Vegetation by a Bird, small after Chronic exposure.
A2: Short Title | B2: Broadleaf | E2: FdKcalV6
A3: Receptor | B3: Bird, small
A4: Duration | B4: Chronic | E4: Scenario parameter
A5: Material consumed | B5: Broadleaf Vegetation
A6: Parameter/Assumption | B6: Code / Range | C6: Equation/ Value | D6: Units | E6: Reference/Designation
A7: Commodity
A8: Concentration on consumed commodity | B8: Conc
B9: Central | C9: =B05b!Chronic_C -> 2.735766827 | D9: mg/kg food wet weight | E9: ='B05b'!Chronic_C
B10: Lower | C10: =B05b!Chronic_L -> 0.9119222755 | E10: ='B05b'!Chronic_L
B11: Upper | C11: =B05b!Chronic_U -> 8.20730048 | E11: ='B05b'!Chronic_U
A12: Receptor
A13: Body weight | B13: BW | C13: =A02b!$C$31 -> 0.01 | D13: kg | E13: Default
A14: Allometric coefficients for caloric requirement per day in kilocalories and BW in grams
B15: alpha | C15: =A02b!$C$32 -> 3.12 | E15: U.S. EPA/ORD 1993
B16: beta | C16: =A02b!$C$33 -> 0.605 | E16: U.S. EPA/ORD 1993
A17: Caloric requirement per day | B17: KR | C17: = alpha x (BW x 1kg/1000g)beta
C18: =C15*((C13*1000)^C16) -> 12.56477147 | D18: kcal/day | E18: Eq
A19: Caloric content of commodity (dry weight) | B19: KCD | C19: ='A03'!$E$42 -> 2 | D19: kcal/gdw [Note 1] | E19: U.S. EPA/ORD 1993
A20: Food consumed per day (dry weight) | B20: AmntDry | C20: = KR ÷ KCD
C21: =C18/C19 -> 6.282385735 | D21: gdry/day | E21: Eq
A22: Water content of food item as a proportion | B22: PropWater | C22: ='A03'!$E$43 -> 0.85 | D22: gwater/gfood | E22: U.S. EPA/ORD 1993
A23: Dry weight content of food item as a proportion | B23: PropDry | C23: = 1-PropWater
C24: =1-C22 -> 0.15 | D24: gdry/gfood | E24: Eq
A25: Variability in caloric requirements not accounted for by allometric equation | B25: Error
B26: Central | C26: 1 | D26: Note 2
B27: Lower | C27: 0.3
B28: Upper | C28: 1.7
A29: Amount of food consumed per day, wet weight | B29: AmntFood | C29: = Error x (AmntDry ÷ PropDry) ÷ (1000g/kg)
B30: Central | C30: =C26*(C$21/C$24)/1000 -> 0.04188257157 | D30: kgfood/day | E30: Eq
B31: Lower | C31: =C27*(C$21/C$24)/1000 -> 0.01256477147 | E31: Eq
B32: Upper | C32: 0.07120037167 | E32: Eq
A33: Estimate
A34: Dose | B34: Dose | C34: = AmntFood × Conc / BW
B35: Central | C35: =$C30 * C9/C$13 -> 11.45809499 | D35: mg/kg bw/day | E35: Eq
B36: Lower | C36: =$C31 * C10/C$13 -> 1.145809499 | E36: Eq
B37: Upper | C37: =$C32 * C11/C$13 -> 58.43628446 | E37: Eq

Sheet F13e
A1: Consumption of Broadleaf Vegetation by a Bird, large after Chronic exposure.
A2: Short Title | B2: Broadleaf | E2: FdKcalV6
A3: Receptor | B3: Bird, large
A4: Duration | B4: Chronic | E4: Scenario parameter
A5: Material consumed | B5: Broadleaf Vegetation
A6: Parameter/Assumption | B6: Code / Range | C6: Equation/ Value | D6: Units | E6: Reference/Designation
A7: Commodity
A8: Concentration on consumed commodity | B8: Conc
B9: Central | C9: =B05b!Chronic_C -> 2.735766827 | D9: mg/kg food wet weight | E9: ='B05b'!Chronic_C
B10: Lower | C10: =B05b!Chronic_L -> 0.9119222755 | E10: ='B05b'!Chronic_L
B11: Upper | C11: =B05b!Chronic_U -> 8.20730048 | E11: ='B05b'!Chronic_U
A12: Receptor
A13: Body weight | B13: BW | C13: =A02b!$C$15 -> 4 | D13: kg | E13: Default
A14: Allometric coefficients for caloric requirement per day in kilocalories and BW in grams
B15: alpha | C15: =A02b!$C$16 -> 1.146 | E15: U.S. EPA/ORD 1993
B16: beta | C16: =A02b!$C$17 -> 0.749 | E16: U.S. EPA/ORD 1993
A17: Caloric requirement per day | B17: KR | C17: = alpha x (BW x 1kg/1000g)beta
C18: =C15*((C13*1000)^C16) -> 571.6465031 | D18: kcal/day | E18: Eq
A19: Caloric content of commodity (dry weight) | B19: KCD | C19: ='A03'!$E$42 -> 2 | D19: kcal/gdw [Note 1] | E19: U.S. EPA/ORD 1993
A20: Food consumed per day (dry weight) | B20: AmntDry | C20: = KR ÷ KCD
C21: =C18/C19 -> 285.8232515 | D21: gdry/day | E21: Eq
A22: Water content of food item as a proportion | B22: PropWater | C22: ='A03'!$E$43 -> 0.85 | D22: gwater/gfood | E22: U.S. EPA/ORD 1993
A23: Dry weight content of food item as a proportion | B23: PropDry | C23: = 1-PropWater
C24: =1-C22 -> 0.15 | D24: gdry/gfood | E24: Eq
A25: Variability in caloric requirements not accounted for by allometric equation | B25: Error
B26: Central | C26: 1 | D26: Note 2
B27: Lower | C27: 0.3
B28: Upper | C28: 1.7
A29: Amount of food consumed per day, wet weight | B29: AmntFood | C29: = Error x (AmntDry ÷ PropDry) ÷ (1000g/kg)
B30: Central | C30: =C26*(C$21/C$24)/1000 -> 1.905488344 | D30: kgfood/day | E30: Eq
B31: Lower | C31: =C27*(C$21/C$24)/1000 -> 0.5716465031 | E31: Eq
B32: Upper | C32: 3.239330184 | E32: Eq
A33: Estimate
A34: Dose | B34: Dose | C34: = AmntFood × Conc / BW
B35: Central | C35: =$C30 * C9/C$13 -> 1.30324295 | D35: mg/kg bw/day | E35: Eq
B36: Lower | C36: =$C31 * C10/C$13 -> 0.130324295 | E36: Eq
B37: Upper | C37: =$C32 * C11/C$13 -> 6.646539043 | E37: Eq

Sheet F14a
A1: Consumption of Tall grass by a Mammal, small after Chronic exposure.
A2: Short Title | B2: Tall Grass | E2: FdKcalV6
A3: Receptor | B3: Mammal, small
A4: Duration | B4: Chronic | E4: Scenario parameter
A5: Material consumed | B5: Tall grass
A6: Parameter/Assumption | B6: Code / Range | C6: Equation/ Value | D6: Units | E6: Reference/Designation
A7: Commodity
A8: Concentration on consumed commodity | B8: Conc
B9: Central | C9: =B05d!Chronic_C -> 2.188613461 | D9: mg/kg food wet weight | E9: ='B05d'!Chronic_C
B10: Lower | C10: =B05d!Chronic_L -> 0.7295378204 | E10: ='B05d'!Chronic_L
B11: Upper | C11: =B05d!Chronic_U -> 6.68743002 | E11: ='B05d'!Chronic_U
A12: Receptor
A13: Body weight | B13: BW | C13: =A02b!$C$71 -> 0.02 | D13: kg | E13: Default
A14: Allometric coefficients for caloric requirement per day in kilocalories and BW in grams
B15: alpha | C15: =A02b!$C$75 -> 2.514 | E15: U.S. EPA/ORD 1993
B16: beta | C16: =A02b!$C$76 -> 0.507 | E16: U.S. EPA/ORD 1993
A17: Caloric requirement per day | B17: KR | C17: = alpha x (BW x 1kg/1000g)beta
C18: =C15*((C13*1000)^C16) -> 11.48120526 | D18: kcal/day | E18: Eq
A19: Caloric content of commodity (dry weight) | B19: KCD | C19: ='A03'!$E$65 -> 2.26 | D19: kcal/gdw [Note 1] | E19: U.S. EPA/ORD 1993
A20: Food consumed per day (dry weight) | B20: AmntDry | C20: = KR ÷ KCD
C21: =C18/C19 -> 5.080179317 | D21: gdry/day | E21: Eq
A22: Water content of food item as a proportion | B22: PropWater | C22: ='A03'!$E$66 -> 0.85 | D22: gwater/gfood | E22: U.S. EPA/ORD 1993
A23: Dry weight content of food item as a proportion | B23: PropDry | C23: = 1-PropWater
C24: =1-C22 -> 0.15 | D24: gdry/gfood | E24: Eq
A25: Variability in caloric requirements not accounted for by allometric equation | B25: Error
B26: Central | C26: 1 | D26: Note 2
B27: Lower | C27: 0.3
B28: Upper | C28: 1.7
A29: Amount of food consumed per day, wet weight | B29: AmntFood | C29: = Error x (AmntDry ÷ PropDry) ÷ (1000g/kg)
B30: Central | C30: =C26*(C$21/C$24)/1000 -> 0.03386786211 | D30: kgfood/day | E30: Eq
B31: Lower | C31: =C27*(C$21/C$24)/1000 -> 0.01016035863 | E31: Eq
B32: Upper | C32: 0.05757536559 | E32: Eq
A33: Estimate
A34: Dose | B34: Dose | C34: = AmntFood × Conc / BW
B35: Central | C35: =$C30 * C9/C$13 -> 3.706182946 | D35: mg/kg bw/day | E35: Eq
B36: Lower | C36: =$C31 * C10/C$13 -> 0.3706182946 | E36: Eq
B37: Upper | C37: =$C32 * C11/C$13 -> 19.25156141 | E37: Eq

Sheet F14b
A1: Consumption of Tall grass by a Mammal, 400 g after Chronic exposure.
A2: Short Title | B2: Tall Grass | E2: FdKcalV6
A3: Receptor | B3: Mammal, 400 g
A4: Duration | B4: Chronic | E4: Scenario parameter
A5: Material consumed | B5: Tall grass
A6: Parameter/Assumption | B6: Code / Range | C6: Equation/ Value | D6: Units | E6: Reference/Designation
A7: Commodity
A8: Concentration on consumed commodity | B8: Conc
B9: Central | C9: =B05d!Chronic_C -> 2.188613461 | D9: mg/kg food wet weight | E9: ='B05d'!Chronic_C
B10: Lower | C10: =B05d!Chronic_L -> 0.7295378204 | E10: ='B05d'!Chronic_L
B11: Upper | C11: =B05d!Chronic_U -> 6.68743002 | E11: ='B05d'!Chronic_U
A12: Receptor
A13: Body weight | B13: BW | C13: =A02b!$C$40 -> 0.4 | D13: kg | E13: Default
A14: Allometric coefficients for caloric requirement per day in kilocalories and BW in grams
B15: alpha | C15: =A02b!$C$43 -> 2.514 | E15: U.S. EPA/ORD 1993
B16: beta | C16: =A02b!$C$44 -> 0.507 | E16: U.S. EPA/ORD 1993
A17: Caloric requirement per day | B17: KR | C17: = alpha x (BW x 1kg/1000g)beta
C18: =C15*((C13*1000)^C16) -> 52.43360149 | D18: kcal/day | E18: Eq
A19: Caloric content of commodity (dry weight) | B19: KCD | C19: ='A03'!$E$65 -> 2.26 | D19: kcal/gdw [Note 1] | E19: U.S. EPA/ORD 1993
A20: Food consumed per day (dry weight) | B20: AmntDry | C20: = KR ÷ KCD
C21: =C18/C19 -> 23.20070862 | D21: gdry/day | E21: Eq
A22: Water content of food item as a proportion | B22: PropWater | C22: ='A03'!$E$66 -> 0.85 | D22: gwater/gfood | E22: U.S. EPA/ORD 1993
A23: Dry weight content of food item as a proportion | B23: PropDry | C23: = 1-PropWater
C24: =1-C22 -> 0.15 | D24: gdry/gfood | E24: Eq
A25: Variability in caloric requirements not accounted for by allometric equation | B25: Error
B26: Central | C26: 1 | D26: Note 2
B27: Lower | C27: 0.3
B28: Upper | C28: 1.7
A29: Amount of food consumed per day, wet weight | B29: AmntFood | C29: = Error x (AmntDry ÷ PropDry) ÷ (1000g/kg)
B30: Central | C30: =C26*(C$21/C$24)/1000 -> 0.1546713908 | D30: kgfood/day | E30: Eq
B31: Lower | C31: =C27*(C$21/C$24)/1000 -> 0.04640141724 | E31: Eq
B32: Upper | C32: 0.2629413644 | E32: Eq
A33: Estimate
A34: Dose | B34: Dose | C34: = AmntFood × Conc / BW
B35: Central | C35: =$C30 * C9/C$13 -> 0.84628972 | D35: mg/kg bw/day | E35: Eq
B36: Lower | C36: =$C31 * C10/C$13 -> 0.084628972 | E36: Eq
B37: Upper | C37: =$C32 * C11/C$13 -> 4.396004935 | E37: Eq

Sheet F14c
A1: Consumption of Tall grass by a Mammal, large after Chronic exposure.
A2: Short Title | B2: Tall Grass | E2: FdKcalV6
A3: Receptor | B3: Mammal, large
A4: Duration | B4: Chronic | E4: Scenario parameter
A5: Material consumed | B5: Tall grass
A6: Parameter/Assumption | B6: Code / Range | C6: Equation/ Value | D6: Units | E6: Reference/Designation
A7: Commodity
A8: Concentration on consumed commodity | B8: Conc
B9: Central | C9: =B05d!Chronic_C -> 2.188613461 | D9: mg/kg food wet weight | E9: ='B05d'!Chronic_C
B10: Lower | C10: =B05d!Chronic_L -> 0.7295378204 | E10: ='B05d'!Chronic_L
B11: Upper | C11: =B05d!Chronic_U -> 6.68743002 | E11: ='B05d'!Chronic_U
A12: Receptor
A13: Body weight | B13: BW | C13: =A02b!$C$61 -> 70 | D13: kg | E13: Default
A14: Allometric coefficients for caloric requirement per day in kilocalories and BW in grams
B15: alpha | C15: =A02b!$C$62 -> 1.518 | E15: U.S. EPA/ORD 1993
B16: beta | C16: =A02b!$C$63 -> 0.73 | E16: U.S. EPA/ORD 1993
A17: Caloric requirement per day | B17: KR | C17: = alpha x (BW x 1kg/1000g)beta
C18: =C15*((C13*1000)^C16) -> 5226.28803 | D18: kcal/day | E18: Eq
A19: Caloric content of commodity (dry weight) | B19: KCD | C19: ='A03'!$E$65 -> 2.26 | D19: kcal/gdw [Note 1] | E19: U.S. EPA/ORD 1993
A20: Food consumed per day (dry weight) | B20: AmntDry | C20: = KR ÷ KCD
C21: =C18/C19 -> 2312.516827 | D21: gdry/day | E21: Eq
A22: Water content of food item as a proportion | B22: PropWater | C22: ='A03'!$E$66 -> 0.85 | D22: gwater/gfood | E22: U.S. EPA/ORD 1993
A23: Dry weight content of food item as a proportion | B23: PropDry | C23: = 1-PropWater
C24: =1-C22 -> 0.15 | D24: gdry/gfood | E24: Eq
A25: Variability in caloric requirements not accounted for by allometric equation | B25: Error
B26: Central | C26: 1 | D26: Note 2
B27: Lower | C27: 0.3
B28: Upper | C28: 1.7
A29: Amount of food consumed per day, wet weight | B29: AmntFood | C29: = Error x (AmntDry ÷ PropDry) ÷ (1000g/kg)
B30: Central | C30: =C26*(C$21/C$24)/1000 -> 15.41677885 | D30: kgfood/day | E30: Eq
B31: Lower | C31: =C27*(C$21/C$24)/1000 -> 4.625033655 | E31: Eq
B32: Upper | C32: 26.20852404 | E32: Eq
A33: Estimate
A34: Dose | B34: Dose | C34: = AmntFood × Conc / BW
B35: Central | C35: =$C30 * C9/C$13 -> 0.4820195674 | D35: mg/kg bw/day | E35: Eq
B36: Lower | C36: =$C31 * C10/C$13 -> 0.04820195674 | E36: Eq
B37: Upper | C37: =$C32 * C11/C$13 -> 2.503823864 | E37: Eq

Sheet F14d
A1: Consumption of Tall grass by a Bird, small after Chronic exposure.
A2: Short Title | B2: Tall Grass | E2: FdKcalV6
A3: Receptor | B3: Bird, small
A4: Duration | B4: Chronic | E4: Scenario parameter
A5: Material consumed | B5: Tall grass
A6: Parameter/Assumption | B6: Code / Range | C6: Equation/ Value | D6: Units | E6: Reference/Designation
A7: Commodity
A8: Concentration on consumed commodity | B8: Conc
B9: Central | C9: =B05d!Chronic_C -> 2.188613461 | D9: mg/kg food wet weight | E9: ='B05d'!Chronic_C
B10: Lower | C10: =B05d!Chronic_L -> 0.7295378204 | E10: ='B05d'!Chronic_L
B11: Upper | C11: =B05d!Chronic_U -> 6.68743002 | E11: ='B05d'!Chronic_U
A12: Receptor
A13: Body weight | B13: BW | C13: =A02b!$C$31 -> 0.01 | D13: kg | E13: Default
A14: Allometric coefficients for caloric requirement per day in kilocalories and BW in grams
B15: alpha | C15: =A02b!$C$32 -> 3.12 | E15: U.S. EPA/ORD 1993
B16: beta | C16: =A02b!$C$33 -> 0.605 | E16: U.S. EPA/ORD 1993
A17: Caloric requirement per day | B17: KR | C17: = alpha x (BW x 1kg/1000g)beta
C18: =C15*((C13*1000)^C16) -> 12.56477147 | D18: kcal/day | E18: Eq
A19: Caloric content of commodity (dry weight) | B19: KCD | C19: ='A03'!$E$42 -> 2 | D19: kcal/gdw [Note 1] | E19: U.S. EPA/ORD 1993
A20: Food consumed per day (dry weight) | B20: AmntDry | C20: = KR ÷ KCD
C21: =C18/C19 -> 6.282385735 | D21: gdry/day | E21: Eq
A22: Water content of food item as a proportion | B22: PropWater | C22: ='A03'!$E$43 -> 0.85 | D22: gwater/gfood | E22: U.S. EPA/ORD 1993
A23: Dry weight content of food item as a proportion | B23: PropDry | C23: = 1-PropWater
C24: =1-C22 -> 0.15 | D24: gdry/gfood | E24: Eq
A25: Variability in caloric requirements not accounted for by allometric equation | B25: Error
B26: Central | C26: 1 | D26: Note 2
B27: Lower | C27: 0.3
B28: Upper | C28: 1.7
A29: Amount of food consumed per day, wet weight | B29: AmntFood | C29: = Error x (AmntDry ÷ PropDry) ÷ (1000g/kg)
B30: Central | C30: =C26*(C$21/C$24)/1000 -> 0.04188257157 | D30: kgfood/day | E30: Eq
B31: Lower | C31: =C27*(C$21/C$24)/1000 -> 0.01256477147 | E31: Eq
B32: Upper | C32: 0.07120037167 | E32: Eq
A33: Estimate
A34: Dose | B34: Dose | C34: = AmntFood × Conc / BW
B35: Central | C35: =$C30 * C9/C$13 -> 9.166475993 | D35: mg/kg bw/day | E35: Eq
B36: Lower | C36: =$C31 * C10/C$13 -> 0.9166475993 | E36: Eq
B37: Upper | C37: =$C32 * C11/C$13 -> 47.6147503 | E37: Eq

Sheet F14e
A1: Consumption of Tall grass by a Bird, large after Chronic exposure.
A2: Short Title | B2: Tall Grass | E2: FdKcalV6
A3: Receptor | B3: Bird, large
A4: Duration | B4: Chronic | E4: Scenario parameter
A5: Material consumed | B5: Tall grass
A6: Parameter/Assumption | B6: Code / Range | C6: Equation/ Value | D6: Units | E6: Reference/Designation
A7: Commodity
A8: Concentration on consumed commodity | B8: Conc
B9: Central | C9: =B05d!Chronic_C -> 2.188613461 | D9: mg/kg food wet weight | E9: ='B05d'!Chronic_C
B10: Lower | C10: =B05d!Chronic_L -> 0.7295378204 | E10: ='B05d'!Chronic_L
B11: Upper | C11: =B05d!Chronic_U -> 6.68743002 | E11: ='B05d'!Chronic_U
A12: Receptor
A13: Body weight | B13: BW | C13: =A02b!$C$15 -> 4 | D13: kg | E13: Default
A14: Allometric coefficients for caloric requirement per day in kilocalories and BW in grams
B15: alpha | C15: =A02b!$C$16 -> 1.146 | E15: U.S. EPA/ORD 1993
B16: beta | C16: =A02b!$C$17 -> 0.749 | E16: U.S. EPA/ORD 1993
A17: Caloric requirement per day | B17: KR | C17: = alpha x (BW x 1kg/1000g)beta
C18: =C15*((C13*1000)^C16) -> 571.6465031 | D18: kcal/day | E18: Eq
A19: Caloric content of commodity (dry weight) | B19: KCD | C19: ='A03'!$E$42 -> 2 | D19: kcal/gdw [Note 1] | E19: U.S. EPA/ORD 1993
A20: Food consumed per day (dry weight) | B20: AmntDry | C20: = KR ÷ KCD
C21: =C18/C19 -> 285.8232515 | D21: gdry/day | E21: Eq
A22: Water content of food item as a proportion | B22: PropWater | C22: ='A03'!$E$43 -> 0.85 | D22: gwater/gfood | E22: U.S. EPA/ORD 1993
A23: Dry weight content of food item as a proportion | B23: PropDry | C23: = 1-PropWater
C24: =1-C22 -> 0.15 | D24: gdry/gfood | E24: Eq
A25: Variability in caloric requirements not accounted for by allometric equation | B25: Error
B26: Central | C26: 1 | D26: Note 2
B27: Lower | C27: 0.3
B28: Upper | C28: 1.7
A29: Amount of food consumed per day, wet weight | B29: AmntFood | C29: = Error x (AmntDry ÷ PropDry) ÷ (1000g/kg)
B30: Central | C30: =C26*(C$21/C$24)/1000 -> 1.905488344 | D30: kgfood/day | E30: Eq
B31: Lower | C31: =C27*(C$21/C$24)/1000 -> 0.5716465031 | E31: Eq
B32: Upper | C32: 3.239330184 | E32: Eq
A33: Estimate
A34: Dose | B34: Dose | C34: = AmntFood × Conc / BW
B35: Central | C35: =$C30 * C9/C$13 -> 1.04259436 | D35: mg/kg bw/day | E35: Eq
B36: Lower | C36: =$C31 * C10/C$13 -> 0.104259436 | E36: Eq
B37: Upper | C37: =$C32 * C11/C$13 -> 5.41569848 | E37: Eq

Sheet F15a
A1: Consumption of Short grass by a Mammal, small after Chronic exposure.
A2: Short Title | B2: Short Grass | E2: FdKcalV6
A3: Receptor | B3: Mammal, small
A4: Duration | B4: Chronic | E4: Scenario parameter
A5: Material consumed | B5: Short grass
A6: Parameter/Assumption | B6: Code / Range | C6: Equation/ Value | D6: Units | E6: Reference/Designation
A7: Commodity
A8: Concentration on consumed commodity | B8: Conc
B9: Central | C9: =B05c!Chronic_C -> 5.167559561 | D9: mg/kg food wet weight | E9: ='B05c'!Chronic_C
B10: Lower | C10: =B05c!Chronic_L -> 1.823844551 | E10: ='B05c'!Chronic_L
B11: Upper | C11: =B05c!Chronic_U -> 14.59075641 | E11: ='B05c'!Chronic_U
A12: Receptor
A13: Body weight | B13: BW | C13: =A02b!$C$71 -> 0.02 | D13: kg | E13: Default
A14: Allometric coefficients for caloric requirement per day in kilocalories and BW in grams
B15: alpha | C15: =A02b!$C$75 -> 2.514 | E15: U.S. EPA/ORD 1993
B16: beta | C16: =A02b!$C$76 -> 0.507 | E16: U.S. EPA/ORD 1993
A17: Caloric requirement per day | B17: KR | C17: = alpha x (BW x 1kg/1000g)beta
C18: =C15*((C13*1000)^C16) -> 11.48120526 | D18: kcal/day | E18: Eq
A19: Caloric content of commodity (dry weight) | B19: KCD | C19: ='A03'!$E$65 -> 2.26 | D19: kcal/gdw [Note 1] | E19: U.S. EPA/ORD 1993
A20: Food consumed per day (dry weight) | B20: AmntDry | C20: = KR ÷ KCD
C21: =C18/C19 -> 5.080179317 | D21: gdry/day | E21: Eq
A22: Water content of food item as a proportion | B22: PropWater | C22: ='A03'!$E$66 -> 0.85 | D22: gwater/gfood | E22: U.S. EPA/ORD 1993
A23: Dry weight content of food item as a proportion | B23: PropDry | C23: = 1-PropWater
C24: =1-C22 -> 0.15 | D24: gdry/gfood | E24: Eq
A25: Variability in caloric requirements not accounted for by allometric equation | B25: Error
B26: Central | C26: 1 | D26: Note 2
B27: Lower | C27: 0.3
B28: Upper | C28: 1.7
A29: Amount of food consumed per day, wet weight | B29: AmntFood | C29: = Error x (AmntDry ÷ PropDry) ÷ (1000g/kg)
B30: Central | C30: =C26*(C$21/C$24)/1000 -> 0.03386786211 | D30: kgfood/day | E30: Eq
B31: Lower | C31: =C27*(C$21/C$24)/1000 -> 0.01016035863 | E31: Eq
B32: Upper | C32: 0.05757536559 | E32: Eq
A33: Estimate
A34: Dose | B34: Dose | C34: = AmntFood × Conc / BW
B35: Central | C35: =$C30 * C9/C$13 -> 8.750709734 | D35: mg/kg bw/day | E35: Eq
B36: Lower | C36: =$C31 * C10/C$13 -> 0.9265457365 | E36: Eq
B37: Upper | C37: =$C32 * C11/C$13 -> 42.00340672 | E37: Eq

Sheet F15b
A1: Consumption of Short grass by a Mammal, 400 g after Chronic exposure.
A2: Short Title | B2: Short Grass | E2: FdKcalV6
A3: Receptor | B3: Mammal, 400 g
A4: Duration | B4: Chronic | E4: Scenario parameter
A5: Material consumed | B5: Short grass
A6: Parameter/Assumption | B6: Code / Range | C6: Equation/ Value | D6: Units | E6: Reference/Designation
A7: Commodity
A8: Concentration on consumed commodity | B8: Conc
B9: Central | C9: =B05c!Chronic_C -> 5.167559561 | D9: mg/kg food wet weight | E9: ='B05c'!Chronic_C
B10: Lower | C10: =B05c!Chronic_L -> 1.823844551 | E10: ='B05c'!Chronic_L
B11: Upper | C11: =B05c!Chronic_U -> 14.59075641 | E11: ='B05c'!Chronic_U
A12: Receptor
A13: Body weight | B13: BW | C13: =A02b!$C$40 -> 0.4 | D13: kg | E13: Default
A14: Allometric coefficients for caloric requirement per day in kilocalories and BW in grams
B15: alpha | C15: =A02b!$C$43 -> 2.514 | E15: U.S. EPA/ORD 1993
B16: beta | C16: =A02b!$C$44 -> 0.507 | E16: U.S. EPA/ORD 1993
A17: Caloric requirement per day | B17: KR | C17: = alpha x (BW x 1kg/1000g)beta
C18: =C15*((C13*1000)^C16) -> 52.43360149 | D18: kcal/day | E18: Eq
A19: Caloric content of commodity (dry weight) | B19: KCD | C19: ='A03'!$E$65 -> 2.26 | D19: kcal/gdw [Note 1] | E19: U.S. EPA/ORD 1993
A20: Food consumed per day (dry weight) | B20: AmntDry | C20: = KR ÷ KCD
C21: =C18/C19 -> 23.20070862 | D21: gdry/day | E21: Eq
A22: Water content of food item as a proportion | B22: PropWater | C22: ='A03'!$E$66 -> 0.85 | D22: gwater/gfood | E22: U.S. EPA/ORD 1993
A23: Dry weight content of food item as a proportion | B23: PropDry | C23: = 1-PropWater
C24: =1-C22 -> 0.15 | D24: gdry/gfood | E24: Eq
A25: Variability in caloric requirements not accounted for by allometric equation | B25: Error
B26: Central | C26: 1 | D26: Note 2
B27: Lower | C27: 0.3
B28: Upper | C28: 1.7
A29: Amount of food consumed per day, wet weight | B29: AmntFood | C29: = Error x (AmntDry ÷ PropDry) ÷ (1000g/kg)
B30: Central | C30: =C26*(C$21/C$24)/1000 -> 0.1546713908 | D30: kgfood/day | E30: Eq
B31: Lower | C31: =C27*(C$21/C$24)/1000 -> 0.04640141724 | E31: Eq
B32: Upper | C32: 0.2629413644 | E32: Eq
A33: Estimate
A34: Dose | B34: Dose | C34: = AmntFood × Conc / BW
B35: Central | C35: =$C30 * C9/C$13 -> 1.998184061 | D35: mg/kg bw/day | E35: Eq
B36: Lower | C36: =$C31 * C10/C$13 -> 0.21157243 | E36: Eq
B37: Upper | C37: =$C32 * C11/C$13 -> 9.591283494 | E37: Eq

Sheet F15c
A1: Consumption of Short grass by a Mammal, large after Chronic exposure.
A2: Short Title | B2: Short Grass | E2: FdKcalV6
A3: Receptor | B3: Mammal, large
A4: Duration | B4: Chronic | E4: Scenario parameter
A5: Material consumed | B5: Short grass
A6: Parameter/Assumption | B6: Code / Range | C6: Equation/ Value | D6: Units | E6: Reference/Designation
A7: Commodity
A8: Concentration on consumed commodity | B8: Conc
B9: Central | C9: =B05c!Chronic_C -> 5.167559561 | D9: mg/kg food wet weight | E9: ='B05c'!Chronic_C
B10: Lower | C10: =B05c!Chronic_L -> 1.823844551 | E10: ='B05c'!Chronic_L
B11: Upper | C11: =B05c!Chronic_U -> 14.59075641 | E11: ='B05c'!Chronic_U
A12: Receptor
A13: Body weight | B13: BW | C13: =A02b!$C$61 -> 70 | D13: kg | E13: Default
A14: Allometric coefficients for caloric requirement per day in kilocalories and BW in grams
B15: alpha | C15: =A02b!$C$62 -> 1.518 | E15: U.S. EPA/ORD 1993
B16: beta | C16: =A02b!$C$63 -> 0.73 | E16: U.S. EPA/ORD 1993
A17: Caloric requirement per day | B17: KR | C17: = alpha x (BW x 1kg/1000g)beta
C18: =C15*((C13*1000)^C16) -> 5226.28803 | D18: kcal/day | E18: Eq
A19: Caloric content of commodity (dry weight) | B19: KCD | C19: ='A03'!$E$65 -> 2.26 | D19: kcal/gdw [Note 1] | E19: U.S. EPA/ORD 1993
A20: Food consumed per day (dry weight) | B20: AmntDry | C20: = KR ÷ KCD
C21: =C18/C19 -> 2312.516827 | D21: gdry/day | E21: Eq
A22: Water content of food item as a proportion | B22: PropWater | C22: ='A03'!$E$66 -> 0.85 | D22: gwater/gfood | E22: U.S. EPA/ORD 1993
A23: Dry weight content of food item as a proportion | B23: PropDry | C23: = 1-PropWater
C24: =1-C22 -> 0.15 | D24: gdry/gfood | E24: Eq
A25: Variability in caloric requirements not accounted for by allometric equation | B25: Error
B26: Central | C26: 1 | D26: Note 2
B27: Lower | C27: 0.3
B28: Upper | C28: 1.7
A29: Amount of food consumed per day, wet weight | B29: AmntFood | C29: = Error x (AmntDry ÷ PropDry) ÷ (1000g/kg)
B30: Central | C30: =C26*(C$21/C$24)/1000 -> 15.41677885 | D30: kgfood/day | E30: Eq
B31: Lower | C31: =C27*(C$21/C$24)/1000 -> 4.625033655 | E31: Eq
B32: Upper | C32: 26.20852404 | E32: Eq
A33: Estimate
A34: Dose | B34: Dose | C34: = AmntFood × Conc / BW
B35: Central | C35: =$C30 * C9/C$13 -> 1.138101756 | D35: mg/kg bw/day | E35: Eq
B36: Lower | C36: =$C31 * C10/C$13 -> 0.1205048918 | E36: Eq
B37: Upper | C37: =$C32 * C11/C$13 -> 5.46288843 | E37: Eq

Sheet F15d
A1: Consumption of Short grass by a Bird, small after Chronic exposure.
A2: Short Title | B2: Short Grass | E2: FdKcalV6
A3: Receptor | B3: Bird, small
A4: Duration | B4: Chronic | E4: Scenario parameter
A5: Material consumed | B5: Short grass
A6: Parameter/Assumption | B6: Code / Range | C6: Equation/ Value | D6: Units | E6: Reference/Designation
A7: Commodity
A8: Concentration on consumed commodity | B8: Conc
B9: Central | C9: =B05c!Chronic_C -> 5.167559561 | D9: mg/kg food wet weight | E9: ='B05c'!Chronic_C
B10: Lower | C10: =B05c!Chronic_L -> 1.823844551 | E10: ='B05c'!Chronic_L
B11: Upper | C11: =B05c!Chronic_U -> 14.59075641 | E11: ='B05c'!Chronic_U
A12: Receptor
A13: Body weight | B13: BW | C13: =A02b!$C$31 -> 0.01 | D13: kg | E13: Default
A14: Allometric coefficients for caloric requirement per day in kilocalories and BW in grams
B15: alpha | C15: =A02b!$C$32 -> 3.12 | E15: U.S. EPA/ORD 1993
B16: beta | C16: =A02b!$C$33 -> 0.605 | E16: U.S. EPA/ORD 1993
A17: Caloric requirement per day | B17: KR | C17: = alpha x (BW x 1kg/1000g)beta
C18: =C15*((C13*1000)^C16) -> 12.56477147 | D18: kcal/day | E18: Eq
A19: Caloric content of commodity (dry weight) | B19: KCD | C19: ='A03'!$E$42 -> 2 | D19: kcal/gdw [Note 1] | E19: U.S. EPA/ORD 1993
A20: Food consumed per day (dry weight) | B20: AmntDry | C20: = KR ÷ KCD
C21: =C18/C19 -> 6.282385735 | D21: gdry/day | E21: Eq
A22: Water content of food item as a proportion | B22: PropWater | C22: ='A03'!$E$43 -> 0.85 | D22: gwater/gfood | E22: U.S. EPA/ORD 1993
A23: Dry weight content of food item as a proportion | B23: PropDry | C23: = 1-PropWater
C24: =1-C22 -> 0.15 | D24: gdry/gfood | E24: Eq
A25: Variability in caloric requirements not accounted for by allometric equation | B25: Error
B26: Central | C26: 1 | D26: Note 2
B27: Lower | C27: 0.3
B28: Upper | C28: 1.7
A29: Amount of food consumed per day, wet weight | B29: AmntFood | C29: = Error x (AmntDry ÷ PropDry) ÷ (1000g/kg)
B30: Central | C30: =C26*(C$21/C$24)/1000 -> 0.04188257157 | D30: kgfood/day | E30: Eq
B31: Lower | C31: =C27*(C$21/C$24)/1000 -> 0.01256477147 | E31: Eq
B32: Upper | C32: 0.07120037167 | E32: Eq
A33: Estimate
A34: Dose | B34: Dose | C34: = AmntFood × Conc / BW
B35: Central | C35: =$C30 * C9/C$13 -> 21.64306832 | D35: mg/kg bw/day | E35: Eq
B36: Lower | C36: =$C31 * C10/C$13 -> 2.291618998 | E36: Eq
B37: Upper | C37: =$C32 * C11/C$13 -> 103.8867279 | E37: Eq

Sheet F15e
A1: Consumption of Short grass by a Bird, large after Chronic exposure.
A2: Short Title | B2: Grass Chronic | E2: FdKcalV6
A3: Receptor | B3: Bird, large
A4: Duration | B4: Chronic | E4: Scenario parameter
A5: Material consumed | B5: Short grass
A6: Parameter/Assumption | B6: Code / Range | C6: Equation/ Value | D6: Units | E6: Reference/Designation
A7: Commodity
A8: Concentration on consumed commodity | B8: Conc
B9: Central | C9: =B05c!Chronic_C -> 5.167559561 | D9: mg/kg food wet weight | E9: ='B05c'!Chronic_C
B10: Lower | C10: =B05c!Chronic_L -> 1.823844551 | E10: ='B05c'!Chronic_L
B11: Upper | C11: =B05c!Chronic_U -> 14.59075641 | E11: ='B05c'!Chronic_U
A12: Receptor
A13: Body weight | B13: BW | C13: =A02b!$C$15 -> 4 | D13: kg | E13: Default
A14: Allometric coefficients for caloric requirement per day in kilocalories and BW in grams
B15: alpha | C15: =A02b!$C$16 -> 1.146 | E15: U.S. EPA/ORD 1993
B16: beta | C16: =A02b!$C$17 -> 0.749 | E16: U.S. EPA/ORD 1993
A17: Caloric requirement per day | B17: KR | C17: = alpha x (BW x 1kg/1000g)beta
C18: =C15*((C13*1000)^C16) -> 571.6465031 | D18: kcal/day | E18: Eq
A19: Caloric content of commodity (dry weight) | B19: KCD | C19: ='A03'!$E$42 -> 2 | D19: kcal/gdw [Note 1] | E19: U.S. EPA/ORD 1993
A20: Food consumed per day (dry weight) | B20: AmntDry | C20: = KR ÷ KCD
C21: =C18/C19 -> 285.8232515 | D21: gdry/day | E21: Eq
A22: Water content of food item as a proportion | B22: PropWater | C22: ='A03'!$E$43 -> 0.85 | D22: gwater/gfood | E22: U.S. EPA/ORD 1993
A23: Dry weight content of food item as a proportion | B23: PropDry | C23: = 1-PropWater
C24: =1-C22 -> 0.15 | D24: gdry/gfood | E24: Eq
A25: Variability in caloric requirements not accounted for by allometric equation | B25: Error
B26: Central | C26: 1 | D26: Note 2
B27: Lower | C27: 0.3
B28: Upper | C28: 1.7
A29: Amount of food consumed per day, wet weight | B29: AmntFood | C29: = Error x (AmntDry ÷ PropDry) ÷ (1000g/kg)
B30: Central | C30: =C26*(C$21/C$24)/1000 -> 1.905488344 | D30: kgfood/day | E30: Eq
B31: Lower | C31: =C27*(C$21/C$24)/1000 -> 0.5716465031 | E31: Eq
B32: Upper | C32: 3.239330184 | E32: Eq
A33: Estimate
A34: Dose | B34: Dose | C34: = AmntFood × Conc / BW
B35: Central | C35: =$C30 * C9/C$13 -> 2.461681127 | D35: mg/kg bw/day | E35: Eq
B36: Lower | C36: =$C31 * C10/C$13 -> 0.2606485899 | E36: Eq
B37: Upper | C37: =$C32 * C11/C$13 -> 11.81606941 | E37: Eq

Sheet F16a
A1: Consumption of contaminated water by Mammal, small, Longer-term Concentrations
A2: Short Title | B2: Longer-term Concentrations | E2: WatAlloV6
A3: Receptor | B3: Mammal, small
A4: Duration | B4: Chronic | E4: Scenario parameter
